Workbook

Sheet Disclaimer
B4: Disclaimer
B5: 1 | C5: Neither the U.S. Department of Energy (DOE) National Energy Technology Laboratory (NETL) nor any person acting on behalf of these organizations:
C6: A. Makes any warranty or representation, express or implied, with respect to the accuracy, completeness, or usefulness of the information contained in this document, or that the use of any information, apparatus, method, or process disclosed in this document may not infringe on privately owned rights; or
C7: B. Assumes any liability with this report as to its use, or damages resulting from the use of any information, apparatus, method, or process disclosed in this document.
B8: 2 | C8: Reference herein to any specific commercial product, process, or service by trade name, trademark, manufacturer, or otherwise, does not necessarily constitute or imply its endorsement, recommendation, or favoring by NETL. The views and opinions of the authors expressed herein do not necessarily state or reflect those of NETL.
B9: 3 | C9: Developed by the U.S. Department of Energy (DOE) National Energy Technology Laboratory (NETL) for the Connecticut Center for Advanced Technology, Inc. (CCAT) with funding from the Defense Logistics Agency (DLA) Energy
B10: Contact Information

Sheet Validation Cases (hidden)
A1: Case | B1: GHG Screening | C1: CCAT Model | D1: % Diff
A2: EFG-V-100% Coal | B2: 87.0001367 | C2: 86.89417349 | D2: =B2/C2-1 -> 0.001219451298
A3: EFG-M-10% Bio, Chipped | B3: 74.8 | C3: 75.99778745 | D3: =B3/C3-1 -> -0.01576082008
A4: EFG-M-30% Bio, Chipped | B4: 50.46777524 | C4: 50.40501366 | D4: 0.00124514556
A5: EFG-M-10% Bio, Torrefied | B5: 74.11640198 | C5: 74.14222198 | D5: -0.0003482496495
A6: EFG-M-30% Bio, Torrefied | B6: 48.41258405 | C6: 48.75326345 | D6: -0.006987827545
A7: EFG-V-10% Bio, Pellets | B7: 75.85447761 | C7: 76.96826127 | D7: =B7/C7-1 -> -0.01447068758
A8: EFG-V-30% Bio, Pellets | B8: 53.57663742 | C8: 53.488688 | D8: 0.001644262168
A9: EFG-V-10% Bio, Torrefied Pellets | B9: 74.10689293 | C9: 74.33207433 | D9: -0.003029397462
A10: EFG-V-30% Bio, Torrefied Pellets | B10: 48.32607556 | C10: 48.24417324 | D10: 0.001697662532
A11: TRIG-V-100% Coal | B11: 74.79805016 | C11: 74.36263794 | D11: 0.00585525519
A12: TRIG-V-11.7% Bio, Chipped | B12: 59.51924533 | C12: 60.04473028 | D12: -0.008751558114
A13: TRIG-V-19.2% Bio, Chipped | B13: 49.93616966 | C13: 50.41183467 | D13: -0.009435582114
A14: TRIG-V-28.3% Bio, Chipped | B14: 38.30873681 | C14: 38.22041707 | D14: 0.002310800058
A15: TRIG-V-16.5% Bio, Torrefied | B15: 52.20936699 | C15: 51.95927893 | D15: 0.004813154913
A16: TRIG-V-19.6% Bio, Torrefied | B16: 48.02720102 | C16: 47.78933628 | D16: 0.004977360256
A17: TRIG-V-28.3% Bio, Torrefied | B17: 36.29003042 | C17: 36.20732763 | D17: 0.002284144907
A18: TRIG-V-11.7% Bio, Pellets | B18: 59.58447141 | C18: 59.81954795 | D18: -0.003929761189
A19: TRIG-V-19.2% Bio, Pellets | B19: 50.04310417 | C19: 50.25846862 | D19: -0.004285137511
A20: TRIG-V-28.3% Bio, Pellets | B20: 38.46616932 | C20: 38.38003453 | D20: 0.002244260349
A21: TRIG-V-16.5% Bio, Torrefied Pellets | B21: 51.67808443 | C21: 51.454397 | D21: 0.004347294676
A22: TRIG-V-19.6% Bio, Torrefied Pellets | B22: 47.39607924 | C22: 47.18006835 | D22: 0.004578435121
A23: TRIG-V-28.3% Bio, Torrefied Pellets | B23: 35.37867664 | C23: 35.29581294 | D23: 0.002347692156

Sheet Dashboard
A4: Scenario | B4: =D5&"-"&D6&"-"&D7&"-"&D8 -> PRB-SYP_Torrefied Pellets-EFG-R | C4: Unit/Option | D4: Value | E4: Note | G4: Optimization
A5: Case | B5: Coal Type | C5: PRB/I6/ND Lignite | D5: PRB | E5: =VLOOKUP(D5,DescCoal,2,FALSE) -> PRB Coal | G5: Final GHG
A6: Case | B6: Biomass Type | C6: SYP_Chipped/SYP_Torrefied/SYP_Pellets/SYP_Torrefied Pellets/SG/MSW/No Biomass | D6: SYP_Torrefied Pellets | E6: =VLOOKUP(D6,DescBio,2,FALSE) -> Souther Yellow Pine - Torrefied Pellets | G6: =G60 -> 73.97901328
A7: Case | B7: Gasifier Type | C7: TRIG/EFG/FWQ/ESF | D7: EFG | E7: =D7 -> EFG | G7: Initial GHG
A8: Case | B8: Recycle or Once-Through Configuration | C8: R/O | D8: R | E8: =IF(D8="R", "Recycle", "Once Through") -> Recycle
A10: Design | B10: Parameter | C10: Unit | D10: Value | E10: Min | F10: Max | G10: Initial Value
A11: Design | B11: Biomass Feed Mass Percentage | C11: % | D11: 0.1 | E11: 0 | F11: 0.3
A12: Design | B12: Plant Efficiency (HHV) | C12: % | D12: =F12 -> 0.5086567977 | E12: 0 | F12: =HLOOKUP($B$4,PlantIO_4H,65,FALSE) -> 0.5086567977
A13: Design | B13: Fraction of Captured CO₂ Vented | C13: % | D13: 0 | E13: 0 | F13: 1
A15: Stage | B15: Parameter | C15: Unit | D15: Value | E15: Min | F15: Max | G15: Initial Value
A16: RMA | B16: Coal Mine Methane | C16: scf/ton | D16: 8 | E16: 4 | F16: 40
A17: RMA | B17: Biomass Yield | C17: kg/acre | D17: 6350.29318 | E17: 2993.709642 | F17: 7620.351816
A18: RMA | B18: MSW Collection Distance | C18: miles (one-way) | D18: 0 | E18: 0 | F18: 40
A19: RMA | B19: Coal Truck Distance | C19: miles (one-way) | D19: 5.337379095e-05 | E19: 0 | F19: 400
A20: RMA | B20: Coal Rail Distance | C20: miles (one-way) | D20: 1600.00002 | E20: 1280 | F20: 1920
A21: RMT | B21: Biomass Truck Distance (Farm to CBTL or Farm to Torrefaction) | C21: miles (one-way) | D21: 40.00002297 | E21: 20 | F21: 50
A22: RMT | B22: Biomass Truck Distance (Torrefaction to CBTL) | C22: miles (one-way) | D22: 50 | E22: 40 | F22: 60
A23: ECF | B23: CO₂ Pipe Distance | C23: miles (one-way) | D23: 775.0001661 | E23: 620 | F23: 930
A24: ECF | B24: CO₂ Pipe Loss Rate | C24: kg/mi-yr | D24: 3843.000001 | E24: 384.3 | F24: 38430
A25: ECF | B25: Diesel Displacement Type | D25: 1 | E25: 1 | F25: 2
A26: ECF | B26: Diesel Displacement Percentage | C26: Percent | D26: 1 | E26: 0 | F26: 1
A27: ECF | B27: CO₂ Displacement Type | C27: 1 - Natural Dome | D27: 1 | E27: 1 | F27: 1
A28: ECF | B28: CO₂ Displacement Percentage | C28: Percent | D28: 1 | E28: 0 | F28: 1
A29: ECF | B29: Electricity Displacement | C29: kg CO₂e/MWh | D29: 604.9912016 | E29: 558 | F29: 1049
A30: ECF | B30: Electricity Displacement Percentage | C30: % | D30: 1 | E30: 0 | F30: 1
A31: PT | B31: F-T Jet Fuel Pipeline to Blending Distance | C31: miles (one-way) | D31: 225.0099972 | E31: 157.5 | F31: 292.5
A32: PT | B32: Blended Jet Alt Transport Scenario | D32: 1 | E32: 0 | F32: 1
B34: Plant IO ID Based on Scenario and L/N/H | C34: =MATCH(Dashboard!B4,'4.0 Plant I-O'!$B$1:$FB$1,0) -> 10 | D34: =C34 -> 10 | E34: =C34 -> 10 | F34: =C34 -> 10
B35: UP Data GHG ID | C35: 5 | D35: 6 | E35: 7 | F35: 8
A36: LC Stage | B36: =UnitLabel -> g CO₂e / MJ | C36: CO₂ | D36: CH₄ | E36: N₂O | F36: SF₆ | G36: GWP | H36: Flow Name | I36: Sub Flow Name | J36: LC Stage | L36: Plant Configuration Design Values
A37: RMA | B37: Coal Mining, Surface | C37: =VLOOKUP(H37,'4.0 Plant I-O'!$B$18:$FB$31,C$34,FALSE)*VLOOKUP(B37,'UP Data'!A$26:I$53,C$35,FALSE)*$C$72*$D$76*UnitConv -> 0.5951025552 | D37: =VLOOKUP(H37,'4.0 Plant I-O'!$B$18:$FB$31,D$34,FALSE)*VLOOKUP(B37,'UP Data'!A$26:I$53,D$35,FALSE)*$C$72*$D$76*UnitConv*GWPCH4 -> 0.501107807 | E37: =VLOOKUP(H37,'4.0 Plant I-O'!$B$18:$FB$31,E$34,FALSE)*VLOOKUP(B37,'UP Data'!A$26:I$53,E$35,FALSE)*$C$72*$D$76*UnitConv*GWPN2O -> 0.1656030177 | F37: =VLOOKUP(H37,'4.0 Plant I-O'!$B$18:$FB$31,F$34,FALSE)*VLOOKUP(B37,'UP Data'!A$26:I$53,F$35,FALSE)*$C$72*$D$76*UnitConv*GWPSF6 -> 0.0004484148254 | G37: =SUM(C37:F37) -> 1.262261795 | H37: Coal | J37: RMA | L37: Inputs | M37: Coal | N37: =IF(HLOOKUP($B$4,'4.0 Plant I-O'!$D$1:$AF$78,76,FALSE)=0,HLOOKUP($B$4,'4.0 Plant I-O'!$D$1:$AF$78,P37,FALSE),HLOOKUP($B$4,'4.0 Plant I-O'!$D$1:$AF$78,Q37,FALSE)) -> 2264929.52 | O37: lb/hr, as received | P37: 3 | Q37: 71
B38: ="Biomass Production and Field Chipping" & " - " & BioFeed -> Biomass Production and Field Chipping - SYP | C38: =(VLOOKUP(H38,'4.0 Plant I-O'!$B$18:$FB$31,C$34,FALSE)*VLOOKUP(B38,'UP Data'!A$26:I$53,C$35,FALSE)*$C$72*$D$75*$D$76+VLOOKUP(I38,'4.0 Plant I-O'!$B$18:$FB$31,C$34,FALSE)*VLOOKUP(B38,'UP Data'!A$26:I$53,C$35,FALSE)*$C$72*$D$74*$D$76)*UnitConv -> -14.33380512 | D38: =(VLOOKUP(H38,'4.0 Plant I-O'!$B$18:$FB$31,D$34,FALSE)*VLOOKUP(B38,'UP Data'!A$26:I$53,D$35,FALSE)*$C$72*$D$75*$D$76+VLOOKUP(I38,'4.0 Plant I-O'!$B$18:$FB$31,D$34,FALSE)*VLOOKUP(B38,'UP Data'!A$26:I$53,D$35,FALSE)*$C$72*$D$74*$D$76)*UnitConv*GWPCH4 -> 0.02925678131 | E38: =(VLOOKUP(H38,'4.0 Plant I-O'!$B$18:$FB$31,E$34,FALSE)*VLOOKUP(B38,'UP Data'!A$26:I$53,E$35,FALSE)*$C$72*$D$75*$D$76+VLOOKUP(I38,'4.0 Plant I-O'!$B$18:$FB$31,E$34,FALSE)*VLOOKUP(B38,'UP Data'!A$26:I$53,E$35,FALSE)*$C$72*$D$74*$D$76)*UnitConv*GWPN2O -> 0.3987432556 | F38: =(VLOOKUP(H38,'4.0 Plant I-O'!$B$18:$FB$31,F$34,FALSE)*VLOOKUP(B38,'UP Data'!A$26:I$53,F$35,FALSE)*$C$72*$D$75*$D$76+VLOOKUP(I38,'4.0 Plant I-O'!$B$18:$FB$31,F$34,FALSE)*VLOOKUP(B38,'UP Data'!A$26:I$53,F$35,FALSE)*$C$72*$D$74*$D$76)*UnitConv*GWPSF6 -> 0.0002485725485 | G38: =SUM(C38:F38) -> -13.90555651 | H38: Biomass | I38: Torrefied biomass | J38: RMA | M38: Biomass | N38: =IF(HLOOKUP($B$4,'4.0 Plant I-O'!$D$1:$AF$78,76,FALSE)=0,HLOOKUP($B$4,'4.0 Plant I-O'!$D$1:$AF$78,P38,FALSE),HLOOKUP($B$4,'4.0 Plant I-O'!$D$1:$AF$78,Q38,FALSE)) -> 196724.6073 | O38: lb/hr, as received | P38: 8 | Q38: 72
B39: Biomass Direct Land Use Change | C39: =(VLOOKUP(H39,'4.0 Plant I-O'!$B$18:$FB$31,C$34,FALSE)*VLOOKUP(B39,'UP Data'!A$26:I$53,C$35,FALSE)*$C$72*$D$75*$D$76+VLOOKUP(I39,'4.0 Plant I-O'!$B$18:$FB$31,C$34,FALSE)*VLOOKUP(B39,'UP Data'!A$26:I$53,C$35,FALSE)*$C$72*$D$74*$D$76)*UnitConv -> 0.3410505698 | D39: =(VLOOKUP(H39,'4.0 Plant I-O'!$B$18:$FB$31,D$34,FALSE)*VLOOKUP(B39,'UP Data'!A$26:I$53,D$35,FALSE)*$C$72*$D$75*$D$76+VLOOKUP(I39,'4.0 Plant I-O'!$B$18:$FB$31,D$34,FALSE)*VLOOKUP(B39,'UP Data'!A$26:I$53,D$35,FALSE)*$C$72*$D$74*$D$76)*UnitConv*GWPCH4 -> 0 | E39: =(VLOOKUP(H39,'4.0 Plant I-O'!$B$18:$FB$31,E$34,FALSE)*VLOOKUP(B39,'UP Data'!A$26:I$53,E$35,FALSE)*$C$72*$D$75*$D$76+VLOOKUP(I39,'4.0 Plant I-O'!$B$18:$FB$31,E$34,FALSE)*VLOOKUP(B39,'UP Data'!A$26:I$53,E$35,FALSE)*$C$72*$D$74*$D$76)*UnitConv*GWPN2O -> 0 | F39: =(VLOOKUP(H39,'4.0 Plant I-O'!$B$18:$FB$31,F$34,FALSE)*VLOOKUP(B39,'UP Data'!A$26:I$53,F$35,FALSE)*$C$72*$D$75*$D$76+VLOOKUP(I39,'4.0 Plant I-O'!$B$18:$FB$31,F$34,FALSE)*VLOOKUP(B39,'UP Data'!A$26:I$53,F$35,FALSE)*$C$72*$D$74*$D$76)*UnitConv*GWPSF6 -> 0 | G39: 0.3410505698 | H39: Biomass | I39: Torrefied biomass | J39: RMA | L39: Outputs | M39: Jet Fuel | N39: =HLOOKUP($B$4,'4.0 Plant I-O'!$D$1:$AF$78,Dashboard!P39,FALSE)/VLOOKUP(Dashboard!M39,Constants!$B$26:$C$29,2,FALSE)*Constants!$C$40*24 -> 24548.81991 | O39: bbl/day | P39: 9
B40: Biomass Indirect Land Use Change | C40: =(VLOOKUP(H40,'4.0 Plant I-O'!$B$18:$FB$31,C$34,FALSE)*VLOOKUP(B40,'UP Data'!A$26:I$53,C$35,FALSE)*$C$72*$D$75*$D$76+VLOOKUP(I40,'4.0 Plant I-O'!$B$18:$FB$31,C$34,FALSE)*VLOOKUP(B40,'UP Data'!A$26:I$53,C$35,FALSE)*$C$72*$D$74*$D$76)*UnitConv -> 1.258670466 | D40: =(VLOOKUP(H40,'4.0 Plant I-O'!$B$18:$FB$31,D$34,FALSE)*VLOOKUP(B40,'UP Data'!A$26:I$53,D$35,FALSE)*$C$72*$D$75*$D$76+VLOOKUP(I40,'4.0 Plant I-O'!$B$18:$FB$31,D$34,FALSE)*VLOOKUP(B40,'UP Data'!A$26:I$53,D$35,FALSE)*$C$72*$D$74*$D$76)*UnitConv*GWPCH4 -> 0 | E40: =(VLOOKUP(H40,'4.0 Plant I-O'!$B$18:$FB$31,E$34,FALSE)*VLOOKUP(B40,'UP Data'!A$26:I$53,E$35,FALSE)*$C$72*$D$75*$D$76+VLOOKUP(I40,'4.0 Plant I-O'!$B$18:$FB$31,E$34,FALSE)*VLOOKUP(B40,'UP Data'!A$26:I$53,E$35,FALSE)*$C$72*$D$74*$D$76)*UnitConv*GWPN2O -> 0.0121903736 | F40: =(VLOOKUP(H40,'4.0 Plant I-O'!$B$18:$FB$31,F$34,FALSE)*VLOOKUP(B40,'UP Data'!A$26:I$53,F$35,FALSE)*$C$72*$D$75*$D$76+VLOOKUP(I40,'4.0 Plant I-O'!$B$18:$FB$31,F$34,FALSE)*VLOOKUP(B40,'UP Data'!A$26:I$53,F$35,FALSE)*$C$72*$D$74*$D$76)*UnitConv*GWPSF6 -> 0 | G40: 1.270860839 | H40: Biomass | I40: Torrefied biomass | J40: RMA | M40: Naphtha | N40: =HLOOKUP($B$4,'4.0 Plant I-O'!$D$1:$AF$78,Dashboard!P40,FALSE)/VLOOKUP(Dashboard!M40,Constants!$B$26:$C$29,2,FALSE)*Constants!$C$40*24 -> 16958.08632 | O40: lb/hr | P40: 10
A41: RMT | B41: Biomass Transport Torrefaction Facility to CBTL Plant | C41: =VLOOKUP(H41,'4.0 Plant I-O'!$B$18:$FB$31,C$34,FALSE)*VLOOKUP(B41,'UP Data'!A$26:I$53,C$35,FALSE)*$C$72*$D$76*UnitConv -> 0 | D41: =VLOOKUP(H41,'4.0 Plant I-O'!$B$18:$FB$31,D$34,FALSE)*VLOOKUP(B41,'UP Data'!A$26:I$53,D$35,FALSE)*$C$72*$D$76*UnitConv*GWPCH4 -> 0 | E41: =VLOOKUP(H41,'4.0 Plant I-O'!$B$18:$FB$31,E$34,FALSE)*VLOOKUP(B41,'UP Data'!A$26:I$53,E$35,FALSE)*$C$72*$D$76*UnitConv*GWPN2O -> 0 | F41: =VLOOKUP(H41,'4.0 Plant I-O'!$B$18:$FB$31,F$34,FALSE)*VLOOKUP(B41,'UP Data'!A$26:I$53,F$35,FALSE)*$C$72*$D$76*UnitConv*GWPSF6 -> 0 | G41: 0 | H41: Torrefied biomass | J41: RMT | M41: Diesel | N41: =HLOOKUP($B$4,'4.0 Plant I-O'!$D$1:$AF$78,Dashboard!P41,FALSE)/VLOOKUP(Dashboard!M41,Constants!$B$26:$C$29,2,FALSE)*Constants!$C$40*24 -> 4862.531805 | O41: lb/hr | P41: 11
B42: Biomass Torrefaction | C42: =VLOOKUP(H42,'4.0 Plant I-O'!$B$18:$FB$31,C$34,FALSE)*VLOOKUP(B42,'UP Data'!A$26:I$53,C$35,FALSE)*$C$72*$D$76*UnitConv -> 1.10676724 | D42: =VLOOKUP(H42,'4.0 Plant I-O'!$B$18:$FB$31,D$34,FALSE)*VLOOKUP(B42,'UP Data'!A$26:I$53,D$35,FALSE)*$C$72*$D$76*UnitConv*GWPCH4 -> 0.003117634786 | E42: =VLOOKUP(H42,'4.0 Plant I-O'!$B$18:$FB$31,E$34,FALSE)*VLOOKUP(B42,'UP Data'!A$26:I$53,E$35,FALSE)*$C$72*$D$76*UnitConv*GWPN2O -> 0.002369227486 | F42: =VLOOKUP(H42,'4.0 Plant I-O'!$B$18:$FB$31,F$34,FALSE)*VLOOKUP(B42,'UP Data'!A$26:I$53,F$35,FALSE)*$C$72*$D$76*UnitConv*GWPSF6 -> 0.0002570278042 | G42: 1.11251113 | H42: Torrefied biomass | J42: RMT | M42: LPG | N42: =HLOOKUP($B$4,'4.0 Plant I-O'!$D$1:$AF$78,Dashboard!P42,FALSE)/VLOOKUP(Dashboard!M42,Constants!$B$26:$C$29,2,FALSE)*Constants!$C$40*24 -> 3630.847791 | O42: lb/hr | P42: 13
B43: Transport of Chipped Biomass to CBTL Plant or Torrefaction | C43: =(VLOOKUP(H43,'4.0 Plant I-O'!$B$18:$FB$31,C$34,FALSE)*VLOOKUP(B43,'UP Data'!A$26:I$53,C$35,FALSE)*$C$72*$D$75*$D$76+VLOOKUP(I43,'4.0 Plant I-O'!$B$18:$FB$31,C$34,FALSE)*VLOOKUP(B43,'UP Data'!A$26:I$53,C$35,FALSE)*$C$72*$D$74*$D$76)*UnitConv -> 0.0951900532 | D43: =(VLOOKUP(H43,'4.0 Plant I-O'!$B$18:$FB$31,D$34,FALSE)*VLOOKUP(B43,'UP Data'!A$26:I$53,D$35,FALSE)*$C$72*$D$75*$D$76+VLOOKUP(I43,'4.0 Plant I-O'!$B$18:$FB$31,D$34,FALSE)*VLOOKUP(B43,'UP Data'!A$26:I$53,D$35,FALSE)*$C$72*$D$74*$D$76)*UnitConv*GWPCH4 -> 0.003847547564 | E43: =(VLOOKUP(H43,'4.0 Plant I-O'!$B$18:$FB$31,E$34,FALSE)*VLOOKUP(B43,'UP Data'!A$26:I$53,E$35,FALSE)*$C$72*$D$75*$D$76+VLOOKUP(I43,'4.0 Plant I-O'!$B$18:$FB$31,E$34,FALSE)*VLOOKUP(B43,'UP Data'!A$26:I$53,E$35,FALSE)*$C$72*$D$74*$D$76)*UnitConv*GWPN2O -> 0.0006364900839 | F43: =(VLOOKUP(H43,'4.0 Plant I-O'!$B$18:$FB$31,F$34,FALSE)*VLOOKUP(B43,'UP Data'!A$26:I$53,F$35,FALSE)*$C$72*$D$75*$D$76+VLOOKUP(I43,'4.0 Plant I-O'!$B$18:$FB$31,F$34,FALSE)*VLOOKUP(B43,'UP Data'!A$26:I$53,F$35,FALSE)*$C$72*$D$74*$D$76)*UnitConv*GWPSF6 -> 1.54483401e-10 | G43: 0.099674091 | H43: Biomass | I43: Torrefied biomass | J43: RMT | M43: Export power | N43: =HLOOKUP($B$4,'4.0 Plant I-O'!$D$1:$AF$78,Dashboard!P43,FALSE) -> 0 | O43: MW | P43: 73
B44: Truck Transport of Coal to CBTL Plant | C44: =VLOOKUP(H44,'4.0 Plant I-O'!$B$18:$FB$31,C$34,FALSE)*VLOOKUP(B44,'UP Data'!A$26:I$53,C$35,FALSE)*$C$72*$D$76*UnitConv -> 0.06446586137 | D44: =VLOOKUP(H44,'4.0 Plant I-O'!$B$18:$FB$31,D$34,FALSE)*VLOOKUP(B44,'UP Data'!A$26:I$53,D$35,FALSE)*$C$72*$D$76*UnitConv*GWPCH4 -> 0.00471137665 | E44: =VLOOKUP(H44,'4.0 Plant I-O'!$B$18:$FB$31,E$34,FALSE)*VLOOKUP(B44,'UP Data'!A$26:I$53,E$35,FALSE)*$C$72*$D$76*UnitConv*GWPN2O -> 0.0005042331454 | F44: =VLOOKUP(H44,'4.0 Plant I-O'!$B$18:$FB$31,F$34,FALSE)*VLOOKUP(B44,'UP Data'!A$26:I$53,F$35,FALSE)*$C$72*$D$76*UnitConv*GWPSF6 -> 6.701935968e-11 | G44: 0.06968147123 | H44: Coal | J44: RMT | M44: CO₂ to sequestration | N44: =HLOOKUP($B$4,'4.0 Plant I-O'!$D$1:$AF$78,Dashboard!P44,FALSE)*(1-D13) -> 2553406.453 | O44: lb/hr | P44: 12
B45: Rail Transport of Coal to CBTL Plant | C45: =VLOOKUP(H45,'4.0 Plant I-O'!$B$18:$FB$31,C$34,FALSE)*VLOOKUP(B45,'UP Data'!A$26:I$53,C$35,FALSE)*$C$72*$D$76*UnitConv -> 4.759768792 | D45: =VLOOKUP(H45,'4.0 Plant I-O'!$B$18:$FB$31,D$34,FALSE)*VLOOKUP(B45,'UP Data'!A$26:I$53,D$35,FALSE)*$C$72*$D$76*UnitConv*GWPCH4 -> 0.1676894649 | E45: =VLOOKUP(H45,'4.0 Plant I-O'!$B$18:$FB$31,E$34,FALSE)*VLOOKUP(B45,'UP Data'!A$26:I$53,E$35,FALSE)*$C$72*$D$76*UnitConv*GWPN2O -> 0.03100817627 | F45: =VLOOKUP(H45,'4.0 Plant I-O'!$B$18:$FB$31,F$34,FALSE)*VLOOKUP(B45,'UP Data'!A$26:I$53,F$35,FALSE)*$C$72*$D$76*UnitConv*GWPSF6 -> 7.414518125e-09 | G45: 4.958466441 | H45: Coal | J45: RMT | M45: CO₂ emitted | N45: =HLOOKUP($B$4,'4.0 Plant I-O'!$D$1:$AF$78,Dashboard!P45,FALSE)+HLOOKUP($B$4,'4.0 Plant I-O'!$D$1:$AF$78,Dashboard!P44,FALSE)*(D13) -> 344647.6697 | O45: lb/hr | P45: 16
B46: Biomass Drying | C46: =VLOOKUP(H46,'4.0 Plant I-O'!$B$18:$FB$31,C$34,FALSE)*VLOOKUP(B46,'UP Data'!A$26:I$53,C$35,FALSE)*$C$72*$D$76*UnitConv -> 7.494369861e-14 | D46: =VLOOKUP(H46,'4.0 Plant I-O'!$B$18:$FB$31,D$34,FALSE)*VLOOKUP(B46,'UP Data'!A$26:I$53,D$35,FALSE)*$C$72*$D$76*UnitConv*GWPCH4 -> 8.300171297e-15 | E46: =VLOOKUP(H46,'4.0 Plant I-O'!$B$18:$FB$31,E$34,FALSE)*VLOOKUP(B46,'UP Data'!A$26:I$53,E$35,FALSE)*$C$72*$D$76*UnitConv*GWPN2O -> 1.684860253e-16 | F46: =VLOOKUP(H46,'4.0 Plant I-O'!$B$18:$FB$31,F$34,FALSE)*VLOOKUP(B46,'UP Data'!A$26:I$53,F$35,FALSE)*$C$72*$D$76*UnitConv*GWPSF6 -> 1.973770224e-15 | G46: 8.538612616e-14 | H46: Pellets | J46: RMT
A47: ECF | B47: CBTL Plant Operations (includes CO₂ Compression) | C47: =VLOOKUP(H47,'4.0 Plant I-O'!$B$18:$FB$31,C$34,FALSE)*$C$72*$D$76*UnitConv -> 14.1190552 | D47: 0 | E47: 0 | F47: 0 | G47: 14.1190552 | H47: CO₂ emitted | J47: ECF
B48: CBTL Facility Construction | C48: =VLOOKUP(H48,'4.0 Plant I-O'!$B$18:$FB$31,C$34,FALSE)*VLOOKUP(B48,'UP Data'!A$26:I$53,C$35,FALSE)*$C$72*$D$76*UnitConv -> 0.007302829925 | D48: =VLOOKUP(H48,'4.0 Plant I-O'!$B$18:$FB$31,D$34,FALSE)*VLOOKUP(B48,'UP Data'!A$26:I$53,D$35,FALSE)*$C$72*$D$76*UnitConv*GWPCH4 -> 0.0002538458035 | E48: =VLOOKUP(H48,'4.0 Plant I-O'!$B$18:$FB$31,E$34,FALSE)*VLOOKUP(B48,'UP Data'!A$26:I$53,E$35,FALSE)*$C$72*$D$76*UnitConv*GWPN2O -> 6.266456291e-05 | F48: =VLOOKUP(H48,'4.0 Plant I-O'!$B$18:$FB$31,F$34,FALSE)*VLOOKUP(B48,'UP Data'!A$26:I$53,F$35,FALSE)*$C$72*$D$76*UnitConv*GWPSF6 -> 5.696500241e-06 | G48: 0.007625036792 | H48: FT Jet | J48: ECF
B49: LPG Displacement | C49: =VLOOKUP(H49,'4.0 Plant I-O'!$B$18:$FB$31,C$34,FALSE)*VLOOKUP(B49,'UP Data'!$A$26:$H$53,C$35,FALSE)*$C$72*-1*$D$76*UnitConv -> -1.615163415 | D49: =VLOOKUP(H49,'4.0 Plant I-O'!$B$18:$FB$31,D$34,FALSE)*VLOOKUP(B49,'UP Data'!$A$26:$H$53,D$35,FALSE)*$C$72*-1*$D$76*UnitConv*GWPCH4 -> -0.1861249746 | E49: =VLOOKUP(H49,'4.0 Plant I-O'!$B$18:$FB$31,E$34,FALSE)*VLOOKUP(B49,'UP Data'!$A$26:$H$53,E$35,FALSE)*$C$72*-1*$D$76*UnitConv*GWPN2O -> -0.0081201306 | F49: =VLOOKUP(H49,'4.0 Plant I-O'!$B$18:$FB$31,F$34,FALSE)*VLOOKUP(B49,'UP Data'!$A$26:$H$53,F$35,FALSE)*$C$72*-1*$D$76*UnitConv*GWPSF6 -> -8.619941085e-09 | G49: -1.809408528 | H49: LPG | J49: ECF
B50: Naphtha Displacement | C50: =VLOOKUP(H50,'4.0 Plant I-O'!$B$18:$FB$31,C$34,FALSE)*VLOOKUP(B50,'UP Data'!$A$26:$H$53,C$35,FALSE)*$C$72*-1*$D$76*UnitConv -> -3.589916605 | D50: =VLOOKUP(H50,'4.0 Plant I-O'!$B$18:$FB$31,D$34,FALSE)*VLOOKUP(B50,'UP Data'!$A$26:$H$53,D$35,FALSE)*$C$72*-1*$D$76*UnitConv*GWPCH4 -> -1.022688788 | E50: =VLOOKUP(H50,'4.0 Plant I-O'!$B$18:$FB$31,E$34,FALSE)*VLOOKUP(B50,'UP Data'!$A$26:$H$53,E$35,FALSE)*$C$72*-1*$D$76*UnitConv*GWPN2O -> -0.02282742576 | F50: =VLOOKUP(H50,'4.0 Plant I-O'!$B$18:$FB$31,F$34,FALSE)*VLOOKUP(B50,'UP Data'!$A$26:$H$53,F$35,FALSE)*$C$72*-1*$D$76*UnitConv*GWPSF6 -> -1.801614786e-08 | G50: -4.635432837 | H50: FT Naphtha | J50: ECF
B51: Electricity Displacement | C51: =VLOOKUP(H51,'4.0 Plant I-O'!$B$18:$FB$31,C$34,FALSE)*D29*$C$72*-1*$D$76*D30*UnitConv -> 0 | D51: 0 | E51: 0 | F51: 0 | G51: 0 | H51: Export power | J51: ECF
B52: Diesel Displacement | C52: =VLOOKUP(H52,'4.0 Plant I-O'!$B$18:$FB$31,C$34,FALSE)*VLOOKUP(IF(D25=1,$B52 & " - U.S. Consumption Mix",$B52&" - U.S. Import Mix"),'UP Data'!$A$26:$H$53,C$35,FALSE)*$C$72*-1*$D$76*D26*UnitConv -> -1.389035716 | D52: =VLOOKUP(H52,'4.0 Plant I-O'!$B$18:$FB$31,D$34,FALSE)*VLOOKUP(IF(D25=1,$B52 & " - U.S. Consumption Mix",$B52&" - U.S. Import Mix"),'UP Data'!$A$26:$H$53,D$35,FALSE)*$C$72*-1*$D$76*D26*UnitConv*GWPCH4 -> -0.280858199 | E52: =VLOOKUP(H52,'4.0 Plant I-O'!$B$18:$FB$31,E$34,FALSE)*VLOOKUP(IF(D25=1,$B52 & " - U.S. Consumption Mix",$B52&" - U.S. Import Mix"),'UP Data'!$A$26:$H$53,E$35,FALSE)*$C$72*-1*$D$76*D26*UnitConv*GWPN2O -> -0.007357036321 | F52: =VLOOKUP(H52,'4.0 Plant I-O'!$B$18:$FB$31,F$34,FALSE)*VLOOKUP(IF(D25=1,$B52 & " - U.S. Consumption Mix",$B52&" - U.S. Import Mix"),'UP Data'!$A$26:$H$53,F$35,FALSE)*$C$72*-1*$D$76*D26*UnitConv*GWPSF6 -> -1.328390774e-08 | G52: -1.677250965 | H52: FT Diesel | J52: ECF
B53: CO₂ Displacement | C53: =VLOOKUP(H53,'4.0 Plant I-O'!$B$18:$FB$31,C$34,FALSE)*VLOOKUP(B53 & " - Natural Dome",'UP Data'!$A$26:$H$53,C$35,FALSE)*$C$72*-1*$D$76*D28*(1-8.8161*10^-11*(CONVERT(D23,"mi","km")*1000)^1.339)*UnitConv -> -9.109442774 | D53: =VLOOKUP(H53,'4.0 Plant I-O'!$B$18:$FB$31,D$34,FALSE)*VLOOKUP(B53 & " - Natural Dome",'UP Data'!$A$26:$H$53,D$35,FALSE)*$C$72*-1*$D$76*D28*(1-8.8161*10^-11*(CONVERT(D23,"mi","km")*1000)^1.339)*UnitConv*GWPCH4 -> -0.4443139058 | E53: =VLOOKUP(H53,'4.0 Plant I-O'!$B$18:$FB$31,E$34,FALSE)*VLOOKUP(B53 & " - Natural Dome",'UP Data'!$A$26:$H$53,E$35,FALSE)*$C$72*-1*$D$76*D28*(1-8.8161*10^-11*(CONVERT(D23,"mi","km")*1000)^1.339)*UnitConv*GWPN2O -> -0.04322331332 | F53: =VLOOKUP(H53,'4.0 Plant I-O'!$B$18:$FB$31,F$34,FALSE)*VLOOKUP(B53 & " - Natural Dome",'UP Data'!$A$26:$H$53,F$35,FALSE)*$C$72*-1*$D$76*D28*(1-8.8161*10^-11*(CONVERT(D23,"mi","km")*1000)^1.339)*UnitConv*GWPSF6 -> -0.03719495725 | G53: -9.63417495 | H53: CO₂ to sequestration | J53: ECF
B54: CO₂ Pipeline Transport to EOR/Saline Aquifer | C54: =VLOOKUP(H54,'4.0 Plant I-O'!$B$18:$FB$31,C$34,FALSE)*VLOOKUP(B54,'UP Data'!A$26:I$53,C$35,FALSE)*$C$72*$D$76*(1-8.8161*10^-11*(CONVERT(D23,"mi","km")*1000)^1.339)*UnitConv -> 2.313291801 | D54: =VLOOKUP(H54,'4.0 Plant I-O'!$B$18:$FB$31,D$34,FALSE)*VLOOKUP(B54,'UP Data'!A$26:I$53,D$35,FALSE)*$C$72*$D$76*(1-8.8161*10^-11*(CONVERT(D23,"mi","km")*1000)^1.339)*UnitConv*GWPCH4 -> 0.02937824647 | E54: =VLOOKUP(H54,'4.0 Plant I-O'!$B$18:$FB$31,E$34,FALSE)*VLOOKUP(B54,'UP Data'!A$26:I$53,E$35,FALSE)*$C$72*$D$76*(1-8.8161*10^-11*(CONVERT(D23,"mi","km")*1000)^1.339)*UnitConv*GWPN2O -> 0.01367933466 | F54: =VLOOKUP(H54,'4.0 Plant I-O'!$B$18:$FB$31,F$34,FALSE)*VLOOKUP(B54,'UP Data'!A$26:I$53,F$35,FALSE)*$C$72*$D$76*(1-8.8161*10^-11*(CONVERT(D23,"mi","km")*1000)^1.339)*UnitConv*GWPSF6 -> 0 | G54: 2.356349383 | H54: CO₂ to sequestration | J54: ECF
A55: PT | B55: Transport of F-T Jet to Blending Facility | C55: =VLOOKUP(H55,'4.0 Plant I-O'!$B$18:$FB$31,C$34,FALSE)*VLOOKUP(B55,'UP Data'!A$26:I$53,C$35,FALSE)*$C$72*$D$76*UnitConv -> 0.05125787933 | D55: =VLOOKUP(H55,'4.0 Plant I-O'!$B$18:$FB$31,D$34,FALSE)*VLOOKUP(B55,'UP Data'!A$26:I$53,D$35,FALSE)*$C$72*$D$76*UnitConv*GWPCH4 -> 0.003041736974 | E55: =VLOOKUP(H55,'4.0 Plant I-O'!$B$18:$FB$31,E$34,FALSE)*VLOOKUP(B55,'UP Data'!A$26:I$53,E$35,FALSE)*$C$72*$D$76*UnitConv*GWPN2O -> 0.000258142504 | F55: =VLOOKUP(H55,'4.0 Plant I-O'!$B$18:$FB$31,F$34,FALSE)*VLOOKUP(B55,'UP Data'!A$26:I$53,F$35,FALSE)*$C$72*$D$76*UnitConv*GWPSF6 -> 0.0002616735671 | G55: 0.05481943237 | H55: FT Jet | J55: PT
B56: Blending of F-T and Conv. Jet (includes Conv. Jet Fuel Profile) | C56: =VLOOKUP(H56,'4.0 Plant I-O'!$B$18:$FB$31,C$34,FALSE)*VLOOKUP(B56,'UP Data'!A$26:I$53,C$35,FALSE)*$C$72*UnitConv -> 5.604181476 | D56: =VLOOKUP(H56,'4.0 Plant I-O'!$B$18:$FB$31,D$34,FALSE)*VLOOKUP(B56,'UP Data'!$A$26:$H$53,D$35,FALSE)*$C$72*UnitConv*GWPCH4 -> 1.512628083 | E56: =VLOOKUP(H56,'4.0 Plant I-O'!$B$18:$FB$31,E$34,FALSE)*VLOOKUP(B56,'UP Data'!$A$26:$H$53,E$35,FALSE)*$C$72*UnitConv*GWPN2O -> 0.03119683135 | F56: =VLOOKUP(H56,'4.0 Plant I-O'!$B$18:$FB$31,F$34,FALSE)*VLOOKUP(B56,'UP Data'!$A$26:$H$53,F$35,FALSE)*$C$72*UnitConv*GWPSF6 -> 3.034980328e-05 | G56: 7.148036741 | H56: FT Jet | J56: PT
B57: Transport of Blended Jet Fuel to Airport | C57: =VLOOKUP(H57,'4.0 Plant I-O'!$B$18:$FB$31,C$34,FALSE)*VLOOKUP(B57,'UP Data'!A$26:I$53,C$35,FALSE)*$C$72*UnitConv -> 0.1412682641 | D57: =VLOOKUP(H57,'4.0 Plant I-O'!$B$18:$FB$31,D$34,FALSE)*VLOOKUP(B57,'UP Data'!A$26:I$53,D$35,FALSE)*$C$72*UnitConv*GWPCH4 -> 0.007802165585 | E57: =VLOOKUP(H57,'4.0 Plant I-O'!$B$18:$FB$31,E$34,FALSE)*VLOOKUP(B57,'UP Data'!A$26:I$53,E$35,FALSE)*$C$72*UnitConv*GWPN2O -> 0.0007677547391 | F57: =VLOOKUP(H57,'4.0 Plant I-O'!$B$18:$FB$31,F$34,FALSE)*VLOOKUP(B57,'UP Data'!A$26:I$53,F$35,FALSE)*$C$72*UnitConv*GWPSF6 -> 0.0004872137956 | G57: 0.1503253982 | H57: FT Jet | J57: PT
A58: EU | B58: Airplane Operation (Fuel Use) | C58: =VLOOKUP(H58,'4.0 Plant I-O'!$B$18:$FB$31,C$34,FALSE)*VLOOKUP(B58,'UP Data'!A$26:I$53,C$35,FALSE)*$C$72*UnitConv -> 72.14402659 | D58: =VLOOKUP(H58,'4.0 Plant I-O'!$B$18:$FB$31,D$34,FALSE)*VLOOKUP(B58,'UP Data'!A$26:I$53,D$35,FALSE)*$C$72*UnitConv*GWPCH4 -> 0.01421721 | E58: =VLOOKUP(H58,'4.0 Plant I-O'!$B$18:$FB$31,E$34,FALSE)*VLOOKUP(B58,'UP Data'!A$26:I$53,E$35,FALSE)*$C$72*UnitConv*GWPN2O -> 0.50234195 | F58: =VLOOKUP(H58,'4.0 Plant I-O'!$B$18:$FB$31,F$34,FALSE)*VLOOKUP(B58,'UP Data'!A$26:I$53,F$35,FALSE)*$C$72*UnitConv*GWPSF6 -> 0 | G58: 72.66058575 | H58: FT Jet | J58: EU
B59: Airplane Construction | C59: =VLOOKUP(H59,'4.0 Plant I-O'!$B$18:$FB$31,C$34,FALSE)*VLOOKUP(B59,'UP Data'!A$26:I$53,C$35,FALSE)*$C$72*UnitConv -> 0.0276481552 | D59: =VLOOKUP(H59,'4.0 Plant I-O'!$B$18:$FB$31,D$34,FALSE)*VLOOKUP(B59,'UP Data'!A$26:I$53,D$35,FALSE)*$C$72*UnitConv*GWPCH4 -> 0.001773417142 | E59: =VLOOKUP(H59,'4.0 Plant I-O'!$B$18:$FB$31,E$34,FALSE)*VLOOKUP(B59,'UP Data'!A$26:I$53,E$35,FALSE)*$C$72*UnitConv*GWPN2O -> 0.0001122115711 | F59: =VLOOKUP(H59,'4.0 Plant I-O'!$B$18:$FB$31,F$34,FALSE)*VLOOKUP(B59,'UP Data'!A$26:I$53,F$35,FALSE)*$C$72*UnitConv*GWPSF6 -> 5.379490209e-11 | G59: 0.02953378396 | H59: FT Jet | J59: EU
A60: Total | B60: Total Greenhouse Gas Emissions | C60: =SUM(C37:C59) -> 72.59168411 | D60: =SUM(D37:D59) -> 0.3448394501 | E60: =SUM(E37:E59) -> 1.077945757 | F60: =SUM(F37:F59) -> -0.03545604063 | G60: =SUM(G37:G59) -> 73.97901328
A62: LC Stage | B62: =UnitLabel -> g CO₂e / MJ | C62: CO₂ | D62: CH₄ | E62: N₂O | F62: SF₆ | G62: GWP
A63: RMA | B63: Raw Material Acquistion | C63: =SUMIF($J$37:$J$60,$A63,C$37:C$60) -> -12.13898153 | D63: 0.5303645883 | E63: 0.5765366469 | F63: 0.0006969873739 | G63: -11.03138331
A64: RMT | B64: Raw Material Transport | C64: 6.026191947 | D64: 0.1793660239 | E64: 0.03451812699 | F64: 0.0002570354402 | G64: 6.240333133
A65: ECF | B65: Energy Conversion Facility | C65: 0.736091326 | D65: -1.904353775 | E65: -0.06778590678 | F65: -0.03718930067 | G65: -1.273237657
A66: PT | B66: Product Transport | C66: 5.79670762 | D66: 1.523471986 | E66: 0.03222272859 | F66: 0.000779237166 | G66: 7.353181571
A67: EU | B67: End Use | C67: 72.17167475 | D67: 0.01599062714 | E67: 0.5024541615 | F67: 5.379490209e-11 | G67: 72.69011954
B68: Cradle-to-Grave | C68: =SUM(C63:C67) -> 72.59168411 | D68: =SUM(D63:D67) -> 0.3448394501 | E68: 1.077945757 | F68: -0.03545604063 | G68: 73.97901328
B71: DO NOT DELETE:
B72: Functional Unit Scaler: | C72: =1/'Unit Reference'!$C$11 -> 0.02298556497 | D72: kg jet fuel
B73: IO Scalers
B74: Torrefaction | C74: Input | D74: 1 | E74: Output | F74: 1 | G74: kg
B75: Drying | C75: Input | D75: 1 | E75: Output | F75: 1 | G75: kg
B76: Blending | C76: F-T Input | D76: 0.4856164296 | E76: Output | F76: 1 | G76: kg
B77: Pipeline Pigging Losses | C77: 8.8161*10^-11*(pipeline_len*1000)^1.339 | H77: Note: pipeline length is in km
B78: Jet Fuel LHV | C78: 43.50556539 | D78: MJ/kg

Sheet 4.0 Plant I-O
A1: Type | B1: Name | C1: Unit | D1: PRB-SYP_Chipped-TRIG-R | E1: PRB-SYP_Torrefied-TRIG-R | F1: PRB-SYP_Pellets-TRIG-R | G1: PRB-SYP_Torrefied Pellets-TRIG-R | H1: PRB-SYP_Chipped-EFG-R | I1: PRB-SYP_Torrefied-EFG-R | J1: PRB-SYP_Pellets-EFG-R | K1: PRB-SYP_Torrefied Pellets-EFG-R | L1: PRB-SG-FWQ-O | M1: PRB-SG-FWQ-R | N1: PRB-MSW-FWQ-O | O1: PRB-MSW-FWQ-R | P1: ND Lignite-SYP_Chipped-TRIG-R | Q1: ND Lignite-SYP_Torrefied-TRIG-R | R1: ND Lignite-SYP_Pellets-TRIG-R | S1: ND Lignite-SYP_Torrefied Pellets-TRIG-R | T1: ND Lignite-SYP_Chipped-EFG-R | U1: ND Lignite-SYP_Torrefied-EFG-R | V1: ND Lignite-SYP_Pellets-EFG-R | W1: ND Lignite-SYP_Torrefied Pellets-EFG-R | X1: ND Lignite-SG-FWQ-O | Y1: ND Lignite-SG-FWQ-R | Z1: ND Lignite-MSW-FWQ-O | AA1: ND Lignite-MSW-FWQ-R | AB1: I6-No Biomass-SEF-R | AC1: I6-SG-FWQ-O | AD1: I6-SG-FWQ-R | AE1: I6-MSW-FWQ-O | AF1: I6-MSW-FWQ-R
B2: Biomass Percentage | C2: % | D2: =Dashboard!$D$11 -> 0.1 | E2: =Dashboard!$D$11 -> 0.1 | F2: =Dashboard!$D$11 -> 0.1 | G2: =Dashboard!$D$11 -> 0.1 | H2: =Dashboard!$D$11 -> 0.1 | I2: =Dashboard!$D$11 -> 0.1 | J2: =Dashboard!$D$11 -> 0.1 | K2: =Dashboard!$D$11 -> 0.1 | L2: =Dashboard!$D$11 -> 0.1 | M2: =Dashboard!$D$11 -> 0.1 | N2: =Dashboard!$D$11 -> 0.1 | O2: =Dashboard!$D$11 -> 0.1 | P2: =Dashboard!$D$11 -> 0.1 | Q2: =Dashboard!$D$11 -> 0.1 | R2: =Dashboard!$D$11 -> 0.1 | S2: =Dashboard!$D$11 -> 0.1 | T2: =Dashboard!$D$11 -> 0.1 | U2: =Dashboard!$D$11 -> 0.1 | V2: =Dashboard!$D$11 -> 0.1 | W2: =Dashboard!$D$11 -> 0.1 | X2: =Dashboard!$D$11 -> 0.1 | Y2: =Dashboard!$D$11 -> 0.1 | Z2: =Dashboard!$D$11 -> 0.1 | AA2: =Dashboard!$D$11 -> 0.1 | AB2: ='3.1 Plant I-O data'!AR2 -> 0 | AC2: =Dashboard!$D$11 -> 0.1 | AD2: =Dashboard!$D$11 -> 0.1 | AE2: =Dashboard!$D$11 -> 0.1 | AF2: =Dashboard!$D$11 -> 0.1
A3: INPUTS | B3: Coal | C3: lb/hr (As Received) | D3: =SLOPE('3.1 Plant I-O data'!D3:E3,'3.1 Plant I-O data'!D2:E2)*D2+INTERCEPT('3.1 Plant I-O data'!D3:E3,'3.1 Plant I-O data'!D2:E2) -> 2338421.749 | E3: =SLOPE('3.1 Plant I-O data'!F3:G3,'3.1 Plant I-O data'!F2:G2)*E2+INTERCEPT('3.1 Plant I-O data'!F3:G3,'3.1 Plant I-O data'!F2:G2) -> 2273630.466 | F3: =SLOPE('3.1 Plant I-O data'!H3:I3,'3.1 Plant I-O data'!H2:I2)*F2+INTERCEPT('3.1 Plant I-O data'!H3:I3,'3.1 Plant I-O data'!H2:I2) -> 2313215.187 | G3: =SLOPE('3.1 Plant I-O data'!J3:K3,'3.1 Plant I-O data'!J2:K2)*G2+INTERCEPT('3.1 Plant I-O data'!J3:K3,'3.1 Plant I-O data'!J2:K2) -> 2275481.668 | H3: =SLOPE('3.1 Plant I-O data'!L3:M3,'3.1 Plant I-O data'!L2:M2)*H2+INTERCEPT('3.1 Plant I-O data'!L3:M3,'3.1 Plant I-O data'!L2:M2) -> 2364057.53 | I3: =SLOPE('3.1 Plant I-O data'!N3:O3,'3.1 Plant I-O data'!N2:O2)*I2+INTERCEPT('3.1 Plant I-O data'!N3:O3,'3.1 Plant I-O data'!N2:O2) -> 2283858.843 | J3: =SLOPE('3.1 Plant I-O data'!P3:Q3,'3.1 Plant I-O data'!P2:Q2)*J2+INTERCEPT('3.1 Plant I-O data'!P3:Q3,'3.1 Plant I-O data'!P2:Q2) -> 2330707.213 | K3: =SLOPE('3.1 Plant I-O data'!R3:S3,'3.1 Plant I-O data'!R2:S2)*K2+INTERCEPT('3.1 Plant I-O data'!R3:S3,'3.1 Plant I-O data'!R2:S2) -> 2264929.52 | L3: =SLOPE('3.1 Plant I-O data'!T3:U3,'3.1 Plant I-O data'!T2:U2)*L2+INTERCEPT('3.1 Plant I-O data'!T3:U3,'3.1 Plant I-O data'!T2:U2) -> 2777426.447 | M3: =SLOPE('3.1 Plant I-O data'!V3:W3,'3.1 Plant I-O data'!V2:W2)*M2+INTERCEPT('3.1 Plant I-O data'!V3:W3,'3.1 Plant I-O data'!V2:W2) -> 2533815.647 | N3: =SLOPE('3.1 Plant I-O data'!X3:Y3,'3.1 Plant I-O data'!X2:Y2)*N2+INTERCEPT('3.1 Plant I-O data'!X3:Y3,'3.1 Plant I-O data'!X2:Y2) -> 2777426.447 | O3: =SLOPE('3.1 Plant I-O data'!Z3:AA3,'3.1 Plant I-O data'!Z2:AA2)*O2+INTERCEPT('3.1 Plant I-O data'!Z3:AA3,'3.1 Plant I-O data'!Z2:AA2) -> 2533815.647 | P3: =SLOPE('3.1 Plant I-O data'!AB5:AC5,'3.1 Plant I-O data'!AB2:AC2)*P2+INTERCEPT('3.1 Plant I-O data'!AB5:AC5,'3.1 Plant I-O data'!AB2:AC2) -> 3031287.452 | Q3: =SLOPE('3.1 Plant I-O data'!AD5:AE5,'3.1 Plant I-O data'!AD2:AE2)*Q2+INTERCEPT('3.1 Plant I-O data'!AD5:AE5,'3.1 Plant I-O data'!AD2:AE2) -> 2947298.752 | R3: =SLOPE('3.1 Plant I-O data'!AF5:AG5,'3.1 Plant I-O data'!AF2:AG2)*R2+INTERCEPT('3.1 Plant I-O data'!AF5:AG5,'3.1 Plant I-O data'!AF2:AG2) -> 2998612.279 | S3: =SLOPE('3.1 Plant I-O data'!AH5:AI5,'3.1 Plant I-O data'!AH2:AI2)*S2+INTERCEPT('3.1 Plant I-O data'!AH5:AI5,'3.1 Plant I-O data'!AH2:AI2) -> 2949698.458 | T3: =SLOPE('3.1 Plant I-O data'!AJ5:AK5,'3.1 Plant I-O data'!AJ2:AK2)*T2+INTERCEPT('3.1 Plant I-O data'!AJ5:AK5,'3.1 Plant I-O data'!AJ2:AK2) -> 3064519.02 | U3: =SLOPE('3.1 Plant I-O data'!AL5:AM5,'3.1 Plant I-O data'!AL2:AM2)*U2+INTERCEPT('3.1 Plant I-O data'!AL5:AM5,'3.1 Plant I-O data'!AL2:AM2) -> 2960557.76 | V3: =SLOPE('3.1 Plant I-O data'!AN5:AO5,'3.1 Plant I-O data'!AN2:AO2)*V2+INTERCEPT('3.1 Plant I-O data'!AN5:AO5,'3.1 Plant I-O data'!AN2:AO2) -> 3021287.128 | W3: =SLOPE('3.1 Plant I-O data'!AP5:AQ5,'3.1 Plant I-O data'!AP2:AQ2)*W2+INTERCEPT('3.1 Plant I-O data'!AP5:AQ5,'3.1 Plant I-O data'!AP2:AQ2) -> 2936019.748 | X3: =SLOPE('3.1 Plant I-O data'!BC5:BD5,'3.1 Plant I-O data'!BC2:BD2)*X2+INTERCEPT('3.1 Plant I-O data'!BC5:BD5,'3.1 Plant I-O data'!BC2:BD2) -> 3600367.616 | Y3: =SLOPE('3.1 Plant I-O data'!BE5:BF5,'3.1 Plant I-O data'!BE2:BF2)*Y2+INTERCEPT('3.1 Plant I-O data'!BE5:BF5,'3.1 Plant I-O data'!BE2:BF2) -> 3284575.839 | Z3: =SLOPE('3.1 Plant I-O data'!BG5:BH5,'3.1 Plant I-O data'!BG2:BH2)*Z2+INTERCEPT('3.1 Plant I-O data'!BG5:BH5,'3.1 Plant I-O data'!BG2:BH2) -> 3600367.616 | AA3: =SLOPE('3.1 Plant I-O data'!BI5:BJ5,'3.1 Plant I-O data'!BI2:BJ2)*AA2+INTERCEPT('3.1 Plant I-O data'!BI5:BJ5,'3.1 Plant I-O data'!BI2:BJ2) -> 3284575.839 | AB3: ='3.1 Plant I-O data'!AR4 -> 1750470.362 | AC3: =SLOPE('3.1 Plant I-O data'!AT4:AU4,'3.1 Plant I-O data'!AT2:AU2)*AC2+INTERCEPT('3.1 Plant I-O data'!AT4:AU4,'3.1 Plant I-O data'!AT2:AU2) -> 2188486.009 | AD3: =SLOPE('3.1 Plant I-O data'!AV4:AW4,'3.1 Plant I-O data'!AV2:AW2)*AD2+INTERCEPT('3.1 Plant I-O data'!AV4:AW4,'3.1 Plant I-O data'!AV2:AW2) -> 1935597.422 | AE3: =SLOPE('3.1 Plant I-O data'!AX4:AY4,'3.1 Plant I-O data'!AX2:AY2)*AE2+INTERCEPT('3.1 Plant I-O data'!AX4:AY4,'3.1 Plant I-O data'!AX2:AY2) -> 2188486.009 | AF3: =SLOPE('3.1 Plant I-O data'!AZ4:BA4,'3.1 Plant I-O data'!AZ2:BA2)*AF2+INTERCEPT('3.1 Plant I-O data'!AZ4:BA4,'3.1 Plant I-O data'!AZ2:BA2) -> 1935597.422
B4: Biomass | C4: lb/hr (As Received) | D4: =SLOPE('3.1 Plant I-O data'!D6:E6,'3.1 Plant I-O data'!D$2:E$2)*D$2+INTERCEPT('3.1 Plant I-O data'!D6:E6,'3.1 Plant I-O data'!D$2:E$2) -> 357872.7208 | E4: =SLOPE('3.1 Plant I-O data'!F6:G6,'3.1 Plant I-O data'!F$2:G$2)*E$2+INTERCEPT('3.1 Plant I-O data'!F6:G6,'3.1 Plant I-O data'!F$2:G$2) -> 0 | F4: =SLOPE('3.1 Plant I-O data'!H6:I6,'3.1 Plant I-O data'!H$2:I$2)*F$2+INTERCEPT('3.1 Plant I-O data'!H6:I6,'3.1 Plant I-O data'!H$2:I$2) -> 238449.5905 | G4: =SLOPE('3.1 Plant I-O data'!J6:K6,'3.1 Plant I-O data'!J$2:K$2)*G$2+INTERCEPT('3.1 Plant I-O data'!J6:K6,'3.1 Plant I-O data'!J$2:K$2) -> 0 | H4: =SLOPE('3.1 Plant I-O data'!L6:M6,'3.1 Plant I-O data'!L$2:M$2)*H$2+INTERCEPT('3.1 Plant I-O data'!L6:M6,'3.1 Plant I-O data'!L$2:M$2) -> 381757.6433 | I4: =SLOPE('3.1 Plant I-O data'!N6:O6,'3.1 Plant I-O data'!N$2:O$2)*I$2+INTERCEPT('3.1 Plant I-O data'!N6:O6,'3.1 Plant I-O data'!N$2:O$2) -> 1.170816375e-08 | J4: =SLOPE('3.1 Plant I-O data'!P6:Q6,'3.1 Plant I-O data'!P$2:Q$2)*J$2+INTERCEPT('3.1 Plant I-O data'!P6:Q6,'3.1 Plant I-O data'!P$2:Q$2) -> 218986.0583 | K4: =SLOPE('3.1 Plant I-O data'!R6:S6,'3.1 Plant I-O data'!R$2:S$2)*K$2+INTERCEPT('3.1 Plant I-O data'!R6:S6,'3.1 Plant I-O data'!R$2:S$2) -> 6.829762186e-09 | L4: =SLOPE('3.1 Plant I-O data'!T7:U7,'3.1 Plant I-O data'!T$2:U$2)*L$2+INTERCEPT('3.1 Plant I-O data'!T7:U7,'3.1 Plant I-O data'!T$2:U$2) -> 314709.8793 | M4: =SLOPE('3.1 Plant I-O data'!V7:W7,'3.1 Plant I-O data'!V$2:W$2)*M$2+INTERCEPT('3.1 Plant I-O data'!V7:W7,'3.1 Plant I-O data'!V$2:W$2) -> 290520.2699 | N4: =SLOPE('3.1 Plant I-O data'!X8:Y8,'3.1 Plant I-O data'!X$2:Y$2)*N$2+INTERCEPT('3.1 Plant I-O data'!X8:Y8,'3.1 Plant I-O data'!X$2:Y$2) -> 314709.8793 | O4: =SLOPE('3.1 Plant I-O data'!Z8:AA8,'3.1 Plant I-O data'!Z$2:AA$2)*O$2+INTERCEPT('3.1 Plant I-O data'!Z8:AA8,'3.1 Plant I-O data'!Z$2:AA$2) -> 290520.2699 | P4: =SLOPE('3.1 Plant I-O data'!AB6:AC6,'3.1 Plant I-O data'!AB$2:AC$2)*P$2+INTERCEPT('3.1 Plant I-O data'!AB6:AC6,'3.1 Plant I-O data'!AB$2:AC$2) -> 357872.7208 | Q4: =SLOPE('3.1 Plant I-O data'!AD6:AE6,'3.1 Plant I-O data'!AD$2:AE$2)*Q$2+INTERCEPT('3.1 Plant I-O data'!AD6:AE6,'3.1 Plant I-O data'!AD$2:AE$2) -> 0 | R4: =SLOPE('3.1 Plant I-O data'!AF6:AG6,'3.1 Plant I-O data'!AF$2:AG$2)*R$2+INTERCEPT('3.1 Plant I-O data'!AF6:AG6,'3.1 Plant I-O data'!AF$2:AG$2) -> 238449.5905 | S4: =SLOPE('3.1 Plant I-O data'!AH6:AI6,'3.1 Plant I-O data'!AH$2:AI$2)*S$2+INTERCEPT('3.1 Plant I-O data'!AH6:AI6,'3.1 Plant I-O data'!AH$2:AI$2) -> 0 | T4: =SLOPE('3.1 Plant I-O data'!AJ6:AK6,'3.1 Plant I-O data'!AJ$2:AK$2)*T$2+INTERCEPT('3.1 Plant I-O data'!AJ6:AK6,'3.1 Plant I-O data'!AJ$2:AK$2) -> 381757.6433 | U4: =SLOPE('3.1 Plant I-O data'!AL6:AM6,'3.1 Plant I-O data'!AL$2:AM$2)*U$2+INTERCEPT('3.1 Plant I-O data'!AL6:AM6,'3.1 Plant I-O data'!AL$2:AM$2) -> 9.120802979e-09 | V4: =SLOPE('3.1 Plant I-O data'!AN6:AO6,'3.1 Plant I-O data'!AN$2:AO$2)*V$2+INTERCEPT('3.1 Plant I-O data'!AN6:AO6,'3.1 Plant I-O data'!AN$2:AO$2) -> 218986.0583 | W4: =SLOPE('3.1 Plant I-O data'!AP6:AQ6,'3.1 Plant I-O data'!AP$2:AQ$2)*W$2+INTERCEPT('3.1 Plant I-O data'!AP6:AQ6,'3.1 Plant I-O data'!AP$2:AQ$2) -> 6.840602234e-09 | X4: =SLOPE('3.1 Plant I-O data'!BC6:BD6,'3.1 Plant I-O data'!BC$2:BD$2)*X$2+INTERCEPT('3.1 Plant I-O data'!BC6:BD6,'3.1 Plant I-O data'!BC$2:BD$2) -> 0 | Y4: =SLOPE('3.1 Plant I-O data'!BE6:BF6,'3.1 Plant I-O data'!BE$2:BF$2)*Y$2+INTERCEPT('3.1 Plant I-O data'!BE6:BF6,'3.1 Plant I-O data'!BE$2:BF$2) -> 0 | Z4: =SLOPE('3.1 Plant I-O data'!BG8:BH8,'3.1 Plant I-O data'!BG$2:BH$2)*Z$2+INTERCEPT('3.1 Plant I-O data'!BG8:BH8,'3.1 Plant I-O data'!BG$2:BH$2) -> 314709.8793 | AA4: =SLOPE('3.1 Plant I-O data'!BI8:BJ8,'3.1 Plant I-O data'!BI$2:BJ$2)*AA$2+INTERCEPT('3.1 Plant I-O data'!BI8:BJ8,'3.1 Plant I-O data'!BI$2:BJ$2) -> 290520.2699 | AB4: 0 | AC4: =SLOPE('3.1 Plant I-O data'!AT7:AU7,'3.1 Plant I-O data'!AT$2:AU$2)*AC$2+INTERCEPT('3.1 Plant I-O data'!AT7:AU7,'3.1 Plant I-O data'!AT$2:AU$2) -> 249244.8353 | AD4: =SLOPE('3.1 Plant I-O data'!AV7:AW7,'3.1 Plant I-O data'!AV$2:AW$2)*AD$2+INTERCEPT('3.1 Plant I-O data'!AV7:AW7,'3.1 Plant I-O data'!AV$2:AW$2) -> 219972.346 | AE4: =SLOPE('3.1 Plant I-O data'!AX8:AY8,'3.1 Plant I-O data'!AX$2:AY$2)*AE$2+INTERCEPT('3.1 Plant I-O data'!AX8:AY8,'3.1 Plant I-O data'!AX$2:AY$2) -> 249244.8353 | AF4: =SLOPE('3.1 Plant I-O data'!AZ8:BA8,'3.1 Plant I-O data'!AZ$2:BA$2)*AF$2+INTERCEPT('3.1 Plant I-O data'!AZ8:BA8,'3.1 Plant I-O data'!AZ$2:BA$2) -> 219972.346
B5: Coal | C5: lb/hr (Dried) | AB5: 0
B6: Biomass | C6: lb/hr (dried) | AB6: 0
B7: Torrefied biomass | C7: lb/hr | D7: =SLOPE('3.1 Plant I-O data'!D15:E15,'3.1 Plant I-O data'!D$2:E$2)*D$2+INTERCEPT('3.1 Plant I-O data'!D15:E15,'3.1 Plant I-O data'!D$2:E$2) -> 0 | E7: =SLOPE('3.1 Plant I-O data'!F15:G15,'3.1 Plant I-O data'!F$2:G$2)*E$2+INTERCEPT('3.1 Plant I-O data'!F15:G15,'3.1 Plant I-O data'!F$2:G$2) -> 224305.9746 | F7: =SLOPE('3.1 Plant I-O data'!H15:I15,'3.1 Plant I-O data'!H$2:I$2)*F$2+INTERCEPT('3.1 Plant I-O data'!H15:I15,'3.1 Plant I-O data'!H$2:I$2) -> 0 | G7: =SLOPE('3.1 Plant I-O data'!J15:K15,'3.1 Plant I-O data'!J$2:K$2)*G$2+INTERCEPT('3.1 Plant I-O data'!J15:K15,'3.1 Plant I-O data'!J$2:K$2) -> 224967.4085 | H7: =SLOPE('3.1 Plant I-O data'!L15:M15,'3.1 Plant I-O data'!L$2:M$2)*H$2+INTERCEPT('3.1 Plant I-O data'!L15:M15,'3.1 Plant I-O data'!L$2:M$2) -> 0 | I7: =SLOPE('3.1 Plant I-O data'!N15:O15,'3.1 Plant I-O data'!N$2:O$2)*I$2+INTERCEPT('3.1 Plant I-O data'!N15:O15,'3.1 Plant I-O data'!N$2:O$2) -> 203130.9463 | J7: =SLOPE('3.1 Plant I-O data'!P15:Q15,'3.1 Plant I-O data'!P$2:Q$2)*J$2+INTERCEPT('3.1 Plant I-O data'!P15:Q15,'3.1 Plant I-O data'!P$2:Q$2) -> 0 | K7: =SLOPE('3.1 Plant I-O data'!R15:S15,'3.1 Plant I-O data'!R$2:S$2)*K$2+INTERCEPT('3.1 Plant I-O data'!R15:S15,'3.1 Plant I-O data'!R$2:S$2) -> 196724.6073 | L7: =SLOPE('3.1 Plant I-O data'!T15:U15,'3.1 Plant I-O data'!T$2:U$2)*L$2+INTERCEPT('3.1 Plant I-O data'!T15:U15,'3.1 Plant I-O data'!T$2:U$2) -> 0 | M7: =SLOPE('3.1 Plant I-O data'!V15:W15,'3.1 Plant I-O data'!V$2:W$2)*M$2+INTERCEPT('3.1 Plant I-O data'!V15:W15,'3.1 Plant I-O data'!V$2:W$2) -> 0 | N7: =SLOPE('3.1 Plant I-O data'!X15:Y15,'3.1 Plant I-O data'!X$2:Y$2)*N$2+INTERCEPT('3.1 Plant I-O data'!X15:Y15,'3.1 Plant I-O data'!X$2:Y$2) -> 0 | O7: =SLOPE('3.1 Plant I-O data'!Z15:AA15,'3.1 Plant I-O data'!Z$2:AA$2)*O$2+INTERCEPT('3.1 Plant I-O data'!Z15:AA15,'3.1 Plant I-O data'!Z$2:AA$2) -> 0 | P7: =SLOPE('3.1 Plant I-O data'!AB15:AC15,'3.1 Plant I-O data'!AB$2:AC$2)*P$2+INTERCEPT('3.1 Plant I-O data'!AB15:AC15,'3.1 Plant I-O data'!AB$2:AC$2) -> 0 | Q7: =SLOPE('3.1 Plant I-O data'!AD15:AE15,'3.1 Plant I-O data'!AD$2:AE$2)*Q$2+INTERCEPT('3.1 Plant I-O data'!AD15:AE15,'3.1 Plant I-O data'!AD$2:AE$2) -> 224305.9746 | R7: =SLOPE('3.1 Plant I-O data'!AF15:AG15,'3.1 Plant I-O data'!AF$2:AG$2)*R$2+INTERCEPT('3.1 Plant I-O data'!AF15:AG15,'3.1 Plant I-O data'!AF$2:AG$2) -> 0 | S7: =SLOPE('3.1 Plant I-O data'!AH15:AI15,'3.1 Plant I-O data'!AH$2:AI$2)*S$2+INTERCEPT('3.1 Plant I-O data'!AH15:AI15,'3.1 Plant I-O data'!AH$2:AI$2) -> 224967.4085 | T7: =SLOPE('3.1 Plant I-O data'!AJ15:AK15,'3.1 Plant I-O data'!AJ$2:AK$2)*T$2+INTERCEPT('3.1 Plant I-O data'!AJ15:AK15,'3.1 Plant I-O data'!AJ$2:AK$2) -> 0 | U7: =SLOPE('3.1 Plant I-O data'!AL15:AM15,'3.1 Plant I-O data'!AL$2:AM$2)*U$2+INTERCEPT('3.1 Plant I-O data'!AL15:AM15,'3.1 Plant I-O data'!AL$2:AM$2) -> 203130.9463 | V7: =SLOPE('3.1 Plant I-O data'!AN15:AO15,'3.1 Plant I-O data'!AN$2:AO$2)*V$2+INTERCEPT('3.1 Plant I-O data'!AN15:AO15,'3.1 Plant I-O data'!AN$2:AO$2) -> 0 | W7: =SLOPE('3.1 Plant I-O data'!AP15:AQ15,'3.1 Plant I-O data'!AP$2:AQ$2)*W$2+INTERCEPT('3.1 Plant I-O data'!AP15:AQ15,'3.1 Plant I-O data'!AP$2:AQ$2) -> 196724.6073 | X7: =SLOPE('3.1 Plant I-O data'!BC15:BD15,'3.1 Plant I-O data'!BC$2:BD$2)*X$2+INTERCEPT('3.1 Plant I-O data'!BC15:BD15,'3.1 Plant I-O data'!BC$2:BD$2) -> 0 | Y7: =SLOPE('3.1 Plant I-O data'!BE15:BF15,'3.1 Plant I-O data'!BE$2:BF$2)*Y$2+INTERCEPT('3.1 Plant I-O data'!BE15:BF15,'3.1 Plant I-O data'!BE$2:BF$2) -> 0 | Z7: =SLOPE('3.1 Plant I-O data'!BG15:BH15,'3.1 Plant I-O data'!BG$2:BH$2)*Z$2+INTERCEPT('3.1 Plant I-O data'!BG15:BH15,'3.1 Plant I-O data'!BG$2:BH$2) -> 0 | AA7: =SLOPE('3.1 Plant I-O data'!BI15:BJ15,'3.1 Plant I-O data'!BI$2:BJ$2)*AA$2+INTERCEPT('3.1 Plant I-O data'!BI15:BJ15,'3.1 Plant I-O data'!BI$2:BJ$2) -> 0 | AB7: 0 | AC7: =SLOPE('3.1 Plant I-O data'!AT15:AU15,'3.1 Plant I-O data'!AT$2:AU$2)*AC$2+INTERCEPT('3.1 Plant I-O data'!AT15:AU15,'3.1 Plant I-O data'!AT$2:AU$2) -> 0 | AD7: =SLOPE('3.1 Plant I-O data'!AV15:AW15,'3.1 Plant I-O data'!AV$2:AW$2)*AD$2+INTERCEPT('3.1 Plant I-O data'!AV15:AW15,'3.1 Plant I-O data'!AV$2:AW$2) -> 0 | AE7: =SLOPE('3.1 Plant I-O data'!AX15:AY15,'3.1 Plant I-O data'!AX$2:AY$2)*AE$2+INTERCEPT('3.1 Plant I-O data'!AX15:AY15,'3.1 Plant I-O data'!AX$2:AY$2) -> 0 | AF7: =SLOPE('3.1 Plant I-O data'!AZ15:BA15,'3.1 Plant I-O data'!AZ$2:BA$2)*AF$2+INTERCEPT('3.1 Plant I-O data'!AZ15:BA15,'3.1 Plant I-O data'!AZ$2:BA$2) -> 0
B8: Biomass (Non Tor or Tor) | C8: lb/hr | D8: =D4+D7 -> 357872.7208 | E8: =E4+E7 -> 224305.9746 | F8: 238449.5905 | G8: 224967.4085 | H8: 381757.6433 | I8: 203130.9463 | J8: 218986.0583 | K8: 196724.6073 | L8: 314709.8793 | M8: 290520.2699 | N8: 314709.8793 | O8: 290520.2699 | P8: 357872.7208 | Q8: 224305.9746 | R8: 238449.5905 | S8: 224967.4085 | T8: 381757.6433 | U8: 203130.9463 | V8: 218986.0583 | W8: 196724.6073 | X8: 0 | Y8: 0 | Z8: 314709.8793 | AA8: 290520.2699 | AB8: 0 | AC8: 249244.8353 | AD8: 219972.346 | AE8: 249244.8353 | AF8: 219972.346
A9: OUTPUTS | B9: FT Jet | C9: lb/hr | D9: =SLOPE('3.1 Plant I-O data'!D17:E17,'3.1 Plant I-O data'!D$2:E$2)*D$2+INTERCEPT('3.1 Plant I-O data'!D17:E17,'3.1 Plant I-O data'!D$2:E$2) -> 273558.4336 | E9: =SLOPE('3.1 Plant I-O data'!F17:G17,'3.1 Plant I-O data'!F$2:G$2)*E$2+INTERCEPT('3.1 Plant I-O data'!F17:G17,'3.1 Plant I-O data'!F$2:G$2) -> 273555.523 | F9: =SLOPE('3.1 Plant I-O data'!H17:I17,'3.1 Plant I-O data'!H$2:I$2)*F$2+INTERCEPT('3.1 Plant I-O data'!H17:I17,'3.1 Plant I-O data'!H$2:I$2) -> 273556.8951 | G9: =SLOPE('3.1 Plant I-O data'!J17:K17,'3.1 Plant I-O data'!J$2:K$2)*G$2+INTERCEPT('3.1 Plant I-O data'!J17:K17,'3.1 Plant I-O data'!J$2:K$2) -> 273554.8467 | H9: =SLOPE('3.1 Plant I-O data'!L17:M17,'3.1 Plant I-O data'!L$2:M$2)*H$2+INTERCEPT('3.1 Plant I-O data'!L17:M17,'3.1 Plant I-O data'!L$2:M$2) -> 272509.478 | I9: =SLOPE('3.1 Plant I-O data'!N17:O17,'3.1 Plant I-O data'!N$2:O$2)*I$2+INTERCEPT('3.1 Plant I-O data'!N17:O17,'3.1 Plant I-O data'!N$2:O$2) -> 272474.948 | J9: =SLOPE('3.1 Plant I-O data'!P17:Q17,'3.1 Plant I-O data'!P$2:Q$2)*J$2+INTERCEPT('3.1 Plant I-O data'!P17:Q17,'3.1 Plant I-O data'!P$2:Q$2) -> 272504.7017 | K9: =SLOPE('3.1 Plant I-O data'!R17:S17,'3.1 Plant I-O data'!R$2:S$2)*K$2+INTERCEPT('3.1 Plant I-O data'!R17:S17,'3.1 Plant I-O data'!R$2:S$2) -> 272469.732 | L9: =SLOPE('3.1 Plant I-O data'!T17:U17,'3.1 Plant I-O data'!T$2:U$2)*L$2+INTERCEPT('3.1 Plant I-O data'!T17:U17,'3.1 Plant I-O data'!T$2:U$2) -> 0 | M9: =SLOPE('3.1 Plant I-O data'!V17:W17,'3.1 Plant I-O data'!V$2:W$2)*M$2+INTERCEPT('3.1 Plant I-O data'!V17:W17,'3.1 Plant I-O data'!V$2:W$2) -> 0 | N9: =SLOPE('3.1 Plant I-O data'!X17:Y17,'3.1 Plant I-O data'!X$2:Y$2)*N$2+INTERCEPT('3.1 Plant I-O data'!X17:Y17,'3.1 Plant I-O data'!X$2:Y$2) -> 0 | O9: =SLOPE('3.1 Plant I-O data'!Z17:AA17,'3.1 Plant I-O data'!Z$2:AA$2)*O$2+INTERCEPT('3.1 Plant I-O data'!Z17:AA17,'3.1 Plant I-O data'!Z$2:AA$2) -> 0 | P9: =SLOPE('3.1 Plant I-O data'!AB17:AC17,'3.1 Plant I-O data'!AB$2:AC$2)*P$2+INTERCEPT('3.1 Plant I-O data'!AB17:AC17,'3.1 Plant I-O data'!AB$2:AC$2) -> 273558.4336 | Q9: =SLOPE('3.1 Plant I-O data'!AD17:AE17,'3.1 Plant I-O data'!AD$2:AE$2)*Q$2+INTERCEPT('3.1 Plant I-O data'!AD17:AE17,'3.1 Plant I-O data'!AD$2:AE$2) -> 273555.523 | R9: =SLOPE('3.1 Plant I-O data'!AF17:AG17,'3.1 Plant I-O data'!AF$2:AG$2)*R$2+INTERCEPT('3.1 Plant I-O data'!AF17:AG17,'3.1 Plant I-O data'!AF$2:AG$2) -> 273556.8951 | S9: =SLOPE('3.1 Plant I-O data'!AH17:AI17,'3.1 Plant I-O data'!AH$2:AI$2)*S$2+INTERCEPT('3.1 Plant I-O data'!AH17:AI17,'3.1 Plant I-O data'!AH$2:AI$2) -> 273554.8467 | T9: =SLOPE('3.1 Plant I-O data'!AJ17:AK17,'3.1 Plant I-O data'!AJ$2:AK$2)*T$2+INTERCEPT('3.1 Plant I-O data'!AJ17:AK17,'3.1 Plant I-O data'!AJ$2:AK$2) -> 272509.478 | U9: =SLOPE('3.1 Plant I-O data'!AL17:AM17,'3.1 Plant I-O data'!AL$2:AM$2)*U$2+INTERCEPT('3.1 Plant I-O data'!AL17:AM17,'3.1 Plant I-O data'!AL$2:AM$2) -> 272474.948 | V9: =SLOPE('3.1 Plant I-O data'!AN17:AO17,'3.1 Plant I-O data'!AN$2:AO$2)*V$2+INTERCEPT('3.1 Plant I-O data'!AN17:AO17,'3.1 Plant I-O data'!AN$2:AO$2) -> 272504.7017 | W9: =SLOPE('3.1 Plant I-O data'!AP17:AQ17,'3.1 Plant I-O data'!AP$2:AQ$2)*W$2+INTERCEPT('3.1 Plant I-O data'!AP17:AQ17,'3.1 Plant I-O data'!AP$2:AQ$2) -> 272469.732 | X9: =SLOPE('3.1 Plant I-O data'!BC17:BD17,'3.1 Plant I-O data'!BC$2:BD$2)*X$2+INTERCEPT('3.1 Plant I-O data'!BC17:BD17,'3.1 Plant I-O data'!BC$2:BD$2) -> 0 | Y9: =SLOPE('3.1 Plant I-O data'!BE17:BF17,'3.1 Plant I-O data'!BE$2:BF$2)*Y$2+INTERCEPT('3.1 Plant I-O data'!BE17:BF17,'3.1 Plant I-O data'!BE$2:BF$2) -> 0 | Z9: =SLOPE('3.1 Plant I-O data'!BG17:BH17,'3.1 Plant I-O data'!BG$2:BH$2)*Z$2+INTERCEPT('3.1 Plant I-O data'!BG17:BH17,'3.1 Plant I-O data'!BG$2:BH$2) -> 0 | AA9: =SLOPE('3.1 Plant I-O data'!BI17:BJ17,'3.1 Plant I-O data'!BI$2:BJ$2)*AA$2+INTERCEPT('3.1 Plant I-O data'!BI17:BJ17,'3.1 Plant I-O data'!BI$2:BJ$2) -> 0 | AB9: ='3.1 Plant I-O data'!AR17 -> 0 | AC9: =SLOPE('3.1 Plant I-O data'!AT17:AU17,'3.1 Plant I-O data'!AT$2:AU$2)*AC$2+INTERCEPT('3.1 Plant I-O data'!AT17:AU17,'3.1 Plant I-O data'!AT$2:AU$2) -> 0 | AD9: =SLOPE('3.1 Plant I-O data'!AV17:AW17,'3.1 Plant I-O data'!AV$2:AW$2)*AD$2+INTERCEPT('3.1 Plant I-O data'!AV17:AW17,'3.1 Plant I-O data'!AV$2:AW$2) -> 0 | AE9: =SLOPE('3.1 Plant I-O data'!AX17:AY17,'3.1 Plant I-O data'!AX$2:AY$2)*AE$2+INTERCEPT('3.1 Plant I-O data'!AX17:AY17,'3.1 Plant I-O data'!AX$2:AY$2) -> 0 | AF9: =SLOPE('3.1 Plant I-O data'!AZ17:BA17,'3.1 Plant I-O data'!AZ$2:BA$2)*AF$2+INTERCEPT('3.1 Plant I-O data'!AZ17:BA17,'3.1 Plant I-O data'!AZ$2:BA$2) -> 0
B10: FT Naphtha | C10: lb/hr | D10: =SLOPE('3.1 Plant I-O data'!D18:E18,'3.1 Plant I-O data'!D$2:E$2)*D$2+INTERCEPT('3.1 Plant I-O data'!D18:E18,'3.1 Plant I-O data'!D$2:E$2) -> 175105.0916 | E10: =SLOPE('3.1 Plant I-O data'!F18:G18,'3.1 Plant I-O data'!F$2:G$2)*E$2+INTERCEPT('3.1 Plant I-O data'!F18:G18,'3.1 Plant I-O data'!F$2:G$2) -> 175103.44 | F10: =SLOPE('3.1 Plant I-O data'!H18:I18,'3.1 Plant I-O data'!H$2:I$2)*F$2+INTERCEPT('3.1 Plant I-O data'!H18:I18,'3.1 Plant I-O data'!H$2:I$2) -> 175104.2407 | G10: =SLOPE('3.1 Plant I-O data'!J18:K18,'3.1 Plant I-O data'!J$2:K$2)*G$2+INTERCEPT('3.1 Plant I-O data'!J18:K18,'3.1 Plant I-O data'!J$2:K$2) -> 175103.0312 | H10: =SLOPE('3.1 Plant I-O data'!L18:M18,'3.1 Plant I-O data'!L$2:M$2)*H$2+INTERCEPT('3.1 Plant I-O data'!L18:M18,'3.1 Plant I-O data'!L$2:M$2) -> 174977.2117 | I10: =SLOPE('3.1 Plant I-O data'!N18:O18,'3.1 Plant I-O data'!N$2:O$2)*I$2+INTERCEPT('3.1 Plant I-O data'!N18:O18,'3.1 Plant I-O data'!N$2:O$2) -> 174970.532 | J10: =SLOPE('3.1 Plant I-O data'!P18:Q18,'3.1 Plant I-O data'!P$2:Q$2)*J$2+INTERCEPT('3.1 Plant I-O data'!P18:Q18,'3.1 Plant I-O data'!P$2:Q$2) -> 174974.9453 | K10: =SLOPE('3.1 Plant I-O data'!R18:S18,'3.1 Plant I-O data'!R$2:S$2)*K$2+INTERCEPT('3.1 Plant I-O data'!R18:S18,'3.1 Plant I-O data'!R$2:S$2) -> 174966.2467 | L10: =SLOPE('3.1 Plant I-O data'!T18:U18,'3.1 Plant I-O data'!T$2:U$2)*L$2+INTERCEPT('3.1 Plant I-O data'!T18:U18,'3.1 Plant I-O data'!T$2:U$2) -> 161965.2175 | M10: =SLOPE('3.1 Plant I-O data'!V18:W18,'3.1 Plant I-O data'!V$2:W$2)*M$2+INTERCEPT('3.1 Plant I-O data'!V18:W18,'3.1 Plant I-O data'!V$2:W$2) -> 161965.2175 | N10: =SLOPE('3.1 Plant I-O data'!X18:Y18,'3.1 Plant I-O data'!X$2:Y$2)*N$2+INTERCEPT('3.1 Plant I-O data'!X18:Y18,'3.1 Plant I-O data'!X$2:Y$2) -> 161965.2175 | O10: =SLOPE('3.1 Plant I-O data'!Z18:AA18,'3.1 Plant I-O data'!Z$2:AA$2)*O$2+INTERCEPT('3.1 Plant I-O data'!Z18:AA18,'3.1 Plant I-O data'!Z$2:AA$2) -> 161965.2175 | P10: =SLOPE('3.1 Plant I-O data'!AB18:AC18,'3.1 Plant I-O data'!AB$2:AC$2)*P$2+INTERCEPT('3.1 Plant I-O data'!AB18:AC18,'3.1 Plant I-O data'!AB$2:AC$2) -> 175105.0916 | Q10: =SLOPE('3.1 Plant I-O data'!AD18:AE18,'3.1 Plant I-O data'!AD$2:AE$2)*Q$2+INTERCEPT('3.1 Plant I-O data'!AD18:AE18,'3.1 Plant I-O data'!AD$2:AE$2) -> 175103.44 | R10: =SLOPE('3.1 Plant I-O data'!AF18:AG18,'3.1 Plant I-O data'!AF$2:AG$2)*R$2+INTERCEPT('3.1 Plant I-O data'!AF18:AG18,'3.1 Plant I-O data'!AF$2:AG$2) -> 175104.2407 | S10: =SLOPE('3.1 Plant I-O data'!AH18:AI18,'3.1 Plant I-O data'!AH$2:AI$2)*S$2+INTERCEPT('3.1 Plant I-O data'!AH18:AI18,'3.1 Plant I-O data'!AH$2:AI$2) -> 175103.0312 | T10: =SLOPE('3.1 Plant I-O data'!AJ18:AK18,'3.1 Plant I-O data'!AJ$2:AK$2)*T$2+INTERCEPT('3.1 Plant I-O data'!AJ18:AK18,'3.1 Plant I-O data'!AJ$2:AK$2) -> 174977.2117 | U10: =SLOPE('3.1 Plant I-O data'!AL18:AM18,'3.1 Plant I-O data'!AL$2:AM$2)*U$2+INTERCEPT('3.1 Plant I-O data'!AL18:AM18,'3.1 Plant I-O data'!AL$2:AM$2) -> 174970.532 | V10: =SLOPE('3.1 Plant I-O data'!AN18:AO18,'3.1 Plant I-O data'!AN$2:AO$2)*V$2+INTERCEPT('3.1 Plant I-O data'!AN18:AO18,'3.1 Plant I-O data'!AN$2:AO$2) -> 174974.9453 | W10: =SLOPE('3.1 Plant I-O data'!AP18:AQ18,'3.1 Plant I-O data'!AP$2:AQ$2)*W$2+INTERCEPT('3.1 Plant I-O data'!AP18:AQ18,'3.1 Plant I-O data'!AP$2:AQ$2) -> 174966.2467 | X10: =SLOPE('3.1 Plant I-O data'!BC18:BD18,'3.1 Plant I-O data'!BC$2:BD$2)*X$2+INTERCEPT('3.1 Plant I-O data'!BC18:BD18,'3.1 Plant I-O data'!BC$2:BD$2) -> 161965.2175 | Y10: =SLOPE('3.1 Plant I-O data'!BE18:BF18,'3.1 Plant I-O data'!BE$2:BF$2)*Y$2+INTERCEPT('3.1 Plant I-O data'!BE18:BF18,'3.1 Plant I-O data'!BE$2:BF$2) -> 161965.2175 | Z10: =SLOPE('3.1 Plant I-O data'!BG18:BH18,'3.1 Plant I-O data'!BG$2:BH$2)*Z$2+INTERCEPT('3.1 Plant I-O data'!BG18:BH18,'3.1 Plant I-O data'!BG$2:BH$2) -> 161965.2175 | AA10: =SLOPE('3.1 Plant I-O data'!BI18:BJ18,'3.1 Plant I-O data'!BI$2:BJ$2)*AA$2+INTERCEPT('3.1 Plant I-O data'!BI18:BJ18,'3.1 Plant I-O data'!BI$2:BJ$2) -> 161965.2175 | AB10: ='3.1 Plant I-O data'!AR18 -> 165930.6248 | AC10: =SLOPE('3.1 Plant I-O data'!AT18:AU18,'3.1 Plant I-O data'!AT$2:AU$2)*AC$2+INTERCEPT('3.1 Plant I-O data'!AT18:AU18,'3.1 Plant I-O data'!AT$2:AU$2) -> 161965.2175 | AD10: =SLOPE('3.1 Plant I-O data'!AV18:AW18,'3.1 Plant I-O data'!AV$2:AW$2)*AD$2+INTERCEPT('3.1 Plant I-O data'!AV18:AW18,'3.1 Plant I-O data'!AV$2:AW$2) -> 161965.2175 | AE10: =SLOPE('3.1 Plant I-O data'!AX18:AY18,'3.1 Plant I-O data'!AX$2:AY$2)*AE$2+INTERCEPT('3.1 Plant I-O data'!AX18:AY18,'3.1 Plant I-O data'!AX$2:AY$2) -> 161965.2175 | AF10: =SLOPE('3.1 Plant I-O data'!AZ18:BA18,'3.1 Plant I-O data'!AZ$2:BA$2)*AF$2+INTERCEPT('3.1 Plant I-O data'!AZ18:BA18,'3.1 Plant I-O data'!AZ$2:BA$2) -> 161965.2175
B11: FT Diesel | C11: lb/hr | D11: =SLOPE('3.1 Plant I-O data'!D19:E19,'3.1 Plant I-O data'!D$2:E$2)*D$2+INTERCEPT('3.1 Plant I-O data'!D19:E19,'3.1 Plant I-O data'!D$2:E$2) -> 53579.92389 | E11: =SLOPE('3.1 Plant I-O data'!F19:G19,'3.1 Plant I-O data'!F$2:G$2)*E$2+INTERCEPT('3.1 Plant I-O data'!F19:G19,'3.1 Plant I-O data'!F$2:G$2) -> 53579.68732 | F11: =SLOPE('3.1 Plant I-O data'!H19:I19,'3.1 Plant I-O data'!H$2:I$2)*F$2+INTERCEPT('3.1 Plant I-O data'!H19:I19,'3.1 Plant I-O data'!H$2:I$2) -> 53579.82802 | G11: =SLOPE('3.1 Plant I-O data'!J19:K19,'3.1 Plant I-O data'!J$2:K$2)*G$2+INTERCEPT('3.1 Plant I-O data'!J19:K19,'3.1 Plant I-O data'!J$2:K$2) -> 53579.50237 | H11: =SLOPE('3.1 Plant I-O data'!L19:M19,'3.1 Plant I-O data'!L$2:M$2)*H$2+INTERCEPT('3.1 Plant I-O data'!L19:M19,'3.1 Plant I-O data'!L$2:M$2) -> 54629.43157 | I11: =SLOPE('3.1 Plant I-O data'!N19:O19,'3.1 Plant I-O data'!N$2:O$2)*I$2+INTERCEPT('3.1 Plant I-O data'!N19:O19,'3.1 Plant I-O data'!N$2:O$2) -> 54660.036 | J11: =SLOPE('3.1 Plant I-O data'!P19:Q19,'3.1 Plant I-O data'!P$2:Q$2)*J$2+INTERCEPT('3.1 Plant I-O data'!P19:Q19,'3.1 Plant I-O data'!P$2:Q$2) -> 54630.15077 | K11: =SLOPE('3.1 Plant I-O data'!R19:S19,'3.1 Plant I-O data'!R$2:S$2)*K$2+INTERCEPT('3.1 Plant I-O data'!R19:S19,'3.1 Plant I-O data'!R$2:S$2) -> 54656.7894 | L11: =SLOPE('3.1 Plant I-O data'!T19:U19,'3.1 Plant I-O data'!T$2:U$2)*L$2+INTERCEPT('3.1 Plant I-O data'!T19:U19,'3.1 Plant I-O data'!T$2:U$2) -> 385568.1084 | M11: =SLOPE('3.1 Plant I-O data'!V19:W19,'3.1 Plant I-O data'!V$2:W$2)*M$2+INTERCEPT('3.1 Plant I-O data'!V19:W19,'3.1 Plant I-O data'!V$2:W$2) -> 385560.6148 | N11: =SLOPE('3.1 Plant I-O data'!X19:Y19,'3.1 Plant I-O data'!X$2:Y$2)*N$2+INTERCEPT('3.1 Plant I-O data'!X19:Y19,'3.1 Plant I-O data'!X$2:Y$2) -> 385568.1084 | O11: =SLOPE('3.1 Plant I-O data'!Z19:AA19,'3.1 Plant I-O data'!Z$2:AA$2)*O$2+INTERCEPT('3.1 Plant I-O data'!Z19:AA19,'3.1 Plant I-O data'!Z$2:AA$2) -> 385560.6148 | P11: =SLOPE('3.1 Plant I-O data'!AB19:AC19,'3.1 Plant I-O data'!AB$2:AC$2)*P$2+INTERCEPT('3.1 Plant I-O data'!AB19:AC19,'3.1 Plant I-O data'!AB$2:AC$2) -> 53579.92389 | Q11: =SLOPE('3.1 Plant I-O data'!AD19:AE19,'3.1 Plant I-O data'!AD$2:AE$2)*Q$2+INTERCEPT('3.1 Plant I-O data'!AD19:AE19,'3.1 Plant I-O data'!AD$2:AE$2) -> 53579.68732 | R11: =SLOPE('3.1 Plant I-O data'!AF19:AG19,'3.1 Plant I-O data'!AF$2:AG$2)*R$2+INTERCEPT('3.1 Plant I-O data'!AF19:AG19,'3.1 Plant I-O data'!AF$2:AG$2) -> 53579.82802 | S11: =SLOPE('3.1 Plant I-O data'!AH19:AI19,'3.1 Plant I-O data'!AH$2:AI$2)*S$2+INTERCEPT('3.1 Plant I-O data'!AH19:AI19,'3.1 Plant I-O data'!AH$2:AI$2) -> 53579.50237 | T11: =SLOPE('3.1 Plant I-O data'!AJ19:AK19,'3.1 Plant I-O data'!AJ$2:AK$2)*T$2+INTERCEPT('3.1 Plant I-O data'!AJ19:AK19,'3.1 Plant I-O data'!AJ$2:AK$2) -> 54629.43157 | U11: =SLOPE('3.1 Plant I-O data'!AL19:AM19,'3.1 Plant I-O data'!AL$2:AM$2)*U$2+INTERCEPT('3.1 Plant I-O data'!AL19:AM19,'3.1 Plant I-O data'!AL$2:AM$2) -> 54660.036 | V11: =SLOPE('3.1 Plant I-O data'!AN19:AO19,'3.1 Plant I-O data'!AN$2:AO$2)*V$2+INTERCEPT('3.1 Plant I-O data'!AN19:AO19,'3.1 Plant I-O data'!AN$2:AO$2) -> 54630.15077 | W11: =SLOPE('3.1 Plant I-O data'!AP19:AQ19,'3.1 Plant I-O data'!AP$2:AQ$2)*W$2+INTERCEPT('3.1 Plant I-O data'!AP19:AQ19,'3.1 Plant I-O data'!AP$2:AQ$2) -> 54656.7894 | X11: =SLOPE('3.1 Plant I-O data'!BC19:BD19,'3.1 Plant I-O data'!BC$2:BD$2)*X$2+INTERCEPT('3.1 Plant I-O data'!BC19:BD19,'3.1 Plant I-O data'!BC$2:BD$2) -> 385568.1084 | Y11: =SLOPE('3.1 Plant I-O data'!BE19:BF19,'3.1 Plant I-O data'!BE$2:BF$2)*Y$2+INTERCEPT('3.1 Plant I-O data'!BE19:BF19,'3.1 Plant I-O data'!BE$2:BF$2) -> 385560.6148 | Z11: =SLOPE('3.1 Plant I-O data'!BG19:BH19,'3.1 Plant I-O data'!BG$2:BH$2)*Z$2+INTERCEPT('3.1 Plant I-O data'!BG19:BH19,'3.1 Plant I-O data'!BG$2:BH$2) -> 385568.1084 | AA11: =SLOPE('3.1 Plant I-O data'!BI19:BJ19,'3.1 Plant I-O data'!BI$2:BJ$2)*AA$2+INTERCEPT('3.1 Plant I-O data'!BI19:BJ19,'3.1 Plant I-O data'!BI$2:BJ$2) -> 385560.6148 | AB11: ='3.1 Plant I-O data'!AR19 -> 391020.9018 | AC11: =SLOPE('3.1 Plant I-O data'!AT19:AU19,'3.1 Plant I-O data'!AT$2:AU$2)*AC$2+INTERCEPT('3.1 Plant I-O data'!AT19:AU19,'3.1 Plant I-O data'!AT$2:AU$2) -> 385568.1084 | AD11: =SLOPE('3.1 Plant I-O data'!AV19:AW19,'3.1 Plant I-O data'!AV$2:AW$2)*AD$2+INTERCEPT('3.1 Plant I-O data'!AV19:AW19,'3.1 Plant I-O data'!AV$2:AW$2) -> 385568.1084 | AE11: =SLOPE('3.1 Plant I-O data'!AX19:AY19,'3.1 Plant I-O data'!AX$2:AY$2)*AE$2+INTERCEPT('3.1 Plant I-O data'!AX19:AY19,'3.1 Plant I-O data'!AX$2:AY$2) -> 385568.1084 | AF11: =SLOPE('3.1 Plant I-O data'!AZ19:BA19,'3.1 Plant I-O data'!AZ$2:BA$2)*AF$2+INTERCEPT('3.1 Plant I-O data'!AZ19:BA19,'3.1 Plant I-O data'!AZ$2:BA$2) -> 385568.1084
B12: CO₂ to sequestration | C12: lb/hr | D12: =SLOPE('3.1 Plant I-O data'!D20:E20,'3.1 Plant I-O data'!D$2:E$2)*D$2+INTERCEPT('3.1 Plant I-O data'!D20:E20,'3.1 Plant I-O data'!D$2:E$2) -> 2607323.924 | E12: =SLOPE('3.1 Plant I-O data'!F20:G20,'3.1 Plant I-O data'!F$2:G$2)*E$2+INTERCEPT('3.1 Plant I-O data'!F20:G20,'3.1 Plant I-O data'!F$2:G$2) -> 2585719.599 | F12: =SLOPE('3.1 Plant I-O data'!H20:I20,'3.1 Plant I-O data'!H$2:I$2)*F$2+INTERCEPT('3.1 Plant I-O data'!H20:I20,'3.1 Plant I-O data'!H$2:I$2) -> 2586530.691 | G12: =SLOPE('3.1 Plant I-O data'!J20:K20,'3.1 Plant I-O data'!J$2:K$2)*G$2+INTERCEPT('3.1 Plant I-O data'!J20:K20,'3.1 Plant I-O data'!J$2:K$2) -> 2559648.118 | H12: =SLOPE('3.1 Plant I-O data'!L20:M20,'3.1 Plant I-O data'!L$2:M$2)*H$2+INTERCEPT('3.1 Plant I-O data'!L20:M20,'3.1 Plant I-O data'!L$2:M$2) -> 2623221.277 | I12: =SLOPE('3.1 Plant I-O data'!N20:O20,'3.1 Plant I-O data'!N$2:O$2)*I$2+INTERCEPT('3.1 Plant I-O data'!N20:O20,'3.1 Plant I-O data'!N$2:O$2) -> 2577254.047 | J12: =SLOPE('3.1 Plant I-O data'!P20:Q20,'3.1 Plant I-O data'!P$2:Q$2)*J$2+INTERCEPT('3.1 Plant I-O data'!P20:Q20,'3.1 Plant I-O data'!P$2:Q$2) -> 2583257.427 | K12: =SLOPE('3.1 Plant I-O data'!R20:S20,'3.1 Plant I-O data'!R$2:S$2)*K$2+INTERCEPT('3.1 Plant I-O data'!R20:S20,'3.1 Plant I-O data'!R$2:S$2) -> 2553406.453 | L12: =SLOPE('3.1 Plant I-O data'!T20:U20,'3.1 Plant I-O data'!T$2:U$2)*L$2+INTERCEPT('3.1 Plant I-O data'!T20:U20,'3.1 Plant I-O data'!T$2:U$2) -> 2765803.35 | M12: =SLOPE('3.1 Plant I-O data'!V20:W20,'3.1 Plant I-O data'!V$2:W$2)*M$2+INTERCEPT('3.1 Plant I-O data'!V20:W20,'3.1 Plant I-O data'!V$2:W$2) -> 2578118.748 | N12: =SLOPE('3.1 Plant I-O data'!X20:Y20,'3.1 Plant I-O data'!X$2:Y$2)*N$2+INTERCEPT('3.1 Plant I-O data'!X20:Y20,'3.1 Plant I-O data'!X$2:Y$2) -> 2765803.35 | O12: =SLOPE('3.1 Plant I-O data'!Z20:AA20,'3.1 Plant I-O data'!Z$2:AA$2)*O$2+INTERCEPT('3.1 Plant I-O data'!Z20:AA20,'3.1 Plant I-O data'!Z$2:AA$2) -> 2578118.748 | P12: =SLOPE('3.1 Plant I-O data'!AB20:AC20,'3.1 Plant I-O data'!AB$2:AC$2)*P$2+INTERCEPT('3.1 Plant I-O data'!AB20:AC20,'3.1 Plant I-O data'!AB$2:AC$2) -> 2607323.924 | Q12: =SLOPE('3.1 Plant I-O data'!AD20:AE20,'3.1 Plant I-O data'!AD$2:AE$2)*Q$2+INTERCEPT('3.1 Plant I-O data'!AD20:AE20,'3.1 Plant I-O data'!AD$2:AE$2) -> 2585719.599 | R12: =SLOPE('3.1 Plant I-O data'!AF20:AG20,'3.1 Plant I-O data'!AF$2:AG$2)*R$2+INTERCEPT('3.1 Plant I-O data'!AF20:AG20,'3.1 Plant I-O data'!AF$2:AG$2) -> 2586530.691 | S12: =SLOPE('3.1 Plant I-O data'!AH20:AI20,'3.1 Plant I-O data'!AH$2:AI$2)*S$2+INTERCEPT('3.1 Plant I-O data'!AH20:AI20,'3.1 Plant I-O data'!AH$2:AI$2) -> 2559648.118 | T12: =SLOPE('3.1 Plant I-O data'!AJ20:AK20,'3.1 Plant I-O data'!AJ$2:AK$2)*T$2+INTERCEPT('3.1 Plant I-O data'!AJ20:AK20,'3.1 Plant I-O data'!AJ$2:AK$2) -> 2623221.277 | U12: =SLOPE('3.1 Plant I-O data'!AL20:AM20,'3.1 Plant I-O data'!AL$2:AM$2)*U$2+INTERCEPT('3.1 Plant I-O data'!AL20:AM20,'3.1 Plant I-O data'!AL$2:AM$2) -> 2577254.047 | V12: =SLOPE('3.1 Plant I-O data'!AN20:AO20,'3.1 Plant I-O data'!AN$2:AO$2)*V$2+INTERCEPT('3.1 Plant I-O data'!AN20:AO20,'3.1 Plant I-O data'!AN$2:AO$2) -> 2583257.427 | W12: =SLOPE('3.1 Plant I-O data'!AP20:AQ20,'3.1 Plant I-O data'!AP$2:AQ$2)*W$2+INTERCEPT('3.1 Plant I-O data'!AP20:AQ20,'3.1 Plant I-O data'!AP$2:AQ$2) -> 2553406.453 | X12: =SLOPE('3.1 Plant I-O data'!BC20:BD20,'3.1 Plant I-O data'!BC$2:BD$2)*X$2+INTERCEPT('3.1 Plant I-O data'!BC20:BD20,'3.1 Plant I-O data'!BC$2:BD$2) -> 2765803.35 | Y12: =SLOPE('3.1 Plant I-O data'!BE20:BF20,'3.1 Plant I-O data'!BE$2:BF$2)*Y$2+INTERCEPT('3.1 Plant I-O data'!BE20:BF20,'3.1 Plant I-O data'!BE$2:BF$2) -> 2578118.748 | Z12: =SLOPE('3.1 Plant I-O data'!BG20:BH20,'3.1 Plant I-O data'!BG$2:BH$2)*Z$2+INTERCEPT('3.1 Plant I-O data'!BG20:BH20,'3.1 Plant I-O data'!BG$2:BH$2) -> 2765803.35 | AA12: =SLOPE('3.1 Plant I-O data'!BI20:BJ20,'3.1 Plant I-O data'!BI$2:BJ$2)*AA$2+INTERCEPT('3.1 Plant I-O data'!BI20:BJ20,'3.1 Plant I-O data'!BI$2:BJ$2) -> 2578118.748 | AB12: ='3.1 Plant I-O data'!AR20 -> 2200397.095 | AC12: =SLOPE('3.1 Plant I-O data'!AT20:AU20,'3.1 Plant I-O data'!AT$2:AU$2)*AC$2+INTERCEPT('3.1 Plant I-O data'!AT20:AU20,'3.1 Plant I-O data'!AT$2:AU$2) -> 2688653.172 | AD12: =SLOPE('3.1 Plant I-O data'!AV20:AW20,'3.1 Plant I-O data'!AV$2:AW$2)*AD$2+INTERCEPT('3.1 Plant I-O data'!AV20:AW20,'3.1 Plant I-O data'!AV$2:AW$2) -> 2400205.144 | AE12: =SLOPE('3.1 Plant I-O data'!AX20:AY20,'3.1 Plant I-O data'!AX$2:AY$2)*AE$2+INTERCEPT('3.1 Plant I-O data'!AX20:AY20,'3.1 Plant I-O data'!AX$2:AY$2) -> 2688653.172 | AF12: =SLOPE('3.1 Plant I-O data'!AZ20:BA20,'3.1 Plant I-O data'!AZ$2:BA$2)*AF$2+INTERCEPT('3.1 Plant I-O data'!AZ20:BA20,'3.1 Plant I-O data'!AZ$2:BA$2) -> 2400205.144
B13: LPG | C13: lb/hr | D13: =SLOPE('3.1 Plant I-O data'!D21:E21,'3.1 Plant I-O data'!D$2:E$2)*D$2+INTERCEPT('3.1 Plant I-O data'!D21:E21,'3.1 Plant I-O data'!D$2:E$2) -> 31242.15934 | E13: =SLOPE('3.1 Plant I-O data'!F21:G21,'3.1 Plant I-O data'!F$2:G$2)*E$2+INTERCEPT('3.1 Plant I-O data'!F21:G21,'3.1 Plant I-O data'!F$2:G$2) -> 31246.62482 | F13: =SLOPE('3.1 Plant I-O data'!H21:I21,'3.1 Plant I-O data'!H$2:I$2)*F$2+INTERCEPT('3.1 Plant I-O data'!H21:I21,'3.1 Plant I-O data'!H$2:I$2) -> 31243.18577 | G13: =SLOPE('3.1 Plant I-O data'!J21:K21,'3.1 Plant I-O data'!J$2:K$2)*G$2+INTERCEPT('3.1 Plant I-O data'!J21:K21,'3.1 Plant I-O data'!J$2:K$2) -> 31246.79347 | H13: =SLOPE('3.1 Plant I-O data'!L21:M21,'3.1 Plant I-O data'!L$2:M$2)*H$2+INTERCEPT('3.1 Plant I-O data'!L21:M21,'3.1 Plant I-O data'!L$2:M$2) -> 31356.3418 | I13: =SLOPE('3.1 Plant I-O data'!N21:O21,'3.1 Plant I-O data'!N$2:O$2)*I$2+INTERCEPT('3.1 Plant I-O data'!N21:O21,'3.1 Plant I-O data'!N$2:O$2) -> 31364.67797 | J13: =SLOPE('3.1 Plant I-O data'!P21:Q21,'3.1 Plant I-O data'!P$2:Q$2)*J$2+INTERCEPT('3.1 Plant I-O data'!P21:Q21,'3.1 Plant I-O data'!P$2:Q$2) -> 31360.08773 | K13: =SLOPE('3.1 Plant I-O data'!R21:S21,'3.1 Plant I-O data'!R$2:S$2)*K$2+INTERCEPT('3.1 Plant I-O data'!R21:S21,'3.1 Plant I-O data'!R$2:S$2) -> 31376.14077 | L13: =SLOPE('3.1 Plant I-O data'!T21:U21,'3.1 Plant I-O data'!T$2:U$2)*L$2+INTERCEPT('3.1 Plant I-O data'!T21:U21,'3.1 Plant I-O data'!T$2:U$2) -> 0 | M13: =SLOPE('3.1 Plant I-O data'!V21:W21,'3.1 Plant I-O data'!V$2:W$2)*M$2+INTERCEPT('3.1 Plant I-O data'!V21:W21,'3.1 Plant I-O data'!V$2:W$2) -> 0 | N13: =SLOPE('3.1 Plant I-O data'!X21:Y21,'3.1 Plant I-O data'!X$2:Y$2)*N$2+INTERCEPT('3.1 Plant I-O data'!X21:Y21,'3.1 Plant I-O data'!X$2:Y$2) -> 0 | O13: =SLOPE('3.1 Plant I-O data'!Z21:AA21,'3.1 Plant I-O data'!Z$2:AA$2)*O$2+INTERCEPT('3.1 Plant I-O data'!Z21:AA21,'3.1 Plant I-O data'!Z$2:AA$2) -> 0 | P13: =SLOPE('3.1 Plant I-O data'!AB21:AC21,'3.1 Plant I-O data'!AB$2:AC$2)*P$2+INTERCEPT('3.1 Plant I-O data'!AB21:AC21,'3.1 Plant I-O data'!AB$2:AC$2) -> 31242.15934 | Q13: =SLOPE('3.1 Plant I-O data'!AD21:AE21,'3.1 Plant I-O data'!AD$2:AE$2)*Q$2+INTERCEPT('3.1 Plant I-O data'!AD21:AE21,'3.1 Plant I-O data'!AD$2:AE$2) -> 31246.62482 | R13: =SLOPE('3.1 Plant I-O data'!AF21:AG21,'3.1 Plant I-O data'!AF$2:AG$2)*R$2+INTERCEPT('3.1 Plant I-O data'!AF21:AG21,'3.1 Plant I-O data'!AF$2:AG$2) -> 31243.18577 | S13: =SLOPE('3.1 Plant I-O data'!AH21:AI21,'3.1 Plant I-O data'!AH$2:AI$2)*S$2+INTERCEPT('3.1 Plant I-O data'!AH21:AI21,'3.1 Plant I-O data'!AH$2:AI$2) -> 31246.79347 | T13: =SLOPE('3.1 Plant I-O data'!AJ21:AK21,'3.1 Plant I-O data'!AJ$2:AK$2)*T$2+INTERCEPT('3.1 Plant I-O data'!AJ21:AK21,'3.1 Plant I-O data'!AJ$2:AK$2) -> 31356.3418 | U13: =SLOPE('3.1 Plant I-O data'!AL21:AM21,'3.1 Plant I-O data'!AL$2:AM$2)*U$2+INTERCEPT('3.1 Plant I-O data'!AL21:AM21,'3.1 Plant I-O data'!AL$2:AM$2) -> 31364.67797 | V13: =SLOPE('3.1 Plant I-O data'!AN21:AO21,'3.1 Plant I-O data'!AN$2:AO$2)*V$2+INTERCEPT('3.1 Plant I-O data'!AN21:AO21,'3.1 Plant I-O data'!AN$2:AO$2) -> 31360.08773 | W13: =SLOPE('3.1 Plant I-O data'!AP21:AQ21,'3.1 Plant I-O data'!AP$2:AQ$2)*W$2+INTERCEPT('3.1 Plant I-O data'!AP21:AQ21,'3.1 Plant I-O data'!AP$2:AQ$2) -> 31376.14077 | X13: =SLOPE('3.1 Plant I-O data'!BC21:BD21,'3.1 Plant I-O data'!BC$2:BD$2)*X$2+INTERCEPT('3.1 Plant I-O data'!BC21:BD21,'3.1 Plant I-O data'!BC$2:BD$2) -> 0 | Y13: =SLOPE('3.1 Plant I-O data'!BE21:BF21,'3.1 Plant I-O data'!BE$2:BF$2)*Y$2+INTERCEPT('3.1 Plant I-O data'!BE21:BF21,'3.1 Plant I-O data'!BE$2:BF$2) -> 0 | Z13: =SLOPE('3.1 Plant I-O data'!BG21:BH21,'3.1 Plant I-O data'!BG$2:BH$2)*Z$2+INTERCEPT('3.1 Plant I-O data'!BG21:BH21,'3.1 Plant I-O data'!BG$2:BH$2) -> 0 | AA13: =SLOPE('3.1 Plant I-O data'!BI21:BJ21,'3.1 Plant I-O data'!BI$2:BJ$2)*AA$2+INTERCEPT('3.1 Plant I-O data'!BI21:BJ21,'3.1 Plant I-O data'!BI$2:BJ$2) -> 0 | AB13: ='3.1 Plant I-O data'!AR21 -> 0 | AC13: =SLOPE('3.1 Plant I-O data'!AT21:AU21,'3.1 Plant I-O data'!AT$2:AU$2)*AC$2+INTERCEPT('3.1 Plant I-O data'!AT21:AU21,'3.1 Plant I-O data'!AT$2:AU$2) -> 0 | AD13: =SLOPE('3.1 Plant I-O data'!AV21:AW21,'3.1 Plant I-O data'!AV$2:AW$2)*AD$2+INTERCEPT('3.1 Plant I-O data'!AV21:AW21,'3.1 Plant I-O data'!AV$2:AW$2) -> 0 | AE13: =SLOPE('3.1 Plant I-O data'!AX21:AY21,'3.1 Plant I-O data'!AX$2:AY$2)*AE$2+INTERCEPT('3.1 Plant I-O data'!AX21:AY21,'3.1 Plant I-O data'!AX$2:AY$2) -> 0 | AF13: =SLOPE('3.1 Plant I-O data'!AZ21:BA21,'3.1 Plant I-O data'!AZ$2:BA$2)*AF$2+INTERCEPT('3.1 Plant I-O data'!AZ21:BA21,'3.1 Plant I-O data'!AZ$2:BA$2) -> 0
B14: Sulfur | C14: lb/hr | D14: =SLOPE('3.1 Plant I-O data'!D22:E22,'3.1 Plant I-O data'!D$2:E$2)*D$2+INTERCEPT('3.1 Plant I-O data'!D22:E22,'3.1 Plant I-O data'!D$2:E$2) -> 8530.037847 | E14: =SLOPE('3.1 Plant I-O data'!F22:G22,'3.1 Plant I-O data'!F$2:G$2)*E$2+INTERCEPT('3.1 Plant I-O data'!F22:G22,'3.1 Plant I-O data'!F$2:G$2) -> 8254.285013 | F14: =SLOPE('3.1 Plant I-O data'!H22:I22,'3.1 Plant I-O data'!H$2:I$2)*F$2+INTERCEPT('3.1 Plant I-O data'!H22:I22,'3.1 Plant I-O data'!H$2:I$2) -> 8464.813105 | G14: =SLOPE('3.1 Plant I-O data'!J22:K22,'3.1 Plant I-O data'!J$2:K$2)*G$2+INTERCEPT('3.1 Plant I-O data'!J22:K22,'3.1 Plant I-O data'!J$2:K$2) -> 8282.636925 | H14: =SLOPE('3.1 Plant I-O data'!L22:M22,'3.1 Plant I-O data'!L$2:M$2)*H$2+INTERCEPT('3.1 Plant I-O data'!L22:M22,'3.1 Plant I-O data'!L$2:M$2) -> 12779.47493 | I14: =SLOPE('3.1 Plant I-O data'!N22:O22,'3.1 Plant I-O data'!N$2:O$2)*I$2+INTERCEPT('3.1 Plant I-O data'!N22:O22,'3.1 Plant I-O data'!N$2:O$2) -> 12444.9468 | J14: =SLOPE('3.1 Plant I-O data'!P22:Q22,'3.1 Plant I-O data'!P$2:Q$2)*J$2+INTERCEPT('3.1 Plant I-O data'!P22:Q22,'3.1 Plant I-O data'!P$2:Q$2) -> 14244.50413 | K14: =SLOPE('3.1 Plant I-O data'!R22:S22,'3.1 Plant I-O data'!R$2:S$2)*K$2+INTERCEPT('3.1 Plant I-O data'!R22:S22,'3.1 Plant I-O data'!R$2:S$2) -> 13841.35517 | L14: =SLOPE('3.1 Plant I-O data'!T22:U22,'3.1 Plant I-O data'!T$2:U$2)*L$2+INTERCEPT('3.1 Plant I-O data'!T22:U22,'3.1 Plant I-O data'!T$2:U$2) -> 0 | M14: =SLOPE('3.1 Plant I-O data'!V22:W22,'3.1 Plant I-O data'!V$2:W$2)*M$2+INTERCEPT('3.1 Plant I-O data'!V22:W22,'3.1 Plant I-O data'!V$2:W$2) -> 0 | N14: =SLOPE('3.1 Plant I-O data'!X22:Y22,'3.1 Plant I-O data'!X$2:Y$2)*N$2+INTERCEPT('3.1 Plant I-O data'!X22:Y22,'3.1 Plant I-O data'!X$2:Y$2) -> 0 | O14: =SLOPE('3.1 Plant I-O data'!Z22:AA22,'3.1 Plant I-O data'!Z$2:AA$2)*O$2+INTERCEPT('3.1 Plant I-O data'!Z22:AA22,'3.1 Plant I-O data'!Z$2:AA$2) -> 0 | P14: =SLOPE('3.1 Plant I-O data'!AB22:AC22,'3.1 Plant I-O data'!AB$2:AC$2)*P$2+INTERCEPT('3.1 Plant I-O data'!AB22:AC22,'3.1 Plant I-O data'!AB$2:AC$2) -> 8530.037847 | Q14: =SLOPE('3.1 Plant I-O data'!AD22:AE22,'3.1 Plant I-O data'!AD$2:AE$2)*Q$2+INTERCEPT('3.1 Plant I-O data'!AD22:AE22,'3.1 Plant I-O data'!AD$2:AE$2) -> 8254.285013 | R14: =SLOPE('3.1 Plant I-O data'!AF22:AG22,'3.1 Plant I-O data'!AF$2:AG$2)*R$2+INTERCEPT('3.1 Plant I-O data'!AF22:AG22,'3.1 Plant I-O data'!AF$2:AG$2) -> 8464.813105 | S14: =SLOPE('3.1 Plant I-O data'!AH22:AI22,'3.1 Plant I-O data'!AH$2:AI$2)*S$2+INTERCEPT('3.1 Plant I-O data'!AH22:AI22,'3.1 Plant I-O data'!AH$2:AI$2) -> 8282.636925 | T14: =SLOPE('3.1 Plant I-O data'!AJ22:AK22,'3.1 Plant I-O data'!AJ$2:AK$2)*T$2+INTERCEPT('3.1 Plant I-O data'!AJ22:AK22,'3.1 Plant I-O data'!AJ$2:AK$2) -> 12779.47493 | U14: =SLOPE('3.1 Plant I-O data'!AL22:AM22,'3.1 Plant I-O data'!AL$2:AM$2)*U$2+INTERCEPT('3.1 Plant I-O data'!AL22:AM22,'3.1 Plant I-O data'!AL$2:AM$2) -> 12444.9468 | V14: =SLOPE('3.1 Plant I-O data'!AN22:AO22,'3.1 Plant I-O data'!AN$2:AO$2)*V$2+INTERCEPT('3.1 Plant I-O data'!AN22:AO22,'3.1 Plant I-O data'!AN$2:AO$2) -> 14244.50413 | W14: =SLOPE('3.1 Plant I-O data'!AP22:AQ22,'3.1 Plant I-O data'!AP$2:AQ$2)*W$2+INTERCEPT('3.1 Plant I-O data'!AP22:AQ22,'3.1 Plant I-O data'!AP$2:AQ$2) -> 13841.35517 | X14: =SLOPE('3.1 Plant I-O data'!BC22:BD22,'3.1 Plant I-O data'!BC$2:BD$2)*X$2+INTERCEPT('3.1 Plant I-O data'!BC22:BD22,'3.1 Plant I-O data'!BC$2:BD$2) -> 0 | Y14: =SLOPE('3.1 Plant I-O data'!BE22:BF22,'3.1 Plant I-O data'!BE$2:BF$2)*Y$2+INTERCEPT('3.1 Plant I-O data'!BE22:BF22,'3.1 Plant I-O data'!BE$2:BF$2) -> 0 | Z14: =SLOPE('3.1 Plant I-O data'!BG22:BH22,'3.1 Plant I-O data'!BG$2:BH$2)*Z$2+INTERCEPT('3.1 Plant I-O data'!BG22:BH22,'3.1 Plant I-O data'!BG$2:BH$2) -> 0 | AA14: =SLOPE('3.1 Plant I-O data'!BI22:BJ22,'3.1 Plant I-O data'!BI$2:BJ$2)*AA$2+INTERCEPT('3.1 Plant I-O data'!BI22:BJ22,'3.1 Plant I-O data'!BI$2:BJ$2) -> 0 | AB14: ='3.1 Plant I-O data'!AR22 -> 43874.1948 | AC14: =SLOPE('3.1 Plant I-O data'!AT22:AU22,'3.1 Plant I-O data'!AT$2:AU$2)*AC$2+INTERCEPT('3.1 Plant I-O data'!AT22:AU22,'3.1 Plant I-O data'!AT$2:AU$2) -> 0 | AD14: =SLOPE('3.1 Plant I-O data'!AV22:AW22,'3.1 Plant I-O data'!AV$2:AW$2)*AD$2+INTERCEPT('3.1 Plant I-O data'!AV22:AW22,'3.1 Plant I-O data'!AV$2:AW$2) -> 0 | AE14: =SLOPE('3.1 Plant I-O data'!AX22:AY22,'3.1 Plant I-O data'!AX$2:AY$2)*AE$2+INTERCEPT('3.1 Plant I-O data'!AX22:AY22,'3.1 Plant I-O data'!AX$2:AY$2) -> 0 | AF14: =SLOPE('3.1 Plant I-O data'!AZ22:BA22,'3.1 Plant I-O data'!AZ$2:BA$2)*AF$2+INTERCEPT('3.1 Plant I-O data'!AZ22:BA22,'3.1 Plant I-O data'!AZ$2:BA$2) -> 0
B15: Export power | C15: MWh/hr | D15: =SLOPE('3.1 Plant I-O data'!D23:E23,'3.1 Plant I-O data'!D$2:E$2)*D$2+INTERCEPT('3.1 Plant I-O data'!D23:E23,'3.1 Plant I-O data'!D$2:E$2) -> 201.7854389 | E15: =SLOPE('3.1 Plant I-O data'!F23:G23,'3.1 Plant I-O data'!F$2:G$2)*E$2+INTERCEPT('3.1 Plant I-O data'!F23:G23,'3.1 Plant I-O data'!F$2:G$2) -> 224.3444419 | F15: =SLOPE('3.1 Plant I-O data'!H23:I23,'3.1 Plant I-O data'!H$2:I$2)*F$2+INTERCEPT('3.1 Plant I-O data'!H23:I23,'3.1 Plant I-O data'!H$2:I$2) -> 227.428437 | G15: =SLOPE('3.1 Plant I-O data'!J23:K23,'3.1 Plant I-O data'!J$2:K$2)*G$2+INTERCEPT('3.1 Plant I-O data'!J23:K23,'3.1 Plant I-O data'!J$2:K$2) -> 229.9531385 | H15: =SLOPE('3.1 Plant I-O data'!L23:M23,'3.1 Plant I-O data'!L$2:M$2)*H$2+INTERCEPT('3.1 Plant I-O data'!L23:M23,'3.1 Plant I-O data'!L$2:M$2) -> 0 | I15: =SLOPE('3.1 Plant I-O data'!N23:O23,'3.1 Plant I-O data'!N$2:O$2)*I$2+INTERCEPT('3.1 Plant I-O data'!N23:O23,'3.1 Plant I-O data'!N$2:O$2) -> 0 | J15: =SLOPE('3.1 Plant I-O data'!P23:Q23,'3.1 Plant I-O data'!P$2:Q$2)*J$2+INTERCEPT('3.1 Plant I-O data'!P23:Q23,'3.1 Plant I-O data'!P$2:Q$2) -> 0 | K15: =SLOPE('3.1 Plant I-O data'!R23:S23,'3.1 Plant I-O data'!R$2:S$2)*K$2+INTERCEPT('3.1 Plant I-O data'!R23:S23,'3.1 Plant I-O data'!R$2:S$2) -> 0 | L15: =SLOPE('3.1 Plant I-O data'!T23:U23,'3.1 Plant I-O data'!T$2:U$2)*L$2+INTERCEPT('3.1 Plant I-O data'!T23:U23,'3.1 Plant I-O data'!T$2:U$2) -> 202.5666667 | M15: =SLOPE('3.1 Plant I-O data'!V23:W23,'3.1 Plant I-O data'!V$2:W$2)*M$2+INTERCEPT('3.1 Plant I-O data'!V23:W23,'3.1 Plant I-O data'!V$2:W$2) -> 0 | N15: =SLOPE('3.1 Plant I-O data'!X23:Y23,'3.1 Plant I-O data'!X$2:Y$2)*N$2+INTERCEPT('3.1 Plant I-O data'!X23:Y23,'3.1 Plant I-O data'!X$2:Y$2) -> 202.5666667 | O15: =SLOPE('3.1 Plant I-O data'!Z23:AA23,'3.1 Plant I-O data'!Z$2:AA$2)*O$2+INTERCEPT('3.1 Plant I-O data'!Z23:AA23,'3.1 Plant I-O data'!Z$2:AA$2) -> 0 | P15: =SLOPE('3.1 Plant I-O data'!AB23:AC23,'3.1 Plant I-O data'!AB$2:AC$2)*P$2+INTERCEPT('3.1 Plant I-O data'!AB23:AC23,'3.1 Plant I-O data'!AB$2:AC$2) -> 201.7854389 | Q15: =SLOPE('3.1 Plant I-O data'!AD23:AE23,'3.1 Plant I-O data'!AD$2:AE$2)*Q$2+INTERCEPT('3.1 Plant I-O data'!AD23:AE23,'3.1 Plant I-O data'!AD$2:AE$2) -> 224.3444419 | R15: =SLOPE('3.1 Plant I-O data'!AF23:AG23,'3.1 Plant I-O data'!AF$2:AG$2)*R$2+INTERCEPT('3.1 Plant I-O data'!AF23:AG23,'3.1 Plant I-O data'!AF$2:AG$2) -> 227.428437 | S15: =SLOPE('3.1 Plant I-O data'!AH23:AI23,'3.1 Plant I-O data'!AH$2:AI$2)*S$2+INTERCEPT('3.1 Plant I-O data'!AH23:AI23,'3.1 Plant I-O data'!AH$2:AI$2) -> 229.9531385 | T15: =SLOPE('3.1 Plant I-O data'!AJ23:AK23,'3.1 Plant I-O data'!AJ$2:AK$2)*T$2+INTERCEPT('3.1 Plant I-O data'!AJ23:AK23,'3.1 Plant I-O data'!AJ$2:AK$2) -> 0 | U15: =SLOPE('3.1 Plant I-O data'!AL23:AM23,'3.1 Plant I-O data'!AL$2:AM$2)*U$2+INTERCEPT('3.1 Plant I-O data'!AL23:AM23,'3.1 Plant I-O data'!AL$2:AM$2) -> 0 | V15: =SLOPE('3.1 Plant I-O data'!AN23:AO23,'3.1 Plant I-O data'!AN$2:AO$2)*V$2+INTERCEPT('3.1 Plant I-O data'!AN23:AO23,'3.1 Plant I-O data'!AN$2:AO$2) -> 0 | W15: =SLOPE('3.1 Plant I-O data'!AP23:AQ23,'3.1 Plant I-O data'!AP$2:AQ$2)*W$2+INTERCEPT('3.1 Plant I-O data'!AP23:AQ23,'3.1 Plant I-O data'!AP$2:AQ$2) -> 0 | X15: =SLOPE('3.1 Plant I-O data'!BC23:BD23,'3.1 Plant I-O data'!BC$2:BD$2)*X$2+INTERCEPT('3.1 Plant I-O data'!BC23:BD23,'3.1 Plant I-O data'!BC$2:BD$2) -> 202.5666667 | Y15: =SLOPE('3.1 Plant I-O data'!BE23:BF23,'3.1 Plant I-O data'!BE$2:BF$2)*Y$2+INTERCEPT('3.1 Plant I-O data'!BE23:BF23,'3.1 Plant I-O data'!BE$2:BF$2) -> 0 | Z15: =SLOPE('3.1 Plant I-O data'!BG23:BH23,'3.1 Plant I-O data'!BG$2:BH$2)*Z$2+INTERCEPT('3.1 Plant I-O data'!BG23:BH23,'3.1 Plant I-O data'!BG$2:BH$2) -> 202.5666667 | AA15: =SLOPE('3.1 Plant I-O data'!BI23:BJ23,'3.1 Plant I-O data'!BI$2:BJ$2)*AA$2+INTERCEPT('3.1 Plant I-O data'!BI23:BJ23,'3.1 Plant I-O data'!BI$2:BJ$2) -> 0 | AB15: ='3.1 Plant I-O data'!AR23 -> 4.7 | AC15: =SLOPE('3.1 Plant I-O data'!AT23:AU23,'3.1 Plant I-O data'!AT$2:AU$2)*AC$2+INTERCEPT('3.1 Plant I-O data'!AT23:AU23,'3.1 Plant I-O data'!AT$2:AU$2) -> 345.3666667 | AD15: =SLOPE('3.1 Plant I-O data'!AV23:AW23,'3.1 Plant I-O data'!AV$2:AW$2)*AD$2+INTERCEPT('3.1 Plant I-O data'!AV23:AW23,'3.1 Plant I-O data'!AV$2:AW$2) -> 67.43333333 | AE15: =SLOPE('3.1 Plant I-O data'!AX23:AY23,'3.1 Plant I-O data'!AX$2:AY$2)*AE$2+INTERCEPT('3.1 Plant I-O data'!AX23:AY23,'3.1 Plant I-O data'!AX$2:AY$2) -> 345.3666667 | AF15: =SLOPE('3.1 Plant I-O data'!AZ23:BA23,'3.1 Plant I-O data'!AZ$2:BA$2)*AF$2+INTERCEPT('3.1 Plant I-O data'!AZ23:BA23,'3.1 Plant I-O data'!AZ$2:BA$2) -> 67.43333333
B16: CO₂ emitted | C16: lb/hr | D16: =SLOPE('3.1 Plant I-O data'!D24:E24,'3.1 Plant I-O data'!D$2:E$2)*D$2+INTERCEPT('3.1 Plant I-O data'!D24:E24,'3.1 Plant I-O data'!D$2:E$2) -> 365067.8737 | E16: =SLOPE('3.1 Plant I-O data'!F24:G24,'3.1 Plant I-O data'!F$2:G$2)*E$2+INTERCEPT('3.1 Plant I-O data'!F24:G24,'3.1 Plant I-O data'!F$2:G$2) -> 359798.1536 | F16: =SLOPE('3.1 Plant I-O data'!H24:I24,'3.1 Plant I-O data'!H$2:I$2)*F$2+INTERCEPT('3.1 Plant I-O data'!H24:I24,'3.1 Plant I-O data'!H$2:I$2) -> 362844.396 | G16: =SLOPE('3.1 Plant I-O data'!J24:K24,'3.1 Plant I-O data'!J$2:K$2)*G$2+INTERCEPT('3.1 Plant I-O data'!J24:K24,'3.1 Plant I-O data'!J$2:K$2) -> 358349.066 | H16: =SLOPE('3.1 Plant I-O data'!L24:M24,'3.1 Plant I-O data'!L$2:M$2)*H$2+INTERCEPT('3.1 Plant I-O data'!L24:M24,'3.1 Plant I-O data'!L$2:M$2) -> 440301.1917 | I16: =SLOPE('3.1 Plant I-O data'!N24:O24,'3.1 Plant I-O data'!N$2:O$2)*I$2+INTERCEPT('3.1 Plant I-O data'!N24:O24,'3.1 Plant I-O data'!N$2:O$2) -> 357862.3177 | J16: =SLOPE('3.1 Plant I-O data'!P24:Q24,'3.1 Plant I-O data'!P$2:Q$2)*J$2+INTERCEPT('3.1 Plant I-O data'!P24:Q24,'3.1 Plant I-O data'!P$2:Q$2) -> 383938.4063 | K16: =SLOPE('3.1 Plant I-O data'!R24:S24,'3.1 Plant I-O data'!R$2:S$2)*K$2+INTERCEPT('3.1 Plant I-O data'!R24:S24,'3.1 Plant I-O data'!R$2:S$2) -> 344647.6697 | L16: =SLOPE('3.1 Plant I-O data'!T24:U24,'3.1 Plant I-O data'!T$2:U$2)*L$2+INTERCEPT('3.1 Plant I-O data'!T24:U24,'3.1 Plant I-O data'!T$2:U$2) -> 572621.2426 | M16: =SLOPE('3.1 Plant I-O data'!V24:W24,'3.1 Plant I-O data'!V$2:W$2)*M$2+INTERCEPT('3.1 Plant I-O data'!V24:W24,'3.1 Plant I-O data'!V$2:W$2) -> 364478.6117 | N16: =SLOPE('3.1 Plant I-O data'!X24:Y24,'3.1 Plant I-O data'!X$2:Y$2)*N$2+INTERCEPT('3.1 Plant I-O data'!X24:Y24,'3.1 Plant I-O data'!X$2:Y$2) -> 572621.2426 | O16: =SLOPE('3.1 Plant I-O data'!Z24:AA24,'3.1 Plant I-O data'!Z$2:AA$2)*O$2+INTERCEPT('3.1 Plant I-O data'!Z24:AA24,'3.1 Plant I-O data'!Z$2:AA$2) -> 364478.6117 | P16: =SLOPE('3.1 Plant I-O data'!AB24:AC24,'3.1 Plant I-O data'!AB$2:AC$2)*P$2+INTERCEPT('3.1 Plant I-O data'!AB24:AC24,'3.1 Plant I-O data'!AB$2:AC$2) -> 365067.8737 | Q16: =SLOPE('3.1 Plant I-O data'!AD24:AE24,'3.1 Plant I-O data'!AD$2:AE$2)*Q$2+INTERCEPT('3.1 Plant I-O data'!AD24:AE24,'3.1 Plant I-O data'!AD$2:AE$2) -> 359798.1536 | R16: =SLOPE('3.1 Plant I-O data'!AF24:AG24,'3.1 Plant I-O data'!AF$2:AG$2)*R$2+INTERCEPT('3.1 Plant I-O data'!AF24:AG24,'3.1 Plant I-O data'!AF$2:AG$2) -> 362844.396 | S16: =SLOPE('3.1 Plant I-O data'!AH24:AI24,'3.1 Plant I-O data'!AH$2:AI$2)*S$2+INTERCEPT('3.1 Plant I-O data'!AH24:AI24,'3.1 Plant I-O data'!AH$2:AI$2) -> 358349.066 | T16: =SLOPE('3.1 Plant I-O data'!AJ24:AK24,'3.1 Plant I-O data'!AJ$2:AK$2)*T$2+INTERCEPT('3.1 Plant I-O data'!AJ24:AK24,'3.1 Plant I-O data'!AJ$2:AK$2) -> 440301.1917 | U16: =SLOPE('3.1 Plant I-O data'!AL24:AM24,'3.1 Plant I-O data'!AL$2:AM$2)*U$2+INTERCEPT('3.1 Plant I-O data'!AL24:AM24,'3.1 Plant I-O data'!AL$2:AM$2) -> 357862.3177 | V16: =SLOPE('3.1 Plant I-O data'!AN24:AO24,'3.1 Plant I-O data'!AN$2:AO$2)*V$2+INTERCEPT('3.1 Plant I-O data'!AN24:AO24,'3.1 Plant I-O data'!AN$2:AO$2) -> 383938.4063 | W16: =SLOPE('3.1 Plant I-O data'!AP24:AQ24,'3.1 Plant I-O data'!AP$2:AQ$2)*W$2+INTERCEPT('3.1 Plant I-O data'!AP24:AQ24,'3.1 Plant I-O data'!AP$2:AQ$2) -> 344647.6697 | X16: =SLOPE('3.1 Plant I-O data'!BC24:BD24,'3.1 Plant I-O data'!BC$2:BD$2)*X$2+INTERCEPT('3.1 Plant I-O data'!BC24:BD24,'3.1 Plant I-O data'!BC$2:BD$2) -> 572621.2426 | Y16: =SLOPE('3.1 Plant I-O data'!BE24:BF24,'3.1 Plant I-O data'!BE$2:BF$2)*Y$2+INTERCEPT('3.1 Plant I-O data'!BE24:BF24,'3.1 Plant I-O data'!BE$2:BF$2) -> 364478.6117 | Z16: =SLOPE('3.1 Plant I-O data'!BG24:BH24,'3.1 Plant I-O data'!BG$2:BH$2)*Z$2+INTERCEPT('3.1 Plant I-O data'!BG24:BH24,'3.1 Plant I-O data'!BG$2:BH$2) -> 572621.2426 | AA16: =SLOPE('3.1 Plant I-O data'!BI24:BJ24,'3.1 Plant I-O data'!BI$2:BJ$2)*AA$2+INTERCEPT('3.1 Plant I-O data'!BI24:BJ24,'3.1 Plant I-O data'!BI$2:BJ$2) -> 364478.6117 | AB16: ='3.1 Plant I-O data'!AR24 -> 198743.3262 | AC16: =SLOPE('3.1 Plant I-O data'!AT24:AU24,'3.1 Plant I-O data'!AT$2:AU$2)*AC$2+INTERCEPT('3.1 Plant I-O data'!AT24:AU24,'3.1 Plant I-O data'!AT$2:AU$2) -> 618626.3619 | AD16: =SLOPE('3.1 Plant I-O data'!AV24:AW24,'3.1 Plant I-O data'!AV$2:AW$2)*AD$2+INTERCEPT('3.1 Plant I-O data'!AV24:AW24,'3.1 Plant I-O data'!AV$2:AW$2) -> 333333.553 | AE16: =SLOPE('3.1 Plant I-O data'!AX24:AY24,'3.1 Plant I-O data'!AX$2:AY$2)*AE$2+INTERCEPT('3.1 Plant I-O data'!AX24:AY24,'3.1 Plant I-O data'!AX$2:AY$2) -> 618626.3619 | AF16: =SLOPE('3.1 Plant I-O data'!AZ24:BA24,'3.1 Plant I-O data'!AZ$2:BA$2)*AF$2+INTERCEPT('3.1 Plant I-O data'!AZ24:BA24,'3.1 Plant I-O data'!AZ$2:BA$2) -> 333333.553
A17: UNIT CONVERSION
A18: INPUTS | B18: Coal | C18: kg/kg | D18: =IF(D76=0,D3/D$30,D71/D$30) -> 8.548161788 | E18: =IF(E76=0,E3/E$30,E71/E$30) -> 8.311403993 | F18: 8.4560661 | G18: 8.318191746 | H18: =IF(H76=0,H3/H$30,H71/H$30) -> 8.357514583 | I18: 8.294527115 | J18: 8.376753363 | K18: 8.312591286 | L18: 7.203465188 | M18: 5.920455414 | N18: 7.203465188 | O18: 5.920455414 | P18: 11.08095047 | Q18: 10.77404221 | R18: 10.96156717 | S18: 10.78284115 | T18: =IF(T76=0,T3/T$30,T71/T$30) -> 10.81810321 | U18: 10.73669043 | V18: 10.84297021 | W18: 10.7600398 | X18: =IF(X76=0,X3/X$30,X71/X$30) -> 9.337825244 | Y18: 8.365331185 | Z18: 9.337825244 | AA18: 7.663522979 | AB18: 4.759608361 | AC18: 5.676003698 | AD18: 5.020118055 | AE18: 5.676003698 | AF18: 5.020118055
B19: Biomass | C19: kg/kg | D19: =IF(D32="N",IF(D76=0,D4/D$30,D72/D$30)*IF(D33="SYP",IF(D34="Chips",$D$38,IF(D34="Pellets",IF(D35="TRIG",$D$42,$D$50))),1),0) -> 1.483513632 | E19: =IF(E32="N",IF(E76=0,E4/E$30,E72/E$30)*IF(E33="SYP",IF(E34="Chips",$D$38,IF(E34="Pellets",IF(E35="TRIG",$D$42,$D$50))),1),0) -> 0 | F19: 1.634194934 | G19: 0 | H19: =IF(H32="N",IF(H76=0,H4/H$30,H72/H$30)*IF(H33="SYP",IF(H34="Chips",$D$38,IF(H34="Pellets",IF(H35="TRIG",$D$42,$D$50))),1),0) -> 1.53045265 | I19: 0 | J19: 1.492726426 | K19: 0 | L19: 0.8162238328 | M19: 0.6788229867 | N19: 0.8162238328 | O19: 0.6788229867 | P19: 1.483513632 | Q19: =IF(Q32="N",IF(Q76=0,Q4/Q$30,Q72/Q$30)*IF(Q33="SYP",IF(Q34="Chips",$D$38,IF(Q34="Pellets",IF(Q35="TRIG",$D$42,$D$50))),1),0) -> 0 | R19: 1.634194934 | S19: 0 | T19: =IF(T32="N",IF(T76=0,T4/T$30,T72/T$30)*IF(T33="SYP",IF(T34="Chips",$D$38,IF(T34="Pellets",IF(T35="TRIG",$D$42,$D$50))),1),0) -> 1.528233076 | U19: 0 | V19: 1.490556617 | W19: 0 | X19: =IF(X32="N",IF(X76=0,X4/X$30,X72/X$30)*IF(X33="SYP",IF(X34="Chips",$D$38,IF(X34="Pellets",IF(X35="TRIG",$D$42,$D$50))),1),0) -> 0 | Y19: 0 | Z19: 0.8162238328 | AA19: 0.6778375273 | AB19: =IF(AB32="N",IF(AB76=0,AB4/AB$30,AB72/AB$30)*IF(AB33="SYP",IF(AB34="Chips",$D$38,IF(AB34="Pellets",IF(AB35="TRIG",$D$42,$D$50))),1),0) -> 0 | AC19: 0.6464352986 | AD19: 0.5705148876 | AE19: 0.6464352986 | AF19: 0.5705148876
B20: Torrefied biomass | C20: kg/kg | D20: =IF(D32="Y",1*IF(D76=0,D7/D$30,D72/D$30)*$D$46,0) -> 0 | E20: =IF(E32="Y",1*IF(E76=0,E7/E$30,E72/E$30)*$D$46,0) -> 1.546126143 | F20: 0 | G20: 1.550689197 | H20: =IF(H32="Y",1*IF(H76=0,H7/H$30,H72/H$30)*$D$46,0) -> 0 | I20: 1.391066956 | J20: 0 | K20: =IF(K32="Y",1*IF(K76=0,K7/K$30,K72/K$30)*$D$46,0) -> 1.36141331 | L20: =IF(L32="Y",1*IF(L76=0,L7/L$30,L72/L$30)*$D$46,0) -> 0 | M20: 0 | N20: 0 | O20: 0 | P20: 0 | Q20: 1.546126143 | R20: 0 | S20: 1.550689197 | T20: =IF(T32="Y",1*IF(T76=0,T7/T$30,T72/T$30)*$D$46,0) -> 0 | U20: 1.389064953 | V20: 0 | W20: 1.359449758 | X20: =IF(X32="Y",1*IF(X76=0,X7/X$30,X72/X$30)*$D$46,0) -> 0 | Y20: 0 | Z20: 0 | AA20: 0 | AB20: 0 | AC20: 0 | AD20: 0 | AE20: 0 | AF20: 0
B21: Cooling water | C21: kg/kg | D21: =D8/D$9 -> 1.30821308 | E21: 0.8199650736 | F21: 0.8716636091 | G21: 0.8223850216 | H21: =H8/H$9 -> 1.400896755 | I21: 0.7455032025 | J21: 0.8036046974 | K21: 0.7220053614 | L21: =L8/L$11 -> 0.8162238328 | M21: =M8/M$11 -> 0.7535008992 | N21: =N8/N$11 -> 0.8162238328 | O21: =O8/O$11 -> 0.7535008992 | P21: =P8/P$9 -> 1.30821308 | Q21: 0.8199650736 | R21: 0.8716636091 | S21: 0.8223850216 | T21: =T8/T$9 -> 1.400896755 | U21: 0.7455032025 | V21: 0.8036046974 | W21: 0.7220053614 | AB21: =AB8/AB$11 -> 0 | AC21: =AC8/AC$11 -> 0.6464352986 | AD21: =AD8/AD$11 -> 0.5705148876 | AE21: =AE8/AE$11 -> 0.6464352986 | AF21: =AF8/AF$11 -> 0.5705148876
A22: OUTPUTS | B22: FT Jet | C22: kg/kg | D22: 1 | E22: 1 | F22: 1 | G22: 1 | H22: 1 | I22: 1 | J22: 1 | K22: 1 | L22: 1 | M22: 1 | N22: 1 | O22: 1 | P22: 1 | Q22: 1 | R22: 1 | S22: 1 | T22: 1 | U22: 1 | V22: 1 | W22: 1 | X22: 1 | Y22: 1 | Z22: 1 | AA22: 1 | AB22: 1 | AC22: 1 | AD22: 1 | AE22: 1 | AF22: 1
B23: FT Naphtha | C23: kg/kg | D23: =D10/D$30 -> 0.6401012364 | E23: =E10/E$30 -> 0.6401020095 | F23: 0.640101726 | G23: 0.6401020976 | H23: =H10/H$30 -> 0.6420958748 | I23: 0.642152731 | J23: 0.6420988125 | K23: 0.6421492963 | L23: 0.4200690202 | M23: 0.4200771845 | N23: 0.4200690202 | O23: 0.4200771845 | P23: 0.6401012364 | Q23: 0.6401020095 | R23: 0.640101726 | S23: 0.6401020976 | T23: =T10/T$30 -> 0.6420958748 | U23: 0.642152731 | V23: 0.6420988125 | W23: 0.6421492963 | X23: =X10/X$30 -> 0.4200690202 | Y23: 0.4200771845 | Z23: 0.4200690202 | AA23: 0.4200771845 | AB23: 0.4243523147 | AC23: 0.4200690202 | AD23: 0.4200690202 | AE23: 0.4200690202 | AF23: 0.4200690202
B24: FT Diesel | C24: kg/kg | D24: =IF(D9=0,0,D11/D$30) -> 0.1958628114 | E24: =IF(E9=0,0,E11/E$30) -> 0.1958640306 | F24: 0.1958635625 | G24: 0.1958638387 | H24: =IF(H9=0,0,H11/H$30) -> 0.2004680056 | I24: 0.2006057305 | J24: 0.2004741585 | K24: 0.2005976554 | L24: 0 | M24: 0 | N24: 0 | O24: 0 | P24: 0.1958628114 | Q24: 0.1958640306 | R24: 0.1958635625 | S24: 0.1958638387 | T24: =IF(T9=0,0,T11/T$30) -> 0.2004680056 | U24: 0.2006057305 | V24: 0.2004741585 | W24: 0.2005976554 | X24: 0 | Y24: 0 | Z24: 0 | AA24: 0 | AB24: 0 | AC24: 0 | AD24: 0 | AE24: 0 | AF24: 0
B25: CO₂ to sequestration | C25: kg/kg | D25: =D12/D$30*(1-Dashboard!$D$13) -> 9.531140714 | E25: =E12/E$30*(1-Dashboard!$D$13) -> 9.452266109 | F25: =F12/F$30*(1-Dashboard!$D$13) -> 9.455183684 | G25: =G12/G$30*(1-Dashboard!$D$13) -> 9.356983251 | H25: =H12/H$30*(1-Dashboard!$D$13) -> 9.626165284 | I25: =I12/I$30*(1-Dashboard!$D$13) -> 9.458682589 | J25: =J12/J$30*(1-Dashboard!$D$13) -> 9.479680207 | K25: =K12/K$30*(1-Dashboard!$D$13) -> 9.371339835 | L25: =L12/L$30*(1-Dashboard!$D$13) -> 7.173319809 | M25: =M12/M$30*(1-Dashboard!$D$13) -> 6.68667558 | N25: =N12/N$30*(1-Dashboard!$D$13) -> 7.173319809 | O25: =O12/O$30*(1-Dashboard!$D$13) -> 6.68667558 | P25: =P12/P$30*(1-Dashboard!$D$13) -> 9.531140714 | Q25: =Q12/Q$30*(1-Dashboard!$D$13) -> 9.452266109 | R25: =R12/R$30*(1-Dashboard!$D$13) -> 9.455183684 | S25: =S12/S$30*(1-Dashboard!$D$13) -> 9.356983251 | T25: =T12/T$30*(1-Dashboard!$D$13) -> 9.626165284 | U25: =U12/U$30*(1-Dashboard!$D$13) -> 9.458682589 | V25: =V12/V$30*(1-Dashboard!$D$13) -> 9.479680207 | W25: =W12/W$30*(1-Dashboard!$D$13) -> 9.371339835 | X25: =X12/X$30*(1-Dashboard!$D$13) -> 7.173319809 | Y25: =Y12/Y$30*(1-Dashboard!$D$13) -> 6.68667558 | Z25: =Z12/Z$30*(1-Dashboard!$D$13) -> 7.173319809 | AA25: =AA12/AA$30*(1-Dashboard!$D$13) -> 6.68667558 | AB25: =AB12/AB$30*(1-Dashboard!$D$13) -> 5.627313233 | AC25: =AC12/AC$30*(1-Dashboard!$D$13) -> 6.973224997 | AD25: =AD12/AD$30*(1-Dashboard!$D$13) -> 6.22511326 | AE25: =AE12/AE$30*(1-Dashboard!$D$13) -> 6.973224997 | AF25: =AF12/AF$30*(1-Dashboard!$D$13) -> 6.22511326
B26: LPG | C26: kg/kg | D26: =D13/D$30 -> 0.1142065296 | E26: =E13/E$30 -> 0.1142240686 | F26: 0.1142109241 | G26: 0.1142249675 | H26: =H13/H$30 -> 0.1150651421 | I26: 0.1151103182 | J26: 0.1150809052 | K26: 0.1151545918 | L26: 0 | M26: 0 | N26: 0 | O26: 0 | P26: 0.1142065296 | Q26: 0.1142240686 | R26: 0.1142109241 | S26: 0.1142249675 | T26: =T13/T$30 -> 0.1150651421 | U26: 0.1151103182 | V26: 0.1150809052 | W26: 0.1151545918 | X26: =X13/X$30 -> 0 | Y26: 0 | Z26: 0 | AA26: 0 | AB26: 0 | AC26: 0 | AD26: 0 | AE26: 0 | AF26: 0
B27: Sulfur | C27: kg/kg | D27: =D14/D$9 -> 0.03118177617 | E27: 0.03017407553 | F27: 0.03094351945 | G27: 0.03027779265 | H27: =H14/H$9 -> 0.0468955246 | I27: 0.04567372851 | J27: 0.05227250776 | K27: 0.05079960649 | L27: =L14/L$11 -> 0 | M27: =M14/M$11 -> 0 | N27: =N14/N$11 -> 0 | O27: =O14/O$11 -> 0 | P27: =P14/P$9 -> 0.03118177617 | Q27: 0.03017407553 | R27: 0.03094351945 | S27: 0.03027779265 | T27: =T14/T$9 -> 0.0468955246 | U27: 0.04567372851 | V27: 0.05227250776 | W27: 0.05079960649 | AB27: =AB14/AB$11 -> 0.1122042187 | AC27: =AC14/AC$11 -> 0 | AD27: =AD14/AD$11 -> 0 | AE27: =AE14/AE$11 -> 0 | AF27: =AF14/AF$11 -> 0
B28: Export power | C28: MWh/kg | D28: =IF(D73<0,0,D73/(CONVERT(D$30,"lbm","kg"))) -> 0.0005659330227 | E28: =IF(E73<0,0,E73/(CONVERT(E$30,"lbm","kg"))) -> 0.0004101141177 | F28: 0.0005215961334 | G28: 0.0004369606995 | H28: =IF(H73<0,0,H73/(CONVERT(H$30,"lbm","kg"))) -> 0 | I28: 0 | J28: 0 | K28: 0 | L28: 0.003920569209 | M28: 0 | N28: 0.003920569209 | O28: 0 | P28: 0.0006041192801 | Q28: 0.0004472427332 | R28: 0.0005593709819 | S28: 0.0004741196371 | T28: =IF(T73<0,0,T73/(CONVERT(T$30,"lbm","kg"))) -> 0 | U28: 0 | V28: 0 | W28: 0 | X28: =IF(X73<0,0,X73/(CONVERT(X$30,"lbm","kg"))) -> 0.002114960918 | Y28: 0 | Z28: 0.003952748452 | AA28: 0 | AB28: 0 | AC28: 0.005025671209 | AD28: 0.002340054158 | AE28: 0.005025671209 | AF28: 0.002340054158
B29: CO₂ emitted | C29: kg/kg | D29: =D16/D$30+D12/D$30*(Dashboard!$D$13) -> 1.334515149 | E29: =E16/E$30+E12/E$30*(Dashboard!$D$13) -> 1.315265543 | F29: =F16/F$30+F12/F$30*(Dashboard!$D$13) -> 1.326394628 | G29: =G16/G$30+G12/G$30*(Dashboard!$D$13) -> 1.309971548 | H29: =H16/H$30+H12/H$30*(Dashboard!$D$13) -> 1.615727992 | I29: =I16/I$30+I12/I$30*(Dashboard!$D$13) -> 1.313376956 | J29: =J16/J$30+J12/J$30*(Dashboard!$D$13) -> 1.408923971 | K29: =K16/K$30+K12/K$30*(Dashboard!$D$13) -> 1.26490259 | L29: =L16/L$30+L12/L$30*(Dashboard!$D$13) -> 1.485136426 | M29: =M16/M$30+M12/M$30*(Dashboard!$D$13) -> 0.9453211706 | N29: =N16/N$30+N12/N$30*(Dashboard!$D$13) -> 1.485136426 | O29: =O16/O$30+O12/O$30*(Dashboard!$D$13) -> 0.9453211706 | P29: =P16/P$30+P12/P$30*(Dashboard!$D$13) -> 1.334515149 | Q29: =Q16/Q$30+Q12/Q$30*(Dashboard!$D$13) -> 1.315265543 | R29: =R16/R$30+R12/R$30*(Dashboard!$D$13) -> 1.326394628 | S29: =S16/S$30+S12/S$30*(Dashboard!$D$13) -> 1.309971548 | T29: =T16/T$30+T12/T$30*(Dashboard!$D$13) -> 1.615727992 | U29: =U16/U$30+U12/U$30*(Dashboard!$D$13) -> 1.313376956 | V29: =V16/V$30+V12/V$30*(Dashboard!$D$13) -> 1.408923971 | W29: =W16/W$30+W12/W$30*(Dashboard!$D$13) -> 1.26490259 | X29: =X16/X$30+X12/X$30*(Dashboard!$D$13) -> 1.485136426 | Y29: =Y16/Y$30+Y12/Y$30*(Dashboard!$D$13) -> 0.9453211706 | Z29: =Z16/Z$30+Z12/Z$30*(Dashboard!$D$13) -> 1.485136426 | AA29: =AA16/AA$30+AA12/AA$30*(Dashboard!$D$13) -> 0.9453211706 | AB29: =AB16/AB$30+AB12/AB$30*(Dashboard!$D$13) -> 0.5082677813 | AC29: =AC16/AC$30+AC12/AC$30*(Dashboard!$D$13) -> 1.604454177 | AD29: =AD16/AD$30+AD12/AD$30*(Dashboard!$D$13) -> 0.8645257369 | AE29: =AE16/AE$30+AE12/AE$30*(Dashboard!$D$13) -> 1.604454177 | AF29: =AF16/AF$30+AF12/AF$30*(Dashboard!$D$13) -> 0.8645257369
B30: Reference Fuel Flow (Diesel = Jet) | D30: =D9 -> 273558.4336 | E30: =E9 -> 273555.523 | F30: 273556.8951 | G30: 273554.8467 | H30: =H9 -> 272509.478 | I30: 272474.948 | J30: 272504.7017 | K30: 272469.732 | L30: =L11 -> 385568.1084 | M30: =M11 -> 385560.6148 | N30: 385568.1084 | O30: 385560.6148 | P30: =P9 -> 273558.4336 | Q30: 273555.523 | R30: 273556.8951 | S30: 273554.8467 | T30: =T9 -> 272509.478 | U30: 272474.948 | V30: 272504.7017 | W30: 272469.732 | X30: =X11 -> 385568.1084 | Y30: =Y11 -> 385560.6148 | Z30: 385568.1084 | AA30: 385560.6148 | AB30: =AB11 -> 391020.9018 | AC30: =AC11 -> 385568.1084 | AD30: 385568.1084 | AE30: 385568.1084 | AF30: 385568.1084
B31: Pellets | C31: kg fed/kg (used for drying calcs) | D31: =IF(D34="Pellets",D4/D$9,0) -> 0 | E31: 0 | F31: 0.8716636091 | G31: 0 | H31: 0 | I31: 0 | J31: 0.8036046974 | K31: 2.50661317e-14 | L31: 0 | M31: 0 | N31: 0 | O31: 0 | P31: 0 | Q31: 0 | R31: 0.8716636091 | S31: 0 | T31: =IF(T34="Pellets",T4/T$9,0) -> 0 | U31: 0 | V31: 0.8036046974 | W31: 2.510591611e-14 | X31: =IF(X34="Pellets",X4/X$9,0) -> 0 | Y31: 0 | Z31: 0 | AA31: 0 | AB31: =IF(AB34="Pellets",AB4/AB$9,0) -> 0 | AC31: =IF(AC34="Pellets",AC4/AC$9,0) -> 0 | AD31: =IF(AD34="Pellets",AD4/AD$9,0) -> 0 | AE31: =IF(AE34="Pellets",AE4/AE$9,0) -> 0 | AF31: =IF(AF34="Pellets",AF4/AF$9,0) -> 
C32: Torrefied (Y/N) | D32: N | E32: Y | F32: N | G32: Y | H32: N | I32: Y | J32: N | K32: Y | L32: N | M32: N | N32: N | O32: N | P32: N | Q32: Y | R32: N | S32: Y | T32: N | U32: Y | V32: N | W32: Y | X32: N | Y32: N | Z32: N | AA32: N | AB32: N | AC32: N | AD32: N | AE32: N | AF32: N
C33: Biomass Type (SYP, SG, MSW) | D33: SYP | E33: SYP | F33: SYP | G33: SYP | H33: SYP | I33: SYP | J33: SYP | K33: SYP | L33: SG | M33: SG | N33: MSW | O33: MSW | P33: SYP | Q33: SYP | R33: SYP | S33: SYP | T33: SYP | U33: SYP | V33: SYP | W33: SYP | X33: SG | Y33: SG | Z33: MSW | AA33: MSW | AB33: No Biomass | AC33: SG | AD33: SG | AE33: MSW | AF33: MSW
C34: Biomass Type (Chips/Pellets/ N/A) | D34: Chips | E34: N/A | F34: Pellets | G34: Pellets | H34: Chips | I34: N/A | J34: Pellets | K34: Pellets | L34: N/A | M34: N/A | N34: N/A | O34: N/A | P34: Chips | Q34: N/A | R34: Pellets | S34: Pellets | T34: Chips | U34: N/A | V34: Pellets | W34: Pellets | X34: N/A | Y34: N/A | Z34: N/A | AA34: N/A | AB34: N/A | AC34: N/A | AD34: N/A | AE34: N/A | AF34: Pellets
C35: Gasifier Type | D35: TRIG | E35: TRIG | F35: TRIG | G35: TRIG | H35: EFG | I35: EFG | J35: EFG | K35: EFG | L35: N/A | M35: N/A | N35: N/A | O35: N/A | P35: TRIG | Q35: TRIG | R35: TRIG | S35: TRIG | T35: EFG | U35: EFG | V35: EFG | W35: EFG | X35: N/A | Y35: N/A | Z35: N/A | AA35: N/A | AB35: N/A | AC35: N/A | AD35: N/A | AE35: N/A | AF35: N/A
C36: Chipped As Received Moisture Content | D36: =Constants!$K$4/100 -> 0.433
C37: Chipped As Harvested Moisture Content | D37: =Constants!$J$4/100 -> 0.5
C38: Chipped Harvested Mass Scaler | D38: =(1-D36)/(1-D37) -> 1.134 | M38: Emitted | N38: Seq | O38: Total
L39: 0 | M39: 1.329 | N39: 9.46 | O39: =SUM(M39:N39) -> 10.789
B40: TRIG | C40: Pelleted As Received Moisture Content | D40: =Constants!$N$4/100 -> 0.0626 | L40: 0.5 | M40: 6.0597 | N40: 4.73 | O40: =SUM(M40:N40) -> 10.7897
B41: TRIG | C41: Pelleted As Harvested Moisture Content | D41: =Constants!$M$4/100 -> 0.5 | K41: 0.002104481932 | M41: =0.5*N39+M39 -> 6.059
B42: TRIG | C42: Pelleted Harvested Mass Scaler | D42: =(1-D40)/(1-D41) -> 1.8748 | K42: =K41/D28 -> 3.718605997
C44: Torrefied As Received Moisture Content | D44: =Constants!S4/100 -> 0.0572
C45: Torrefied As Harvested Moisture Content | D45: 0.5 | K45: =261/222 -> 1.175675676
C46: Torrefied Harvested Mass Scaler | D46: =(1-D44)/(1-D45) -> 1.8856
B48: EFG | C48: Pelleted As Received Moisture Content | D48: =Constants!$O$4/100 -> 0.0517
B49: EFG | C49: Pelleted As Harvested Moisture Content | D49: =Constants!$M$4/100 -> 0.5
B50: EFG | C50: Pelleted Harvested Mass Scaler | D50: =(1-D48)/(1-D49) -> 1.8966
B51: Coal Type | D51: PRB | E51: PRB | F51: PRB | G51: PRB | H51: PRB | I51: PRB | J51: PRB | K51: PRB | L51: PRB | M51: PRB | N51: PRB | O51: PRB | P51: LIG | Q51: LIG | R51: LIG | S51: LIG | T51: LIG | U51: LIG | V51: LIG | W51: LIG | X51: LIG | Y51: LIG | Z51: LIG | AA51: LIG | AB51: I6 | AC51: I6 | AD51: I6 | AE51: I6 | AF51: I6
B52: Biomass Type | D52: SYP-Chipped | E52: SYP-Torr | F52: SYP-Pellets-TRIG | G52: SYP-TorrPellets | H52: SYP-Chipped | I52: SYP-Torr | J52: SYP-Pellets-EFG | K52: SYP-TorrPellets | L52: SG | M52: SG | N52: MSW | O52: MSW | P52: SYP-Chipped | Q52: SYP-Torr | R52: SYP-Pellets-TRIG | S52: SYP-TorrPellets | T52: SYP-Chipped | U52: SYP-Torr | V52: SYP-Pellets-EFG | W52: SYP-TorrPellets | X52: SG | Y52: SG | Z52: MSW | AA52: MSW | AB52: SG | AC52: SG | AD52: SG | AE52: MSW | AF52: MSW
B53: Base CO2 Compression Load (No Venting) | D53: =SLOPE($G$124:$O$124,$G$118:$O$118)*D$12+INTERCEPT($G$124:$O$124,$G$118:$O$118) -> 92.66241876 | E53: =SLOPE($G$124:$O$124,$G$118:$O$118)*E$12+INTERCEPT($G$124:$O$124,$G$118:$O$118) -> 92.00403452 | F53: =SLOPE($G$124:$O$124,$G$118:$O$118)*F$12+INTERCEPT($G$124:$O$124,$G$118:$O$118) -> 92.02875226 | G53: =SLOPE($G$124:$O$124,$G$118:$O$118)*G$12+INTERCEPT($G$124:$O$124,$G$118:$O$118) -> 91.20951527 | H53: =SLOPE($G$124:$O$124,$G$118:$O$118)*H$12+INTERCEPT($G$124:$O$124,$G$118:$O$118) -> 93.14688502 | I53: 91.74604977 | J53: =SLOPE($G$124:$O$124,$G$118:$O$118)*J$12+INTERCEPT($G$124:$O$124,$G$118:$O$118) -> 91.92900067 | K53: 91.01930271 | L53: 97.49202382 | M53: 91.77240123 | N53: 97.49202382 | O53: 91.77240123 | P53: 92.66241876 | Q53: 92.00403452 | R53: 92.02875226 | S53: 91.20951527 | T53: =SLOPE($G$124:$O$124,$G$118:$O$118)*T$12+INTERCEPT($G$124:$O$124,$G$118:$O$118) -> 93.14688502 | U53: 91.74604977 | V53: =SLOPE($G$124:$O$124,$G$118:$O$118)*V$12+INTERCEPT($G$124:$O$124,$G$118:$O$118) -> 91.92900067 | W53: 91.01930271 | X53: 97.49202382 | Y53: 91.77240123 | Z53: 97.49202382 | AA53: 91.77240123 | AB53: 80.26146601 | AC53: 95.14089913 | AD53: 86.35054641 | AE53: 95.14089913 | AF53: 86.35054641
B54: Adjusted CO2 Compression Load | D54: =SLOPE($G$124:$O$124,$G$118:$O$118)*D$12*(1-Dashboard!$D$13)+INTERCEPT($G$124:$O$124,$G$118:$O$118) -> 92.66241876 | E54: =SLOPE($G$124:$O$124,$G$118:$O$118)*E$12*(1-Dashboard!$D$13)+INTERCEPT($G$124:$O$124,$G$118:$O$118) -> 92.00403452 | F54: =SLOPE($G$124:$O$124,$G$118:$O$118)*F$12*(1-Dashboard!$D$13)+INTERCEPT($G$124:$O$124,$G$118:$O$118) -> 92.02875226 | G54: =SLOPE($G$124:$O$124,$G$118:$O$118)*G$12*(1-Dashboard!$D$13)+INTERCEPT($G$124:$O$124,$G$118:$O$118) -> 91.20951527 | H54: =SLOPE($G$124:$O$124,$G$118:$O$118)*H$12*(1-Dashboard!$D$13)+INTERCEPT($G$124:$O$124,$G$118:$O$118) -> 93.14688502 | I54: =SLOPE($G$124:$O$124,$G$118:$O$118)*I$12*(1-Dashboard!$D$13)+INTERCEPT($G$124:$O$124,$G$118:$O$118) -> 91.74604977 | J54: =SLOPE($G$124:$O$124,$G$118:$O$118)*J$12*(1-Dashboard!$D$13)+INTERCEPT($G$124:$O$124,$G$118:$O$118) -> 91.92900067 | K54: =SLOPE($G$124:$O$124,$G$118:$O$118)*K$12*(1-Dashboard!$D$13)+INTERCEPT($G$124:$O$124,$G$118:$O$118) -> 91.01930271 | L54: =SLOPE($G$124:$O$124,$G$118:$O$118)*L$12*(1-Dashboard!$D$13)+INTERCEPT($G$124:$O$124,$G$118:$O$118) -> 97.49202382 | M54: =SLOPE($G$124:$O$124,$G$118:$O$118)*M$12*(1-Dashboard!$D$13)+INTERCEPT($G$124:$O$124,$G$118:$O$118) -> 91.77240123 | N54: =SLOPE($G$124:$O$124,$G$118:$O$118)*N$12*(1-Dashboard!$D$13)+INTERCEPT($G$124:$O$124,$G$118:$O$118) -> 97.49202382 | O54: =SLOPE($G$124:$O$124,$G$118:$O$118)*O$12*(1-Dashboard!$D$13)+INTERCEPT($G$124:$O$124,$G$118:$O$118) -> 91.77240123 | P54: =SLOPE($G$124:$O$124,$G$118:$O$118)*P$12*(1-Dashboard!$D$13)+INTERCEPT($G$124:$O$124,$G$118:$O$118) -> 92.66241876 | Q54: =SLOPE($G$124:$O$124,$G$118:$O$118)*Q$12*(1-Dashboard!$D$13)+INTERCEPT($G$124:$O$124,$G$118:$O$118) -> 92.00403452 | R54: =SLOPE($G$124:$O$124,$G$118:$O$118)*R$12*(1-Dashboard!$D$13)+INTERCEPT($G$124:$O$124,$G$118:$O$118) -> 92.02875226 | S54: =SLOPE($G$124:$O$124,$G$118:$O$118)*S$12*(1-Dashboard!$D$13)+INTERCEPT($G$124:$O$124,$G$118:$O$118) -> 91.20951527 | T54: =SLOPE($G$124:$O$124,$G$118:$O$118)*T$12*(1-Dashboard!$D$13)+INTERCEPT($G$124:$O$124,$G$118:$O$118) -> 93.14688502 | U54: =SLOPE($G$124:$O$124,$G$118:$O$118)*U$12*(1-Dashboard!$D$13)+INTERCEPT($G$124:$O$124,$G$118:$O$118) -> 91.74604977 | V54: =SLOPE($G$124:$O$124,$G$118:$O$118)*V$12*(1-Dashboard!$D$13)+INTERCEPT($G$124:$O$124,$G$118:$O$118) -> 91.92900067 | W54: =SLOPE($G$124:$O$124,$G$118:$O$118)*W$12*(1-Dashboard!$D$13)+INTERCEPT($G$124:$O$124,$G$118:$O$118) -> 91.01930271 | X54: =SLOPE($G$124:$O$124,$G$118:$O$118)*X$12*(1-Dashboard!$D$13)+INTERCEPT($G$124:$O$124,$G$118:$O$118) -> 97.49202382 | Y54: =SLOPE($G$124:$O$124,$G$118:$O$118)*Y$12*(1-Dashboard!$D$13)+INTERCEPT($G$124:$O$124,$G$118:$O$118) -> 91.77240123 | Z54: =SLOPE($G$124:$O$124,$G$118:$O$118)*Z$12*(1-Dashboard!$D$13)+INTERCEPT($G$124:$O$124,$G$118:$O$118) -> 97.49202382 | AA54: =SLOPE($G$124:$O$124,$G$118:$O$118)*AA$12*(1-Dashboard!$D$13)+INTERCEPT($G$124:$O$124,$G$118:$O$118) -> 91.77240123 | AB54: =SLOPE($G$124:$O$124,$G$118:$O$118)*AB$12*(1-Dashboard!$D$13)+INTERCEPT($G$124:$O$124,$G$118:$O$118) -> 80.26146601 | AC54: =SLOPE($G$124:$O$124,$G$118:$O$118)*AC$12*(1-Dashboard!$D$13)+INTERCEPT($G$124:$O$124,$G$118:$O$118) -> 95.14089913 | AD54: =SLOPE($G$124:$O$124,$G$118:$O$118)*AD$12*(1-Dashboard!$D$13)+INTERCEPT($G$124:$O$124,$G$118:$O$118) -> 86.35054641 | AE54: =SLOPE($G$124:$O$124,$G$118:$O$118)*AE$12*(1-Dashboard!$D$13)+INTERCEPT($G$124:$O$124,$G$118:$O$118) -> 95.14089913 | AF54: =SLOPE($G$124:$O$124,$G$118:$O$118)*AF$12*(1-Dashboard!$D$13)+INTERCEPT($G$124:$O$124,$G$118:$O$118) -> 86.35054641
B55: Elec. Out (MW/hr) | D55: =D15+(D53-D54) -> 201.7854389 | E55: 224.3444419 | F55: 227.428437 | G55: 229.9531385 | H55: =H15+(H53-H54) -> 0 | I55: 0 | J55: 0 | K55: 0 | L55: 202.5666667 | M55: 0 | N55: 202.5666667 | O55: 0 | P55: 201.7854389 | Q55: 224.3444419 | R55: 227.428437 | S55: 229.9531385 | T55: =T15+(T53-T54) -> 0 | U55: 0 | V55: 0 | W55: 0 | X55: =X15+(X53-X54) -> 202.5666667 | Y55: 0 | Z55: 202.5666667 | AA55: 0 | AB55: =AB15+(AB53-AB54) -> 4.7 | AC55: =AC15+(AC53-AC54) -> 345.3666667 | AD55: =AD15+(AD53-AD54) -> 67.43333333 | AE55: =AE15+(AE53-AE54) -> 345.3666667 | AF55: =AF15+(AF53-AF54) -> 67.43333333
B56: Coal (MW) | D56: =(D3)*VLOOKUP(D$51,Constants!$I$28:$J$30,2,FALSE)*Conversions!$D$9/(10^6) -> 5869.112715 | E56: =(E3)*VLOOKUP(E$51,Constants!$I$28:$J$30,2,FALSE)*Conversions!$D$9/(10^6) -> 5706.495625 | F56: =(F3)*VLOOKUP(F$51,Constants!$I$28:$J$30,2,FALSE)*Conversions!$D$9/(10^6) -> 5805.847758 | G56: =(G3)*VLOOKUP(G$51,Constants!$I$28:$J$30,2,FALSE)*Conversions!$D$9/(10^6) -> 5711.141882 | H56: =(H3)*VLOOKUP(H$51,Constants!$I$28:$J$30,2,FALSE)*Conversions!$D$9/(10^6) -> 5933.454953 | I56: =(I3)*VLOOKUP(I$51,Constants!$I$28:$J$30,2,FALSE)*Conversions!$D$9/(10^6) -> 5732.167426 | J56: =(J3)*VLOOKUP(J$51,Constants!$I$28:$J$30,2,FALSE)*Conversions!$D$9/(10^6) -> 5849.750306 | K56: =(K3)*VLOOKUP(K$51,Constants!$I$28:$J$30,2,FALSE)*Conversions!$D$9/(10^6) -> 5684.657463 | L56: =(L3)*VLOOKUP(L$51,Constants!$I$28:$J$30,2,FALSE)*Conversions!$D$9/(10^6) -> 6970.953329 | M56: =(M3)*VLOOKUP(M$51,Constants!$I$28:$J$30,2,FALSE)*Conversions!$D$9/(10^6) -> 6359.52417 | N56: =(N3)*VLOOKUP(N$51,Constants!$I$28:$J$30,2,FALSE)*Conversions!$D$9/(10^6) -> 6970.953329 | O56: =(O3)*VLOOKUP(O$51,Constants!$I$28:$J$30,2,FALSE)*Conversions!$D$9/(10^6) -> 6359.52417 | P56: =(P3)*VLOOKUP(P$51,Constants!$I$28:$J$30,2,FALSE)*Conversions!$D$9/(10^6) -> 5878.428042 | Q56: =(Q3)*VLOOKUP(Q$51,Constants!$I$28:$J$30,2,FALSE)*Conversions!$D$9/(10^6) -> 5715.552849 | R56: =(R3)*VLOOKUP(R$51,Constants!$I$28:$J$30,2,FALSE)*Conversions!$D$9/(10^6) -> 5815.062672 | S56: =(S3)*VLOOKUP(S$51,Constants!$I$28:$J$30,2,FALSE)*Conversions!$D$9/(10^6) -> 5720.206481 | T56: =(T3)*VLOOKUP(T$51,Constants!$I$28:$J$30,2,FALSE)*Conversions!$D$9/(10^6) -> 5942.872403 | U56: =(U3)*VLOOKUP(U$51,Constants!$I$28:$J$30,2,FALSE)*Conversions!$D$9/(10^6) -> 5741.265396 | V56: =(V3)*VLOOKUP(V$51,Constants!$I$28:$J$30,2,FALSE)*Conversions!$D$9/(10^6) -> 5859.034901 | W56: =(W3)*VLOOKUP(W$51,Constants!$I$28:$J$30,2,FALSE)*Conversions!$D$9/(10^6) -> 5693.680026 | X56: =(X3)*VLOOKUP(X$51,Constants!$I$28:$J$30,2,FALSE)*Conversions!$D$9/(10^6) -> 6982.017473 | Y56: =(Y3)*VLOOKUP(Y$51,Constants!$I$28:$J$30,2,FALSE)*Conversions!$D$9/(10^6) -> 6369.617867 | Z56: =(Z3)*VLOOKUP(Z$51,Constants!$I$28:$J$30,2,FALSE)*Conversions!$D$9/(10^6) -> 6982.017473 | AA56: =(AA3)*VLOOKUP(AA$51,Constants!$I$28:$J$30,2,FALSE)*Conversions!$D$9/(10^6) -> 6369.617867 | AB56: =(AB3)*VLOOKUP(AB$51,Constants!$I$28:$J$30,2,FALSE)*Conversions!$D$9/(10^6) -> 5984.800581 | AC56: =(AC3)*VLOOKUP(AC$51,Constants!$I$28:$J$30,2,FALSE)*Conversions!$D$9/(10^6) -> 7482.361669 | AD56: =(AD3)*VLOOKUP(AD$51,Constants!$I$28:$J$30,2,FALSE)*Conversions!$D$9/(10^6) -> 6617.743911 | AE56: =(AE3)*VLOOKUP(AE$51,Constants!$I$28:$J$30,2,FALSE)*Conversions!$D$9/(10^6) -> 7482.361669 | AF56: =(AF3)*VLOOKUP(AF$51,Constants!$I$28:$J$30,2,FALSE)*Conversions!$D$9/(10^6) -> 6617.743911
B57: biomass (MW) | D57: =IF(D32="N",D4*VLOOKUP(D52,Constants!$I$28:$J$37,2,FALSE),D7*VLOOKUP(D52,Constants!$I$28:$J$37,2,FALSE))*Conversions!$D$9/(10^6) -> 516.2432191 | E57: =IF(E32="N",E4*VLOOKUP(E52,Constants!$I$28:$J$37,2,FALSE),E7*VLOOKUP(E52,Constants!$I$28:$J$37,2,FALSE))*Conversions!$D$9/(10^6) -> 640.8463337 | F57: =IF(F32="N",F4*VLOOKUP(F52,Constants!$I$28:$J$37,2,FALSE),F7*VLOOKUP(F52,Constants!$I$28:$J$37,2,FALSE))*Conversions!$D$9/(10^6) -> 568.6751308 | G57: =IF(G32="N",G4*VLOOKUP(G52,Constants!$I$28:$J$37,2,FALSE),G7*VLOOKUP(G52,Constants!$I$28:$J$37,2,FALSE))*Conversions!$D$9/(10^6) -> 642.7360627 | H57: =IF(H32="N",H4*VLOOKUP(H52,Constants!$I$28:$J$37,2,FALSE),H7*VLOOKUP(H52,Constants!$I$28:$J$37,2,FALSE))*Conversions!$D$9/(10^6) -> 550.6980087 | I57: =IF(I32="N",I4*VLOOKUP(I52,Constants!$I$28:$J$37,2,FALSE),I7*VLOOKUP(I52,Constants!$I$28:$J$37,2,FALSE))*Conversions!$D$9/(10^6) -> 580.3488849 | J57: =IF(J32="N",J4*VLOOKUP(J52,Constants!$I$28:$J$37,2,FALSE),J7*VLOOKUP(J52,Constants!$I$28:$J$37,2,FALSE))*Conversions!$D$9/(10^6) -> 528.329576 | K57: =IF(K32="N",K4*VLOOKUP(K52,Constants!$I$28:$J$37,2,FALSE),K7*VLOOKUP(K52,Constants!$I$28:$J$37,2,FALSE))*Conversions!$D$9/(10^6) -> 562.0458555 | L57: =IF(L32="N",L4*VLOOKUP(L52,Constants!$I$28:$J$37,2,FALSE),L7*VLOOKUP(L52,Constants!$I$28:$J$37,2,FALSE))*Conversions!$D$9/(10^6) -> 631.8839056 | M57: =IF(M32="N",M4*VLOOKUP(M52,Constants!$I$28:$J$37,2,FALSE),M7*VLOOKUP(M52,Constants!$I$28:$J$37,2,FALSE))*Conversions!$D$9/(10^6) -> 583.3152847 | N57: =IF(N32="N",N4*VLOOKUP(N52,Constants!$I$28:$J$37,2,FALSE),N7*VLOOKUP(N52,Constants!$I$28:$J$37,2,FALSE))*Conversions!$D$9/(10^6) -> 631.8839056 | O57: =IF(O32="N",O4*VLOOKUP(O52,Constants!$I$28:$J$37,2,FALSE),O7*VLOOKUP(O52,Constants!$I$28:$J$37,2,FALSE))*Conversions!$D$9/(10^6) -> 583.3152847 | P57: =IF(P32="N",P4*VLOOKUP(P52,Constants!$I$28:$J$37,2,FALSE),P7*VLOOKUP(P52,Constants!$I$28:$J$37,2,FALSE))*Conversions!$D$9/(10^6) -> 516.2432191 | Q57: =IF(Q32="N",Q4*VLOOKUP(Q52,Constants!$I$28:$J$37,2,FALSE),Q7*VLOOKUP(Q52,Constants!$I$28:$J$37,2,FALSE))*Conversions!$D$9/(10^6) -> 640.8463337 | R57: =IF(R32="N",R4*VLOOKUP(R52,Constants!$I$28:$J$37,2,FALSE),R7*VLOOKUP(R52,Constants!$I$28:$J$37,2,FALSE))*Conversions!$D$9/(10^6) -> 568.6751308 | S57: =IF(S32="N",S4*VLOOKUP(S52,Constants!$I$28:$J$37,2,FALSE),S7*VLOOKUP(S52,Constants!$I$28:$J$37,2,FALSE))*Conversions!$D$9/(10^6) -> 642.7360627 | T57: =IF(T32="N",T4*VLOOKUP(T52,Constants!$I$28:$J$37,2,FALSE),T7*VLOOKUP(T52,Constants!$I$28:$J$37,2,FALSE))*Conversions!$D$9/(10^6) -> 550.6980087 | U57: =IF(U32="N",U4*VLOOKUP(U52,Constants!$I$28:$J$37,2,FALSE),U7*VLOOKUP(U52,Constants!$I$28:$J$37,2,FALSE))*Conversions!$D$9/(10^6) -> 580.3488849 | V57: =IF(V32="N",V4*VLOOKUP(V52,Constants!$I$28:$J$37,2,FALSE),V7*VLOOKUP(V52,Constants!$I$28:$J$37,2,FALSE))*Conversions!$D$9/(10^6) -> 528.329576 | W57: =IF(W32="N",W4*VLOOKUP(W52,Constants!$I$28:$J$37,2,FALSE),W7*VLOOKUP(W52,Constants!$I$28:$J$37,2,FALSE))*Conversions!$D$9/(10^6) -> 562.0458555 | X57: =IF(X32="N",X4*VLOOKUP(X52,Constants!$I$28:$J$37,2,FALSE),X7*VLOOKUP(X52,Constants!$I$28:$J$37,2,FALSE))*Conversions!$D$9/(10^6) -> 0 | Y57: =IF(Y32="N",Y4*VLOOKUP(Y52,Constants!$I$28:$J$37,2,FALSE),Y7*VLOOKUP(Y52,Constants!$I$28:$J$37,2,FALSE))*Conversions!$D$9/(10^6) -> 0 | Z57: =IF(Z32="N",Z4*VLOOKUP(Z52,Constants!$I$28:$J$37,2,FALSE),Z7*VLOOKUP(Z52,Constants!$I$28:$J$37,2,FALSE))*Conversions!$D$9/(10^6) -> 631.8839056 | AA57: =IF(AA32="N",AA4*VLOOKUP(AA52,Constants!$I$28:$J$37,2,FALSE),AA7*VLOOKUP(AA52,Constants!$I$28:$J$37,2,FALSE))*Conversions!$D$9/(10^6) -> 583.3152847 | AB57: =IF(AB32="N",AB4*VLOOKUP(AB52,Constants!$I$28:$J$37,2,FALSE),AB7*VLOOKUP(AB52,Constants!$I$28:$J$37,2,FALSE))*Conversions!$D$9/(10^6) -> 0 | AC57: =IF(AC32="N",AC4*VLOOKUP(AC52,Constants!$I$28:$J$37,2,FALSE),AC7*VLOOKUP(AC52,Constants!$I$28:$J$37,2,FALSE))*Conversions!$D$9/(10^6) -> 500.4412329 | AD57: =IF(AD32="N",AD4*VLOOKUP(AD52,Constants!$I$28:$J$37,2,FALSE),AD7*VLOOKUP(AD52,Constants!$I$28:$J$37,2,FALSE))*Conversions!$D$9/(10^6) -> 441.6670537 | AE57: =IF(AE32="N",AE4*VLOOKUP(AE52,Constants!$I$28:$J$37,2,FALSE),AE7*VLOOKUP(AE52,Constants!$I$28:$J$37,2,FALSE))*Conversions!$D$9/(10^6) -> 500.4412329 | AF57: =IF(AF32="N",AF4*VLOOKUP(AF52,Constants!$I$28:$J$37,2,FALSE),AF7*VLOOKUP(AF52,Constants!$I$28:$J$37,2,FALSE))*Conversions!$D$9/(10^6) -> 441.6670537
B58: Fuel In (MW) | D58: =SUM(D56:D57) -> 6385.355934 | E58: =SUM(E56:E57) -> 6347.341958 | F58: 6374.522889 | G58: 6353.877945 | H58: =SUM(H56:H57) -> 6484.152962 | I58: 6312.516311 | J58: 6378.079882 | K58: 6246.703318 | L58: 7602.837234 | M58: 6942.839455 | N58: 7602.837234 | O58: 6942.839455 | P58: 6394.671261 | Q58: 6356.399183 | R58: 6383.737803 | S58: 6362.942544 | T58: =SUM(T56:T57) -> 6493.570411 | U58: 6321.614281 | V58: 6387.364477 | W58: 6255.725881 | X58: =SUM(X56:X57) -> 6982.017473 | Y58: 6369.617867 | Z58: 7613.901378 | AA58: 6952.933152 | AB58: 5984.800581 | AC58: 7982.802902 | AD58: 7059.410965 | AE58: 7982.802902 | AF58: 7059.410965
B59: FT Jet (MW) | D59: =D9*'GREET Fuel Specs'!$F$40*Conversions!$D$9/(10^6) -> 1625.699642 | E59: =E9*'GREET Fuel Specs'!$F$40*Conversions!$D$9/(10^6) -> 1625.682345 | F59: =F9*'GREET Fuel Specs'!$F$40*Conversions!$D$9/(10^6) -> 1625.690499 | G59: =G9*'GREET Fuel Specs'!$F$40*Conversions!$D$9/(10^6) -> 1625.678326 | H59: =H9*'GREET Fuel Specs'!$F$40*Conversions!$D$9/(10^6) -> 1619.465922 | I59: =I9*'GREET Fuel Specs'!$F$40*Conversions!$D$9/(10^6) -> 1619.260717 | J59: =J9*'GREET Fuel Specs'!$F$40*Conversions!$D$9/(10^6) -> 1619.437537 | K59: =K9*'GREET Fuel Specs'!$F$40*Conversions!$D$9/(10^6) -> 1619.22972 | L59: =L9*'GREET Fuel Specs'!$F$40*Conversions!$D$9/(10^6) -> 0 | M59: =M9*'GREET Fuel Specs'!$F$40*Conversions!$D$9/(10^6) -> 0 | N59: =N9*'GREET Fuel Specs'!$F$40*Conversions!$D$9/(10^6) -> 0 | O59: =O9*'GREET Fuel Specs'!$F$40*Conversions!$D$9/(10^6) -> 0 | P59: =P9*'GREET Fuel Specs'!$F$40*Conversions!$D$9/(10^6) -> 1625.699642 | Q59: =Q9*'GREET Fuel Specs'!$F$40*Conversions!$D$9/(10^6) -> 1625.682345 | R59: =R9*'GREET Fuel Specs'!$F$40*Conversions!$D$9/(10^6) -> 1625.690499 | S59: =S9*'GREET Fuel Specs'!$F$40*Conversions!$D$9/(10^6) -> 1625.678326 | T59: =T9*'GREET Fuel Specs'!$F$40*Conversions!$D$9/(10^6) -> 1619.465922 | U59: =U9*'GREET Fuel Specs'!$F$40*Conversions!$D$9/(10^6) -> 1619.260717 | V59: =V9*'GREET Fuel Specs'!$F$40*Conversions!$D$9/(10^6) -> 1619.437537 | W59: =W9*'GREET Fuel Specs'!$F$40*Conversions!$D$9/(10^6) -> 1619.22972 | X59: =X9*'GREET Fuel Specs'!$F$40*Conversions!$D$9/(10^6) -> 0 | Y59: =Y9*'GREET Fuel Specs'!$F$40*Conversions!$D$9/(10^6) -> 0 | Z59: =Z9*'GREET Fuel Specs'!$F$40*Conversions!$D$9/(10^6) -> 0 | AA59: =AA9*'GREET Fuel Specs'!$F$40*Conversions!$D$9/(10^6) -> 0 | AB59: =AB9*'GREET Fuel Specs'!$F$40*Conversions!$D$9/(10^6) -> 0 | AC59: =AC9*'GREET Fuel Specs'!$F$40*Conversions!$D$9/(10^6) -> 0 | AD59: =AD9*'GREET Fuel Specs'!$F$40*Conversions!$D$9/(10^6) -> 0 | AE59: =AE9*'GREET Fuel Specs'!$F$40*Conversions!$D$9/(10^6) -> 0 | AF59: =AF9*'GREET Fuel Specs'!$F$40*Conversions!$D$9/(10^6) -> 0
B60: FT Naphtha (MW) | D60: =D10*'GREET Fuel Specs'!$F$22*Conversions!$D$9/(10^6) -> 1051.397623 | E60: =E10*'GREET Fuel Specs'!$F$22*Conversions!$D$9/(10^6) -> 1051.387707 | F60: =F10*'GREET Fuel Specs'!$F$22*Conversions!$D$9/(10^6) -> 1051.392514 | G60: =G10*'GREET Fuel Specs'!$F$22*Conversions!$D$9/(10^6) -> 1051.385252 | H60: =H10*'GREET Fuel Specs'!$F$22*Conversions!$D$9/(10^6) -> 1050.629784 | I60: =I10*'GREET Fuel Specs'!$F$22*Conversions!$D$9/(10^6) -> 1050.589676 | J60: =J10*'GREET Fuel Specs'!$F$22*Conversions!$D$9/(10^6) -> 1050.616176 | K60: =K10*'GREET Fuel Specs'!$F$22*Conversions!$D$9/(10^6) -> 1050.563946 | L60: =L10*'GREET Fuel Specs'!$F$22*Conversions!$D$9/(10^6) -> 972.5008177 | M60: =M10*'GREET Fuel Specs'!$F$22*Conversions!$D$9/(10^6) -> 972.5008177 | N60: =N10*'GREET Fuel Specs'!$F$22*Conversions!$D$9/(10^6) -> 972.5008177 | O60: =O10*'GREET Fuel Specs'!$F$22*Conversions!$D$9/(10^6) -> 972.5008177 | P60: =P10*'GREET Fuel Specs'!$F$22*Conversions!$D$9/(10^6) -> 1051.397623 | Q60: =Q10*'GREET Fuel Specs'!$F$22*Conversions!$D$9/(10^6) -> 1051.387707 | R60: =R10*'GREET Fuel Specs'!$F$22*Conversions!$D$9/(10^6) -> 1051.392514 | S60: =S10*'GREET Fuel Specs'!$F$22*Conversions!$D$9/(10^6) -> 1051.385252 | T60: =T10*'GREET Fuel Specs'!$F$22*Conversions!$D$9/(10^6) -> 1050.629784 | U60: =U10*'GREET Fuel Specs'!$F$22*Conversions!$D$9/(10^6) -> 1050.589676 | V60: =V10*'GREET Fuel Specs'!$F$22*Conversions!$D$9/(10^6) -> 1050.616176 | W60: =W10*'GREET Fuel Specs'!$F$22*Conversions!$D$9/(10^6) -> 1050.563946 | X60: =X10*'GREET Fuel Specs'!$F$22*Conversions!$D$9/(10^6) -> 972.5008177 | Y60: =Y10*'GREET Fuel Specs'!$F$22*Conversions!$D$9/(10^6) -> 972.5008177 | Z60: =Z10*'GREET Fuel Specs'!$F$22*Conversions!$D$9/(10^6) -> 972.5008177 | AA60: =AA10*'GREET Fuel Specs'!$F$22*Conversions!$D$9/(10^6) -> 972.5008177 | AB60: =AB10*'GREET Fuel Specs'!$F$22*Conversions!$D$9/(10^6) -> 996.3106324 | AC60: =AC10*'GREET Fuel Specs'!$F$22*Conversions!$D$9/(10^6) -> 972.5008177 | AD60: =AD10*'GREET Fuel Specs'!$F$22*Conversions!$D$9/(10^6) -> 972.5008177 | AE60: =AE10*'GREET Fuel Specs'!$F$22*Conversions!$D$9/(10^6) -> 972.5008177 | AF60: =AF10*'GREET Fuel Specs'!$F$22*Conversions!$D$9/(10^6) -> 972.5008177
B61: FT Diesel (MW) | D61: =D11*'GREET Fuel Specs'!$F$35*Conversions!$D$9/(10^6) -> 306.9792602 | E61: =E11*'GREET Fuel Specs'!$F$35*Conversions!$D$9/(10^6) -> 306.9779048 | F61: =F11*'GREET Fuel Specs'!$F$35*Conversions!$D$9/(10^6) -> 306.978711 | G61: =G11*'GREET Fuel Specs'!$F$35*Conversions!$D$9/(10^6) -> 306.9768452 | H61: =H11*'GREET Fuel Specs'!$F$35*Conversions!$D$9/(10^6) -> 312.9922791 | I61: =I11*'GREET Fuel Specs'!$F$35*Conversions!$D$9/(10^6) -> 313.1676232 | J61: =J11*'GREET Fuel Specs'!$F$35*Conversions!$D$9/(10^6) -> 312.9963996 | K61: =K11*'GREET Fuel Specs'!$F$35*Conversions!$D$9/(10^6) -> 313.1490223 | L61: =L11*'GREET Fuel Specs'!$F$35*Conversions!$D$9/(10^6) -> 2209.062726 | M61: =M11*'GREET Fuel Specs'!$F$35*Conversions!$D$9/(10^6) -> 2209.019792 | N61: =N11*'GREET Fuel Specs'!$F$35*Conversions!$D$9/(10^6) -> 2209.062726 | O61: =O11*'GREET Fuel Specs'!$F$35*Conversions!$D$9/(10^6) -> 2209.019792 | P61: =P11*'GREET Fuel Specs'!$F$35*Conversions!$D$9/(10^6) -> 306.9792602 | Q61: =Q11*'GREET Fuel Specs'!$F$35*Conversions!$D$9/(10^6) -> 306.9779048 | R61: =R11*'GREET Fuel Specs'!$F$35*Conversions!$D$9/(10^6) -> 306.978711 | S61: =S11*'GREET Fuel Specs'!$F$35*Conversions!$D$9/(10^6) -> 306.9768452 | T61: =T11*'GREET Fuel Specs'!$F$35*Conversions!$D$9/(10^6) -> 312.9922791 | U61: =U11*'GREET Fuel Specs'!$F$35*Conversions!$D$9/(10^6) -> 313.1676232 | V61: =V11*'GREET Fuel Specs'!$F$35*Conversions!$D$9/(10^6) -> 312.9963996 | W61: =W11*'GREET Fuel Specs'!$F$35*Conversions!$D$9/(10^6) -> 313.1490223 | X61: =X11*'GREET Fuel Specs'!$F$35*Conversions!$D$9/(10^6) -> 2209.062726 | Y61: =Y11*'GREET Fuel Specs'!$F$35*Conversions!$D$9/(10^6) -> 2209.019792 | Z61: =Z11*'GREET Fuel Specs'!$F$35*Conversions!$D$9/(10^6) -> 2209.062726 | AA61: =AA11*'GREET Fuel Specs'!$F$35*Conversions!$D$9/(10^6) -> 2209.019792 | AB61: =AB11*'GREET Fuel Specs'!$F$35*Conversions!$D$9/(10^6) -> 2240.303802 | AC61: =AC11*'GREET Fuel Specs'!$F$35*Conversions!$D$9/(10^6) -> 2209.062726 | AD61: =AD11*'GREET Fuel Specs'!$F$35*Conversions!$D$9/(10^6) -> 2209.062726 | AE61: =AE11*'GREET Fuel Specs'!$F$35*Conversions!$D$9/(10^6) -> 2209.062726 | AF61: =AF11*'GREET Fuel Specs'!$F$35*Conversions!$D$9/(10^6) -> 2209.062726
B62: LPG (MW) | D62: =D13*AVERAGE('GREET Fuel Specs'!$F$45:$F$48)*Conversions!$D$9/(10^6) -> 193.6549326 | E62: =E13*AVERAGE('GREET Fuel Specs'!$F$45:$F$48)*Conversions!$D$9/(10^6) -> 193.6826119 | F62: =F13*AVERAGE('GREET Fuel Specs'!$F$45:$F$48)*Conversions!$D$9/(10^6) -> 193.6612949 | G62: =G13*AVERAGE('GREET Fuel Specs'!$F$45:$F$48)*Conversions!$D$9/(10^6) -> 193.6836573 | H62: =H13*AVERAGE('GREET Fuel Specs'!$F$45:$F$48)*Conversions!$D$9/(10^6) -> 194.3626941 | I62: =I13*AVERAGE('GREET Fuel Specs'!$F$45:$F$48)*Conversions!$D$9/(10^6) -> 194.4143659 | J62: =J13*AVERAGE('GREET Fuel Specs'!$F$45:$F$48)*Conversions!$D$9/(10^6) -> 194.3859133 | K62: =K13*AVERAGE('GREET Fuel Specs'!$F$45:$F$48)*Conversions!$D$9/(10^6) -> 194.4854182 | L62: =L13*AVERAGE('GREET Fuel Specs'!$F$45:$F$48)*Conversions!$D$9/(10^6) -> 0 | M62: =M13*AVERAGE('GREET Fuel Specs'!$F$45:$F$48)*Conversions!$D$9/(10^6) -> 0 | N62: =N13*AVERAGE('GREET Fuel Specs'!$F$45:$F$48)*Conversions!$D$9/(10^6) -> 0 | O62: =O13*AVERAGE('GREET Fuel Specs'!$F$45:$F$48)*Conversions!$D$9/(10^6) -> 0 | P62: =P13*AVERAGE('GREET Fuel Specs'!$F$45:$F$48)*Conversions!$D$9/(10^6) -> 193.6549326 | Q62: =Q13*AVERAGE('GREET Fuel Specs'!$F$45:$F$48)*Conversions!$D$9/(10^6) -> 193.6826119 | R62: =R13*AVERAGE('GREET Fuel Specs'!$F$45:$F$48)*Conversions!$D$9/(10^6) -> 193.6612949 | S62: =S13*AVERAGE('GREET Fuel Specs'!$F$45:$F$48)*Conversions!$D$9/(10^6) -> 193.6836573 | T62: =T13*AVERAGE('GREET Fuel Specs'!$F$45:$F$48)*Conversions!$D$9/(10^6) -> 194.3626941 | U62: =U13*AVERAGE('GREET Fuel Specs'!$F$45:$F$48)*Conversions!$D$9/(10^6) -> 194.4143659 | V62: =V13*AVERAGE('GREET Fuel Specs'!$F$45:$F$48)*Conversions!$D$9/(10^6) -> 194.3859133 | W62: =W13*AVERAGE('GREET Fuel Specs'!$F$45:$F$48)*Conversions!$D$9/(10^6) -> 194.4854182 | X62: =X13*AVERAGE('GREET Fuel Specs'!$F$45:$F$48)*Conversions!$D$9/(10^6) -> 0 | Y62: =Y13*AVERAGE('GREET Fuel Specs'!$F$45:$F$48)*Conversions!$D$9/(10^6) -> 0 | Z62: =Z13*AVERAGE('GREET Fuel Specs'!$F$45:$F$48)*Conversions!$D$9/(10^6) -> 0 | AA62: =AA13*AVERAGE('GREET Fuel Specs'!$F$45:$F$48)*Conversions!$D$9/(10^6) -> 0 | AB62: =AB13*AVERAGE('GREET Fuel Specs'!$F$45:$F$48)*Conversions!$D$9/(10^6) -> 0 | AC62: =AC13*AVERAGE('GREET Fuel Specs'!$F$45:$F$48)*Conversions!$D$9/(10^6) -> 0 | AD62: =AD13*AVERAGE('GREET Fuel Specs'!$F$45:$F$48)*Conversions!$D$9/(10^6) -> 0 | AE62: =AE13*AVERAGE('GREET Fuel Specs'!$F$45:$F$48)*Conversions!$D$9/(10^6) -> 0 | AF62: =AF13*AVERAGE('GREET Fuel Specs'!$F$45:$F$48)*Conversions!$D$9/(10^6) -> 0
B63: Fuel Out (MW) | D63: =SUM(D59:D62) -> 3177.731458 | E63: =SUM(E59:E62) -> 3177.730568 | F63: 3177.723019 | G63: 3177.72408 | H63: =SUM(H59:H62) -> 3177.450678 | I63: 3177.432383 | J63: 3177.436026 | K63: 3177.428106 | L63: 3181.563543 | M63: 3181.52061 | N63: 3181.563543 | O63: 3181.52061 | P63: 3177.731458 | Q63: 3177.730568 | R63: 3177.723019 | S63: 3177.72408 | T63: =SUM(T59:T62) -> 3177.450678 | U63: 3177.432383 | V63: 3177.436026 | W63: 3177.428106 | X63: =SUM(X59:X62) -> 3181.563543 | Y63: 3181.52061 | Z63: 3181.563543 | AA63: 3181.52061 | AB63: 3236.614434 | AC63: 3181.563543 | AD63: 3181.563543 | AE63: 3181.563543 | AF63: 3181.563543
B65: Calculated efficiency | D65: =(D63+D55)/D58 -> 0.5292605348 | E65: =(E63+E55)/E58 -> 0.5359842013 | F65: 0.5341813835 | G65: 0.5363145543 | H65: =(H63+H55)/H58 -> 0.4900332699 | I65: 0.5033543244 | J65: =(J63+J55)/J58 -> 0.4981806569 | K65: 0.5086567977 | L65: 0.4451141206 | M65: 0.4582448767 | N65: 0.4451141206 | O65: 0.4582448767 | P65: 0.5284895437 | Q65: 0.5352204781 | R65: 0.5334102937 | S65: 0.5355505248 | T65: =(T63+T55)/T58 -> 0.4893225879 | U65: 0.5026299045 | V65: 0.4974565076 | W65: 0.5079231677 | X65: =(X63+X55)/X58 -> 0.4846923147 | Y65: 0.4994837486 | Z65: 0.4444673029 | AA65: 0.4575796344 | AB65: 0.5415910506 | AC65: 0.4418160204 | AD65: 0.4602362566 | AE65: 0.4418160204 | AF65: 0.4602362566
B66: Delta | D66: 0.5311661242 | E66: 0.5380387229 | F66: 0.536186444 | G66: 0.5383542165 | H66: 0.4917359768 | I66: 0.5053729551 | J66: 0.5000656861 | K66: 0.5108008563 | L66: 0.4466403465 | M66: 0.459646519 | N66: 0.4466403465 | O66: 0.459646519 | P66: 0.5303939049 | Q66: 0.5372740423 | R66: 0.5354141869 | S66: 0.5375892541 | T66: 0.4910242954 | U66: 0.504647311 | V66: 0.4993402796 | W66: 0.5100658146 | X66: 0.4873440373 | Y66: 0.5020195884 | Z66: 0.7400948601 | AA66: 0.5020195884 | AB66: 0.5433657333 | AC66: 0.4432667899 | AD66: 0.4617686715 | AE66: 0.4432667899 | AF66: 0.4617686715
B67: user chosen plant efficiency | D67: =Dashboard!$D$12 -> 0.5086567977 | E67: =Dashboard!$D$12 -> 0.5086567977 | F67: =Dashboard!$D$12 -> 0.5086567977 | G67: =Dashboard!$D$12 -> 0.5086567977 | H67: =Dashboard!$D$12 -> 0.5086567977 | I67: =Dashboard!$D$12 -> 0.5086567977 | J67: =Dashboard!$D$12 -> 0.5086567977 | K67: =Dashboard!$D$12 -> 0.5086567977 | L67: =Dashboard!$D$12 -> 0.5086567977 | M67: =Dashboard!$D$12 -> 0.5086567977 | N67: =Dashboard!$D$12 -> 0.5086567977 | O67: =Dashboard!$D$12 -> 0.5086567977 | P67: =Dashboard!$D$12 -> 0.5086567977 | Q67: =Dashboard!$D$12 -> 0.5086567977 | R67: =Dashboard!$D$12 -> 0.5086567977 | S67: =Dashboard!$D$12 -> 0.5086567977 | T67: =Dashboard!$D$12 -> 0.5086567977 | U67: =Dashboard!$D$12 -> 0.5086567977 | V67: =Dashboard!$D$12 -> 0.5086567977 | W67: =Dashboard!$D$12 -> 0.5086567977 | X67: =Dashboard!$D$12 -> 0.5086567977 | Y67: =Dashboard!$D$12 -> 0.5086567977 | Z67: =Dashboard!$D$12 -> 0.5086567977 | AA67: =Dashboard!$D$12 -> 0.5086567977 | AB67: =Dashboard!$D$12 -> 0.5086567977 | AC67: =Dashboard!$D$12 -> 0.5086567977 | AD67: =Dashboard!$D$12 -> 0.5086567977 | AE67: =Dashboard!$D$12 -> 0.5086567977 | AF67: =Dashboard!$D$12 -> 0.5086567977
B69: Mass percent coal | D69: =1-D2 -> 0.9 | E69: =1-E2 -> 0.9 | F69: 0.9 | G69: 0.9 | H69: =1-H2 -> 0.9 | I69: 0.9 | J69: 0.9 | K69: 0.9 | L69: 0.9 | M69: 0.9 | N69: 0.9 | O69: 0.9 | P69: 0.9 | Q69: 0.9 | R69: 0.9 | S69: 0.9 | T69: =1-T2 -> 0.9 | U69: 0.9 | V69: 0.9 | W69: 0.9 | X69: =1-X2 -> 0.9 | Y69: 0.9 | Z69: 0.9 | AA69: 0.9 | AB69: 1 | AC69: 0.9 | AD69: 0.9 | AE69: 0.9 | AF69: 0.9
B70: Energy Percent Coal | D70: =D56/SUM(D56:D57) -> 0.9191520059 | E70: =E56/SUM(E56:E57) -> 0.8990370555 | F70: 0.9107893813 | G70: 0.8988434987 | H70: =H56/SUM(H56:H57) -> 0.91507017 | I70: 0.9080637805 | J70: 0.9171647916 | K70: 0.9100252042 | L70: 0.9168884081 | M70: 0.9159831812 | N70: 0.9168884081 | O70: 0.9159831812 | P70: 0.9192697798 | Q70: 0.8991809175 | R70: 0.9109181567 | S70: 0.8989876055 | T70: =T56/SUM(T56:T57) -> 0.9151933414 | U70: 0.9081960937 | V70: 0.9172851999 | W70: 0.9101549738 | X70: =X56/SUM(X56:X57) -> 1 | Y70: 1 | Z70: 0.9170091817 | AA70: 0.9161051499 | AB70: 1 | AC70: 0.9373100853 | AD70: 0.9374357073 | AE70: 0.9373100853 | AF70: 0.9374357073
B71: Adjusted Coal In (lb/hr) | D71: =(D70*D76)/(VLOOKUP(D51,Constants!$I$28:$J$37,2,FALSE)*Conversions!$D$9/(10^6)) -> 0 | E71: =(E70*E76)/(VLOOKUP(E51,Constants!$I$28:$J$37,2,FALSE)*Conversions!$D$9/(10^6)) -> 0 | F71: =(F70*F76)/(VLOOKUP(F51,Constants!$I$28:$J$37,2,FALSE)*Conversions!$D$9/(10^6)) -> 0 | G71: =(G70*G76)/(VLOOKUP(G51,Constants!$I$28:$J$37,2,FALSE)*Conversions!$D$9/(10^6)) -> 0 | H71: =(H70*H76)/(VLOOKUP(H51,Constants!$I$28:$J$37,2,FALSE)*Conversions!$D$9/(10^6)) -> 2277501.936 | I71: =(I70*I76)/(VLOOKUP(I51,Constants!$I$28:$J$37,2,FALSE)*Conversions!$D$9/(10^6)) -> 2260050.844 | J71: =(J70*J76)/(VLOOKUP(J51,Constants!$I$28:$J$37,2,FALSE)*Conversions!$D$9/(10^6)) -> 2282704.676 | K71: =(K70*K76)/(VLOOKUP(K51,Constants!$I$28:$J$37,2,FALSE)*Conversions!$D$9/(10^6)) -> 2264929.52 | L71: =(L70*L76)/(VLOOKUP(L51,Constants!$I$28:$J$37,2,FALSE)*Conversions!$D$9/(10^6)) -> 0 | M71: =(M70*M76)/(VLOOKUP(M51,Constants!$I$28:$J$37,2,FALSE)*Conversions!$D$9/(10^6)) -> 2282694.43 | N71: =(N70*N76)/(VLOOKUP(N51,Constants!$I$28:$J$37,2,FALSE)*Conversions!$D$9/(10^6)) -> 0 | O71: =(O70*O76)/(VLOOKUP(O51,Constants!$I$28:$J$37,2,FALSE)*Conversions!$D$9/(10^6)) -> 2282694.43 | P71: =(P70*P76)/(VLOOKUP(P51,Constants!$I$28:$J$37,2,FALSE)*Conversions!$D$9/(10^6)) -> 0 | Q71: =(Q70*Q76)/(VLOOKUP(Q51,Constants!$I$28:$J$37,2,FALSE)*Conversions!$D$9/(10^6)) -> 0 | R71: =(R70*R76)/(VLOOKUP(R51,Constants!$I$28:$J$37,2,FALSE)*Conversions!$D$9/(10^6)) -> 0 | S71: =(S70*S76)/(VLOOKUP(S51,Constants!$I$28:$J$37,2,FALSE)*Conversions!$D$9/(10^6)) -> 0 | T71: =(T70*T76)/(VLOOKUP(T51,Constants!$I$28:$J$37,2,FALSE)*Conversions!$D$9/(10^6)) -> 2948035.659 | U71: =(U70*U76)/(VLOOKUP(U51,Constants!$I$28:$J$37,2,FALSE)*Conversions!$D$9/(10^6)) -> 2925479.166 | V71: =(V70*V76)/(VLOOKUP(V51,Constants!$I$28:$J$37,2,FALSE)*Conversions!$D$9/(10^6)) -> 2954760.361 | W71: =(W70*W76)/(VLOOKUP(W51,Constants!$I$28:$J$37,2,FALSE)*Conversions!$D$9/(10^6)) -> 2931785.16 | X71: =(X70*X76)/(VLOOKUP(X51,Constants!$I$28:$J$37,2,FALSE)*Conversions!$D$9/(10^6)) -> 0 | Y71: =(Y70*Y76)/(VLOOKUP(Y51,Constants!$I$28:$J$37,2,FALSE)*Conversions!$D$9/(10^6)) -> 3225342.235 | Z71: =(Z70*Z76)/(VLOOKUP(Z51,Constants!$I$28:$J$37,2,FALSE)*Conversions!$D$9/(10^6)) -> 0 | AA71: =(AA70*AA76)/(VLOOKUP(AA51,Constants!$I$28:$J$37,2,FALSE)*Conversions!$D$9/(10^6)) -> 2954752.631 | AB71: =(AB70*AB76)/(VLOOKUP(AB51,Constants!$I$28:$J$37,2,FALSE)*Conversions!$D$9/(10^6)) -> 1861106.354 | AC71: =(AC70*AC76)/(VLOOKUP(AC51,Constants!$I$28:$J$37,2,FALSE)*Conversions!$D$9/(10^6)) -> 0 | AD71: =(AD70*AD76)/(VLOOKUP(AD51,Constants!$I$28:$J$37,2,FALSE)*Conversions!$D$9/(10^6)) -> 0 | AE71: =(AE70*AE76)/(VLOOKUP(AE51,Constants!$I$28:$J$37,2,FALSE)*Conversions!$D$9/(10^6)) -> 0 | AF71: =(AF70*AF76)/(VLOOKUP(AF51,Constants!$I$28:$J$37,2,FALSE)*Conversions!$D$9/(10^6)) -> 0
B72: Adjusted Biomass In (lb/hr) | D72: =(D76*(1-D70))/((VLOOKUP(D52,Constants!$I$28:$J$37,2,FALSE)*Conversions!$D$9/(10^6))) -> 0 | E72: =(E76*(1-E70))/((VLOOKUP(E52,Constants!$I$28:$J$37,2,FALSE)*Conversions!$D$9/(10^6))) -> 0 | F72: =(F76*(1-F70))/((VLOOKUP(F52,Constants!$I$28:$J$37,2,FALSE)*Conversions!$D$9/(10^6))) -> 0 | G72: =(G76*(1-G70))/((VLOOKUP(G52,Constants!$I$28:$J$37,2,FALSE)*Conversions!$D$9/(10^6))) -> 0 | H72: =(H76*(1-H70))/((VLOOKUP(H52,Constants!$I$28:$J$37,2,FALSE)*Conversions!$D$9/(10^6))) -> 367780.2934 | I72: =(I76*(1-I70))/((VLOOKUP(I52,Constants!$I$28:$J$37,2,FALSE)*Conversions!$D$9/(10^6))) -> 201013.4156 | J72: =(J76*(1-J70))/((VLOOKUP(J52,Constants!$I$28:$J$37,2,FALSE)*Conversions!$D$9/(10^6))) -> 214475.8881 | K72: =(K76*(1-K70))/((VLOOKUP(K52,Constants!$I$28:$J$37,2,FALSE)*Conversions!$D$9/(10^6))) -> 196724.6073 | L72: =(L76*(1-L70))/((VLOOKUP(L52,Constants!$I$28:$J$37,2,FALSE)*Conversions!$D$9/(10^6))) -> 0 | M72: =(M76*(1-M70))/((VLOOKUP(M52,Constants!$I$28:$J$37,2,FALSE)*Conversions!$D$9/(10^6))) -> 261727.4081 | N72: =(N76*(1-N70))/((VLOOKUP(N52,Constants!$I$28:$J$37,2,FALSE)*Conversions!$D$9/(10^6))) -> 0 | O72: =(O76*(1-O70))/((VLOOKUP(O52,Constants!$I$28:$J$37,2,FALSE)*Conversions!$D$9/(10^6))) -> 261727.4081 | P72: =(P76*(1-P70))/((VLOOKUP(P52,Constants!$I$28:$J$37,2,FALSE)*Conversions!$D$9/(10^6))) -> 0 | Q72: =(Q76*(1-Q70))/((VLOOKUP(Q52,Constants!$I$28:$J$37,2,FALSE)*Conversions!$D$9/(10^6))) -> 0 | R72: =(R76*(1-R70))/((VLOOKUP(R52,Constants!$I$28:$J$37,2,FALSE)*Conversions!$D$9/(10^6))) -> 0 | S72: =(S76*(1-S70))/((VLOOKUP(S52,Constants!$I$28:$J$37,2,FALSE)*Conversions!$D$9/(10^6))) -> 0 | T72: =(T76*(1-T70))/((VLOOKUP(T52,Constants!$I$28:$J$37,2,FALSE)*Conversions!$D$9/(10^6))) -> 367246.9116 | U72: =(U76*(1-U70))/((VLOOKUP(U52,Constants!$I$28:$J$37,2,FALSE)*Conversions!$D$9/(10^6))) -> 200724.1201 | V72: =(V76*(1-V70))/((VLOOKUP(V52,Constants!$I$28:$J$37,2,FALSE)*Conversions!$D$9/(10^6))) -> 214164.1285 | W72: =(W76*(1-W70))/((VLOOKUP(W52,Constants!$I$28:$J$37,2,FALSE)*Conversions!$D$9/(10^6))) -> 196440.8736 | X72: =(X76*(1-X70))/((VLOOKUP(X52,Constants!$I$28:$J$37,2,FALSE)*Conversions!$D$9/(10^6))) -> 0 | Y72: =(Y76*(1-Y70))/((VLOOKUP(Y52,Constants!$I$28:$J$37,2,FALSE)*Conversions!$D$9/(10^6))) -> 0 | Z72: =(Z76*(1-Z70))/((VLOOKUP(Z52,Constants!$I$28:$J$37,2,FALSE)*Conversions!$D$9/(10^6))) -> 0 | AA72: =(AA76*(1-AA70))/((VLOOKUP(AA52,Constants!$I$28:$J$37,2,FALSE)*Conversions!$D$9/(10^6))) -> 261347.4538 | AB72: =(AB76*(1-AB70))/((VLOOKUP(AB52,Constants!$I$28:$J$37,2,FALSE)*Conversions!$D$9/(10^6))) -> 0 | AC72: =(AC76*(1-AC70))/((VLOOKUP(AC52,Constants!$I$28:$J$37,2,FALSE)*Conversions!$D$9/(10^6))) -> 0 | AD72: =(AD76*(1-AD70))/((VLOOKUP(AD52,Constants!$I$28:$J$37,2,FALSE)*Conversions!$D$9/(10^6))) -> 0 | AE72: =(AE76*(1-AE70))/((VLOOKUP(AE52,Constants!$I$28:$J$37,2,FALSE)*Conversions!$D$9/(10^6))) -> 0 | AF72: =(AF76*(1-AF70))/((VLOOKUP(AF52,Constants!$I$28:$J$37,2,FALSE)*Conversions!$D$9/(10^6))) -> 0
B73: Adjusted Elec. Out (MW/hr) | D73: =IF(D55>0,((D58*D67)-D63),0) -> 70.22324351 | E73: =IF(E55>0,((E58*E67)-E63),0) -> 50.88806621 | F73: 64.72138012 | G73: 54.21912846 | H73: =IF(H55>0,((H58*H67)-H63),0) -> 0 | I73: 0 | J73: =IF(J55>0,((J58*J67)-J63),0) -> 0 | K73: 0 | L73: 685.6712976 | M73: 0 | N73: 685.6712976 | O73: 0 | P73: 74.96154776 | Q73: 55.49508499 | R73: 69.40860875 | S73: 58.8298983 | T73: =IF(T55>0,((T58*T67)-T63),0) -> 0 | U73: 0 | V73: 0 | W73: 0 | X73: =IF(X55>0,((X58*X67)-X63),0) -> 369.8871057 | Y73: 0 | Z73: 691.2991496 | AA73: 0 | AB73: -192.404936 | AC73: 878.9434175 | AD73: 409.2538317 | AE73: 878.9434175 | AF73: 409.2538317
B76: Adjusted Fuel In (MW) | D76: =IF(D73<=0,(D63/D67),0) -> 0 | E76: =IF(E73<=0,(E63/E67),0) -> 0 | F76: 0 | G76: 0 | H76: =IF(H73<=0,(H63/H67),0) -> 6246.747695 | I76: 6246.711726 | J76: 6246.718888 | K76: 6246.703318 | L76: 0 | M76: 6254.749026 | N76: 0 | O76: 6254.749026 | P76: 0 | Q76: 0 | R76: 0 | S76: 0 | T76: =IF(T73<=0,(T63/T67),0) -> 6246.747695 | U76: 6246.711726 | V76: 6246.718888 | W76: 6246.703318 | X76: 0 | Y76: 6254.749026 | Z76: 0 | AA76: 6254.749026 | AB76: 6363.061398 | AC76: 0 | AD76: 0 | AE76: 0 | AF76: 0
B77: Efficiency after elec adjustment | D77: =IF(D73<0,(D63/D58),((D73+D63)/D58)) -> 0.5086567977 | E77: 0.5086567977 | F77: 0.5086567977 | G77: 0.5086567977 | H77: =IF(H73<0,(H63/H58),((H73+H63)/H58)) -> 0.4900332699 | I77: 0.5033543244 | J77: =IF(J73<0,(J63/J58),((J73+J63)/J58)) -> 0.4981806569 | K77: =IF(K73<0,(K63/K58),((K73+K63)/K58)) -> 0.5086567977 | L77: 0.5086567977 | M77: 0.4582448767 | N77: 0.5086567977 | O77: 0.4582448767 | P77: 0.5086567977 | Q77: 0.5086567977 | R77: 0.5086567977 | S77: 0.5086567977 | T77: =IF(T73<0,(T63/T58),((T73+T63)/T58)) -> 0.4893225879 | U77: 0.5026299045 | V77: 0.4974565076 | W77: 0.5079231677 | X77: =IF(X73<0,(X63/X58),((X73+X63)/X58)) -> 0.5086567977 | Y77: 0.4994837486 | Z77: 0.5086567977 | AA77: 0.4575796344 | AB77: 0.5408057278 | AC77: 0.5086567977 | AD77: 0.5086567977 | AE77: 0.5086567977 | AF77: 0.5086567977
B78: Adjust Fuel In; elec <0 | D78: =D63/D67 -> 6247.299697 | E78: 6247.297948 | F78: 6247.283106 | G78: 6247.285192 | H78: =H63/H67 -> 6246.747695 | I78: 6246.711726 | J78: =J63/J67 -> 6246.718888 | K78: =K63/K67 -> 6246.703318 | L78: 6254.833431 | M78: 6254.749026 | N78: 6254.833431 | O78: 6254.749026 | P78: 6247.299697 | Q78: 6247.297948 | R78: 6247.283106 | S78: 6247.285192 | T78: =T63/T67 -> 6246.747695 | U78: 6246.711726 | V78: 6246.718888 | W78: 6246.703318 | X78: =X63/X67 -> 6254.833431 | Y78: 6254.749026 | Z78: 6254.833431 | AA78: 6254.749026 | AB78: 6363.061398 | AC78: 6254.833431 | AD78: 6254.833431 | AE78: 6254.833431 | AF78: 6254.833431
B80: Min Plant Efficiency | D80: =MIN(D81:D82) -> 0.5234804916 | E80: 0.5321467635 | F80: 0.5321467635 | G80: 0.5321467635 | H80: 0.4689865146 | I80: 0.5012816107 | J80: 0.4920925202 | K80: 0.5012816107 | L80: 0.4255646065 | M80: 0.4262769833 | N80: 0.4255646065 | O80: 0.4262769833 | P80: 0.522852086 | Q80: 0.5313034903 | R80: 0.5313034903 | S80: 0.5313034903 | T80: 0.4684243316 | U80: 0.5004872483 | V80: 0.4915039055 | W80: 0.5004872483 | X80: 0.4546255506 | Y80: 0.4753416992 | Z80: 0.4250531597 | AA80: 0.4257596737 | AB80: 0.5415910506 | AC80: 0.4264968269 | AD80: 0.4506318413 | AE80: 0.4264968269 | AF80: 0.4506318413
B81: 30% biomass | D81: 0.5234804916 | E81: 0.5438090363 | F81: 0.5382768339 | G81: 0.5447864929 | H81: 0.4689865146 | I81: 0.5075515596 | J81: 0.4920925202 | K81: 0.5240778652 | L81: 0.4255646065 | M81: 0.4262769833 | N81: 0.4255646065 | O81: 0.4262769833 | P81: 0.522852086 | Q81: 0.5432114074 | R81: 0.5376528477 | S81: 0.5441877421 | T81: 0.4684243316 | U81: 0.5069706861 | V81: 0.4915039055 | W81: 0.523478078 | X81: 0.5604607001 | Y81: 0.5559590565 | Z81: 0.4250531597 | AA81: 0.4257596737 | AB81: 0.5415910506 | AC81: 0.4264968269 | AD81: 0.4506318413 | AE81: 0.4264968269 | AF81: 0.4506318413
B82: 0% biomass | D82: 0.5321467635 | E82: 0.5321467635 | F82: 0.5321467635 | G82: 0.5321467635 | H82: 0.5012816107 | I82: 0.5012816107 | J82: 0.5012816107 | K82: 0.5012816107 | L82: 0.4553471223 | M82: 0.4760961511 | N82: 0.4553471223 | O82: 0.4760961511 | P82: 0.5313034903 | Q82: 0.5313034903 | R82: 0.5313034903 | S82: 0.5313034903 | T82: 0.5004872483 | U82: 0.5004872483 | V82: 0.5004872483 | W82: 0.5004872483 | X82: 0.4546255506 | Y82: 0.4753416992 | Z82: 0.4546255506 | AA82: 0.4753416992 | AB82: 0.5415910506 | AC82: 0.4495379581 | AD82: 0.4650241412 | AE82: 0.4495379581 | AF82: 0.4650241412
D114: Data for CO2 Compressor Load:
G116: TRIG-M-100% Coal | J116: TRIG-M-10% Bio, Chipped | K116: TRIG-M-11.7% Bio, Chipped | L116: TRIG-M-19.2% Bio, Chipped | M116: TRIG-M-20% Bio, Chipped | N116: TRIG-M-28.3% Bio, Chipped | O116: TRIG-M-30% Bio, Chipped
D117: Type | E117: Name | F117: Unit | G117: 0 | J117: 10 | K117: 11.7 | L117: 19.2 | M117: 20 | N117: 28.3 | O117: 30
E118: CO₂ to sequestration | F118: lb/hr | G118: 2573042.4 | J118: 2591637.61 | K118: 2594863.64 | L118: 2609529.67 | M118: 2611158.55 | N118: 2628189.73 | O118: 2631789.75
E119: LPG | F119: lb/hr | G119: 31235.866 | J119: 31235.4323 | K119: 31234.9797 | L119: 31234.6755 | M119: 31234.5335 | N119: 31234.0201 | O119: 31233.9621
E120: Sulfur | F120: lb/hr | G120: 9222.671 | J120: 8546.23343 | K120: 8427.79985 | L120: 7893.36102 | M120: 7835.11507 | N120: 7216.77012 | O120: 7086.7961
E121: Export power | F121: MWh/hr | G121: 222.2787414 | J121: 203.3149192 | K121: 199.9990142 | L121: 185.00338 | M121: 183.3602543 | N121: 166.0184165 | O121: 162.359441
E122: CO₂ emitted | F122: lb/hr | G122: 370147.736 | J122: 371361.173 | K122: 371587.665 | L122: 372609.086 | M122: 372673.535 | N122: 373833.785 | O122: 374058.962
E124: CO2 Compressor Load | F124: MWe | G124: 91.6 | J124: 92.2 | K124: 92.3 | L124: 92.7 | M124: 92.8 | N124: 93.3 | O124: 93.4
E171: PRB
E172: SYP-Torr
E173: 91.87318606
E174: 79.41287183
E175: 242.093689
E176: 4343.185636
E177: 1922.539001
E178: 6265.724637
E179: 1625.653189
E180: 1051.369621
E181: 306.972037
E182: 193.7294543
E183: 3177.724302

Sheet UP Data
AQ1: CO₂ Pipeline Transport | AX1: Direct Land Use | BE1: Indirect Land Use | BL1: Blended Jet Transport
AR2: Base | AS2: Alt | AT2: Delta | AY2: Base | AZ2: Alt | BA2: Delta | BF2: Base | BG2: Alt | BH2: Delta | BL2: Base | BM2: Alt
AQ3: CO₂ Pipeline Distance | AR3: 775 | AS3: 1000 | AT3: =AS3-AR3 -> 225 | AX3: Biomass Yield | AY3: ='Land Use'!F123 -> 6350.29318 | AZ3: ='Land Use'!F124 -> 2993.709642 | BA3: =AZ3-AY3 -> -3356.583538 | BE3: Biomass Yield | BF3: ='Land Use'!F123 -> 6350.29318 | BG3: ='Land Use'!F124 -> 2993.709642 | BH3: =BG3-BF3 -> -3356.583538 | BL3: Pipeline | BM3: 60% pipe/40% truck
BM5: 0 | BN5: 1
AR6: Base | AS6: Alt | AT6: Delta | AU6: Slope | AV6: Intercept | AY6: Base | AZ6: Alt | BA6: Delta | BB6: Slope | BC6: Intercept | BF6: Base | BG6: Alt | BH6: Delta | BI6: Slope | BJ6: Intercept | BM6: Base | BN6: Alt
AQ7: Carbon dioxide | AR7: 0.02295624995 | AS7: 0.03662551506 | AT7: =AS7-AR7 -> 0.01366926511 | AU7: =SLOPE(AR7:AS7,$AR$3:$AS$3) -> 6.075228939e-05 | AV7: =INTERCEPT(AR7:AS7,$AR$3:$AS$3) -> -0.02412677433 | AX7: Carbon dioxide | AY7: ='Land Use'!G123 -> 0.02244381851 | AZ7: ='Land Use'!G124 -> 0.04760590189 | BA7: =AZ7-AY7 -> 0.02516208339 | BB7: =SLOPE(AY7:AZ7,$AY$3:$AZ$3) -> -7.496337601e-06 | BC7: =INTERCEPT(AY7:AZ7,$AY$3:$AZ$3) -> 0.07004776005 | BE7: Carbon dioxide | BF7: ='Land Use'!H123 -> 0.08283044799 | BG7: ='Land Use'!H124 -> 0.1756928385 | BH7: =BG7-BF7 -> 0.09286239054 | BI7: =SLOPE(BF7:BG7,$BF$3:$BG$3) -> -2.766574688e-05 | BJ7: =INTERCEPT(BF7:BG7,$BF$3:$BG$3) -> 0.2585160517 | BL7: Carbon dioxide | BM7: 0.004964522572 | BN7: 0.006137550362
AQ8: Carbon dioxide (biotic) | AR8: 0 | AS8: 0 | AT8: =AS8-AR8 -> 0 | AU8: =SLOPE(AR8:AS8,$AR$3:$AS$3) -> 0 | AV8: =INTERCEPT(AR8:AS8,$AR$3:$AS$3) -> 0 | AX8: Carbon dioxide (biotic) | AY8: 0 | AZ8: 0 | BA8: =AZ8-AY8 -> 0 | BB8: 0 | BC8: =INTERCEPT(AY8:AZ8,$AY$3:$AZ$3) -> 0 | BE8: Carbon dioxide (biotic) | BF8: 0 | BG8: 0 | BH8: =BG8-BF8 -> 0 | BI8: =SLOPE(BF8:BG8,$BF$3:$BG$3) -> 0 | BJ8: =INTERCEPT(BF8:BG8,$BF$3:$BG$3) -> 0 | BL8: Carbon dioxide (biotic) | BM8: 1.870252567e-10 | BN8: 2.442469783e-09
AQ9: Carbon dioxide (biotic) | AR9: 0 | AS9: 0 | AT9: 0 | AU9: 0 | AV9: 0 | AX9: Carbon dioxide (biotic) | AY9: 0 | AZ9: 0 | BA9: 0 | BB9: 0 | BC9: 0 | BE9: Carbon dioxide (biotic) | BF9: 0 | BG9: 0 | BH9: 0 | BI9: 0 | BJ9: 0 | BL9: Carbon dioxide (biotic) | BM9: 2.259916212e-07 | BN9: 8.402897548e-06
AQ10: CO2 | AR10: =SUM(AR7:AR9) -> 0.02295624995 | AS10: =SUM(AS7:AS9) -> 0.03662551506 | AT10: 0.01366926511 | AU10: 6.075228939e-05 | AV10: -0.02412677433 | AX10: CO2 | AY10: =SUM(AY7:AY9) -> 0.02244381851 | AZ10: =SUM(AZ7:AZ9) -> 0.04760590189 | BA10: 0.02516208339 | BB10: =SLOPE(AY10:AZ10,$AY$3:$AZ$3) -> -7.496337601e-06 | BC10: 0.07004776005 | BE10: CO2 | BF10: =SUM(BF7:BF9) -> 0.08283044799 | BG10: =SUM(BG7:BG9) -> 0.1756928385 | BH10: 0.09286239054 | BI10: -2.766574688e-05 | BJ10: 0.2585160517 | BL10: CO2 | BM10: =SUM(BM7:BM9) -> 0.004964748751 | BN10: =SUM(BN7:BN9) -> 0.006145955702
AQ11: Methane | AR11: 8.992171866e-06 | AS11: 1.65704392e-05 | AT11: 7.578267336e-06 | AU11: 3.368118816e-08 | AV11: -1.711074896e-05 | AX11: Methane | AY11: 0 | AZ11: 0 | BA11: 0 | BB11: 0 | BC11: 0 | BE11: Methane | BF11: 0 | BG11: 0 | BH11: 0 | BI11: 0 | BJ11: 0 | BL11: Methane | BM11: 9.849047276e-06 | BN11: 1.13145875e-05 | BR11: Base | BS11: Alt - Dist | BT11: Alt - CO₂ EF
AQ12: Nitrous oxide (laughing gas) | AR12: 4.740008104e-07 | AS12: 8.734710287e-07 | AT12: 3.994702183e-07 | AU12: 1.775423193e-09 | AV12: -9.019521639e-07 | AX12: Nitrous oxide (laughing gas) | AY12: 0 | AZ12: 0 | BA12: 0 | BB12: 0 | BC12: 0 | BE12: Nitrous oxide (laughing gas) | BF12: ='Land Use'!I123 -> 3.027255732e-06 | BG12: ='Land Use'!I124 -> 6.421155088e-06 | BH12: 3.393899356e-06 | BI12: -1.011117202e-09 | BJ12: 9.448146405e-06 | BL12: Nitrous oxide (laughing gas) | BM12: 9.340856088e-08 | BN12: 1.260437887e-07 | BP12: y | BQ12: Carbon dioxide | BR12: 0.02417459679 | BS12: 0.03662551506 | BT12: 0.04465007555
AQ13: Sulphur hexafluoride | AR13: 0 | AS13: 0 | AT13: 0 | AU13: 0 | AV13: 0 | AX13: Sulphur hexafluoride | AY13: 0 | AZ13: 0 | BA13: 0 | BB13: 0 | BC13: 0 | BE13: Sulphur hexafluoride | BF13: 0 | BG13: 0 | BH13: 0 | BI13: 0 | BJ13: 0 | BL13: Sulphur hexafluoride | BM13: 1.085434359e-09 | BN13: 9.01979219e-10 | BP13: y | BQ13: Methane | BR13: 9.620480577e-06 | BS13: 1.65704392e-05 | BT13: 9.620480577e-06
BP14: y | BQ14: Nitrous oxide (laughing gas) | BR14: 5.071205998e-07 | BS14: 8.734710287e-07 | BT14: 5.071205998e-07
A25: Scenario | B25: Carbon dioxide | C25: Carbon dioxide (biotic) | D25: Carbon dioxide (biotic) | E25: CO2 | F25: Methane | G25: Nitrous oxide (laughing gas) | H25: Sulphur hexafluoride | J25: UP Name | K25: Parameter Names (User Accessible) | L25: 2nd Parameter | M25: Internal | N25: Note
A26: Coal Mining, Surface | E26: =INDEX(UP,MATCH(E$25,UPGHG,0),MATCH($J26&"-Slope",UPName,0))*VLOOKUP($K26,ParStage,3,FALSE)+INDEX(UP,MATCH(E$25,UPGHG,0),MATCH($J26&"-Intercept",UPName,0)) -> 0.006413673283 | F26: 0.0001800217305 | G26: 6.73499675e-06 | H26: 2.056492445e-10 | I26: x | J26: =Dashboard!$D$5 -> PRB | K26: Coal Mine Methane
A27: Truck Transport of Coal to CBTL Plant | E27: 0.0006947759997 | F27: 1.692550317e-06 | G27: 2.050692458e-08 | H27: 3.073600582e-17 | I27: x | J27: Biomass Transport From Farm | K27: Coal Truck Distance
A28: Rail Transport of Coal to CBTL Plant | E28: 0.05129805219 | F28: 6.024202224e-05 | G28: 1.261087927e-06 | H28: 3.400400621e-15 | I28: x | J28: Coal Rail | K28: Coal Rail Distance
A29: Biomass Production and Field Chipping - SYP | E29: ='Biomass Production'!$M$59*VLOOKUP($K29,Dashboard!B16:I32,3,FALSE)^'Biomass Production'!$L$59+0*'Biomass Production'!$F$41-'Biomass Production'!$E$54 -> -0.9432416059 | F29: ='Biomass Production'!$M$87*VLOOKUP($K29,Dashboard!B16:I32,3,FALSE)^'Biomass Production'!$L$87-'Biomass Production'!$E$84+0*'Biomass Production'!$F$44 -> 6.417512809e-05 | G29: ='Biomass Production'!$M$49*VLOOKUP($K29,Dashboard!B16:I32,3,FALSE)^'Biomass Production'!$L$49+0*'Biomass Production'!$F$42 -> 9.901680983e-05 | H29: ='Biomass Production'!$M$50*VLOOKUP($K29,Dashboard!B16:I32,3,FALSE)^'Biomass Production'!$L$50+0*'Biomass Production'!$F$43 -> 6.960601265e-10 | I29: x | K29: Biomass Yield
A30: Biomass Production and Field Chipping - SG | E30: =INDEX(UP,MATCH(E$25,UPGHG,0),MATCH($J30&"-Slope",UPName,0))*VLOOKUP($K30,ParStage,3,FALSE)+INDEX(UP,MATCH(E$25,UPGHG,0),MATCH($J30&"-Intercept",UPName,0)) -> -1.376870647 | F30: -7.463988057e-05 | G30: -0.0002818466515 | H30: -3.278375373e-10 | I30: x | J30: Switchgrass | K30: Biomass Yield
A31: Biomass Production and Field Chipping - MSW | E31: 0 | F31: 0 | G31: 0 | H31: 0 | I31: x | J31: MSW | K31: MSW Collection Distance
A32: Biomass Production and Field Chipping - No Biomass | E32: 0 | F32: 0 | G32: 0 | H32: 0
A33: Transport of Chipped Biomass to CBTL Plant or Torrefaction | E33: =INDEX(UP,MATCH(E$25,UPGHG,0),MATCH($J33&"-Slope",UPName,0))*VLOOKUP($K33,ParStage,3,FALSE)+INDEX(UP,MATCH(E$25,UPGHG,0),MATCH($J33&"-Intercept",UPName,0)) -> 0.006264018374 | F33: =INDEX(UP,MATCH(F$25,UPGHG,0),MATCH($J33&"-Slope",UPName,0))*VLOOKUP($K33,ParStage,3,FALSE)+INDEX(UP,MATCH(F$25,UPGHG,0),MATCH($J33&"-Intercept",UPName,0)) -> 8.43964533e-06 | G33: =INDEX(UP,MATCH(G$25,UPGHG,0),MATCH($J33&"-Slope",UPName,0))*VLOOKUP($K33,ParStage,3,FALSE)+INDEX(UP,MATCH(G$25,UPGHG,0),MATCH($J33&"-Intercept",UPName,0)) -> 1.580546297e-07 | H33: =INDEX(UP,MATCH(H$25,UPGHG,0),MATCH($J33&"-Slope",UPName,0))*VLOOKUP($K33,ParStage,3,FALSE)+INDEX(UP,MATCH(H$25,UPGHG,0),MATCH($J33&"-Intercept",UPName,0)) -> 4.325889416e-16 | I33: x | J33: Biomass Transport From Farm | K33: Biomass Truck Distance (Farm to CBTL or Farm to Torrefaction)
A34: Biomass Transport Torrefaction Facility to CBTL Plant | E34: =IF(Dashboard!$D$6=$M34,1,0) * (INDEX(UP,MATCH(E$25,UPGHG,0),MATCH($J34&"-Slope",UPName,0))*VLOOKUP($K34,ParStage,3,FALSE)+INDEX(UP,MATCH(E$25,UPGHG,0),MATCH($J34&"-Intercept",UPName,0))) -> 0 | F34: =IF(Dashboard!$D$6=$M34,1,0) * (INDEX(UP,MATCH(F$25,UPGHG,0),MATCH($J34&"-Slope",UPName,0))*VLOOKUP($K34,ParStage,3,FALSE)+INDEX(UP,MATCH(F$25,UPGHG,0),MATCH($J34&"-Intercept",UPName,0))) -> 0 | G34: =IF(Dashboard!$D$6=$M34,1,0) * (INDEX(UP,MATCH(G$25,UPGHG,0),MATCH($J34&"-Slope",UPName,0))*VLOOKUP($K34,ParStage,3,FALSE)+INDEX(UP,MATCH(G$25,UPGHG,0),MATCH($J34&"-Intercept",UPName,0))) -> 0 | H34: =IF(Dashboard!$D$6=$M34,1,0) * (INDEX(UP,MATCH(H$25,UPGHG,0),MATCH($J34&"-Slope",UPName,0))*VLOOKUP($K34,ParStage,3,FALSE)+INDEX(UP,MATCH(H$25,UPGHG,0),MATCH($J34&"-Intercept",UPName,0))) -> 0 | I34: x | J34: Biomass Transport To CBTL | K34: Biomass Truck Distance (Torrefaction to CBTL) | M34: SYP | N34: Pine Only
A35: Transport of F-T Jet to Blending Facility | E35: =INDEX(UP,MATCH(E$25,UPGHG,0),MATCH($J35&"-Slope",UPName,0))*VLOOKUP($K35,ParStage,3,FALSE)+INDEX(UP,MATCH(E$25,UPGHG,0),MATCH($J35&"-Intercept",UPName,0)) -> 0.004592107855 | F35: =INDEX(UP,MATCH(F$25,UPGHG,0),MATCH($J35&"-Slope",UPName,0))*VLOOKUP($K35,ParStage,3,FALSE)+INDEX(UP,MATCH(F$25,UPGHG,0),MATCH($J35&"-Intercept",UPName,0)) -> 9.083471285e-06 | G35: =INDEX(UP,MATCH(G$25,UPGHG,0),MATCH($J35&"-Slope",UPName,0))*VLOOKUP($K35,ParStage,3,FALSE)+INDEX(UP,MATCH(G$25,UPGHG,0),MATCH($J35&"-Intercept",UPName,0)) -> 8.727002291e-08 | H35: =INDEX(UP,MATCH(H$25,UPGHG,0),MATCH($J35&"-Slope",UPName,0))*VLOOKUP($K35,ParStage,3,FALSE)+INDEX(UP,MATCH(H$25,UPGHG,0),MATCH($J35&"-Intercept",UPName,0)) -> 9.975701328e-10 | I35: x | J35: F-T Pipe Distance | K35: F-T Jet Fuel Pipeline to Blending Distance
A36: CO₂ Pipeline Transport to EOR/Saline Aquifer | E36: =(VLOOKUP(E$25,'Multiple Regression'!$G$1:$J$5,2,FALSE)+VLOOKUP(E$25,'Multiple Regression'!$G$1:$J$5,3,FALSE)*VLOOKUP($K36,Dashboard!B16:I32,3,FALSE)+VLOOKUP(E$25,'Multiple Regression'!$G$1:$J$5,4,FALSE)*VLOOKUP($L36,Dashboard!B16:I32,3,FALSE))/('Multiple Regression'!$W$3+'Multiple Regression'!$W$4*VLOOKUP($K36,Dashboard!B16:I32,3,FALSE)+'Multiple Regression'!$W$5*VLOOKUP($L36,Dashboard!B16:I32,3,FALSE)) -> 0.02240175766 | F36: =(VLOOKUP(F$25,'Multiple Regression'!$G$1:$J$5,2,FALSE)+VLOOKUP(F$25,'Multiple Regression'!$G$1:$J$5,3,FALSE)*VLOOKUP($K36,Dashboard!B16:I32,3,FALSE)+VLOOKUP(F$25,'Multiple Regression'!$G$1:$J$5,4,FALSE)*VLOOKUP($L36,Dashboard!B16:I32,3,FALSE))/('Multiple Regression'!$W$3+'Multiple Regression'!$W$4*VLOOKUP($K36,Dashboard!B16:I32,3,FALSE)+'Multiple Regression'!$W$5*VLOOKUP($L36,Dashboard!B16:I32,3,FALSE)) -> 9.483230168e-06 | G36: =(VLOOKUP(G$25,'Multiple Regression'!$G$1:$J$5,2,FALSE)+VLOOKUP(G$25,'Multiple Regression'!$G$1:$J$5,3,FALSE)*VLOOKUP($K36,Dashboard!B16:I32,3,FALSE)+VLOOKUP(G$25,'Multiple Regression'!$G$1:$J$5,4,FALSE)*VLOOKUP($L36,Dashboard!B16:I32,3,FALSE))/('Multiple Regression'!$W$3+'Multiple Regression'!$W$4*VLOOKUP($K36,Dashboard!B16:I32,3,FALSE)+'Multiple Regression'!$W$5*VLOOKUP($L36,Dashboard!B16:I32,3,FALSE)) -> 4.998857731e-07 | H36: =(VLOOKUP(H$25,'Multiple Regression'!$G$1:$J$5,2,FALSE)+VLOOKUP(H$25,'Multiple Regression'!$G$1:$J$5,3,FALSE)*VLOOKUP($K36,Dashboard!B16:I32,3,FALSE)+VLOOKUP(H$25,'Multiple Regression'!$G$1:$J$5,4,FALSE)*VLOOKUP($L36,Dashboard!B16:I32,3,FALSE))/('Multiple Regression'!$W$3+'Multiple Regression'!$W$4*VLOOKUP($K36,Dashboard!B16:I32,3,FALSE)+'Multiple Regression'!$W$5*VLOOKUP($L36,Dashboard!B16:I32,3,FALSE)) -> 0 | I36: x | K36: CO₂ Pipe Distance | L36: CO₂ Pipe Loss Rate
A37: Biomass Direct Land Use Change | E37: =IFERROR(IF(Dashboard!$D$6<>$M37,1,0) * ('Land Use'!$O$124*VLOOKUP($K37,Dashboard!B16:I32,3,FALSE)^'Land Use'!$O$123),0) -> 0.02244296504 | F37: 0 | G37: 0 | H37: 0 | I37: x | K37: Biomass Yield | M37: MSW | N37: MSW=0
A38: Biomass Indirect Land Use Change | E38: =IFERROR(IF(Dashboard!$D$6<>$M38,1,0) * ('Land Use'!$P$124*VLOOKUP($K38,Dashboard!B16:I32,3,FALSE)^'Land Use'!$P$123),0) -> 0.08282729822 | F38: 0 | G38: =IFERROR(IF(Dashboard!$D$6<>$M38,1,0) * ('Land Use'!$Q$124*VLOOKUP($K38,Dashboard!B16:I32,3,FALSE)^'Land Use'!$Q$123),0) -> 3.027140615e-06 | H38: 0 | I38: x | K38: Biomass Yield | M38: MSW | N38: MSW=0
A39: CBTL Facility Construction | B39: 0.0006456672391 | C39: 1.418617718e-12 | D39: 8.58110347e-06 | E39: =SUM(B39:D39) -> 0.000654248344 | F39: 7.580540614e-07 | G39: 2.118495698e-08 | H39: 2.171659356e-11 | I39: x
A40: Biomass Torrefaction | B40: 0.07283109888 | C40: 4.702071374e-11 | D40: 1.486127015e-07 | E40: =SUM(B40:D40) -> 0.07283124754 | F40: 6.838572212e-06 | G40: 5.883318254e-07 | H40: 7.197367809e-10 | I40: x
A41: Biomass Drying | E41: =IFERROR(INDEX(UP,MATCH(E$25,UPGHG,0),MATCH($J41,UPName,0)),0) -> 0.2678546874 | F41: =IFERROR(INDEX(UP,MATCH(F$25,UPGHG,0),MATCH($J41,UPName,0)),0) -> 0.0009888488869 | G41: =IFERROR(INDEX(UP,MATCH(G$25,UPGHG,0),MATCH($J41,UPName,0)),0) -> 2.27238618e-06 | H41: =IFERROR(INDEX(UP,MATCH(H$25,UPGHG,0),MATCH($J41,UPName,0)),0) -> 3.001876763e-07 | I41: x | J41: ="Biomass Drying-"&Dashboard!$D$7 -> Biomass Drying-EFG | N41: Pine only. No UP profile for other biomass drying so need to use IFERROR to convert it back to 0.
A42: LPG Displacement | B42: 1.256394454 | C42: 1.253286803e-05 | D42: 0.000162917769 | E42: =SUM(B42:D42) -> 1.256569905 | F42: 0.004826736405 | G42: 2.383896114e-05 | H42: 2.853688865e-13 | I42: x
A43: Naphtha Displacement | B43: 0.4986409829 | D43: 0.002199925356 | E43: =SUM(B43:D43) -> 0.5008409082 | F43: 0.004755954318 | G43: 1.201784227e-05 | H43: 1.069570731e-13 | I43: x
A44: Electricity Displacement - 2010 Mix | B44: 567.7532514 | C44: 8.747204807e-06 | D44: 0.02764048318 | E44: =SUM(B44:D44) -> 567.7809006 | F44: 1.166738159 | G44: 0.009353631744 | H44: 5.798881837e-07 | I44: x
A45: Electricity Displacement - Fleet Coal | B45: 996.2837553 | C45: 1.797849372e-05 | D45: 0.01310711327 | E45: 996.2968804 | F45: 1.588218409 | G45: 0.01893087758 | H45: 1.008083563e-06 | I45: x
A46: Electricity Displacement - 2035 Mix | B46: 521.6470042 | C46: 7.936910511e-06 | D46: 0.02698267187 | E46: 521.6739948 | F46: 1.130671609 | G46: 0.008269167099 | H46: 5.487637842e-07 | I46: x
A47: Diesel Displacement - U.S. Consumption Mix | B47: 0.6202645061 | C47: 5.186269243e-06 | D47: 8.347761529e-05 | E47: 0.62035317 | F47: 0.004181108569 | G47: 1.239888463e-05 | H47: 2.524547702e-13 | I47: x
A48: Diesel Displacement - U.S. Import Mix | B48: 0.6147061289 | C48: 7.397142651e-05 | D48: 0 | E48: 0.6147801003 | F48: 0.006355984908 | G48: 1.192748202e-05 | H48: 1.273129044e-13
A49: CO₂ Displacement - Natural Dome | B49: 0.08821235066 | C49: -8.529883004e-10 | D49: 2.863394679e-06 | E49: 0.08821521321 | F49: 0.0001434235035 | G49: 1.579515373e-06 | H49: 1.532737834e-08 | I49: x
A50: Blending of F-T and Conv. Jet (includes Conv. Jet Fuel Profile) | B50: 0.2437750716 | C50: 6.446705065e-06 | D50: 3.156538905e-05 | E50: =SUM(B50:D50) -> 0.2438130837 | F50: 0.002193591333 | G50: 5.121644476e-06 | H50: 5.61866107e-11 | I50: x
A51: Transport of Blended Jet Fuel to Airport | E51: =IF(VLOOKUP($K51,ParStage,3,FALSE)=0,INDEX(UP,MATCH(E$25,UPGHG,0),MATCH($J51&"-100",UPName,0)),INDEX(UP,MATCH(E$25,UPGHG,0),MATCH($J51&"-60",UPName,0))) -> 0.006145955702 | F51: =IF(VLOOKUP($K51,ParStage,3,FALSE)=0,INDEX(UP,MATCH(F$25,UPGHG,0),MATCH($J51&"-100",UPName,0)),INDEX(UP,MATCH(F$25,UPGHG,0),MATCH($J51&"-60",UPName,0))) -> 1.13145875e-05 | G51: =IF(VLOOKUP($K51,ParStage,3,FALSE)=0,INDEX(UP,MATCH(G$25,UPGHG,0),MATCH($J51&"-100",UPName,0)),INDEX(UP,MATCH(G$25,UPGHG,0),MATCH($J51&"-60",UPName,0))) -> 1.260437887e-07 | H51: =IF(VLOOKUP($K51,ParStage,3,FALSE)=0,INDEX(UP,MATCH(H$25,UPGHG,0),MATCH($J51&"-100",UPName,0)),INDEX(UP,MATCH(H$25,UPGHG,0),MATCH($J51&"-60",UPName,0))) -> 9.01979219e-10 | I51: x | J51: Blended Jet Transport Scenario | K51: Blended Jet Alt Transport Scenario
A52: Airplane Operation (Fuel Use) | B52: 3.138666667 | C52: 0 | E52: =SUM(B52:D52) -> 3.138666667 | F52: 2.061759198e-05 | G52: 8.247045492e-05 | H52: 0 | I52: x
A53: Airplane Construction | B53: 0.001187434676 | C53: 1.541394819e-05 | E53: =SUM(B53:D53) -> 0.001202848624 | F53: 2.571783848e-06 | G53: 1.842199187e-08 | H53: 9.959053747e-17 | I53: x
A56: DO NOT DELETE:
A57: Parameter Names (User Accessible) | B57: Offset
A58: Coal Mine Methane | B58: 0
A59: Rail Distance | B59: =B58+7 -> 7 | D59: =B59/7 -> 1
A60: Biomass Yield | B60: =B59+7 -> 14 | D60: =B60/7 -> 2
A61: Biomass Truck Distance (Farm to CBTL or Farm to Torrefaction) | B61: 21 | D61: 3
A62: Biomass Truck Distance (Torrefaction to CBTL) | B62: 28 | D62: 4
A63: F-T Jet Fuel Pipeline to Blending Distance | B63: 35 | D63: 5
A64: CO₂ Pipe Distance | B64: 42 | D64: 6
A65: Biomass Yield | B65: 49 | C65: Direct Land Use | D65: 7
A66: Biomass Yield | B66: 56 | C66: Indirect Land Use | D66: 8
A67: Blended Jet Alt Transport Scenario | B67: 63 | D67: 9
A68: CO₂ Pipe Loss Rate
A69: Truck Distance
A72: User Accessible Paramters Included in Process Math; Multiple Parameters
A73: User Accessible Paramters Included in Process Math
A74: Static Values
A75: Parameters/Processes that need to be updated
A76: Special calculation cases
B108: GaBi 6
D109: Database: | E109: NETL Comp Database 09262014
B110: Balance: | C110: Biomass Drying and Pelletization | D110: Mass | E110: kg | F110: 2014-10-20T11:12:17 | G110: Balance view: | H110: Greg - GHGs
B111: Balance object: | C111: Biomass Drying and Pelletization [Sub-Plans] | D111: 2014-10-20T11:12:14 | E111: {8DE328B7-C799-4AF9-8720-F01E5FC72A7B}
B112: In/out aggregation | C112: Yes | D112: Weak point analysis | E112: No | F112: Last service pack: | G112: 22
B114: Inputs
F115: Biomass Drying and Pelletization
B116: Flows | C116: Flows | D116: Flows | E116: Flows | F116: 0
C117: Emissions to air | D117: Emissions to air | E117: Emissions to air | F117: 0
D118: Inorganic emissions to air | E118: Inorganic emissions to air | F118: 0
E119: Carbon dioxide | F119: 0
B121: Outputs
F122: Biomass Drying and Pelletization
B123: Flows | C123: Flows | D123: Flows | E123: Flows | F123: 0.2688461089
C124: Emissions to air | D124: Emissions to air | E124: Emissions to air | F124: 0.2688461089
D125: Inorganic emissions to air | E125: Inorganic emissions to air | F125: 0.26785726
E126: Carbon dioxide | F126: 0.2678519531
E127: Carbon dioxide (biotic) | F127: 8.113792911e-10
E128: Carbon dioxide (biotic) | F128: 2.733579664e-06
D131: Organic emissions to air (group VOC) | E131: Organic emissions to air (group VOC) | F131: 0.0009888488869
E132: Methane | F132: 0.0009888488869
E133: Nitrous oxide (laughing gas) | F133: 2.27238618e-06
E134: Sulphur hexafluoride | F134: 3.001876763e-07
A139: Biomass Drying | B139: Carbon dioxide | C139: Carbon dioxide (biotic) | D139: Carbon dioxide (biotic) | E139: CO2 | F139: Methane | G139: Nitrous oxide (laughing gas) | H139: Sulphur hexafluoride
A140: TRIG | B140: 0.2617567269 | C140: 8.111925215e-10 | D140: 2.732774587e-06 | E140: =SUM(B140:D140) -> 0.2617594605 | F140: 0.0009635480632 | G140: 2.232512873e-06 | H140: 3.001843682e-07
A141: EFG | B141: 0.2678519531 | C141: 8.113792911e-10 | D141: 2.733579664e-06 | E141: =SUM(B141:D141) -> 0.2678546874 | F141: 0.0009888488869 | G141: 2.27238618e-06 | H141: 3.001876763e-07

Sheet UP Relationship
A1: Name (kg/kg) | B1: I6-Slope | C1: I6-Intercept | D1: PRB-Slope | E1: PRB-Intercept | F1: ND Lignite-Slope | G1: ND Lignite-Intercept | H1: Switchgrass-Slope | I1: Switchgrass-Intercept | J1: Coal Rail-Slope | K1: Coal Rail-Intercept | L1: Biomass Transport From Farm-Slope | M1: Biomass Transport From Farm-Intercept | N1: Biomass Transport To CBTL-Slope | O1: Biomass Transport To CBTL-Intercept | P1: MSW-Slope | Q1: MSW-Intercept | R1: F-T Pipe Distance-Slope | S1: F-T Pipe Distance-Intercept | T1: Blended Jet Transport Scenario-100 | U1: Blended Jet Transport Scenario-60 | V1: Biomass Drying-TRIG | W1: Biomass Drying-EFG
A2: CO2 | B2: ='UP Relationship Data'!D10 -> 0 | C2: ='UP Relationship Data'!E10 -> 0.02292063372 | D2: ='UP Relationship Data'!D25 -> 0 | E2: ='UP Relationship Data'!E25 -> 0.006413673283 | F2: ='UP Relationship Data'!K10 -> 0 | G2: ='UP Relationship Data'!L10 -> 0.006413114089 | H2: ='UP Relationship Data'!R10 -> -5.620395497e-05 | I2: ='UP Relationship Data'!S10 -> -1.019959055 | J2: ='UP Relationship Data'!K25 -> 3.18944993e-05 | K2: ='UP Relationship Data'!L25 -> 0.0002668526872 | L2: ='UP Relationship Data'!D40 -> 0.0001392311652 | M2: ='UP Relationship Data'!E40 -> 0.0006947685684 | N2: ='UP Relationship Data'!K40 -> 0.0001469862452 | O2: ='UP Relationship Data'!L40 -> 0.0006947685684 | P2: ='UP Relationship Data'!Y10 -> 0.0003937867878 | Q2: ='UP Relationship Data'!Z10 -> 0 | R2: ='UP Relationship Data'!E55 -> 2.040846145e-05 | S2: ='UP Relationship Data'!F55 -> 7.199102425e-17 | T2: ='UP Relationship Data'!I55 -> 0.004964748751 | U2: ='UP Relationship Data'!J55 -> 0.006145955702 | V2: ='UP Relationship Data'!P55 -> 0.2617594605 | W2: ='UP Relationship Data'!Q55 -> 0.2678546874
A3: Methane | B3: ='UP Relationship Data'!D11 -> 2.100840929e-05 | C3: ='UP Relationship Data'!E11 -> 4.272530817e-05 | D3: ='UP Relationship Data'!D26 -> 2.122994374e-05 | E3: ='UP Relationship Data'!E26 -> 1.018218056e-05 | F3: ='UP Relationship Data'!K11 -> 0.0001273373705 | G3: ='UP Relationship Data'!L11 -> -0.0002445535131 | H3: ='UP Relationship Data'!R11 -> -8.32151523e-08 | I3: ='UP Relationship Data'!S11 -> 0.0004538007335 | J3: ='UP Relationship Data'!K26 -> 3.729573122e-08 | K3: ='UP Relationship Data'!L26 -> 5.688515615e-07 | L3: ='UP Relationship Data'!D41 -> 1.686775035e-07 | M3: ='UP Relationship Data'!E41 -> 1.692541314e-06 | N3: ='UP Relationship Data'!K41 -> 1.780739523e-07 | O3: ='UP Relationship Data'!L41 -> 1.692541314e-06 | P3: ='UP Relationship Data'!Y11 -> 5.096783549e-07 | Q3: ='UP Relationship Data'!Z11 -> 0 | R3: ='UP Relationship Data'!E56 -> 4.03691898e-08 | S3: ='UP Relationship Data'!F56 -> 1.168905467e-19 | T3: ='UP Relationship Data'!I56 -> 9.849047276e-06 | U3: ='UP Relationship Data'!J56 -> 1.13145875e-05 | V3: ='UP Relationship Data'!P56 -> 0.0009635480632 | W3: ='UP Relationship Data'!Q56 -> 0.0009888488869
A4: Nitrous oxide (laughing gas) | B4: ='UP Relationship Data'!D12 -> 0 | C4: ='UP Relationship Data'!E12 -> 4.269303991e-07 | D4: ='UP Relationship Data'!D27 -> 0 | E4: ='UP Relationship Data'!E27 -> 6.73499675e-06 | F4: ='UP Relationship Data'!K12 -> 0 | G4: ='UP Relationship Data'!L12 -> 6.734379141e-06 | H4: ='UP Relationship Data'!R12 -> -3.064468846e-07 | I4: ='UP Relationship Data'!S12 -> 0.00166418091 | J4: ='UP Relationship Data'!K27 -> 7.855044322e-10 | K4: ='UP Relationship Data'!L27 -> 4.280820619e-09 | L4: ='UP Relationship Data'!D42 -> 3.438695241e-09 | M4: ='UP Relationship Data'!E42 -> 2.050674105e-08 | N4: ='UP Relationship Data'!K42 -> 3.626017856e-09 | O4: ='UP Relationship Data'!L42 -> 2.050674105e-08 | P4: ='UP Relationship Data'!Y12 -> 1.631637058e-09 | Q4: ='UP Relationship Data'!Z12 -> 0 | R4: ='UP Relationship Data'!E57 -> 3.878495355e-10 | S4: ='UP Relationship Data'!F57 -> 2.792561748e-21 | T4: ='UP Relationship Data'!I57 -> 9.340856088e-08 | U4: ='UP Relationship Data'!J57 -> 1.260437887e-07 | V4: ='UP Relationship Data'!P57 -> 2.232512873e-06 | W4: ='UP Relationship Data'!Q57 -> 2.27238618e-06
A5: Sulphur hexafluoride | B5: ='UP Relationship Data'!D13 -> 0 | C5: ='UP Relationship Data'!E13 -> 4.76699808e-09 | D5: ='UP Relationship Data'!D28 -> 0 | E5: ='UP Relationship Data'!E28 -> 2.056492445e-10 | F5: ='UP Relationship Data'!K13 -> 0 | G5: ='UP Relationship Data'!L13 -> 2.059087599e-10 | H5: ='UP Relationship Data'!R13 -> -3.562847768e-13 | I5: ='UP Relationship Data'!S13 -> 1.934675251e-09 | J5: ='UP Relationship Data'!K28 -> 2.11175293e-18 | K5: ='UP Relationship Data'!L28 -> 2.159589134e-17 | L5: ='UP Relationship Data'!D43 -> 1.004633103e-17 | M5: ='UP Relationship Data'!E43 -> 3.073546961e-17 | N5: ='UP Relationship Data'!K43 -> 1.060590475e-17 | O5: ='UP Relationship Data'!L43 -> 3.073546961e-17 | P5: ='UP Relationship Data'!Y13 -> 5.907420596e-15 | Q5: ='UP Relationship Data'!Z13 -> 0 | R5: ='UP Relationship Data'!E58 -> 4.433448047e-12 | S5: ='UP Relationship Data'!F58 -> 1.592322679e-23 | T5: ='UP Relationship Data'!I58 -> 1.085434359e-09 | U5: ='UP Relationship Data'!J58 -> 9.01979219e-10 | V5: ='UP Relationship Data'!P58 -> 3.001843682e-07 | W5: ='UP Relationship Data'!Q58 -> 3.001876763e-07

Sheet UP Relationship Data
A1: Units: kg/kg
A2: Source: | B2: LCA for Zero Sulfur Diesel Cases | H2: Source: | I2: New Coal Model White Paper | O2: Source: | P2: NETL CUBE Model | V2: Source: | W2: NETL CUBE Model
A3: I6 | B3: Base | C3: Alt | D3: Low | E3: Exp | F3: High | H3: ND Lignite | I3: Base | J3: Alt | K3: Low | L3: Exp | M3: High | O3: Switchgrass | P3: Base | Q3: Alt | R3: Low | S3: Exp | T3: High | V3: MSW | W3: Base | X3: Alt
A4: Coal Mine Methane | B4: 360 | C4: 400 | D4: =0.6*E4 -> 216 | E4: 360 | F4: =1.4*E4 -> 504 | H4: Coal Mine Methane | I4: 2.4 | J4: 10 | K4: 1.5 | L4: 2.4 | M4: 40 | O4: Yield | P4: 2430.137286 | Q4: 3000 | R4: 2545.845061 | S4: 3859.454183 | T4: 5731.756085 | V4: MSW Collection Distance | W4: 1 | X4: 20
B6: Base | C6: Alt | D6: Slope | E6: Intercept | I6: Base | J6: Alt | K6: Slope | L6: Intercept | P6: Base | Q6: Alt | R6: Slope | S6: Intercept | W6: Base | X6: Alt | Y6: Slope | Z6: Intercept
A7: Carbon dioxide | B7: 0.022917626 | C7: 0.022917626 | H7: Carbon dioxide | I7: 0.006376696116 | J7: 0.006376696116 | O7: Carbon dioxide | P7: 0.1692618251 | Q7: 0.1375934007 | V7: Carbon dioxide
A8: Carbon dioxide (biotic) | B8: 4.252552069e-08 | C8: 4.252552069e-08 | H8: Carbon dioxide (biotic) | I8: 4.643113874e-09 | J8: 4.643113874e-09 | O8: Carbon dioxide (biotic) | P8: 3.33770439e-08 | Q8: 2.703693296e-08 | V8: Carbon dioxide (biotic)
A9: Carbon dioxide (biotic) | B9: 2.965199401e-06 | C9: 2.965199401e-06 | H9: Carbon dioxide (biotic) | I9: 3.641332922e-05 | J9: 3.641332922e-05 | O9: Carbon dioxide (biotic) | P9: -1.32580424 | Q9: -1.326164348 | V9: Carbon dioxide (biotic)
A10: CO2 | B10: =SUM(B7:B9) -> 0.02292063372 | C10: =SUM(C7:C9) -> 0.02292063372 | D10: =SLOPE(B10:C10,B$4:C$4) -> 0 | E10: =INTERCEPT(B10:C10,B$4:C$4) -> 0.02292063372 | H10: CO2 | I10: =SUM(I7:I9) -> 0.006413114089 | J10: =SUM(J7:J9) -> 0.006413114089 | K10: =SLOPE(I10:J10,I$4:J$4) -> 0 | L10: =INTERCEPT(I10:J10,I$4:J$4) -> 0.006413114089 | O10: CO2 | P10: =SUM(P7:P9) -> -1.156542382 | Q10: =SUM(Q7:Q9) -> -1.18857092 | R10: =SLOPE(P10:Q10,P$4:Q$4) -> -5.620395497e-05 | S10: =INTERCEPT(P10:Q10,P$4:Q$4) -> -1.019959055 | V10: CO2 | W10: 0.0003937867878 | X10: 0.007875735755 | Y10: =SLOPE(W10:X10,W$4:X$4) -> 0.0003937867878 | Z10: =INTERCEPT(W10:X10,W$4:X$4) -> 0
A11: Methane | B11: 0.007605752652 | C11: 0.008446089023 | D11: =SLOPE(B11:C11,B$4:C$4) -> 2.100840929e-05 | E11: =INTERCEPT(B11:C11,B$4:C$4) -> 4.272530817e-05 | H11: Methane | I11: 6.105617602e-05 | J11: 0.001028820192 | K11: =SLOPE(I11:J11,I$4:J$4) -> 0.0001273373705 | L11: =INTERCEPT(I11:J11,I$4:J$4) -> -0.0002445535131 | O11: Methane | P11: 0.0002515764892 | Q11: 0.0002041552767 | R11: =SLOPE(P11:Q11,P$4:Q$4) -> -8.32151523e-08 | S11: =INTERCEPT(P11:Q11,P$4:Q$4) -> 0.0004538007335 | V11: Methane | W11: 5.096783549e-07 | X11: 1.01935671e-05 | Y11: =SLOPE(W11:X11,W$4:X$4) -> 5.096783549e-07 | Z11: =INTERCEPT(W11:X11,W$4:X$4) -> 0
A12: Nitrous oxide (laughing gas) | B12: 4.269303991e-07 | C12: 4.269303991e-07 | D12: 0 | E12: 4.269303991e-07 | H12: Nitrous oxide (laughing gas) | I12: 6.734379141e-06 | J12: 6.734379141e-06 | K12: =SLOPE(I12:J12,I$4:J$4) -> 0 | L12: =INTERCEPT(I12:J12,I$4:J$4) -> 6.734379141e-06 | O12: Nitrous oxide (laughing gas) | P12: 0.0009194729094 | Q12: 0.000744840256 | R12: =SLOPE(P12:Q12,P$4:Q$4) -> -3.064468846e-07 | S12: =INTERCEPT(P12:Q12,P$4:Q$4) -> 0.00166418091 | V12: Nitrous oxide (laughing gas) | W12: 1.631637058e-09 | X12: 3.263274115e-08 | Y12: =SLOPE(W12:X12,W$4:X$4) -> 1.631637058e-09 | Z12: =INTERCEPT(W12:X12,W$4:X$4) -> 0
A13: Sulphur hexafluoride | B13: 4.76699808e-09 | C13: 4.76699808e-09 | D13: 0 | E13: 4.76699808e-09 | H13: Sulphur hexafluoride | I13: 2.059087599e-10 | J13: 2.059087599e-10 | K13: =SLOPE(I13:J13,I$4:J$4) -> 0 | L13: =INTERCEPT(I13:J13,I$4:J$4) -> 2.059087599e-10 | O13: Sulphur hexafluoride | P13: 1.06885433e-09 | Q13: 8.658209205e-10 | R13: =SLOPE(P13:Q13,P$4:Q$4) -> -3.562847768e-13 | S13: =INTERCEPT(P13:Q13,P$4:Q$4) -> 1.934675251e-09 | V13: Sulphur hexafluoride | W13: 5.907420596e-15 | X13: 1.181484119e-13 | Y13: =SLOPE(W13:X13,W$4:X$4) -> 5.907420596e-15 | Z13: =INTERCEPT(W13:X13,W$4:X$4) -> 0
A17: Coal Mining | H17: Coal Transport
A18: PRB | B18: Base | C18: Alt | H18: Coal Rail | I18: Base | J18: Alt | K18: Input | L18: Output
A19: CMM | B19: 39.987 | C19: 47.98486012 | H19: Distance | I19: 1600 | J19: 1920 | K19: 1.00015742 | L19: 1 | M19: kg
B21: Base | C21: Alt | D21: Slope | E21: Intercept | I21: Base | J21: Alt | K21: Slope | L21: Intercept
A22: Carbon dioxide | B22: 0.006377254726 | C22: 0.006377254726 | H22: Carbon dioxide | I22: 0.05128732694 | J22: 0.06149210988 | K22: =SLOPE(I22:J22,$I$19:$J$19) -> 3.188994667e-05 | L22: =INTERCEPT(I22:J22,$I$19:$J$19) -> 0.0002634122633
A23: Carbon dioxide (biotic) | B23: 4.644093097e-09 | C23: 4.644093097e-09 | H23: Carbon dioxide (biotic) | I23: 6.858778948e-08 | J23: 8.230795373e-08 | K23: 4.287551328e-11 | L23: -1.303176581e-11
A24: Carbon dioxide (biotic) | B24: 3.641391261e-05 | C24: 3.641391261e-05 | H24: Carbon dioxide (biotic) | I24: 1.065604058e-05 | J24: 1.209916131e-05 | K24: 4.509752282e-09 | L24: 3.440436925e-06
A25: CO2 | B25: =SUM(B22:B24) -> 0.006413673283 | C25: =SUM(C22:C24) -> 0.006413673283 | D25: =SLOPE(B25:C25,$B$19:$C$19) -> 0 | E25: =INTERCEPT(B25:C25,$B$19:$C$19) -> 0.006413673283 | H25: CO2 | I25: =SUM(I22:I24) -> 0.05129805157 | J25: =SUM(J22:J24) -> 0.06150429135 | K25: 3.18944993e-05 | L25: 0.0002668526872
A26: Methane | B26: 0.0008591039408 | C26: 0.001028898061 | D26: =SLOPE(B26:C26,$B$19:$C$19) -> 2.122994374e-05 | E26: 1.018218056e-05 | H26: Methane | I26: 6.024202151e-05 | J26: 7.21766555e-05 | K26: 3.729573122e-08 | L26: 5.688515615e-07
A27: Nitrous oxide (laughing gas) | B27: 6.73499675e-06 | C27: 6.73499675e-06 | D27: 0 | E27: 6.73499675e-06 | H27: Nitrous oxide (laughing gas) | I27: 1.261087912e-06 | J27: 1.51244933e-06 | K27: 7.855044322e-10 | L27: 4.280820619e-09
A28: Sulphur hexafluoride | B28: 2.056492445e-10 | C28: 2.056492445e-10 | D28: 0 | E28: 2.056492445e-10 | H28: Sulphur hexafluoride | I28: 3.400400579e-15 | J28: 4.076161517e-15 | K28: 2.11175293e-18 | L28: 2.159589134e-17
A32: Biomass Transport (Farm to CBTL or Farm to Torrefaction) | H32: Biomass Transport (Torrefaction to CBTL)
A33: Biomass Transport From Farm | B33: Base | C33: Alt | H33: Biomass Transport To CBTL | I33: Base | J33: Alt
A34: Distance (mi) | B34: 40 | C34: 50 | D34: miles | H34: Distance (mi) | I34: 50 | J34: 60 | K34: miles
B36: Base | C36: Alt | D36: Slope | E36: Intercept | I36: Base | J36: Alt | K36: Slope | L36: Intercept
A37: Carbon dioxide | B37: 0.006253564694 | C37: 0.007645841063 | D37: =SLOPE(B37:C37,$B$34:$C$34) -> 0.0001392276368 | E37: =INTERCEPT(B37:C37,$B$34:$C$34) -> 0.0006844592208 | H37: Carbon dioxide | I37: 0.008033585238 | J37: 0.009503410441 | K37: =SLOPE(I37:J37,$I$34:$J$34) -> 0.0001469825203 | L37: =INTERCEPT(I37:J37,$I$34:$J$34) -> 0.0006844592208
A38: Carbon dioxide (biotic) | B38: 8.255415826e-09 | C38: 1.031926978e-08 | D38: 2.063853956e-10 | E38: -4.63221143e-23 | H38: Carbon dioxide (biotic) | I38: 1.0894046e-08 | J38: 1.30728552e-08 | K38: 2.178809201e-10 | L38: -4.963083675e-24
A39: Carbon dioxide (biotic) | B39: 1.044222591e-05 | C39: 1.047544547e-05 | D39: 3.321956469e-09 | E39: 1.030934765e-05 | H39: Carbon dioxide (biotic) | I39: 1.048469701e-05 | J39: 1.051976688e-05 | K39: 3.506987157e-09 | L39: 1.030934765e-05
A40: CO2 | B40: =SUM(B37:B39) -> 0.006264015176 | C40: =SUM(C37:C39) -> 0.007656326827 | D40: 0.0001392311652 | E40: 0.0006947685684 | H40: CO2 | I40: =SUM(I37:I39) -> 0.008044080829 | J40: =SUM(J37:J39) -> 0.009513943281 | K40: 0.0001469862452 | L40: 0.0006947685684
A41: Methane | B41: 8.439641455e-06 | C41: 1.012641649e-05 | D41: 1.686775035e-07 | E41: 1.692541314e-06 | H41: Methane | I41: 1.059623893e-05 | J41: 1.237697845e-05 | K41: 1.780739523e-07 | L41: 1.692541314e-06
A42: Nitrous oxide (laughing gas) | B42: 1.580545507e-07 | C42: 1.924415031e-07 | D42: 3.438695241e-09 | E42: 2.050674105e-08 | H42: Nitrous oxide (laughing gas) | I42: 2.018076339e-07 | J42: 2.380678124e-07 | K42: 3.626017856e-09 | L42: 2.050674105e-08
A43: Sulphur hexafluoride | B43: 4.325887108e-16 | C43: 5.330520211e-16 | D43: 1.004633103e-17 | E43: 3.073546961e-17 | H43: Sulphur hexafluoride | I43: 5.610307072e-16 | J43: 6.670897547e-16 | K43: 1.060590475e-17 | L43: 3.073546961e-17
A47: F-T Finished Fuels Transport | H47: Blended Jet Transport Scenario | O47: Biomass Drying - Southern Yellow Pine (SYP)
A48: F-T Pipe Distance | B48: Base | C48: Alt | D48: Delta | H48: Blended Jet Transport Scenario | I48: Base | J48: Alt | O48: Biomass Drying | P48: Base | Q48: Alt
A49: Distance (mi) | B49: 225 | C49: 270 | D49: =C49-B49 -> 45 | H49: Scenario | I49: 100% Pipe | J49: 60% Pipe/40% Truck | O49: Gasifier Type | P49: TRIG | Q49: EFG
I50: 0 | J50: 1
B51: Base | C51: Alt | D51: Delta | E51: Slope | F51: Intercept | I51: Base | J51: Alt | P51: TRIG | Q51: EFG
A52: Carbon dioxide | B52: 0.004591695806 | C52: 0.005510034967 | D52: =C52-B52 -> 0.0009183391612 | E52: =SLOPE(B52:C52,$B$49:$C$49) -> 2.040753691e-05 | F52: =INTERCEPT(B52:C52,$B$49:$C$49) -> 7.112366252e-17 | H52: Carbon dioxide | I52: 0.004964522572 | J52: 0.006137550362 | O52: Carbon dioxide | P52: 0.2617567269 | Q52: 0.2678519531
A53: Carbon dioxide (biotic) | B53: 1.812821534e-10 | C53: 2.175385841e-10 | D53: 3.625643068e-11 | E53: 8.056984596e-13 | F53: -2.042102137e-24 | H53: Carbon dioxide (biotic) | I53: 1.870252567e-10 | J53: 2.442469783e-09 | O53: Carbon dioxide (biotic) | P53: 8.111925215e-10 | Q53: 8.113792911e-10
A54: Carbon dioxide (biotic) | B54: 2.07840087e-07 | C54: 2.494081044e-07 | D54: 4.15680174e-08 | E54: 9.237337199e-10 | F54: 9.079134403e-21 | H54: Carbon dioxide (biotic) | I54: 2.259916212e-07 | J54: 8.402897548e-06 | O54: Carbon dioxide (biotic) | P54: 2.732774587e-06 | Q54: 2.733579664e-06
A55: CO2 | B55: =SUM(B52:B54) -> 0.004591903827 | C55: =SUM(C52:C54) -> 0.005510284593 | D55: 0.0009183807654 | E55: 2.040846145e-05 | F55: 7.199102425e-17 | H55: CO2 | I55: =SUM(I52:I54) -> 0.004964748751 | J55: =SUM(J52:J54) -> 0.006145955702 | O55: CO2 | P55: =SUM(P52:P54) -> 0.2617594605 | Q55: =SUM(Q52:Q54) -> 0.2678546874
A56: Methane | B56: 9.083067704e-06 | C56: 1.089968125e-05 | D56: 1.816613541e-06 | E56: 4.03691898e-08 | F56: 1.168905467e-19 | H56: Methane | I56: 9.849047276e-06 | J56: 1.13145875e-05 | O56: Methane | P56: 0.0009635480632 | Q56: 0.0009888488869
A57: Nitrous oxide (laughing gas) | B57: 8.726614548e-08 | C57: 1.047193746e-07 | D57: 1.74532291e-08 | E57: 3.878495355e-10 | F57: 2.792561748e-21 | H57: Nitrous oxide (laughing gas) | I57: 9.340856088e-08 | J57: 1.260437887e-07 | O57: Nitrous oxide (laughing gas) | P57: 2.232512873e-06 | Q57: 2.27238618e-06
A58: Sulphur hexafluoride | B58: 9.975258106e-10 | C58: 1.197030973e-09 | D58: 1.995051621e-10 | E58: 4.433448047e-12 | F58: 1.592322679e-23 | H58: Sulphur hexafluoride | I58: 1.085434359e-09 | J58: 9.01979219e-10 | O58: Sulphur hexafluoride | P58: 3.001843682e-07 | Q58: 3.001876763e-07

Sheet Constants
A1: Montana Rosebud Coal | H1: Southern Pine | N1: TRIG | O1: EFG | Q1: Torrefied Southern Pine
C2: As Received | D2: Dry Basis | J2: As Harvested | K2: As Received | L2: Dry Basis | M2: As Harvested (Pellet) | N2: As Received (Pellet) | O2: As Received (Pellet) | S2: As Received | T2: Dry Basis | AA2: From DOE/NETL-2011/1477
B3: Proximate Analysis | I3: Proximate Analysis | R3: Proximate Analysis
B4: Moisture (%) | C4: 25.77 | D4: 0 | I4: Moisture (%) | J4: 50 | K4: 43.3 | L4: 0 | M4: 50 | N4: 6.26 | O4: 5.17 | R4: Moisture (%) | S4: 5.72 | T4: 0
B5: Ash (%) | C5: 8.19 | D5: 11.04 | I5: Ash (%) | K5: 0.61803 | L5: 1.09 | R5: Ash (%) | T5: 0.541 | W5: I6 HHV as received (Btu/lb) | Z5: 11666
B6: Volatile Matter (%) | C6: 30.34 | D6: 40.87 | I6: Volatile Matter (%) | R6: Volatile Matter (%)
B7: Fixed Carbon (%) | C7: 35.7 | D7: 48.09 | I7: Fixed Carbon (%) | R7: Fixed Carbon (%)
B8: Ultimate Analysis | I8: Ultimate Analysis | R8: Ultimate Analysis
B9: Ash (%) | C9: 8.19 | D9: 11.03 | I9: Ash (%) | K9: 0.61803 | L9: 1.09 | R9: Ash (%) | S9: 0.51 | T9: 0.541
B10: C (%) | C10: 50.07 | D10: 67.45 | I10: C (%) | K10: 30.54996 | L10: 53.88 | R10: C (%) | S10: 59.8894 | T10: 63.523
B11: H (%) | C11: 3.38 | D11: 4.56 | I11: H (%) | K11: 3.02211 | L11: 5.33 | R11: H (%) | S11: 5.1102 | T11: 5.42
B12: N (%) | C12: 0.71 | D12: 0.96 | I12: N (%) | K12: 0.23247 | L12: 0.41 | R12: N (%) | S12: 0.41 | T12: 0.435
B13: Cl (%) | C13: 0.01 | D13: 0.01 | I13: Cl (%) | K13: 0 | L13: 0 | R13: Cl (%) | S13: 0 | T13: 0
B14: S (%) | C14: 0.73 | D14: 0.98 | I14: S (%) | K14: 0.02268 | L14: 0.04 | R14: S (%) | S14: 0 | T14: 0
B15: O (%) | C15: 11.14 | D15: 15.01 | I15: O (%) | K15: 22.25475 | L15: 39.25 | R15: O (%) | S15: 28.3604 | T15: 30.081
B16: Moisture (%) | C16: 25.77 | D16: 0 | I16: Moisture (%) | K16: 43.3 | L16: 0 | R16: Moisture (%) | S16: 5.72 | T16: 0
B17: Total (%) | C17: 100 | D17: 100 | I17: Total (%) | K17: =SUM(K9:K16) -> 100 | L17: =SUM(L9:L16) -> 100 | R17: Total (%) | S17: =SUM(S9:S16) -> 100 | T17: =SUM(T9:T16) -> 100
B18: Heating Value | I18: Heating Value | R18: Heating Value
B19: HHV (Btu/lb) | C19: 8564 | D19: 11516 | I19: HHV (Btu/lb) | K19: 4922.127 | L19: 8681 | R19: HHV (Btu/lb) | S19: 9748.552 | T19: 10340
B20: LHV (Btu/lb) | C20: 8252 | D20: 11096 | I20: LHV (Btu/lb) | K20: 4178.362655 | L20: 8174.9165 | R20: LHV (Btu/lb)
A23: FT Product Properties | J23: Moisture | K23: 43.3 | L23: =L4 -> 0 | M23: =M4 -> 50 | N23: =N4 -> 6.26 | O23: =O4 -> 5.17
C24: Density | D24: LHV | E24: HHV | J24: HHV | K24: =SLOPE($K$19:$L$19,$K$4:$L$4)*K23+INTERCEPT($K$19:$L$19,$K$4:$L$4) -> 4922.127 | L24: =SLOPE($K$19:$L$19,$K$4:$L$4)*L23+INTERCEPT($K$19:$L$19,$K$4:$L$4) -> 8681 | M24: =SLOPE($K$19:$L$19,$K$4:$L$4)*M23+INTERCEPT($K$19:$L$19,$K$4:$L$4) -> 4340.5 | N24: =SLOPE($K$19:$L$19,$K$4:$L$4)*N23+INTERCEPT($K$19:$L$19,$K$4:$L$4) -> 8137.5694 | O24: =SLOPE($K$19:$L$19,$K$4:$L$4)*O23+INTERCEPT($K$19:$L$19,$K$4:$L$4) -> 8232.1923
C25: lb/cu ft | D25: MMBtu/bbl | E25: MMBtu/bbl
B26: LPG | C26: 36.939 | D26: 4.1013 | E26: 4.4634
B27: Naphtha | C27: 44.1033 | D27: 4.682 | E27: 5.0203 | J27: HHV As Received
B28: Diesel | C28: 48.048 | D28: 4.994 | E28: 5.3528 | I28: PRB | J28: =C19 -> 8564
B29: Jet Fuel | C29: 47.444 | D29: 5.0173 | E29: 5.3718 | I29: I6 | J29: =Z5 -> 11666
I30: LIG | J30: ='Coal Analysis '!B8 -> 6617
I31: SYP-Chipped | J31: =K19 -> 4922.127
A32: Molecular Weights | I32: SYP-Torr | J32: =S19 -> 9748.552
B33: C | C33: 12.011 | I33: SYP-Pellets-TRIG | J33: =N24 -> 8137.5694
B34: CO2 | C34: 44.0098 | I34: SYP-Pellets-EFG | J34: =O24 -> 8232.1923
I35: SYP-TorrPellets | J35: =S19 -> 9748.552
I36: SG | J36: =Z46 -> 6851
A37: Conversion Factors | I37: MSW | J37: =J36 -> 6851
B39: kg/lb | C39: 0.4535924
B40: bbl/cu ft | C40: 0.1781075833
B41: Btu/W-h | C41: 3.412128479 | AA41: From DOE/NETL-2012/1542
B42: scf/lbmol | C42: 379.478
A44: CEPCI
B45: 2011-01-01 | C45: 564.8
B46: 2007-06-01 | C46: 532.7 | W46: Switchgrass HHV (Btu/lb) | Z46: 6851
A49: Economic Parameters
B50: TASC Multiplier | C50: 1.14
B51: Diesel:Jet Fuel Equivalent | C51: 0.99
B52: Naphtha:Jet Fuel Equivalent | C52: 0.69
B53: LPG:Jet Fuel Equivalent | C53: 0.4
B54: Crude Oil Equivalent Diesel/Oil | C54: 1.1433

Sheet 3.1 Plant I-O data (hidden)
A1: Type | B1: Name | C1: Unit | D1: ='2.1 Plant I-O All (Eff.)'!R1 -> 15 - TRIG-V-100% Coal | E1: ='2.1 Plant I-O All (Eff.)'!U1 -> 18 - TRIG-V-28.3% Bio, Chipped | F1: ='2.1 Plant I-O All (Eff.)'!R1 -> 15 - TRIG-V-100% Coal | G1: ='2.1 Plant I-O All (Eff.)'!X1 -> 21 - TRIG-V-28.3% Bio, Torrefied | H1: ='2.1 Plant I-O All (Eff.)'!R1 -> 15 - TRIG-V-100% Coal | I1: ='2.1 Plant I-O All (Eff.)'!AG1 -> 30 - TRIG-V-28.3% Bio, Pellets | J1: ='2.1 Plant I-O All (Eff.)'!R1 -> 15 - TRIG-V-100% Coal | K1: ='2.1 Plant I-O All (Eff.)'!AJ1 -> 33 - TRIG-V-28.3% Bio, Torrefied Pellets | L1: 44 - EFG-V-100% Coal | M1: 36 - EFG-M-30% Bio, Chipped | N1: 44 - EFG-V-100% Coal | O1: 38 - EFG-M-30% Bio, Torrefied | P1: ='2.1 Plant I-O All (Eff.)'!AU1 -> 44 - EFG-V-100% Coal | Q1: ='2.1 Plant I-O All (Eff.)'!AW1 -> 46 - EFG-V-30% Bio, Pellets | R1: ='2.1 Plant I-O All (Eff.)'!AU1 -> 44 - EFG-V-100% Coal | S1: ='2.1 Plant I-O All (Eff.)'!AY1 -> 48 - EFG-V-30% Bio, Torrefied Pellets | T1: ='2.1 Plant I-O All (Eff.)'!BO1 -> Zero S Diesel: SOW00 | U1: ='2.1 Plant I-O All (Eff.)'!BV1 -> Zero S Diesel: SOW15 | V1: ='2.1 Plant I-O All (Eff.)'!BK1 -> Zero S Diesel: SRW00 | W1: ='2.1 Plant I-O All (Eff.)'!BS1 -> Zero S Diesel: SRW15 | X1: ='2.1 Plant I-O All (Eff.)'!BO1 -> Zero S Diesel: SOW00 | Y1: ='2.1 Plant I-O All (Eff.)'!CB1 -> Zero S Diesel: SOW15MSW | Z1: ='2.1 Plant I-O All (Eff.)'!BK1 -> Zero S Diesel: SRW00 | AA1: ='2.1 Plant I-O All (Eff.)'!BY1 -> Zero S Diesel: SRW15MSW | AB1: ='2.1 Plant I-O All (Eff.)'!CY1 -> 15 - TRIG-V-100% Coal (L) | AC1: ='2.1 Plant I-O All (Eff.)'!DB1 -> 18 - TRIG-V-28.3% Bio, Chipped (L) | AD1: ='2.1 Plant I-O All (Eff.)'!CY1 -> 15 - TRIG-V-100% Coal (L) | AE1: ='2.1 Plant I-O All (Eff.)'!DE1 -> 21 - TRIG-V-28.3% Bio, Torrefied (L) | AF1: ='2.1 Plant I-O All (Eff.)'!CY1 -> 15 - TRIG-V-100% Coal (L) | AG1: ='2.1 Plant I-O All (Eff.)'!DF1 -> 30 - TRIG-V-28.3% Bio, Pellets (L) | AH1: ='2.1 Plant I-O All (Eff.)'!CY1 -> 15 - TRIG-V-100% Coal (L) | AI1: ='2.1 Plant I-O All (Eff.)'!DG1 -> 33 - TRIG-V-28.3% Bio, Torrefied Pellets (L) | AJ1: 44 - EFG-V-100% Coal (L) | AK1: 36 - EFG-M-30% Bio, Chipped (L) | AL1: 44 - EFG-V-100% Coal (L) | AM1: 38 - EFG-M-30% Bio, Torrefied (L) | AN1: ='2.1 Plant I-O All (Eff.)'!DH1 -> 44 - EFG-V-100% Coal (L) | AO1: ='2.1 Plant I-O All (Eff.)'!DJ1 -> 46 - EFG-V-30% Bio, Pellets (L) | AP1: ='2.1 Plant I-O All (Eff.)'!DH1 -> 44 - EFG-V-100% Coal (L) | AQ1: ='2.1 Plant I-O All (Eff.)'!DL1 -> 48 - EFG-V-30% Bio, Torrefied Pellets (L) | AR1: ='2.1 Plant I-O All (Eff.)'!BA1 -> CTL Baseline: Sequestration | AT1: ='2.1 Plant I-O All (Eff.)'!BE1 -> Zero S Diesel: BOW00 | AU1: ='2.1 Plant I-O All (Eff.)'!BH1 -> Zero S Diesel: BOW15 | AV1: ='2.1 Plant I-O All (Eff.)'!BC1 -> Zero S Diesel: BRW00 | AW1: ='2.1 Plant I-O All (Eff.)'!BG1 -> Zero S Diesel: BRW15 | AX1: ='2.1 Plant I-O All (Eff.)'!BE1 -> Zero S Diesel: BOW00 | AY1: ='2.1 Plant I-O All (Eff.)'!BJ1 -> Zero S Diesel: BOW15MSW | AZ1: ='2.1 Plant I-O All (Eff.)'!BC1 -> Zero S Diesel: BRW00 | BA1: ='2.1 Plant I-O All (Eff.)'!BI1 -> Zero S Diesel: BRW15MSW | BC1: ='2.1 Plant I-O All (Eff.)'!CI1 -> Zero S Diesel: LOW00 | BD1: ='2.1 Plant I-O All (Eff.)'!CP1 -> Zero S Diesel: LOW15 | BE1: ='2.1 Plant I-O All (Eff.)'!CE1 -> Zero S Diesel: LRW00 | BF1: ='2.1 Plant I-O All (Eff.)'!CM1 -> Zero S Diesel: LRW15 | BG1: ='2.1 Plant I-O All (Eff.)'!CI1 -> Zero S Diesel: LOW00 | BH1: ='2.1 Plant I-O All (Eff.)'!CV1 -> Zero S Diesel: LOW15MSW | BI1: ='2.1 Plant I-O All (Eff.)'!CE1 -> Zero S Diesel: LRW00 | BJ1: ='2.1 Plant I-O All (Eff.)'!CS1 -> Zero S Diesel: LRW15MSW
B2: Biomass Percentage | C2: % | D2: ='2.1 Plant I-O All (Eff.)'!R2 -> 0 | E2: ='2.1 Plant I-O All (Eff.)'!U2 -> 0.283 | F2: ='2.1 Plant I-O All (Eff.)'!R2 -> 0 | G2: ='2.1 Plant I-O All (Eff.)'!X2 -> 0.283 | H2: ='2.1 Plant I-O All (Eff.)'!R2 -> 0 | I2: ='2.1 Plant I-O All (Eff.)'!AG2 -> 0.283 | J2: ='2.1 Plant I-O All (Eff.)'!R2 -> 0 | K2: ='2.1 Plant I-O All (Eff.)'!AJ2 -> 0.283 | L2: 0 | M2: 0.3 | N2: 0 | O2: 0.3 | P2: ='2.1 Plant I-O All (Eff.)'!AU2 -> 0 | Q2: ='2.1 Plant I-O All (Eff.)'!AW2 -> 0.3 | R2: ='2.1 Plant I-O All (Eff.)'!AU2 -> 0 | S2: ='2.1 Plant I-O All (Eff.)'!AY2 -> 0.3 | T2: ='2.1 Plant I-O All (Eff.)'!BO2 -> 0 | U2: ='2.1 Plant I-O All (Eff.)'!BV2 -> 0.15 | V2: ='2.1 Plant I-O All (Eff.)'!BK2 -> 0 | W2: ='2.1 Plant I-O All (Eff.)'!BS2 -> 0.15 | X2: ='2.1 Plant I-O All (Eff.)'!BO2 -> 0 | Y2: ='2.1 Plant I-O All (Eff.)'!CB2 -> 0.15 | Z2: ='2.1 Plant I-O All (Eff.)'!BK2 -> 0 | AA2: ='2.1 Plant I-O All (Eff.)'!BY2 -> 0.15 | AB2: ='2.1 Plant I-O All (Eff.)'!CY2 -> 0 | AC2: ='2.1 Plant I-O All (Eff.)'!DB2 -> 0.283 | AD2: ='2.1 Plant I-O All (Eff.)'!CY2 -> 0 | AE2: ='2.1 Plant I-O All (Eff.)'!DE2 -> 0.283 | AF2: ='2.1 Plant I-O All (Eff.)'!CY2 -> 0 | AG2: ='2.1 Plant I-O All (Eff.)'!DF2 -> 0.283 | AH2: ='2.1 Plant I-O All (Eff.)'!CY2 -> 0 | AI2: ='2.1 Plant I-O All (Eff.)'!DG2 -> 0.283 | AJ2: 0 | AK2: 0.3 | AL2: 0 | AM2: 0.3 | AN2: ='2.1 Plant I-O All (Eff.)'!DH2 -> 0 | AO2: ='2.1 Plant I-O All (Eff.)'!DJ2 -> 0.3 | AP2: ='2.1 Plant I-O All (Eff.)'!DH2 -> 0 | AQ2: ='2.1 Plant I-O All (Eff.)'!DL2 -> 0.3 | AR2: ='2.1 Plant I-O All (Eff.)'!BA2 -> 0 | AT2: ='2.1 Plant I-O All (Eff.)'!BE2 -> 0 | AU2: ='2.1 Plant I-O All (Eff.)'!BH2 -> 0.15 | AV2: ='2.1 Plant I-O All (Eff.)'!BC2 -> 0 | AW2: ='2.1 Plant I-O All (Eff.)'!BG2 -> 0.15 | AX2: ='2.1 Plant I-O All (Eff.)'!BE2 -> 0 | AY2: ='2.1 Plant I-O All (Eff.)'!BJ2 -> 0.15 | AZ2: ='2.1 Plant I-O All (Eff.)'!BC2 -> 0 | BA2: ='2.1 Plant I-O All (Eff.)'!BI2 -> 0.15 | BC2: ='2.1 Plant I-O All (Eff.)'!CI2 -> 0 | BD2: ='2.1 Plant I-O All (Eff.)'!CP2 -> 0.15 | BE2: ='2.1 Plant I-O All (Eff.)'!CE2 -> 0 | BF2: ='2.1 Plant I-O All (Eff.)'!CM2 -> 0.15 | BG2: ='2.1 Plant I-O All (Eff.)'!CI2 -> 0 | BH2: =BD2 -> 0.15 | BI2: ='2.1 Plant I-O All (Eff.)'!CE2 -> 0 | BJ2: =BF2 -> 0.15
A3: INPUTS | B3: Coal - PRB | C3: lb/hr (As Received) | D3: ='2.1 Plant I-O All (Eff.)'!R3 -> 2545221.24 | E3: ='2.1 Plant I-O All (Eff.)'!U3 -> 1959978.68 | F3: ='2.1 Plant I-O All (Eff.)'!R3 -> 2545221.24 | G3: ='2.1 Plant I-O All (Eff.)'!X3 -> 1776619.35 | H3: ='2.1 Plant I-O All (Eff.)'!R3 -> 2545221.24 | I3: ='2.1 Plant I-O All (Eff.)'!AG3 -> 1888644.11 | J3: ='2.1 Plant I-O All (Eff.)'!R3 -> 2545221.24 | K3: ='2.1 Plant I-O All (Eff.)'!AJ3 -> 1781858.25 | L3: 2525477.32 | M3: 2041217.95 | N3: 2525477.32 | O3: 1800621.89 | P3: ='2.1 Plant I-O All (Eff.)'!AU3 -> 2525477.32 | Q3: ='2.1 Plant I-O All (Eff.)'!AW3 -> 1941167 | R3: ='2.1 Plant I-O All (Eff.)'!AU3 -> 2525477.32 | S3: ='2.1 Plant I-O All (Eff.)'!AY3 -> 1743833.92 | T3: ='2.1 Plant I-O All (Eff.)'!BO3 -> 2982578.83 | U3: ='2.1 Plant I-O All (Eff.)'!BV3 -> 2674850.255 | V3: ='2.1 Plant I-O All (Eff.)'!BK3 -> 2662541.112 | W3: ='2.1 Plant I-O All (Eff.)'!BS3 -> 2469452.914 | X3: ='2.1 Plant I-O All (Eff.)'!BO3 -> 2982578.83 | Y3: ='2.1 Plant I-O All (Eff.)'!CB3 -> 2674850.255 | Z3: ='2.1 Plant I-O All (Eff.)'!BK3 -> 2662541.112 | AA3: ='2.1 Plant I-O All (Eff.)'!BY3 -> 2469452.914 | AB3: ='2.1 Plant I-O All (Eff.)'!CY3 -> 0 | AC3: ='2.1 Plant I-O All (Eff.)'!DB3 -> 0 | AD3: ='2.1 Plant I-O All (Eff.)'!CY3 -> 0 | AE3: ='2.1 Plant I-O All (Eff.)'!DE3 -> 0 | AF3: ='2.1 Plant I-O All (Eff.)'!CY3 -> 0 | AG3: ='2.1 Plant I-O All (Eff.)'!DF3 -> 0 | AH3: ='2.1 Plant I-O All (Eff.)'!CY3 -> 0 | AI3: ='2.1 Plant I-O All (Eff.)'!DG3 -> 0 | AJ3: 0 | AK3: 0 | AL3: 0 | AM3: 0 | AN3: ='2.1 Plant I-O All (Eff.)'!DH3 -> 0 | AO3: ='2.1 Plant I-O All (Eff.)'!DJ3 -> 0 | AP3: ='2.1 Plant I-O All (Eff.)'!DH3 -> 0 | AQ3: ='2.1 Plant I-O All (Eff.)'!DL3 -> 0 | AR3: ='2.1 Plant I-O All (Eff.)'!BA3 -> 0 | AT3: ='2.1 Plant I-O All (Eff.)'!BE3 -> 0 | AU3: ='2.1 Plant I-O All (Eff.)'!BH3 -> 0 | AV3: ='2.1 Plant I-O All (Eff.)'!BC3 -> 0 | AW3: ='2.1 Plant I-O All (Eff.)'!BG3 -> 0 | AX3: ='2.1 Plant I-O All (Eff.)'!BE3 -> 0 | AY3: ='2.1 Plant I-O All (Eff.)'!BJ3 -> 0 | AZ3: ='2.1 Plant I-O All (Eff.)'!BC3 -> 0 | BA3: ='2.1 Plant I-O All (Eff.)'!BI3 -> 0 | BC3: ='2.1 Plant I-O All (Eff.)'!CI3 -> 0 | BD3: ='2.1 Plant I-O All (Eff.)'!CP3 -> 0 | BE3: ='2.1 Plant I-O All (Eff.)'!CE3 -> 0 | BF3: ='2.1 Plant I-O All (Eff.)'!CM3 -> 0 | BG3: ='2.1 Plant I-O All (Eff.)'!CI3 -> 0 | BH3: =BD3 -> 0 | BI3: ='2.1 Plant I-O All (Eff.)'!CE3 -> 0 | BJ3: =BF3 -> 0
B4: Coal - I6 | C4: lb/hr (As Received) | D4: ='2.1 Plant I-O All (Eff.)'!R4 -> 0 | E4: ='2.1 Plant I-O All (Eff.)'!U4 -> 0 | F4: ='2.1 Plant I-O All (Eff.)'!R4 -> 0 | G4: ='2.1 Plant I-O All (Eff.)'!X4 -> 0 | H4: ='2.1 Plant I-O All (Eff.)'!R4 -> 0 | I4: ='2.1 Plant I-O All (Eff.)'!AG4 -> 0 | J4: ='2.1 Plant I-O All (Eff.)'!R4 -> 0 | K4: ='2.1 Plant I-O All (Eff.)'!AJ4 -> 0 | L4: 0 | M4: 0 | N4: 0 | O4: 0 | P4: ='2.1 Plant I-O All (Eff.)'!AU4 -> 0 | Q4: ='2.1 Plant I-O All (Eff.)'!AW4 -> 0 | R4: ='2.1 Plant I-O All (Eff.)'!AU4 -> 0 | S4: ='2.1 Plant I-O All (Eff.)'!AY4 -> 0 | T4: ='2.1 Plant I-O All (Eff.)'!BO4 -> 0 | U4: ='2.1 Plant I-O All (Eff.)'!BV4 -> 0 | V4: ='2.1 Plant I-O All (Eff.)'!BK4 -> 0 | W4: ='2.1 Plant I-O All (Eff.)'!BS4 -> 0 | X4: ='2.1 Plant I-O All (Eff.)'!BO4 -> 0 | Y4: ='2.1 Plant I-O All (Eff.)'!CB4 -> 0 | Z4: ='2.1 Plant I-O All (Eff.)'!BK4 -> 0 | AA4: ='2.1 Plant I-O All (Eff.)'!BY4 -> 0 | AB4: ='2.1 Plant I-O All (Eff.)'!CY4 -> 0 | AC4: ='2.1 Plant I-O All (Eff.)'!DB4 -> 0 | AD4: ='2.1 Plant I-O All (Eff.)'!CY4 -> 0 | AE4: ='2.1 Plant I-O All (Eff.)'!DE4 -> 0 | AF4: ='2.1 Plant I-O All (Eff.)'!CY4 -> 0 | AG4: ='2.1 Plant I-O All (Eff.)'!DF4 -> 0 | AH4: ='2.1 Plant I-O All (Eff.)'!CY4 -> 0 | AI4: ='2.1 Plant I-O All (Eff.)'!DG4 -> 0 | AJ4: 0 | AK4: 0 | AL4: 0 | AM4: 0 | AN4: ='2.1 Plant I-O All (Eff.)'!DH4 -> 0 | AO4: ='2.1 Plant I-O All (Eff.)'!DJ4 -> 0 | AP4: ='2.1 Plant I-O All (Eff.)'!DH4 -> 0 | AQ4: ='2.1 Plant I-O All (Eff.)'!DL4 -> 0 | AR4: ='2.1 Plant I-O All (Eff.)'!BA4 -> 1750470.362 | AT4: ='2.1 Plant I-O All (Eff.)'!BE4 -> 2328540.785 | AU4: ='2.1 Plant I-O All (Eff.)'!BH4 -> 2118458.621 | AV4: ='2.1 Plant I-O All (Eff.)'!BC4 -> 2066833.708 | AW4: ='2.1 Plant I-O All (Eff.)'!BG4 -> 1869979.28 | AX4: ='2.1 Plant I-O All (Eff.)'!BE4 -> 2328540.785 | AY4: ='2.1 Plant I-O All (Eff.)'!BJ4 -> 2118458.621 | AZ4: ='2.1 Plant I-O All (Eff.)'!BC4 -> 2066833.708 | BA4: ='2.1 Plant I-O All (Eff.)'!BI4 -> 1869979.28 | BC4: ='2.1 Plant I-O All (Eff.)'!CI4 -> 0 | BD4: ='2.1 Plant I-O All (Eff.)'!CP4 -> 0 | BE4: ='2.1 Plant I-O All (Eff.)'!CE4 -> 0 | BF4: ='2.1 Plant I-O All (Eff.)'!CM4 -> 0 | BG4: ='2.1 Plant I-O All (Eff.)'!CI4 -> 0 | BH4: 0 | BI4: ='2.1 Plant I-O All (Eff.)'!CE4 -> 0 | BJ4: 0
B5: Coal - Lignite | C5: lb/hr (As Received) | D5: ='2.1 Plant I-O All (Eff.)'!R5 -> 0 | E5: ='2.1 Plant I-O All (Eff.)'!U5 -> 0 | F5: ='2.1 Plant I-O All (Eff.)'!R5 -> 0 | G5: ='2.1 Plant I-O All (Eff.)'!X5 -> 0 | H5: ='2.1 Plant I-O All (Eff.)'!R5 -> 0 | I5: ='2.1 Plant I-O All (Eff.)'!AG5 -> 0 | J5: ='2.1 Plant I-O All (Eff.)'!R5 -> 0 | K5: ='2.1 Plant I-O All (Eff.)'!AJ5 -> 0 | L5: 0 | M5: 0 | N5: 0 | O5: 0 | P5: ='2.1 Plant I-O All (Eff.)'!AU5 -> 0 | Q5: ='2.1 Plant I-O All (Eff.)'!AW5 -> 0 | R5: ='2.1 Plant I-O All (Eff.)'!AU5 -> 0 | S5: ='2.1 Plant I-O All (Eff.)'!AY5 -> 0 | T5: ='2.1 Plant I-O All (Eff.)'!BO5 -> 0 | U5: ='2.1 Plant I-O All (Eff.)'!BV5 -> 0 | V5: ='2.1 Plant I-O All (Eff.)'!BK5 -> 0 | W5: ='2.1 Plant I-O All (Eff.)'!BS5 -> 0 | X5: ='2.1 Plant I-O All (Eff.)'!BO5 -> 0 | Y5: ='2.1 Plant I-O All (Eff.)'!CB5 -> 0 | Z5: ='2.1 Plant I-O All (Eff.)'!BK5 -> 0 | AA5: ='2.1 Plant I-O All (Eff.)'!BY5 -> 0 | AB5: ='2.1 Plant I-O All (Eff.)'!CY5 -> 3299360.867 | AC5: ='2.1 Plant I-O All (Eff.)'!DB5 -> 2540713.104 | AD5: ='2.1 Plant I-O All (Eff.)'!CY5 -> 3299360.867 | AE5: ='2.1 Plant I-O All (Eff.)'!DE5 -> 2303025.083 | AF5: ='2.1 Plant I-O All (Eff.)'!CY5 -> 3299360.867 | AG5: ='2.1 Plant I-O All (Eff.)'!DF5 -> 2448242.365 | AH5: ='2.1 Plant I-O All (Eff.)'!CY5 -> 3299360.867 | AI5: ='2.1 Plant I-O All (Eff.)'!DG5 -> 2309816.25 | AJ5: 3273766.896 | AK5: 2646023.269 | AL5: 3273766.896 | AM5: 2334139.487 | AN5: ='2.1 Plant I-O All (Eff.)'!DH5 -> 3273766.896 | AO5: ='2.1 Plant I-O All (Eff.)'!DJ5 -> 2516327.593 | AP5: ='2.1 Plant I-O All (Eff.)'!DH5 -> 3273766.896 | AQ5: ='2.1 Plant I-O All (Eff.)'!DL5 -> 2260525.452 | AR5: ='2.1 Plant I-O All (Eff.)'!BA5 -> 0 | AT5: ='2.1 Plant I-O All (Eff.)'!BE5 -> 0 | AU5: ='2.1 Plant I-O All (Eff.)'!BH5 -> 0 | AV5: ='2.1 Plant I-O All (Eff.)'!BC5 -> 0 | AW5: ='2.1 Plant I-O All (Eff.)'!BG5 -> 0 | AX5: ='2.1 Plant I-O All (Eff.)'!BE5 -> 0 | AY5: ='2.1 Plant I-O All (Eff.)'!BJ5 -> 0 | AZ5: ='2.1 Plant I-O All (Eff.)'!BC5 -> 0 | BA5: ='2.1 Plant I-O All (Eff.)'!BI5 -> 0 | BC5: ='2.1 Plant I-O All (Eff.)'!CI5 -> 3866305.89 | BD5: ='2.1 Plant I-O All (Eff.)'!CP5 -> 3467398.479 | BE5: ='2.1 Plant I-O All (Eff.)'!CE5 -> 3451442.183 | BF5: ='2.1 Plant I-O All (Eff.)'!CM5 -> 3201142.667 | BG5: ='2.1 Plant I-O All (Eff.)'!CI5 -> 3866305.89 | BH5: 3467398.479 | BI5: ='2.1 Plant I-O All (Eff.)'!CE5 -> 3451442.183 | BJ5: 3201142.667
B6: Biomass - Southern Pine | C6: lb/hr (As Received) | D6: ='2.1 Plant I-O All (Eff.)'!R6 -> 0 | E6: ='2.1 Plant I-O All (Eff.)'!U6 -> 1012779.8 | F6: ='2.1 Plant I-O All (Eff.)'!R6 -> 0 | G6: ='2.1 Plant I-O All (Eff.)'!X6 -> 0 | H6: ='2.1 Plant I-O All (Eff.)'!R6 -> 0 | I6: ='2.1 Plant I-O All (Eff.)'!AG6 -> 674812.341 | J6: ='2.1 Plant I-O All (Eff.)'!R6 -> 0 | K6: ='2.1 Plant I-O All (Eff.)'!AJ6 -> 0 | L6: 1.756224562e-08 | M6: 1145272.93 | N6: 1.756224562e-08 | O6: 0 | P6: ='2.1 Plant I-O All (Eff.)'!AU6 -> 1.024464328e-08 | Q6: ='2.1 Plant I-O All (Eff.)'!AW6 -> 656958.175 | R6: ='2.1 Plant I-O All (Eff.)'!AU6 -> 1.024464328e-08 | S6: ='2.1 Plant I-O All (Eff.)'!AY6 -> 0 | T6: ='2.1 Plant I-O All (Eff.)'!BO6 -> 0 | U6: ='2.1 Plant I-O All (Eff.)'!BV6 -> 0 | V6: ='2.1 Plant I-O All (Eff.)'!BK6 -> 0 | W6: ='2.1 Plant I-O All (Eff.)'!BS6 -> 0 | X6: ='2.1 Plant I-O All (Eff.)'!BO6 -> 0 | Y6: ='2.1 Plant I-O All (Eff.)'!CB6 -> 0 | Z6: ='2.1 Plant I-O All (Eff.)'!BK6 -> 0 | AA6: ='2.1 Plant I-O All (Eff.)'!BY6 -> 0 | AB6: ='2.1 Plant I-O All (Eff.)'!CY6 -> 0 | AC6: ='2.1 Plant I-O All (Eff.)'!DB6 -> 1012779.8 | AD6: ='2.1 Plant I-O All (Eff.)'!CY6 -> 0 | AE6: ='2.1 Plant I-O All (Eff.)'!DE6 -> 0 | AF6: ='2.1 Plant I-O All (Eff.)'!CY6 -> 0 | AG6: ='2.1 Plant I-O All (Eff.)'!DF6 -> 674812.341 | AH6: ='2.1 Plant I-O All (Eff.)'!CY6 -> 0 | AI6: ='2.1 Plant I-O All (Eff.)'!DG6 -> 0 | AJ6: 1.368120447e-08 | AK6: 1145272.93 | AL6: 1.368120447e-08 | AM6: 0 | AN6: ='2.1 Plant I-O All (Eff.)'!DH6 -> 1.026090335e-08 | AO6: ='2.1 Plant I-O All (Eff.)'!DJ6 -> 656958.175 | AP6: ='2.1 Plant I-O All (Eff.)'!DH6 -> 1.026090335e-08 | AQ6: ='2.1 Plant I-O All (Eff.)'!DL6 -> 0 | AR6: ='2.1 Plant I-O All (Eff.)'!BA6 -> 0 | AT6: ='2.1 Plant I-O All (Eff.)'!BE6 -> 0 | AU6: ='2.1 Plant I-O All (Eff.)'!BH6 -> 0 | AV6: ='2.1 Plant I-O All (Eff.)'!BC6 -> 0 | AW6: ='2.1 Plant I-O All (Eff.)'!BG6 -> 0 | AX6: ='2.1 Plant I-O All (Eff.)'!BE6 -> 0 | AY6: ='2.1 Plant I-O All (Eff.)'!BJ6 -> 0 | AZ6: ='2.1 Plant I-O All (Eff.)'!BC6 -> 0 | BA6: ='2.1 Plant I-O All (Eff.)'!BI6 -> 0 | BC6: ='2.1 Plant I-O All (Eff.)'!CI6 -> 0 | BD6: ='2.1 Plant I-O All (Eff.)'!CP6 -> 0 | BE6: ='2.1 Plant I-O All (Eff.)'!CE6 -> 0 | BF6: ='2.1 Plant I-O All (Eff.)'!CM6 -> 0 | BG6: ='2.1 Plant I-O All (Eff.)'!CI6 -> 0 | BH6: 0 | BI6: ='2.1 Plant I-O All (Eff.)'!CE6 -> 0 | BJ6: 0
B7: Biomass - Switchgrass | C7: lb/hr (As Received) | D7: ='2.1 Plant I-O All (Eff.)'!R7 -> 0 | E7: ='2.1 Plant I-O All (Eff.)'!U7 -> 0 | F7: ='2.1 Plant I-O All (Eff.)'!R7 -> 0 | G7: ='2.1 Plant I-O All (Eff.)'!X7 -> 0 | H7: ='2.1 Plant I-O All (Eff.)'!R7 -> 0 | I7: ='2.1 Plant I-O All (Eff.)'!AG7 -> 0 | J7: ='2.1 Plant I-O All (Eff.)'!R7 -> 0 | K7: ='2.1 Plant I-O All (Eff.)'!AJ7 -> 0 | L7: 0 | M7: 0 | N7: 0 | O7: 0 | P7: ='2.1 Plant I-O All (Eff.)'!AU7 -> 0 | Q7: ='2.1 Plant I-O All (Eff.)'!AW7 -> 0 | R7: ='2.1 Plant I-O All (Eff.)'!AU7 -> 0 | S7: ='2.1 Plant I-O All (Eff.)'!AY7 -> 0 | T7: ='2.1 Plant I-O All (Eff.)'!BO7 -> 0 | U7: ='2.1 Plant I-O All (Eff.)'!BV7 -> 472064.8189 | V7: ='2.1 Plant I-O All (Eff.)'!BK7 -> 0 | W7: ='2.1 Plant I-O All (Eff.)'!BS7 -> 435780.4049 | X7: ='2.1 Plant I-O All (Eff.)'!BO7 -> 0 | Y7: ='2.1 Plant I-O All (Eff.)'!CB7 -> 0 | Z7: ='2.1 Plant I-O All (Eff.)'!BK7 -> 0 | AA7: ='2.1 Plant I-O All (Eff.)'!BY7 -> 0 | AB7: ='2.1 Plant I-O All (Eff.)'!CY7 -> 0 | AC7: ='2.1 Plant I-O All (Eff.)'!DB7 -> 0 | AD7: ='2.1 Plant I-O All (Eff.)'!CY7 -> 0 | AE7: ='2.1 Plant I-O All (Eff.)'!DE7 -> 0 | AF7: ='2.1 Plant I-O All (Eff.)'!CY7 -> 0 | AG7: ='2.1 Plant I-O All (Eff.)'!DF7 -> 0 | AH7: ='2.1 Plant I-O All (Eff.)'!CY7 -> 0 | AI7: ='2.1 Plant I-O All (Eff.)'!DG7 -> 0 | AJ7: 0 | AK7: 0 | AL7: 0 | AM7: 0 | AN7: ='2.1 Plant I-O All (Eff.)'!DH7 -> 0 | AO7: ='2.1 Plant I-O All (Eff.)'!DJ7 -> 0 | AP7: ='2.1 Plant I-O All (Eff.)'!DH7 -> 0 | AQ7: ='2.1 Plant I-O All (Eff.)'!DL7 -> 0 | AR7: ='2.1 Plant I-O All (Eff.)'!BA7 -> 0 | AT7: ='2.1 Plant I-O All (Eff.)'!BE7 -> 0 | AU7: ='2.1 Plant I-O All (Eff.)'!BH7 -> 373867.253 | AV7: ='2.1 Plant I-O All (Eff.)'!BC7 -> 0 | AW7: ='2.1 Plant I-O All (Eff.)'!BG7 -> 329958.5191 | AX7: ='2.1 Plant I-O All (Eff.)'!BE7 -> 0 | AY7: ='2.1 Plant I-O All (Eff.)'!BJ7 -> 0 | AZ7: ='2.1 Plant I-O All (Eff.)'!BC7 -> 0 | BA7: ='2.1 Plant I-O All (Eff.)'!BI7 -> 0 | BC7: ='2.1 Plant I-O All (Eff.)'!CI7 -> 0 | BD7: ='2.1 Plant I-O All (Eff.)'!CP7 -> 472064.8189 | BE7: ='2.1 Plant I-O All (Eff.)'!CE7 -> 0 | BF7: ='2.1 Plant I-O All (Eff.)'!CM7 -> 435780.4049 | BG7: ='2.1 Plant I-O All (Eff.)'!CI7 -> 0 | BH7: 0 | BI7: ='2.1 Plant I-O All (Eff.)'!CE7 -> 0 | BJ7: 0
B8: Biomass - Municipal Solid Waste | C8: lb/hr (As Received) | D8: ='2.1 Plant I-O All (Eff.)'!R8 -> 0 | E8: ='2.1 Plant I-O All (Eff.)'!U8 -> 0 | F8: ='2.1 Plant I-O All (Eff.)'!R8 -> 0 | G8: ='2.1 Plant I-O All (Eff.)'!X8 -> 0 | H8: ='2.1 Plant I-O All (Eff.)'!R8 -> 0 | I8: ='2.1 Plant I-O All (Eff.)'!AG8 -> 0 | J8: ='2.1 Plant I-O All (Eff.)'!R8 -> 0 | K8: ='2.1 Plant I-O All (Eff.)'!AJ8 -> 0 | L8: 0 | M8: 0 | N8: 0 | O8: 0 | P8: ='2.1 Plant I-O All (Eff.)'!AU8 -> 0 | Q8: ='2.1 Plant I-O All (Eff.)'!AW8 -> 0 | R8: ='2.1 Plant I-O All (Eff.)'!AU8 -> 0 | S8: ='2.1 Plant I-O All (Eff.)'!AY8 -> 0 | T8: ='2.1 Plant I-O All (Eff.)'!BO8 -> 0 | U8: ='2.1 Plant I-O All (Eff.)'!BV8 -> 0 | V8: ='2.1 Plant I-O All (Eff.)'!BK8 -> 0 | W8: ='2.1 Plant I-O All (Eff.)'!BS8 -> 0 | X8: ='2.1 Plant I-O All (Eff.)'!BO8 -> 0 | Y8: ='2.1 Plant I-O All (Eff.)'!CB8 -> 472064.8189 | Z8: ='2.1 Plant I-O All (Eff.)'!BK8 -> 0 | AA8: ='2.1 Plant I-O All (Eff.)'!BY8 -> 435780.4049 | AB8: ='2.1 Plant I-O All (Eff.)'!CY8 -> 0 | AC8: ='2.1 Plant I-O All (Eff.)'!DB8 -> 0 | AD8: ='2.1 Plant I-O All (Eff.)'!CY8 -> 0 | AE8: ='2.1 Plant I-O All (Eff.)'!DE8 -> 0 | AF8: ='2.1 Plant I-O All (Eff.)'!CY8 -> 0 | AG8: ='2.1 Plant I-O All (Eff.)'!DF8 -> 0 | AH8: ='2.1 Plant I-O All (Eff.)'!CY8 -> 0 | AI8: ='2.1 Plant I-O All (Eff.)'!DG8 -> 0 | AJ8: 0 | AK8: 0 | AL8: 0 | AM8: 0 | AN8: ='2.1 Plant I-O All (Eff.)'!DH8 -> 0 | AO8: ='2.1 Plant I-O All (Eff.)'!DJ8 -> 0 | AP8: ='2.1 Plant I-O All (Eff.)'!DH8 -> 0 | AQ8: ='2.1 Plant I-O All (Eff.)'!DL8 -> 0 | AR8: ='2.1 Plant I-O All (Eff.)'!BA8 -> 0 | AT8: ='2.1 Plant I-O All (Eff.)'!BE8 -> 0 | AU8: ='2.1 Plant I-O All (Eff.)'!BH8 -> 0 | AV8: ='2.1 Plant I-O All (Eff.)'!BC8 -> 0 | AW8: ='2.1 Plant I-O All (Eff.)'!BG8 -> 0 | AX8: ='2.1 Plant I-O All (Eff.)'!BE8 -> 0 | AY8: ='2.1 Plant I-O All (Eff.)'!BJ8 -> 373867.253 | AZ8: ='2.1 Plant I-O All (Eff.)'!BC8 -> 0 | BA8: ='2.1 Plant I-O All (Eff.)'!BI8 -> 329958.5191 | BC8: ='2.1 Plant I-O All (Eff.)'!CI8 -> 0 | BD8: ='2.1 Plant I-O All (Eff.)'!CP8 -> 0 | BE8: ='2.1 Plant I-O All (Eff.)'!CE8 -> 0 | BF8: ='2.1 Plant I-O All (Eff.)'!CM8 -> 0 | BG8: ='2.1 Plant I-O All (Eff.)'!CI8 -> 0 | BH8: 472064.8189 | BI8: ='2.1 Plant I-O All (Eff.)'!CE8 -> 0 | BJ8: 435780.4049
B9: Coal - PRB | C9: lb/hr (Dried) | D9: ='2.1 Plant I-O All (Eff.)'!R9 -> 2304046.01 | E9: ='2.1 Plant I-O All (Eff.)'!U9 -> 1774258.75 | F9: ='2.1 Plant I-O All (Eff.)'!R9 -> 2304046.01 | G9: ='2.1 Plant I-O All (Eff.)'!X9 -> 1608273.84 | H9: ='2.1 Plant I-O All (Eff.)'!R9 -> 2304046.01 | I9: ='2.1 Plant I-O All (Eff.)'!AG9 -> 1709683.56 | J9: ='2.1 Plant I-O All (Eff.)'!R9 -> 2304046.01 | K9: ='2.1 Plant I-O All (Eff.)'!AJ9 -> 1613016.32 | L9: 1994321.08 | M9: 1611910.73 | N9: 1994321.08 | O9: 1421916.63 | P9: ='2.1 Plant I-O All (Eff.)'!AU9 -> 1994321.08 | Q9: ='2.1 Plant I-O All (Eff.)'!AW9 -> 1532902.41 | R9: ='2.1 Plant I-O All (Eff.)'!AU9 -> 1994321.08 | S9: ='2.1 Plant I-O All (Eff.)'!AY9 -> 1377072.25 | T9: ='2.1 Plant I-O All (Eff.)'!BO9 -> 0 | U9: ='2.1 Plant I-O All (Eff.)'!BV9 -> 0 | V9: ='2.1 Plant I-O All (Eff.)'!BK9 -> 0 | W9: ='2.1 Plant I-O All (Eff.)'!BS9 -> 0 | X9: ='2.1 Plant I-O All (Eff.)'!BO9 -> 0 | Y9: ='2.1 Plant I-O All (Eff.)'!CB9 -> 0 | Z9: ='2.1 Plant I-O All (Eff.)'!BK9 -> 0 | AA9: ='2.1 Plant I-O All (Eff.)'!BY9 -> 0 | AB9: ='2.1 Plant I-O All (Eff.)'!CY9 -> 2304046.01 | AC9: ='2.1 Plant I-O All (Eff.)'!DB9 -> 1774258.75 | AD9: ='2.1 Plant I-O All (Eff.)'!CY9 -> 2304046.01 | AE9: ='2.1 Plant I-O All (Eff.)'!DE9 -> 1608273.84 | AF9: ='2.1 Plant I-O All (Eff.)'!CY9 -> 2304046.01 | AG9: ='2.1 Plant I-O All (Eff.)'!DF9 -> 1709683.56 | AH9: ='2.1 Plant I-O All (Eff.)'!CY9 -> 2304046.01 | AI9: ='2.1 Plant I-O All (Eff.)'!DG9 -> 1613016.32 | AJ9: 1994321.08 | AK9: 1611910.73 | AL9: 1994321.08 | AM9: 1421916.63 | AN9: ='2.1 Plant I-O All (Eff.)'!DH9 -> 1994321.08 | AO9: ='2.1 Plant I-O All (Eff.)'!DJ9 -> 1532902.41 | AP9: ='2.1 Plant I-O All (Eff.)'!DH9 -> 1994321.08 | AQ9: ='2.1 Plant I-O All (Eff.)'!DL9 -> 1377072.25 | AR9: ='2.1 Plant I-O All (Eff.)'!BA9 -> 0 | AT9: ='2.1 Plant I-O All (Eff.)'!BE9 -> 0 | AU9: ='2.1 Plant I-O All (Eff.)'!BH9 -> 0 | AV9: ='2.1 Plant I-O All (Eff.)'!BC9 -> 0 | AW9: ='2.1 Plant I-O All (Eff.)'!BG9 -> 0 | AX9: ='2.1 Plant I-O All (Eff.)'!BE9 -> 0 | AY9: ='2.1 Plant I-O All (Eff.)'!BJ9 -> 0 | AZ9: ='2.1 Plant I-O All (Eff.)'!BC9 -> 0 | BA9: ='2.1 Plant I-O All (Eff.)'!BI9 -> 0 | BC9: ='2.1 Plant I-O All (Eff.)'!CI9 -> 0 | BD9: ='2.1 Plant I-O All (Eff.)'!CP9 -> 0 | BE9: ='2.1 Plant I-O All (Eff.)'!CE9 -> 0 | BF9: ='2.1 Plant I-O All (Eff.)'!CM9 -> 0 | BG9: ='2.1 Plant I-O All (Eff.)'!CI9 -> 0 | BH9: 0 | BI9: ='2.1 Plant I-O All (Eff.)'!CE9 -> 0 | BJ9: 0
B10: Coal - I6 | C10: lb/hr (Dried) | D10: ='2.1 Plant I-O All (Eff.)'!R10 -> 0 | E10: ='2.1 Plant I-O All (Eff.)'!U10 -> 0 | F10: ='2.1 Plant I-O All (Eff.)'!R10 -> 0 | G10: ='2.1 Plant I-O All (Eff.)'!X10 -> 0 | H10: ='2.1 Plant I-O All (Eff.)'!R10 -> 0 | I10: ='2.1 Plant I-O All (Eff.)'!AG10 -> 0 | J10: ='2.1 Plant I-O All (Eff.)'!R10 -> 0 | K10: ='2.1 Plant I-O All (Eff.)'!AJ10 -> 0 | L10: 0 | M10: 0 | N10: 0 | O10: 0 | P10: ='2.1 Plant I-O All (Eff.)'!AU10 -> 0 | Q10: ='2.1 Plant I-O All (Eff.)'!AW10 -> 0 | R10: ='2.1 Plant I-O All (Eff.)'!AU10 -> 0 | S10: ='2.1 Plant I-O All (Eff.)'!AY10 -> 0 | T10: ='2.1 Plant I-O All (Eff.)'!BO10 -> 0 | U10: ='2.1 Plant I-O All (Eff.)'!BV10 -> 0 | V10: ='2.1 Plant I-O All (Eff.)'!BK10 -> 0 | W10: ='2.1 Plant I-O All (Eff.)'!BS10 -> 0 | X10: ='2.1 Plant I-O All (Eff.)'!BO10 -> 0 | Y10: ='2.1 Plant I-O All (Eff.)'!CB10 -> 0 | Z10: ='2.1 Plant I-O All (Eff.)'!BK10 -> 0 | AA10: ='2.1 Plant I-O All (Eff.)'!BY10 -> 0 | AB10: ='2.1 Plant I-O All (Eff.)'!CY10 -> 0 | AC10: ='2.1 Plant I-O All (Eff.)'!DB10 -> 0 | AD10: ='2.1 Plant I-O All (Eff.)'!CY10 -> 0 | AE10: ='2.1 Plant I-O All (Eff.)'!DE10 -> 0 | AF10: ='2.1 Plant I-O All (Eff.)'!CY10 -> 0 | AG10: ='2.1 Plant I-O All (Eff.)'!DF10 -> 0 | AH10: ='2.1 Plant I-O All (Eff.)'!CY10 -> 0 | AI10: ='2.1 Plant I-O All (Eff.)'!DG10 -> 0 | AJ10: 0 | AK10: 0 | AL10: 0 | AM10: 0 | AN10: ='2.1 Plant I-O All (Eff.)'!DH10 -> 0 | AO10: ='2.1 Plant I-O All (Eff.)'!DJ10 -> 0 | AP10: ='2.1 Plant I-O All (Eff.)'!DH10 -> 0 | AQ10: ='2.1 Plant I-O All (Eff.)'!DL10 -> 0 | AR10: ='2.1 Plant I-O All (Eff.)'!BA10 -> 0 | AT10: ='2.1 Plant I-O All (Eff.)'!BE10 -> 0 | AU10: ='2.1 Plant I-O All (Eff.)'!BH10 -> 0 | AV10: ='2.1 Plant I-O All (Eff.)'!BC10 -> 0 | AW10: ='2.1 Plant I-O All (Eff.)'!BG10 -> 0 | AX10: ='2.1 Plant I-O All (Eff.)'!BE10 -> 0 | AY10: ='2.1 Plant I-O All (Eff.)'!BJ10 -> 0 | AZ10: ='2.1 Plant I-O All (Eff.)'!BC10 -> 0 | BA10: ='2.1 Plant I-O All (Eff.)'!BI10 -> 0 | BC10: ='2.1 Plant I-O All (Eff.)'!CI10 -> 0 | BD10: ='2.1 Plant I-O All (Eff.)'!CP10 -> 0 | BE10: ='2.1 Plant I-O All (Eff.)'!CE10 -> 0 | BF10: ='2.1 Plant I-O All (Eff.)'!CM10 -> 0 | BG10: ='2.1 Plant I-O All (Eff.)'!CI10 -> 0 | BH10: 0 | BI10: ='2.1 Plant I-O All (Eff.)'!CE10 -> 0 | BJ10: 0
B11: Coal - Lignite | C11: lb/hr (Dried) | D11: ='2.1 Plant I-O All (Eff.)'!R11 -> 0 | E11: ='2.1 Plant I-O All (Eff.)'!U11 -> 0 | F11: ='2.1 Plant I-O All (Eff.)'!R11 -> 0 | G11: ='2.1 Plant I-O All (Eff.)'!X11 -> 0 | H11: ='2.1 Plant I-O All (Eff.)'!R11 -> 0 | I11: ='2.1 Plant I-O All (Eff.)'!AG11 -> 0 | J11: ='2.1 Plant I-O All (Eff.)'!R11 -> 0 | K11: ='2.1 Plant I-O All (Eff.)'!AJ11 -> 0 | L11: 0 | M11: 0 | N11: 0 | O11: 0 | P11: ='2.1 Plant I-O All (Eff.)'!AU11 -> 0 | Q11: ='2.1 Plant I-O All (Eff.)'!AW11 -> 0 | R11: ='2.1 Plant I-O All (Eff.)'!AU11 -> 0 | S11: ='2.1 Plant I-O All (Eff.)'!AY11 -> 0 | T11: ='2.1 Plant I-O All (Eff.)'!BO11 -> 0 | U11: ='2.1 Plant I-O All (Eff.)'!BV11 -> 0 | V11: ='2.1 Plant I-O All (Eff.)'!BK11 -> 0 | W11: ='2.1 Plant I-O All (Eff.)'!BS11 -> 0 | X11: ='2.1 Plant I-O All (Eff.)'!BO11 -> 0 | Y11: ='2.1 Plant I-O All (Eff.)'!CB11 -> 0 | Z11: ='2.1 Plant I-O All (Eff.)'!BK11 -> 0 | AA11: ='2.1 Plant I-O All (Eff.)'!BY11 -> 0 | AB11: ='2.1 Plant I-O All (Eff.)'!CY11 -> 0 | AC11: ='2.1 Plant I-O All (Eff.)'!DB11 -> 0 | AD11: ='2.1 Plant I-O All (Eff.)'!CY11 -> 0 | AE11: ='2.1 Plant I-O All (Eff.)'!DE11 -> 0 | AF11: ='2.1 Plant I-O All (Eff.)'!CY11 -> 0 | AG11: ='2.1 Plant I-O All (Eff.)'!DF11 -> 0 | AH11: ='2.1 Plant I-O All (Eff.)'!CY11 -> 0 | AI11: ='2.1 Plant I-O All (Eff.)'!DG11 -> 0 | AJ11: 0 | AK11: 0 | AL11: 0 | AM11: 0 | AN11: ='2.1 Plant I-O All (Eff.)'!DH11 -> 0 | AO11: ='2.1 Plant I-O All (Eff.)'!DJ11 -> 0 | AP11: ='2.1 Plant I-O All (Eff.)'!DH11 -> 0 | AQ11: ='2.1 Plant I-O All (Eff.)'!DL11 -> 0 | AR11: ='2.1 Plant I-O All (Eff.)'!BA11 -> 0 | AT11: ='2.1 Plant I-O All (Eff.)'!BE11 -> 0 | AU11: ='2.1 Plant I-O All (Eff.)'!BH11 -> 0 | AV11: ='2.1 Plant I-O All (Eff.)'!BC11 -> 0 | AW11: ='2.1 Plant I-O All (Eff.)'!BG11 -> 0 | AX11: ='2.1 Plant I-O All (Eff.)'!BE11 -> 0 | AY11: ='2.1 Plant I-O All (Eff.)'!BJ11 -> 0 | AZ11: ='2.1 Plant I-O All (Eff.)'!BC11 -> 0 | BA11: ='2.1 Plant I-O All (Eff.)'!BI11 -> 0 | BC11: ='2.1 Plant I-O All (Eff.)'!CI11 -> 0 | BD11: ='2.1 Plant I-O All (Eff.)'!CP11 -> 0 | BE11: ='2.1 Plant I-O All (Eff.)'!CE11 -> 0 | BF11: ='2.1 Plant I-O All (Eff.)'!CM11 -> 0 | BG11: ='2.1 Plant I-O All (Eff.)'!CI11 -> 0 | BH11: 0 | BI11: ='2.1 Plant I-O All (Eff.)'!CE11 -> 0 | BJ11: 0
B12: Biomass - Southern Pine | C12: lb/hr (Dried) | D12: ='2.1 Plant I-O All (Eff.)'!R12 -> 0 | E12: ='2.1 Plant I-O All (Eff.)'!U12 -> 700300.176 | F12: ='2.1 Plant I-O All (Eff.)'!R12 -> 0 | G12: ='2.1 Plant I-O All (Eff.)'!X12 -> 0 | H12: ='2.1 Plant I-O All (Eff.)'!R12 -> 0 | I12: ='2.1 Plant I-O All (Eff.)'!AG12 -> 674812.341 | J12: ='2.1 Plant I-O All (Eff.)'!R12 -> 0 | K12: ='2.1 Plant I-O All (Eff.)'!AJ12 -> 0 | L12: 6.91463415e-09 | M12: 690818.885 | N12: 6.91463415e-09 | O12: 0 | P12: ='2.1 Plant I-O All (Eff.)'!AU12 -> 6.91463415e-09 | Q12: ='2.1 Plant I-O All (Eff.)'!AW12 -> 656958.175 | R12: ='2.1 Plant I-O All (Eff.)'!AU12 -> 6.91463415e-09 | S12: ='2.1 Plant I-O All (Eff.)'!AY12 -> 0 | T12: ='2.1 Plant I-O All (Eff.)'!BO12 -> 0 | U12: ='2.1 Plant I-O All (Eff.)'!BV12 -> 0 | V12: ='2.1 Plant I-O All (Eff.)'!BK12 -> 0 | W12: ='2.1 Plant I-O All (Eff.)'!BS12 -> 0 | X12: ='2.1 Plant I-O All (Eff.)'!BO12 -> 0 | Y12: ='2.1 Plant I-O All (Eff.)'!CB12 -> 0 | Z12: ='2.1 Plant I-O All (Eff.)'!BK12 -> 0 | AA12: ='2.1 Plant I-O All (Eff.)'!BY12 -> 0 | AB12: ='2.1 Plant I-O All (Eff.)'!CY12 -> 0 | AC12: ='2.1 Plant I-O All (Eff.)'!DB12 -> 700300.176 | AD12: ='2.1 Plant I-O All (Eff.)'!CY12 -> 0 | AE12: ='2.1 Plant I-O All (Eff.)'!DE12 -> 0 | AF12: ='2.1 Plant I-O All (Eff.)'!CY12 -> 0 | AG12: ='2.1 Plant I-O All (Eff.)'!DF12 -> 674812.341 | AH12: ='2.1 Plant I-O All (Eff.)'!CY12 -> 0 | AI12: ='2.1 Plant I-O All (Eff.)'!DG12 -> 0 | AJ12: 6.91463415e-09 | AK12: 690818.885 | AL12: 6.91463415e-09 | AM12: 0 | AN12: ='2.1 Plant I-O All (Eff.)'!DH12 -> 6.91463415e-09 | AO12: ='2.1 Plant I-O All (Eff.)'!DJ12 -> 656958.175 | AP12: ='2.1 Plant I-O All (Eff.)'!DH12 -> 6.91463415e-09 | AQ12: ='2.1 Plant I-O All (Eff.)'!DL12 -> 0 | AR12: ='2.1 Plant I-O All (Eff.)'!BA12 -> 0 | AT12: ='2.1 Plant I-O All (Eff.)'!BE12 -> 0 | AU12: ='2.1 Plant I-O All (Eff.)'!BH12 -> 0 | AV12: ='2.1 Plant I-O All (Eff.)'!BC12 -> 0 | AW12: ='2.1 Plant I-O All (Eff.)'!BG12 -> 0 | AX12: ='2.1 Plant I-O All (Eff.)'!BE12 -> 0 | AY12: ='2.1 Plant I-O All (Eff.)'!BJ12 -> 0 | AZ12: ='2.1 Plant I-O All (Eff.)'!BC12 -> 0 | BA12: ='2.1 Plant I-O All (Eff.)'!BI12 -> 0 | BC12: ='2.1 Plant I-O All (Eff.)'!CI12 -> 0 | BD12: ='2.1 Plant I-O All (Eff.)'!CP12 -> 0 | BE12: ='2.1 Plant I-O All (Eff.)'!CE12 -> 0 | BF12: ='2.1 Plant I-O All (Eff.)'!CM12 -> 0 | BG12: ='2.1 Plant I-O All (Eff.)'!CI12 -> 0 | BH12: 0 | BI12: ='2.1 Plant I-O All (Eff.)'!CE12 -> 0 | BJ12: 0
B13: Biomass - Switchgrass | C13: lb/hr (Dried) | D13: ='2.1 Plant I-O All (Eff.)'!R13 -> 0 | E13: ='2.1 Plant I-O All (Eff.)'!U13 -> 0 | F13: ='2.1 Plant I-O All (Eff.)'!R13 -> 0 | G13: ='2.1 Plant I-O All (Eff.)'!X13 -> 0 | H13: ='2.1 Plant I-O All (Eff.)'!R13 -> 0 | I13: ='2.1 Plant I-O All (Eff.)'!AG13 -> 0 | J13: ='2.1 Plant I-O All (Eff.)'!R13 -> 0 | K13: ='2.1 Plant I-O All (Eff.)'!AJ13 -> 0 | L13: 0 | M13: 0 | N13: 0 | O13: 0 | P13: ='2.1 Plant I-O All (Eff.)'!AU13 -> 0 | Q13: ='2.1 Plant I-O All (Eff.)'!AW13 -> 0 | R13: ='2.1 Plant I-O All (Eff.)'!AU13 -> 0 | S13: ='2.1 Plant I-O All (Eff.)'!AY13 -> 0 | T13: ='2.1 Plant I-O All (Eff.)'!BO13 -> 0 | U13: ='2.1 Plant I-O All (Eff.)'!BV13 -> 0 | V13: ='2.1 Plant I-O All (Eff.)'!BK13 -> 0 | W13: ='2.1 Plant I-O All (Eff.)'!BS13 -> 0 | X13: ='2.1 Plant I-O All (Eff.)'!BO13 -> 0 | Y13: ='2.1 Plant I-O All (Eff.)'!CB13 -> 0 | Z13: ='2.1 Plant I-O All (Eff.)'!BK13 -> 0 | AA13: ='2.1 Plant I-O All (Eff.)'!BY13 -> 0 | AB13: ='2.1 Plant I-O All (Eff.)'!CY13 -> 0 | AC13: ='2.1 Plant I-O All (Eff.)'!DB13 -> 0 | AD13: ='2.1 Plant I-O All (Eff.)'!CY13 -> 0 | AE13: ='2.1 Plant I-O All (Eff.)'!DE13 -> 0 | AF13: ='2.1 Plant I-O All (Eff.)'!CY13 -> 0 | AG13: ='2.1 Plant I-O All (Eff.)'!DF13 -> 0 | AH13: ='2.1 Plant I-O All (Eff.)'!CY13 -> 0 | AI13: ='2.1 Plant I-O All (Eff.)'!DG13 -> 0 | AJ13: 0 | AK13: 0 | AL13: 0 | AM13: 0 | AN13: ='2.1 Plant I-O All (Eff.)'!DH13 -> 0 | AO13: ='2.1 Plant I-O All (Eff.)'!DJ13 -> 0 | AP13: ='2.1 Plant I-O All (Eff.)'!DH13 -> 0 | AQ13: ='2.1 Plant I-O All (Eff.)'!DL13 -> 0 | AR13: ='2.1 Plant I-O All (Eff.)'!BA13 -> 0 | AT13: ='2.1 Plant I-O All (Eff.)'!BE13 -> 0 | AU13: ='2.1 Plant I-O All (Eff.)'!BH13 -> 0 | AV13: ='2.1 Plant I-O All (Eff.)'!BC13 -> 0 | AW13: ='2.1 Plant I-O All (Eff.)'!BG13 -> 0 | AX13: ='2.1 Plant I-O All (Eff.)'!BE13 -> 0 | AY13: ='2.1 Plant I-O All (Eff.)'!BJ13 -> 0 | AZ13: ='2.1 Plant I-O All (Eff.)'!BC13 -> 0 | BA13: ='2.1 Plant I-O All (Eff.)'!BI13 -> 0 | BC13: ='2.1 Plant I-O All (Eff.)'!CI13 -> 0 | BD13: ='2.1 Plant I-O All (Eff.)'!CP13 -> 0 | BE13: ='2.1 Plant I-O All (Eff.)'!CE13 -> 0 | BF13: ='2.1 Plant I-O All (Eff.)'!CM13 -> 0 | BG13: ='2.1 Plant I-O All (Eff.)'!CI13 -> 0 | BH13: 0 | BI13: ='2.1 Plant I-O All (Eff.)'!CE13 -> 0 | BJ13: 0
B14: Biomass - Municipal Solid Waste | C14: lb/hr (Dried) | D14: ='2.1 Plant I-O All (Eff.)'!R14 -> 0 | E14: ='2.1 Plant I-O All (Eff.)'!U14 -> 0 | F14: ='2.1 Plant I-O All (Eff.)'!R14 -> 0 | G14: ='2.1 Plant I-O All (Eff.)'!X14 -> 0 | H14: ='2.1 Plant I-O All (Eff.)'!R14 -> 0 | I14: ='2.1 Plant I-O All (Eff.)'!AG14 -> 0 | J14: ='2.1 Plant I-O All (Eff.)'!R14 -> 0 | K14: ='2.1 Plant I-O All (Eff.)'!AJ14 -> 0 | L14: 0 | M14: 0 | N14: 0 | O14: 0 | P14: ='2.1 Plant I-O All (Eff.)'!AU14 -> 0 | Q14: ='2.1 Plant I-O All (Eff.)'!AW14 -> 0 | R14: ='2.1 Plant I-O All (Eff.)'!AU14 -> 0 | S14: ='2.1 Plant I-O All (Eff.)'!AY14 -> 0 | T14: ='2.1 Plant I-O All (Eff.)'!BO14 -> 0 | U14: ='2.1 Plant I-O All (Eff.)'!BV14 -> 0 | V14: ='2.1 Plant I-O All (Eff.)'!BK14 -> 0 | W14: ='2.1 Plant I-O All (Eff.)'!BS14 -> 0 | X14: ='2.1 Plant I-O All (Eff.)'!BO14 -> 0 | Y14: ='2.1 Plant I-O All (Eff.)'!CB14 -> 0 | Z14: ='2.1 Plant I-O All (Eff.)'!BK14 -> 0 | AA14: ='2.1 Plant I-O All (Eff.)'!BY14 -> 0 | AB14: ='2.1 Plant I-O All (Eff.)'!CY14 -> 0 | AC14: ='2.1 Plant I-O All (Eff.)'!DB14 -> 0 | AD14: ='2.1 Plant I-O All (Eff.)'!CY14 -> 0 | AE14: ='2.1 Plant I-O All (Eff.)'!DE14 -> 0 | AF14: ='2.1 Plant I-O All (Eff.)'!CY14 -> 0 | AG14: ='2.1 Plant I-O All (Eff.)'!DF14 -> 0 | AH14: ='2.1 Plant I-O All (Eff.)'!CY14 -> 0 | AI14: ='2.1 Plant I-O All (Eff.)'!DG14 -> 0 | AJ14: 0 | AK14: 0 | AL14: 0 | AM14: 0 | AN14: ='2.1 Plant I-O All (Eff.)'!DH14 -> 0 | AO14: ='2.1 Plant I-O All (Eff.)'!DJ14 -> 0 | AP14: ='2.1 Plant I-O All (Eff.)'!DH14 -> 0 | AQ14: ='2.1 Plant I-O All (Eff.)'!DL14 -> 0 | AR14: ='2.1 Plant I-O All (Eff.)'!BA14 -> 0 | AT14: ='2.1 Plant I-O All (Eff.)'!BE14 -> 0 | AU14: ='2.1 Plant I-O All (Eff.)'!BH14 -> 0 | AV14: ='2.1 Plant I-O All (Eff.)'!BC14 -> 0 | AW14: ='2.1 Plant I-O All (Eff.)'!BG14 -> 0 | AX14: ='2.1 Plant I-O All (Eff.)'!BE14 -> 0 | AY14: ='2.1 Plant I-O All (Eff.)'!BJ14 -> 0 | AZ14: ='2.1 Plant I-O All (Eff.)'!BC14 -> 0 | BA14: ='2.1 Plant I-O All (Eff.)'!BI14 -> 0 | BC14: ='2.1 Plant I-O All (Eff.)'!CI14 -> 0 | BD14: ='2.1 Plant I-O All (Eff.)'!CP14 -> 0 | BE14: ='2.1 Plant I-O All (Eff.)'!CE14 -> 0 | BF14: ='2.1 Plant I-O All (Eff.)'!CM14 -> 0 | BG14: ='2.1 Plant I-O All (Eff.)'!CI14 -> 0 | BH14: 0 | BI14: ='2.1 Plant I-O All (Eff.)'!CE14 -> 0 | BJ14: 0
B15: Torrefied biomass | C15: lb/hr (Dried) | D15: ='2.1 Plant I-O All (Eff.)'!R15 -> 0 | E15: ='2.1 Plant I-O All (Eff.)'!U15 -> 0 | F15: ='2.1 Plant I-O All (Eff.)'!R15 -> 0 | G15: ='2.1 Plant I-O All (Eff.)'!X15 -> 634785.908 | H15: ='2.1 Plant I-O All (Eff.)'!R15 -> 0 | I15: ='2.1 Plant I-O All (Eff.)'!AG15 -> 0 | J15: ='2.1 Plant I-O All (Eff.)'!R15 -> 0 | K15: ='2.1 Plant I-O All (Eff.)'!AJ15 -> 636657.766 | L15: 0 | M15: 0 | N15: 0 | O15: 609392.839 | P15: ='2.1 Plant I-O All (Eff.)'!AU15 -> 0 | Q15: ='2.1 Plant I-O All (Eff.)'!AW15 -> 0 | R15: ='2.1 Plant I-O All (Eff.)'!AU15 -> 0 | S15: ='2.1 Plant I-O All (Eff.)'!AY15 -> 590173.822 | T15: ='2.1 Plant I-O All (Eff.)'!BO15 -> 0 | U15: ='2.1 Plant I-O All (Eff.)'!BV15 -> 0 | V15: ='2.1 Plant I-O All (Eff.)'!BK15 -> 0 | W15: ='2.1 Plant I-O All (Eff.)'!BS15 -> 0 | X15: ='2.1 Plant I-O All (Eff.)'!BO15 -> 0 | Y15: ='2.1 Plant I-O All (Eff.)'!CB15 -> 0 | Z15: ='2.1 Plant I-O All (Eff.)'!BK15 -> 0 | AA15: ='2.1 Plant I-O All (Eff.)'!BY15 -> 0 | AB15: ='2.1 Plant I-O All (Eff.)'!CY15 -> 0 | AC15: ='2.1 Plant I-O All (Eff.)'!DB15 -> 0 | AD15: ='2.1 Plant I-O All (Eff.)'!CY15 -> 0 | AE15: ='2.1 Plant I-O All (Eff.)'!DE15 -> 634785.908 | AF15: ='2.1 Plant I-O All (Eff.)'!CY15 -> 0 | AG15: ='2.1 Plant I-O All (Eff.)'!DF15 -> 0 | AH15: ='2.1 Plant I-O All (Eff.)'!CY15 -> 0 | AI15: ='2.1 Plant I-O All (Eff.)'!DG15 -> 636657.766 | AJ15: 0 | AK15: 0 | AL15: 0 | AM15: 609392.839 | AN15: ='2.1 Plant I-O All (Eff.)'!DH15 -> 0 | AO15: ='2.1 Plant I-O All (Eff.)'!DJ15 -> 0 | AP15: ='2.1 Plant I-O All (Eff.)'!DH15 -> 0 | AQ15: ='2.1 Plant I-O All (Eff.)'!DL15 -> 590173.822 | AR15: ='2.1 Plant I-O All (Eff.)'!BA15 -> 0 | AT15: ='2.1 Plant I-O All (Eff.)'!BE15 -> 0 | AU15: ='2.1 Plant I-O All (Eff.)'!BH15 -> 0 | AV15: ='2.1 Plant I-O All (Eff.)'!BC15 -> 0 | AW15: ='2.1 Plant I-O All (Eff.)'!BG15 -> 0 | AX15: ='2.1 Plant I-O All (Eff.)'!BE15 -> 0 | AY15: ='2.1 Plant I-O All (Eff.)'!BJ15 -> 0 | AZ15: ='2.1 Plant I-O All (Eff.)'!BC15 -> 0 | BA15: ='2.1 Plant I-O All (Eff.)'!BI15 -> 0 | BC15: ='2.1 Plant I-O All (Eff.)'!CI15 -> 0 | BD15: ='2.1 Plant I-O All (Eff.)'!CP15 -> 0 | BE15: ='2.1 Plant I-O All (Eff.)'!CE15 -> 0 | BF15: ='2.1 Plant I-O All (Eff.)'!CM15 -> 0 | BG15: ='2.1 Plant I-O All (Eff.)'!CI15 -> 0 | BH15: 0 | BI15: ='2.1 Plant I-O All (Eff.)'!CE15 -> 0 | BJ15: 0
B16: Cooling water | C16: lb/hr | D16: ='2.1 Plant I-O All (Eff.)'!R16 -> 5247189.716 | E16: ='2.1 Plant I-O All (Eff.)'!U16 -> 4909296.683 | F16: ='2.1 Plant I-O All (Eff.)'!R16 -> 5247189.716 | G16: ='2.1 Plant I-O All (Eff.)'!X16 -> 4972087.675 | H16: ='2.1 Plant I-O All (Eff.)'!R16 -> 5247189.716 | I16: ='2.1 Plant I-O All (Eff.)'!AG16 -> 5124329.843 | J16: ='2.1 Plant I-O All (Eff.)'!R16 -> 5247189.716 | K16: ='2.1 Plant I-O All (Eff.)'!AJ16 -> 4888333.775 | L16: 4474217.29 | M16: 4652411.083 | N16: 4474217.29 | O16: 4756446.284 | P16: ='2.1 Plant I-O All (Eff.)'!AU16 -> 4474217.29 | Q16: ='2.1 Plant I-O All (Eff.)'!AW16 -> 4980722.346 | R16: ='2.1 Plant I-O All (Eff.)'!AU16 -> 4474217.29 | S16: ='2.1 Plant I-O All (Eff.)'!AY16 -> 4585445.167 | T16: ='2.1 Plant I-O All (Eff.)'!BO16 -> 0 | U16: ='2.1 Plant I-O All (Eff.)'!BV16 -> 0 | V16: ='2.1 Plant I-O All (Eff.)'!BK16 -> 0 | W16: ='2.1 Plant I-O All (Eff.)'!BS16 -> 0 | X16: ='2.1 Plant I-O All (Eff.)'!BO16 -> 0 | Y16: ='2.1 Plant I-O All (Eff.)'!CB16 -> 0 | Z16: ='2.1 Plant I-O All (Eff.)'!BK16 -> 0 | AA16: ='2.1 Plant I-O All (Eff.)'!BY16 -> 0 | AB16: ='2.1 Plant I-O All (Eff.)'!CY16 -> 5247189.716 | AC16: ='2.1 Plant I-O All (Eff.)'!DB16 -> 4909296.683 | AD16: ='2.1 Plant I-O All (Eff.)'!CY16 -> 5247189.716 | AE16: ='2.1 Plant I-O All (Eff.)'!DE16 -> 4972087.675 | AF16: ='2.1 Plant I-O All (Eff.)'!CY16 -> 5247189.716 | AG16: ='2.1 Plant I-O All (Eff.)'!DF16 -> 5124329.843 | AH16: ='2.1 Plant I-O All (Eff.)'!CY16 -> 5247189.716 | AI16: ='2.1 Plant I-O All (Eff.)'!DG16 -> 4888333.775 | AJ16: 4474217.29 | AK16: 4652411.083 | AL16: 4474217.29 | AM16: 4756446.284 | AN16: ='2.1 Plant I-O All (Eff.)'!DH16 -> 4474217.29 | AO16: ='2.1 Plant I-O All (Eff.)'!DJ16 -> 4980722.346 | AP16: ='2.1 Plant I-O All (Eff.)'!DH16 -> 4474217.29 | AQ16: ='2.1 Plant I-O All (Eff.)'!DL16 -> 4585445.167 | AR16: ='2.1 Plant I-O All (Eff.)'!BA16 -> 0 | AT16: ='2.1 Plant I-O All (Eff.)'!BE16 -> 0 | AU16: ='2.1 Plant I-O All (Eff.)'!BH16 -> 0 | AV16: ='2.1 Plant I-O All (Eff.)'!BC16 -> 0 | AW16: ='2.1 Plant I-O All (Eff.)'!BG16 -> 0 | AX16: ='2.1 Plant I-O All (Eff.)'!BE16 -> 0 | AY16: ='2.1 Plant I-O All (Eff.)'!BJ16 -> 0 | AZ16: ='2.1 Plant I-O All (Eff.)'!BC16 -> 0 | BA16: ='2.1 Plant I-O All (Eff.)'!BI16 -> 0 | BC16: ='2.1 Plant I-O All (Eff.)'!CI16 -> 0 | BD16: ='2.1 Plant I-O All (Eff.)'!CP16 -> 0 | BE16: ='2.1 Plant I-O All (Eff.)'!CE16 -> 0 | BF16: ='2.1 Plant I-O All (Eff.)'!CM16 -> 0 | BG16: ='2.1 Plant I-O All (Eff.)'!CI16 -> 0 | BH16: 0 | BI16: ='2.1 Plant I-O All (Eff.)'!CE16 -> 0 | BJ16: 0
A17: OUTPUTS | B17: FT Jet | C17: lb/hr | D17: ='2.1 Plant I-O All (Eff.)'!R17 -> 273557.976 | E17: ='2.1 Plant I-O All (Eff.)'!U17 -> 273559.271 | F17: ='2.1 Plant I-O All (Eff.)'!R17 -> 273557.976 | G17: ='2.1 Plant I-O All (Eff.)'!X17 -> 273551.034 | H17: ='2.1 Plant I-O All (Eff.)'!R17 -> 273557.976 | I17: ='2.1 Plant I-O All (Eff.)'!AG17 -> 273554.917 | J17: ='2.1 Plant I-O All (Eff.)'!R17 -> 273557.976 | K17: ='2.1 Plant I-O All (Eff.)'!AJ17 -> 273549.12 | L17: 272449.758 | M17: 272628.918 | N17: 272449.758 | O17: 272525.328 | P17: ='2.1 Plant I-O All (Eff.)'!AU17 -> 272449.758 | Q17: ='2.1 Plant I-O All (Eff.)'!AW17 -> 272614.589 | R17: ='2.1 Plant I-O All (Eff.)'!AU17 -> 272449.758 | S17: ='2.1 Plant I-O All (Eff.)'!AY17 -> 272509.68 | T17: ='2.1 Plant I-O All (Eff.)'!BO17 -> 0 | U17: ='2.1 Plant I-O All (Eff.)'!BV17 -> 0 | V17: ='2.1 Plant I-O All (Eff.)'!BK17 -> 0 | W17: ='2.1 Plant I-O All (Eff.)'!BS17 -> 0 | X17: ='2.1 Plant I-O All (Eff.)'!BO17 -> 0 | Y17: ='2.1 Plant I-O All (Eff.)'!CB17 -> 0 | Z17: ='2.1 Plant I-O All (Eff.)'!BK17 -> 0 | AA17: ='2.1 Plant I-O All (Eff.)'!BY17 -> 0 | AB17: ='2.1 Plant I-O All (Eff.)'!CY17 -> 273557.976 | AC17: ='2.1 Plant I-O All (Eff.)'!DB17 -> 273559.271 | AD17: ='2.1 Plant I-O All (Eff.)'!CY17 -> 273557.976 | AE17: ='2.1 Plant I-O All (Eff.)'!DE17 -> 273551.034 | AF17: ='2.1 Plant I-O All (Eff.)'!CY17 -> 273557.976 | AG17: ='2.1 Plant I-O All (Eff.)'!DF17 -> 273554.917 | AH17: ='2.1 Plant I-O All (Eff.)'!CY17 -> 273557.976 | AI17: ='2.1 Plant I-O All (Eff.)'!DG17 -> 273549.12 | AJ17: 272449.758 | AK17: 272628.918 | AL17: 272449.758 | AM17: 272525.328 | AN17: ='2.1 Plant I-O All (Eff.)'!DH17 -> 272449.758 | AO17: ='2.1 Plant I-O All (Eff.)'!DJ17 -> 272614.589 | AP17: ='2.1 Plant I-O All (Eff.)'!DH17 -> 272449.758 | AQ17: ='2.1 Plant I-O All (Eff.)'!DL17 -> 272509.68 | AR17: ='2.1 Plant I-O All (Eff.)'!BA17 -> 0 | AT17: ='2.1 Plant I-O All (Eff.)'!BE17 -> 0 | AU17: ='2.1 Plant I-O All (Eff.)'!BH17 -> 0 | AV17: ='2.1 Plant I-O All (Eff.)'!BC17 -> 0 | AW17: ='2.1 Plant I-O All (Eff.)'!BG17 -> 0 | AX17: ='2.1 Plant I-O All (Eff.)'!BE17 -> 0 | AY17: ='2.1 Plant I-O All (Eff.)'!BJ17 -> 0 | AZ17: ='2.1 Plant I-O All (Eff.)'!BC17 -> 0 | BA17: ='2.1 Plant I-O All (Eff.)'!BI17 -> 0 | BC17: ='2.1 Plant I-O All (Eff.)'!CI17 -> 0 | BD17: ='2.1 Plant I-O All (Eff.)'!CP17 -> 0 | BE17: ='2.1 Plant I-O All (Eff.)'!CE17 -> 0 | BF17: ='2.1 Plant I-O All (Eff.)'!CM17 -> 0 | BG17: ='2.1 Plant I-O All (Eff.)'!CI17 -> 0 | BH17: 0 | BI17: ='2.1 Plant I-O All (Eff.)'!CE17 -> 0 | BJ17: 0
B18: FT Naphtha | C18: lb/hr | D18: ='2.1 Plant I-O All (Eff.)'!R18 -> 175104.946 | E18: ='2.1 Plant I-O All (Eff.)'!U18 -> 175105.358 | F18: ='2.1 Plant I-O All (Eff.)'!R18 -> 175104.946 | G18: ='2.1 Plant I-O All (Eff.)'!X18 -> 175100.684 | H18: ='2.1 Plant I-O All (Eff.)'!R18 -> 175104.946 | I18: ='2.1 Plant I-O All (Eff.)'!AG18 -> 175102.95 | J18: ='2.1 Plant I-O All (Eff.)'!R18 -> 175104.946 | K18: ='2.1 Plant I-O All (Eff.)'!AJ18 -> 175099.527 | L18: 174965.386 | M18: 175000.863 | N18: 174965.386 | O18: 174980.824 | P18: ='2.1 Plant I-O All (Eff.)'!AU18 -> 174965.386 | Q18: ='2.1 Plant I-O All (Eff.)'!AW18 -> 174994.064 | R18: ='2.1 Plant I-O All (Eff.)'!AU18 -> 174965.386 | S18: ='2.1 Plant I-O All (Eff.)'!AY18 -> 174967.968 | T18: ='2.1 Plant I-O All (Eff.)'!BO18 -> 161965.2175 | U18: ='2.1 Plant I-O All (Eff.)'!BV18 -> 161965.2175 | V18: ='2.1 Plant I-O All (Eff.)'!BK18 -> 161965.2175 | W18: ='2.1 Plant I-O All (Eff.)'!BS18 -> 161965.2175 | X18: ='2.1 Plant I-O All (Eff.)'!BO18 -> 161965.2175 | Y18: ='2.1 Plant I-O All (Eff.)'!CB18 -> 161965.2175 | Z18: ='2.1 Plant I-O All (Eff.)'!BK18 -> 161965.2175 | AA18: ='2.1 Plant I-O All (Eff.)'!BY18 -> 161965.2175 | AB18: ='2.1 Plant I-O All (Eff.)'!CY18 -> 175104.946 | AC18: ='2.1 Plant I-O All (Eff.)'!DB18 -> 175105.358 | AD18: ='2.1 Plant I-O All (Eff.)'!CY18 -> 175104.946 | AE18: ='2.1 Plant I-O All (Eff.)'!DE18 -> 175100.684 | AF18: ='2.1 Plant I-O All (Eff.)'!CY18 -> 175104.946 | AG18: ='2.1 Plant I-O All (Eff.)'!DF18 -> 175102.95 | AH18: ='2.1 Plant I-O All (Eff.)'!CY18 -> 175104.946 | AI18: ='2.1 Plant I-O All (Eff.)'!DG18 -> 175099.527 | AJ18: 174965.386 | AK18: 175000.863 | AL18: 174965.386 | AM18: 174980.824 | AN18: ='2.1 Plant I-O All (Eff.)'!DH18 -> 174965.386 | AO18: ='2.1 Plant I-O All (Eff.)'!DJ18 -> 174994.064 | AP18: ='2.1 Plant I-O All (Eff.)'!DH18 -> 174965.386 | AQ18: ='2.1 Plant I-O All (Eff.)'!DL18 -> 174967.968 | AR18: ='2.1 Plant I-O All (Eff.)'!BA18 -> 165930.6248 | AT18: ='2.1 Plant I-O All (Eff.)'!BE18 -> 161965.2175 | AU18: ='2.1 Plant I-O All (Eff.)'!BH18 -> 161965.2175 | AV18: ='2.1 Plant I-O All (Eff.)'!BC18 -> 161965.2175 | AW18: ='2.1 Plant I-O All (Eff.)'!BG18 -> 161965.2175 | AX18: ='2.1 Plant I-O All (Eff.)'!BE18 -> 161965.2175 | AY18: ='2.1 Plant I-O All (Eff.)'!BJ18 -> 161965.2175 | AZ18: ='2.1 Plant I-O All (Eff.)'!BC18 -> 161965.2175 | BA18: ='2.1 Plant I-O All (Eff.)'!BI18 -> 161965.2175 | BC18: ='2.1 Plant I-O All (Eff.)'!CI18 -> 161965.2175 | BD18: ='2.1 Plant I-O All (Eff.)'!CP18 -> 161965.2175 | BE18: ='2.1 Plant I-O All (Eff.)'!CE18 -> 161965.2175 | BF18: ='2.1 Plant I-O All (Eff.)'!CM18 -> 161965.2175 | BG18: ='2.1 Plant I-O All (Eff.)'!CI18 -> 161965.2175 | BH18: 161965.2175 | BI18: ='2.1 Plant I-O All (Eff.)'!CE18 -> 161965.2175 | BJ18: 161965.2175
B19: FT Diesel | C19: lb/hr | D19: ='2.1 Plant I-O All (Eff.)'!R19 -> 53580.1994 | E19: ='2.1 Plant I-O All (Eff.)'!U19 -> 53579.4197 | F19: ='2.1 Plant I-O All (Eff.)'!R19 -> 53580.1994 | G19: ='2.1 Plant I-O All (Eff.)'!X19 -> 53578.7502 | H19: ='2.1 Plant I-O All (Eff.)'!R19 -> 53580.1994 | I19: ='2.1 Plant I-O All (Eff.)'!AG19 -> 53579.1484 | J19: ='2.1 Plant I-O All (Eff.)'!R19 -> 53580.1994 | K19: ='2.1 Plant I-O All (Eff.)'!AJ19 -> 53578.2268 | L19: 54682.1085 | M19: 54524.0777 | N19: 54682.1085 | O19: 54615.891 | P19: ='2.1 Plant I-O All (Eff.)'!AU19 -> 54682.1085 | Q19: ='2.1 Plant I-O All (Eff.)'!AW19 -> 54526.2353 | R19: ='2.1 Plant I-O All (Eff.)'!AU19 -> 54682.1085 | S19: ='2.1 Plant I-O All (Eff.)'!AY19 -> 54606.1512 | T19: ='2.1 Plant I-O All (Eff.)'!BO19 -> 385568.1084 | U19: ='2.1 Plant I-O All (Eff.)'!BV19 -> 385568.1084 | V19: ='2.1 Plant I-O All (Eff.)'!BK19 -> 385568.1084 | W19: ='2.1 Plant I-O All (Eff.)'!BS19 -> 385556.868 | X19: ='2.1 Plant I-O All (Eff.)'!BO19 -> 385568.1084 | Y19: ='2.1 Plant I-O All (Eff.)'!CB19 -> 385568.1084 | Z19: ='2.1 Plant I-O All (Eff.)'!BK19 -> 385568.1084 | AA19: ='2.1 Plant I-O All (Eff.)'!BY19 -> 385556.868 | AB19: ='2.1 Plant I-O All (Eff.)'!CY19 -> 53580.1994 | AC19: ='2.1 Plant I-O All (Eff.)'!DB19 -> 53579.4197 | AD19: ='2.1 Plant I-O All (Eff.)'!CY19 -> 53580.1994 | AE19: ='2.1 Plant I-O All (Eff.)'!DE19 -> 53578.7502 | AF19: ='2.1 Plant I-O All (Eff.)'!CY19 -> 53580.1994 | AG19: ='2.1 Plant I-O All (Eff.)'!DF19 -> 53579.1484 | AH19: ='2.1 Plant I-O All (Eff.)'!CY19 -> 53580.1994 | AI19: ='2.1 Plant I-O All (Eff.)'!DG19 -> 53578.2268 | AJ19: 54682.1085 | AK19: 54524.0777 | AL19: 54682.1085 | AM19: 54615.891 | AN19: ='2.1 Plant I-O All (Eff.)'!DH19 -> 54682.1085 | AO19: ='2.1 Plant I-O All (Eff.)'!DJ19 -> 54526.2353 | AP19: ='2.1 Plant I-O All (Eff.)'!DH19 -> 54682.1085 | AQ19: ='2.1 Plant I-O All (Eff.)'!DL19 -> 54606.1512 | AR19: ='2.1 Plant I-O All (Eff.)'!BA19 -> 391020.9018 | AT19: ='2.1 Plant I-O All (Eff.)'!BE19 -> 385568.1084 | AU19: ='2.1 Plant I-O All (Eff.)'!BH19 -> 385568.1084 | AV19: ='2.1 Plant I-O All (Eff.)'!BC19 -> 385568.1084 | AW19: ='2.1 Plant I-O All (Eff.)'!BG19 -> 385568.1084 | AX19: ='2.1 Plant I-O All (Eff.)'!BE19 -> 385568.1084 | AY19: ='2.1 Plant I-O All (Eff.)'!BJ19 -> 385568.1084 | AZ19: ='2.1 Plant I-O All (Eff.)'!BC19 -> 385568.1084 | BA19: ='2.1 Plant I-O All (Eff.)'!BI19 -> 385568.1084 | BC19: ='2.1 Plant I-O All (Eff.)'!CI19 -> 385568.1084 | BD19: ='2.1 Plant I-O All (Eff.)'!CP19 -> 385568.1084 | BE19: ='2.1 Plant I-O All (Eff.)'!CE19 -> 385568.1084 | BF19: ='2.1 Plant I-O All (Eff.)'!CM19 -> 385556.868 | BG19: ='2.1 Plant I-O All (Eff.)'!CI19 -> 385568.1084 | BH19: 385568.1084 | BI19: ='2.1 Plant I-O All (Eff.)'!CE19 -> 385568.1084 | BJ19: 385556.868
B20: CO₂ to sequestration | C20: lb/hr | D20: ='2.1 Plant I-O All (Eff.)'!R20 -> 2587866.44 | E20: ='2.1 Plant I-O All (Eff.)'!U20 -> 2642931.12 | F20: ='2.1 Plant I-O All (Eff.)'!R20 -> 2587866.44 | G20: ='2.1 Plant I-O All (Eff.)'!X20 -> 2581790.88 | H20: ='2.1 Plant I-O All (Eff.)'!R20 -> 2587866.44 | I20: ='2.1 Plant I-O All (Eff.)'!AG20 -> 2584086.27 | J20: ='2.1 Plant I-O All (Eff.)'!R20 -> 2587866.44 | K20: ='2.1 Plant I-O All (Eff.)'!AJ20 -> 2508008.59 | L20: 2557337.06 | M20: 2754989.71 | N20: 2557337.06 | O20: 2617088.02 | P20: ='2.1 Plant I-O All (Eff.)'!AU20 -> 2557337.06 | Q20: ='2.1 Plant I-O All (Eff.)'!AW20 -> 2635098.16 | R20: ='2.1 Plant I-O All (Eff.)'!AU20 -> 2557337.06 | S20: ='2.1 Plant I-O All (Eff.)'!AY20 -> 2545545.24 | T20: ='2.1 Plant I-O All (Eff.)'!BO20 -> 2754810.976 | U20: ='2.1 Plant I-O All (Eff.)'!BV20 -> 2771299.537 | V20: ='2.1 Plant I-O All (Eff.)'!BK20 -> 2478780.26 | W20: ='2.1 Plant I-O All (Eff.)'!BS20 -> 2627787.992 | X20: ='2.1 Plant I-O All (Eff.)'!BO20 -> 2754810.976 | Y20: ='2.1 Plant I-O All (Eff.)'!CB20 -> 2771299.537 | Z20: ='2.1 Plant I-O All (Eff.)'!BK20 -> 2478780.26 | AA20: ='2.1 Plant I-O All (Eff.)'!BY20 -> 2627787.992 | AB20: ='2.1 Plant I-O All (Eff.)'!CY20 -> 2587866.44 | AC20: ='2.1 Plant I-O All (Eff.)'!DB20 -> 2642931.12 | AD20: ='2.1 Plant I-O All (Eff.)'!CY20 -> 2587866.44 | AE20: ='2.1 Plant I-O All (Eff.)'!DE20 -> 2581790.88 | AF20: ='2.1 Plant I-O All (Eff.)'!CY20 -> 2587866.44 | AG20: ='2.1 Plant I-O All (Eff.)'!DF20 -> 2584086.27 | AH20: ='2.1 Plant I-O All (Eff.)'!CY20 -> 2587866.44 | AI20: ='2.1 Plant I-O All (Eff.)'!DG20 -> 2508008.59 | AJ20: 2557337.06 | AK20: 2754989.71 | AL20: 2557337.06 | AM20: 2617088.02 | AN20: ='2.1 Plant I-O All (Eff.)'!DH20 -> 2557337.06 | AO20: ='2.1 Plant I-O All (Eff.)'!DJ20 -> 2635098.16 | AP20: ='2.1 Plant I-O All (Eff.)'!DH20 -> 2557337.06 | AQ20: ='2.1 Plant I-O All (Eff.)'!DL20 -> 2545545.24 | AR20: ='2.1 Plant I-O All (Eff.)'!BA20 -> 2200397.095 | AT20: ='2.1 Plant I-O All (Eff.)'!BE20 -> 2657100.988 | AU20: ='2.1 Plant I-O All (Eff.)'!BH20 -> 2704429.263 | AV20: ='2.1 Plant I-O All (Eff.)'!BC20 -> 2379238.209 | AW20: ='2.1 Plant I-O All (Eff.)'!BG20 -> 2410688.612 | AX20: ='2.1 Plant I-O All (Eff.)'!BE20 -> 2657100.988 | AY20: ='2.1 Plant I-O All (Eff.)'!BJ20 -> 2704429.263 | AZ20: ='2.1 Plant I-O All (Eff.)'!BC20 -> 2379238.209 | BA20: ='2.1 Plant I-O All (Eff.)'!BI20 -> 2410688.612 | BC20: ='2.1 Plant I-O All (Eff.)'!CI20 -> 2754810.976 | BD20: ='2.1 Plant I-O All (Eff.)'!CP20 -> 2771299.537 | BE20: ='2.1 Plant I-O All (Eff.)'!CE20 -> 2478780.26 | BF20: ='2.1 Plant I-O All (Eff.)'!CM20 -> 2627787.992 | BG20: ='2.1 Plant I-O All (Eff.)'!CI20 -> 2754810.976 | BH20: 2771299.537 | BI20: ='2.1 Plant I-O All (Eff.)'!CE20 -> 2478780.26 | BJ20: 2627787.992
B21: LPG | C21: lb/hr | D21: ='2.1 Plant I-O All (Eff.)'!R21 -> 31242.8463 | E21: ='2.1 Plant I-O All (Eff.)'!U21 -> 31240.9022 | F21: ='2.1 Plant I-O All (Eff.)'!R21 -> 31242.8463 | G21: ='2.1 Plant I-O All (Eff.)'!X21 -> 31253.5395 | H21: ='2.1 Plant I-O All (Eff.)'!R21 -> 31242.8463 | I21: ='2.1 Plant I-O All (Eff.)'!AG21 -> 31243.807 | J21: ='2.1 Plant I-O All (Eff.)'!R21 -> 31242.8463 | K21: ='2.1 Plant I-O All (Eff.)'!AJ21 -> 31254.0168 | L21: 31371.6847 | M21: 31325.656 | N21: 31371.6847 | O21: 31350.6645 | P21: ='2.1 Plant I-O All (Eff.)'!AU21 -> 31371.6847 | Q21: ='2.1 Plant I-O All (Eff.)'!AW21 -> 31336.8938 | R21: ='2.1 Plant I-O All (Eff.)'!AU21 -> 31371.6847 | S21: ='2.1 Plant I-O All (Eff.)'!AY21 -> 31385.0529 | T21: ='2.1 Plant I-O All (Eff.)'!BO21 -> 0 | U21: ='2.1 Plant I-O All (Eff.)'!BV21 -> 0 | V21: ='2.1 Plant I-O All (Eff.)'!BK21 -> 0 | W21: ='2.1 Plant I-O All (Eff.)'!BS21 -> 0 | X21: ='2.1 Plant I-O All (Eff.)'!BO21 -> 0 | Y21: ='2.1 Plant I-O All (Eff.)'!CB21 -> 0 | Z21: ='2.1 Plant I-O All (Eff.)'!BK21 -> 0 | AA21: ='2.1 Plant I-O All (Eff.)'!BY21 -> 0 | AB21: ='2.1 Plant I-O All (Eff.)'!CY21 -> 31242.8463 | AC21: ='2.1 Plant I-O All (Eff.)'!DB21 -> 31240.9022 | AD21: ='2.1 Plant I-O All (Eff.)'!CY21 -> 31242.8463 | AE21: ='2.1 Plant I-O All (Eff.)'!DE21 -> 31253.5395 | AF21: ='2.1 Plant I-O All (Eff.)'!CY21 -> 31242.8463 | AG21: ='2.1 Plant I-O All (Eff.)'!DF21 -> 31243.807 | AH21: ='2.1 Plant I-O All (Eff.)'!CY21 -> 31242.8463 | AI21: ='2.1 Plant I-O All (Eff.)'!DG21 -> 31254.0168 | AJ21: 31371.6847 | AK21: 31325.656 | AL21: 31371.6847 | AM21: 31350.6645 | AN21: ='2.1 Plant I-O All (Eff.)'!DH21 -> 31371.6847 | AO21: ='2.1 Plant I-O All (Eff.)'!DJ21 -> 31336.8938 | AP21: ='2.1 Plant I-O All (Eff.)'!DH21 -> 31371.6847 | AQ21: ='2.1 Plant I-O All (Eff.)'!DL21 -> 31385.0529 | AR21: ='2.1 Plant I-O All (Eff.)'!BA21 -> 0 | AT21: ='2.1 Plant I-O All (Eff.)'!BE21 -> 0 | AU21: ='2.1 Plant I-O All (Eff.)'!BH21 -> 0 | AV21: ='2.1 Plant I-O All (Eff.)'!BC21 -> 0 | AW21: ='2.1 Plant I-O All (Eff.)'!BG21 -> 0 | AX21: ='2.1 Plant I-O All (Eff.)'!BE21 -> 0 | AY21: ='2.1 Plant I-O All (Eff.)'!BJ21 -> 0 | AZ21: ='2.1 Plant I-O All (Eff.)'!BC21 -> 0 | BA21: ='2.1 Plant I-O All (Eff.)'!BI21 -> 0 | BC21: ='2.1 Plant I-O All (Eff.)'!CI21 -> 0 | BD21: ='2.1 Plant I-O All (Eff.)'!CP21 -> 0 | BE21: ='2.1 Plant I-O All (Eff.)'!CE21 -> 0 | BF21: ='2.1 Plant I-O All (Eff.)'!CM21 -> 0 | BG21: ='2.1 Plant I-O All (Eff.)'!CI21 -> 0 | BH21: 0 | BI21: ='2.1 Plant I-O All (Eff.)'!CE21 -> 0 | BJ21: 0
B22: Sulfur | C22: lb/hr | D22: ='2.1 Plant I-O All (Eff.)'!R22 -> 9240.30955 | E22: ='2.1 Plant I-O All (Eff.)'!U22 -> 7230.24063 | F22: ='2.1 Plant I-O All (Eff.)'!R22 -> 9240.30955 | G22: ='2.1 Plant I-O All (Eff.)'!X22 -> 6449.86011 | H22: ='2.1 Plant I-O All (Eff.)'!R22 -> 9240.30955 | I22: ='2.1 Plant I-O All (Eff.)'!AG22 -> 7045.65461 | J22: ='2.1 Plant I-O All (Eff.)'!R22 -> 9240.30955 | K22: ='2.1 Plant I-O All (Eff.)'!AJ22 -> 6530.09602 | L22: 15397.3395 | M22: 7543.74579 | N22: 15397.3395 | O22: 6540.1614 | P22: ='2.1 Plant I-O All (Eff.)'!AU22 -> 15397.3395 | Q22: ='2.1 Plant I-O All (Eff.)'!AW22 -> 11938.8334 | R22: ='2.1 Plant I-O All (Eff.)'!AU22 -> 15397.3395 | S22: ='2.1 Plant I-O All (Eff.)'!AY22 -> 10729.3865 | T22: ='2.1 Plant I-O All (Eff.)'!BO22 -> 0 | U22: ='2.1 Plant I-O All (Eff.)'!BV22 -> 0 | V22: ='2.1 Plant I-O All (Eff.)'!BK22 -> 0 | W22: ='2.1 Plant I-O All (Eff.)'!BS22 -> 0 | X22: ='2.1 Plant I-O All (Eff.)'!BO22 -> 0 | Y22: ='2.1 Plant I-O All (Eff.)'!CB22 -> 0 | Z22: ='2.1 Plant I-O All (Eff.)'!BK22 -> 0 | AA22: ='2.1 Plant I-O All (Eff.)'!BY22 -> 0 | AB22: ='2.1 Plant I-O All (Eff.)'!CY22 -> 9240.30955 | AC22: ='2.1 Plant I-O All (Eff.)'!DB22 -> 7230.24063 | AD22: ='2.1 Plant I-O All (Eff.)'!CY22 -> 9240.30955 | AE22: ='2.1 Plant I-O All (Eff.)'!DE22 -> 6449.86011 | AF22: ='2.1 Plant I-O All (Eff.)'!CY22 -> 9240.30955 | AG22: ='2.1 Plant I-O All (Eff.)'!DF22 -> 7045.65461 | AH22: ='2.1 Plant I-O All (Eff.)'!CY22 -> 9240.30955 | AI22: ='2.1 Plant I-O All (Eff.)'!DG22 -> 6530.09602 | AJ22: 15397.3395 | AK22: 7543.74579 | AL22: 15397.3395 | AM22: 6540.1614 | AN22: ='2.1 Plant I-O All (Eff.)'!DH22 -> 15397.3395 | AO22: ='2.1 Plant I-O All (Eff.)'!DJ22 -> 11938.8334 | AP22: ='2.1 Plant I-O All (Eff.)'!DH22 -> 15397.3395 | AQ22: ='2.1 Plant I-O All (Eff.)'!DL22 -> 10729.3865 | AR22: ='2.1 Plant I-O All (Eff.)'!BA22 -> 43874.1948 | AT22: ='2.1 Plant I-O All (Eff.)'!BE22 -> 0 | AU22: ='2.1 Plant I-O All (Eff.)'!BH22 -> 0 | AV22: ='2.1 Plant I-O All (Eff.)'!BC22 -> 0 | AW22: ='2.1 Plant I-O All (Eff.)'!BG22 -> 0 | AX22: ='2.1 Plant I-O All (Eff.)'!BE22 -> 0 | AY22: ='2.1 Plant I-O All (Eff.)'!BJ22 -> 0 | AZ22: ='2.1 Plant I-O All (Eff.)'!BC22 -> 0 | BA22: ='2.1 Plant I-O All (Eff.)'!BI22 -> 0 | BC22: ='2.1 Plant I-O All (Eff.)'!CI22 -> 0 | BD22: ='2.1 Plant I-O All (Eff.)'!CP22 -> 0 | BE22: ='2.1 Plant I-O All (Eff.)'!CE22 -> 0 | BF22: ='2.1 Plant I-O All (Eff.)'!CM22 -> 0 | BG22: ='2.1 Plant I-O All (Eff.)'!CI22 -> 0 | BH22: 0 | BI22: ='2.1 Plant I-O All (Eff.)'!CE22 -> 0 | BJ22: 0
B23: Export power | C23: MWh/hr | D23: ='2.1 Plant I-O All (Eff.)'!R23 -> 221.6999754 | E23: ='2.1 Plant I-O All (Eff.)'!U23 -> 165.341837 | F23: ='2.1 Plant I-O All (Eff.)'!R23 -> 221.6999754 | G23: ='2.1 Plant I-O All (Eff.)'!X23 -> 229.1838155 | H23: ='2.1 Plant I-O All (Eff.)'!R23 -> 221.6999754 | I23: ='2.1 Plant I-O All (Eff.)'!AG23 -> 237.9115217 | J23: ='2.1 Plant I-O All (Eff.)'!R23 -> 221.6999754 | K23: ='2.1 Plant I-O All (Eff.)'!AJ23 -> 245.0564269 | L23: 0 | M23: 0 | N23: 0 | O23: 0 | P23: ='2.1 Plant I-O All (Eff.)'!AU23 -> 0 | Q23: ='2.1 Plant I-O All (Eff.)'!AW23 -> 0 | R23: ='2.1 Plant I-O All (Eff.)'!AU23 -> 0 | S23: ='2.1 Plant I-O All (Eff.)'!AY23 -> 0 | T23: ='2.1 Plant I-O All (Eff.)'!BO23 -> 227.1 | U23: ='2.1 Plant I-O All (Eff.)'!BV23 -> 190.3 | V23: ='2.1 Plant I-O All (Eff.)'!BK23 -> 0 | W23: ='2.1 Plant I-O All (Eff.)'!BS23 -> 0 | X23: ='2.1 Plant I-O All (Eff.)'!BO23 -> 227.1 | Y23: ='2.1 Plant I-O All (Eff.)'!CB23 -> 190.3 | Z23: ='2.1 Plant I-O All (Eff.)'!BK23 -> 0 | AA23: ='2.1 Plant I-O All (Eff.)'!BY23 -> 0 | AB23: ='2.1 Plant I-O All (Eff.)'!CY23 -> 221.6999754 | AC23: ='2.1 Plant I-O All (Eff.)'!DB23 -> 165.341837 | AD23: ='2.1 Plant I-O All (Eff.)'!CY23 -> 221.6999754 | AE23: ='2.1 Plant I-O All (Eff.)'!DE23 -> 229.1838155 | AF23: ='2.1 Plant I-O All (Eff.)'!CY23 -> 221.6999754 | AG23: ='2.1 Plant I-O All (Eff.)'!DF23 -> 237.9115217 | AH23: ='2.1 Plant I-O All (Eff.)'!CY23 -> 221.6999754 | AI23: ='2.1 Plant I-O All (Eff.)'!DG23 -> 245.0564269 | AJ23: 0 | AK23: 0 | AL23: 0 | AM23: 0 | AN23: ='2.1 Plant I-O All (Eff.)'!DH23 -> 0 | AO23: ='2.1 Plant I-O All (Eff.)'!DJ23 -> 0 | AP23: ='2.1 Plant I-O All (Eff.)'!DH23 -> 0 | AQ23: ='2.1 Plant I-O All (Eff.)'!DL23 -> 0 | AR23: ='2.1 Plant I-O All (Eff.)'!BA23 -> 4.7 | AT23: ='2.1 Plant I-O All (Eff.)'!BE23 -> 397.3 | AU23: ='2.1 Plant I-O All (Eff.)'!BH23 -> 319.4 | AV23: ='2.1 Plant I-O All (Eff.)'!BC23 -> 104.5 | AW23: ='2.1 Plant I-O All (Eff.)'!BG23 -> 48.9 | AX23: ='2.1 Plant I-O All (Eff.)'!BE23 -> 397.3 | AY23: ='2.1 Plant I-O All (Eff.)'!BJ23 -> 319.4 | AZ23: ='2.1 Plant I-O All (Eff.)'!BC23 -> 104.5 | BA23: ='2.1 Plant I-O All (Eff.)'!BI23 -> 48.9 | BC23: ='2.1 Plant I-O All (Eff.)'!CI23 -> 227.1 | BD23: ='2.1 Plant I-O All (Eff.)'!CP23 -> 190.3 | BE23: ='2.1 Plant I-O All (Eff.)'!CE23 -> 0 | BF23: ='2.1 Plant I-O All (Eff.)'!CM23 -> 0 | BG23: ='2.1 Plant I-O All (Eff.)'!CI23 -> 227.1 | BH23: 190.3 | BI23: ='2.1 Plant I-O All (Eff.)'!CE23 -> 0 | BJ23: 0
B24: CO₂ emitted | C24: lb/hr | D24: ='2.1 Plant I-O All (Eff.)'!R24 -> 363755.537 | E24: ='2.1 Plant I-O All (Eff.)'!U24 -> 367469.45 | F24: ='2.1 Plant I-O All (Eff.)'!R24 -> 363755.537 | G24: ='2.1 Plant I-O All (Eff.)'!X24 -> 352556.142 | H24: ='2.1 Plant I-O All (Eff.)'!R24 -> 363755.537 | I24: ='2.1 Plant I-O All (Eff.)'!AG24 -> 361177.008 | J24: ='2.1 Plant I-O All (Eff.)'!R24 -> 363755.537 | K24: ='2.1 Plant I-O All (Eff.)'!AJ24 -> 348455.224 | L24: 374604.656 | M24: 571694.263 | N24: 374604.656 | O24: 324377.641 | P24: ='2.1 Plant I-O All (Eff.)'!AU24 -> 374604.656 | Q24: ='2.1 Plant I-O All (Eff.)'!AW24 -> 402605.907 | R24: ='2.1 Plant I-O All (Eff.)'!AU24 -> 374604.656 | S24: ='2.1 Plant I-O All (Eff.)'!AY24 -> 284733.697 | T24: ='2.1 Plant I-O All (Eff.)'!BO24 -> 548397.308 | U24: ='2.1 Plant I-O All (Eff.)'!BV24 -> 584733.2098 | V24: ='2.1 Plant I-O All (Eff.)'!BK24 -> 292824.6205 | W24: ='2.1 Plant I-O All (Eff.)'!BS24 -> 400305.6074 | X24: ='2.1 Plant I-O All (Eff.)'!BO24 -> 548397.308 | Y24: ='2.1 Plant I-O All (Eff.)'!CB24 -> 584733.2098 | Z24: ='2.1 Plant I-O All (Eff.)'!BK24 -> 292824.6205 | AA24: ='2.1 Plant I-O All (Eff.)'!BY24 -> 400305.6074 | AB24: ='2.1 Plant I-O All (Eff.)'!CY24 -> 363755.537 | AC24: ='2.1 Plant I-O All (Eff.)'!DB24 -> 367469.45 | AD24: ='2.1 Plant I-O All (Eff.)'!CY24 -> 363755.537 | AE24: ='2.1 Plant I-O All (Eff.)'!DE24 -> 352556.142 | AF24: ='2.1 Plant I-O All (Eff.)'!CY24 -> 363755.537 | AG24: ='2.1 Plant I-O All (Eff.)'!DF24 -> 361177.008 | AH24: ='2.1 Plant I-O All (Eff.)'!CY24 -> 363755.537 | AI24: ='2.1 Plant I-O All (Eff.)'!DG24 -> 348455.224 | AJ24: 374604.656 | AK24: 571694.263 | AL24: 374604.656 | AM24: 324377.641 | AN24: ='2.1 Plant I-O All (Eff.)'!DH24 -> 374604.656 | AO24: ='2.1 Plant I-O All (Eff.)'!DJ24 -> 402605.907 | AP24: ='2.1 Plant I-O All (Eff.)'!DH24 -> 374604.656 | AQ24: ='2.1 Plant I-O All (Eff.)'!DL24 -> 284733.697 | AR24: ='2.1 Plant I-O All (Eff.)'!BA24 -> 198743.3262 | AT24: ='2.1 Plant I-O All (Eff.)'!BE24 -> 616183.6122 | AU24: ='2.1 Plant I-O All (Eff.)'!BH24 -> 619847.7368 | AV24: ='2.1 Plant I-O All (Eff.)'!BC24 -> 340458.2397 | AW24: ='2.1 Plant I-O All (Eff.)'!BG24 -> 329771.2097 | AX24: ='2.1 Plant I-O All (Eff.)'!BE24 -> 616183.6122 | AY24: ='2.1 Plant I-O All (Eff.)'!BJ24 -> 619847.7368 | AZ24: ='2.1 Plant I-O All (Eff.)'!BC24 -> 340458.2397 | BA24: ='2.1 Plant I-O All (Eff.)'!BI24 -> 329771.2097 | BC24: ='2.1 Plant I-O All (Eff.)'!CI24 -> 548397.308 | BD24: ='2.1 Plant I-O All (Eff.)'!CP24 -> 584733.2098 | BE24: ='2.1 Plant I-O All (Eff.)'!CE24 -> 292824.6205 | BF24: ='2.1 Plant I-O All (Eff.)'!CM24 -> 400305.6074 | BG24: ='2.1 Plant I-O All (Eff.)'!CI24 -> 548397.308 | BH24: 584733.2098 | BI24: ='2.1 Plant I-O All (Eff.)'!CE24 -> 292824.6205 | BJ24: 400305.6074
B25: Efficiency | D25: ='2.1 Plant I-O All (Eff.)'!R25 -> 53.12200106 | E25: ='2.1 Plant I-O All (Eff.)'!U25 -> 52.28801766 | F25: ='2.1 Plant I-O All (Eff.)'!R25 -> 53.12200106 | G25: ='2.1 Plant I-O All (Eff.)'!X25 -> 54.19099676 | H25: ='2.1 Plant I-O All (Eff.)'!R25 -> 53.12200106 | I25: ='2.1 Plant I-O All (Eff.)'!AG25 -> 53.79123802 | J25: ='2.1 Plant I-O All (Eff.)'!R25 -> 53.12200106 | K25: ='2.1 Plant I-O All (Eff.)'!AJ25 -> 54.57636859 | L25: 50.03192158 | M25: 46.79026147 | N25: 50.03192158 | O25: 50.63459397 | P25: ='2.1 Plant I-O All (Eff.)'!AU25 -> 50.03192158 | Q25: ='2.1 Plant I-O All (Eff.)'!AW25 -> 48.99720701 | R25: ='2.1 Plant I-O All (Eff.)'!AU25 -> 50.03192158 | S25: ='2.1 Plant I-O All (Eff.)'!AY25 -> 51.1287241 | T25: ='2.1 Plant I-O All (Eff.)'!BO25 -> 50.6 | U25: ='2.1 Plant I-O All (Eff.)'!BV25 -> 48.9 | V25: ='2.1 Plant I-O All (Eff.)'!BK25 -> 53 | W25: ='2.1 Plant I-O All (Eff.)'!BS25 -> 50 | X25: ='2.1 Plant I-O All (Eff.)'!BO25 -> 50.6 | Y25: ='2.1 Plant I-O All (Eff.)'!CB25 -> 0 | Z25: ='2.1 Plant I-O All (Eff.)'!BK25 -> 53 | AA25: ='2.1 Plant I-O All (Eff.)'!BY25 -> 0 | AB25: ='2.1 Plant I-O All (Eff.)'!CY25 -> 0 | AC25: ='2.1 Plant I-O All (Eff.)'!DB25 -> 0 | AD25: ='2.1 Plant I-O All (Eff.)'!CY25 -> 0 | AE25: ='2.1 Plant I-O All (Eff.)'!DE25 -> 0 | AF25: ='2.1 Plant I-O All (Eff.)'!CY25 -> 0 | AG25: ='2.1 Plant I-O All (Eff.)'!DF25 -> 53.79123802 | AH25: ='2.1 Plant I-O All (Eff.)'!CY25 -> 0 | AI25: ='2.1 Plant I-O All (Eff.)'!DG25 -> 54.57636859 | AJ25: 0 | AK25: 0 | AL25: 0 | AM25: 0 | AN25: ='2.1 Plant I-O All (Eff.)'!DH25 -> 0 | AO25: ='2.1 Plant I-O All (Eff.)'!DJ25 -> 0 | AP25: ='2.1 Plant I-O All (Eff.)'!DH25 -> 0 | AQ25: ='2.1 Plant I-O All (Eff.)'!DL25 -> 0 | AR25: ='2.1 Plant I-O All (Eff.)'!BA25 -> 0 | AT25: ='2.1 Plant I-O All (Eff.)'!BE25 -> 49.9 | AU25: ='2.1 Plant I-O All (Eff.)'!BH25 -> 48.6 | AV25: ='2.1 Plant I-O All (Eff.)'!BC25 -> 51.6 | AW25: ='2.1 Plant I-O All (Eff.)'!BG25 -> 50.8 | AX25: ='2.1 Plant I-O All (Eff.)'!BE25 -> 49.9 | AY25: ='2.1 Plant I-O All (Eff.)'!BJ25 -> 0 | AZ25: ='2.1 Plant I-O All (Eff.)'!BC25 -> 51.6 | BA25: ='2.1 Plant I-O All (Eff.)'!BI25 -> 0 | BC25: ='2.1 Plant I-O All (Eff.)'!CI25 -> 0 | BD25: ='2.1 Plant I-O All (Eff.)'!CP25 -> 0 | BE25: ='2.1 Plant I-O All (Eff.)'!CE25 -> 0 | BF25: ='2.1 Plant I-O All (Eff.)'!CM25 -> 0 | BG25: ='2.1 Plant I-O All (Eff.)'!CI25 -> 0 | BH25: 0 | BI25: ='2.1 Plant I-O All (Eff.)'!CE25 -> 0 | BJ25: 0
A26: UNIT CONVERSION
A27: INPUTS | B27: PRB Coal | C27: kg/kg | D27: =D3/D$17 -> 9.304138294 | E27: 7.164731332 | F27: 9.304138294 | G27: 6.49465412 | H27: 9.304138294 | I27: 6.904076632 | J27: 9.304138294 | K27: 6.51385115 | P27: 9.269515739 | Q27: 7.120554359 | R27: 9.269515739 | S27: 6.399163215 | AB27: 0 | AC27: 0 | AD27: 0 | AE27: 0 | AF27: 0 | AG27: 0 | AH27: 0 | AI27: 0 | AN27: 0 | AO27: 0 | AP27: 0 | AQ27: 0
B28: Coal - I6 | C28: kg/kg
B29: Coal - Lignite | C29: kg/kg
B30: Biomass - Southern Pine | C30: kg/kg | D30: =D6/D$17*IF(D46="Chips",$D$50,IF(D46="Pellets",IF(D47="TRIG",$D$54,$D$62))) -> 0 | E30: 4.198330727 | F30: 0 | G30: 0 | H30: 0 | I30: 2.797380515 | J30: 0 | K30: 0 | P30: 4.264061588e-14 | Q30: 2.732761197 | R30: 4.264061588e-14 | S30: 0 | AB30: 0 | AC30: 6.940943957 | AD30: 0 | AE30: 0 | AF30: 0 | AG30: 4.624805106 | AH30: 0 | AI30: 0 | AN30: 7.060803336e-14 | AO30: 4.517972391 | AP30: 7.060803336e-14 | AQ30: 0
B31: Biomass - Switchgrass | C31: kg/kg
B32: Biomass - Municipal Solid Waste | C32: kg/kg
B33: Torrefied biomass | C33: kg/kg | D33: =D15/D$17*$D$58 -> 0 | E33: 0 | F33: 0 | G33: 4.375608787 | H33: 0 | I33: 0 | J33: 0 | K33: 4.388542298 | P33: 0 | Q33: 0 | R33: 0 | S33: 4.083641208 | AB33: 0 | AC33: 0 | AD33: 0 | AE33: 4.375608787 | AF33: 0 | AG33: 0 | AH33: 0 | AI33: 4.388542298 | AN33: 0 | AO33: 0 | AP33: 0 | AQ33: 4.083641208
B34: Cooling water | C34: kg/kg | D34: =D16/D$17 -> 19.18127116 | E34: 17.94600733 | F34: 19.18127116 | G34: 18.17608803 | H34: 19.18127116 | I34: 18.7323624 | J34: 19.18127116 | K34: 17.87004022 | P34: 16.42217384 | Q34: 18.27019737 | R34: 16.42217384 | S34: 16.82672398 | AB34: 19.18127116 | AC34: 17.94600733 | AD34: 19.18127116 | AE34: 18.17608803 | AF34: 19.18127116 | AG34: 18.7323624 | AH34: 19.18127116 | AI34: 17.87004022 | AN34: 16.42217384 | AO34: 18.27019737 | AP34: 16.42217384 | AQ34: 16.82672398
A35: OUTPUTS | B35: FT Jet | C35: kg/kg | D35: 1 | E35: 1 | F35: 1 | G35: 1 | H35: 1 | I35: 1 | J35: 1 | K35: 1 | P35: 1 | Q35: 1 | R35: 1 | S35: 1 | AB35: 1 | AC35: 1 | AD35: 1 | AE35: 1 | AF35: 1 | AG35: 1 | AH35: 1 | AI35: 1 | AN35: 1 | AO35: 1 | AP35: 1 | AQ35: 1
B36: FT Naphtha | C36: kg/kg | D36: 0.640101775 | E36: 0.6401002509 | F36: 0.640101775 | G36: 0.6401024388 | H36: 0.640101775 | I36: 0.6401016363 | J36: 0.640101775 | K36: 0.640102688 | P36: 0.6421932149 | Q36: 0.6419101217 | R36: 0.6421932149 | S36: 0.6420614783 | AB36: 0.640101775 | AC36: 0.6401002509 | AD36: 0.640101775 | AE36: 0.6401024388 | AF36: 0.640101775 | AG36: 0.6401016363 | AH36: 0.640101775 | AI36: 0.640102688 | AN36: 0.6421932149 | AO36: 0.6419101217 | AP36: 0.6421932149 | AQ36: 0.6420614783
B37: FT Diesel | C37: kg/kg | D37: 0.1958641462 | E37: 0.1958603688 | F37: 0.1958641462 | G37: 0.195863819 | H37: 0.1958641462 | I37: 0.1958624944 | J37: 0.1958641462 | K37: 0.195863276 | P37: 0.200705293 | Q37: 0.2000121692 | R37: 0.200705293 | S37: 0.2003824275 | AB37: 0.1958641462 | AC37: 0.1958603688 | AD37: 0.1958641462 | AE37: 0.195863819 | AF37: 0.1958641462 | AG37: 0.1958624944 | AH37: 0.1958641462 | AI37: 0.195863276 | AN37: 0.200705293 | AO37: 0.2000121692 | AP37: 0.200705293 | AQ37: 0.2003824275
A38: Note: Small discrepancy between these values in the old Excel tool and the UPs; not sure why | B38: CO₂ to sequestration | C38: kg/kg | D38: 9.370592688 | E38: 9.438593086 | F38: 9.509764977 | G38: 9.361734988 | H38: 9.354416145 | I38: 9.446316295 | J38: 9.460029197 | K38: 9.168403064 | P38: 9.386453777 | Q38: 9.666020332 | R38: 9.386453777 | S38: 9.341118598 | AB38: 9.460029197 | AC38: 9.661274174 | AD38: 9.460029197 | AE38: 9.438059298 | AF38: 9.460029197 | AG38: 9.446316295 | AH38: 9.460029197 | AI38: 9.168403064 | AN38: 9.386453777 | AO38: 9.666020332 | AP38: 9.386453777 | AQ38: 9.341118598
B39: LPG | C39: kg/kg | D39: =D21/D$17 -> 0.1142092318 | E39: 0.1142015845 | F39: 0.1142092318 | G39: 0.1142512205 | H39: 0.1142092318 | I39: 0.1142140209 | J39: 0.1142092318 | K39: 0.1142537647 | P39: 0.1151466785 | Q39: 0.114949438 | R39: 0.1151466785 | S39: 0.1151704149 | AB39: 0.1142092318 | AC39: 0.1142015845 | AD39: 0.1142092318 | AE39: 0.1142512205 | AF39: 0.1142092318 | AG39: 0.1142140209 | AH39: 0.1142092318 | AI39: 0.1142537647 | AN39: 0.1151466785 | AO39: 0.114949438 | AP39: 0.1151466785 | AQ39: 0.1151704149
B40: Sulfur | C40: kg/kg | D40: 0.03377824944 | E40: 0.02643025259 | F40: 0.03377824944 | G40: 0.0235782699 | H40: 0.03377824944 | I40: 0.02575590557 | J40: 0.03377824944 | K40: 0.02387174932 | P40: 0.05651441797 | Q40: 0.04379381692 | R40: 0.05651441797 | S40: 0.03937249679 | AB40: 0.03377824944 | AC40: 0.02643025259 | AD40: 0.03377824944 | AE40: 0.0235782699 | AF40: 0.03377824944 | AG40: 0.02575590557 | AH40: 0.03377824944 | AI40: 0.02387174932 | AN40: 0.05651441797 | AO40: 0.04379381692 | AP40: 0.05651441797 | AQ40: 0.03937249679 | AV40: =AV22/AV$17 -> 
B41: Export power | C41: MWh/kg | D41: =D23/(CONVERT(D$17,"lbm","kg")) -> 0.001786695414 | E41: 0.001332494976 | F41: 0.001786695414 | G41: 0.00184705507 | H41: 0.001786695414 | I41: 0.001917366825 | J41: 0.001786695414 | K41: 0.001974990607 | P41: 0 | Q41: 0 | R41: 0 | S41: 0 | AB41: 0.001786695414 | AC41: 0.001332494976 | AD41: 0.001786695414 | AE41: 0.00184705507 | AF41: 0.001786695414 | AG41: 0.001917366825 | AH41: 0.001786695414 | AI41: 0.001974990607 | AN41: 0 | AO41: 0 | AP41: 0 | AQ41: 0
B42: CO₂ emitted | C42: kg/kg | D42: =D24/D$17 -> 1.329720092 | E42: 1.343290062 | F42: 1.329720092 | G42: 1.288813048 | H42: 1.329720092 | I42: 1.32030896 | J42: 1.329720092 | K42: 1.273830543 | P42: 1.374949491 | Q42: 1.476831847 | R42: 1.374949491 | S42: 1.044857185 | AB42: 1.329720092 | AC42: 1.343290062 | AD42: 1.329720092 | AE42: 1.288813048 | AF42: 1.329720092 | AG42: 1.32030896 | AH42: 1.329720092 | AI42: 1.273830543 | AN42: 1.374949491 | AO42: 1.476831847 | AP42: 1.374949491 | AQ42: 1.044857185
B44: Pellets | C44: kg fed/kg (used for drying calcs) | D44: =IF(D46="Pellets",D6/D$17,0) -> 0 | E44: 0 | F44: 0 | G44: 0 | H44: 0 | I44: 0 | J44: 0 | K44: 0 | P44: 0 | Q44: 0 | R44: 0 | S44: 0 | T44: 0 | U44: 0 | V44: 0 | W44: 0 | X44: 0 | Y44: 0 | Z44: 0 | AA44: 0 | AB44: 0 | AC44: 3.702231682 | AD44: 0 | AE44: 0 | AF44: 0 | AG44: 2.466825851 | AH44: 0 | AI44: 0 | AN44: 3.766163504e-14 | AO44: 2.409842325 | AP44: 3.766163504e-14 | AQ44: 0 | AV44: 0
C45: Torrefied (Y/N) | D45: N | E45: N | F45: N | G45: Y | H45: Y | I45: N | J45: N | K45: Y | P45: N | Q45: N | R45: N | S45: Y | T45: Y | U45: Y | V45: N | W45: N | X45: N | Y45: N | Z45: Y | AA45: Y | AB45: Y | AC45: N | AD45: N | AE45: N | AF45: Y | AG45: Y | AH45: Y | AI45: N | AN45: N | AO45: N | AP45: Y | AQ45: Y | AR45: Y | AT45: Y | AU45: Y | AV45: N | AW45: N | AX45: N | AY45: Y | AZ45: Y | BA45: Y
C46: Biomass Type (Chips/Pellets/ N/A) | D46: N/A | E46: Chips | F46: Chips | G46: Chips | H46: Chips | I46: Chips | J46: Chips | K46: Chips | P46: Chips | Q46: Chips | R46: Chips | S46: Chips | T46: Chips | U46: Chips | V46: N/A | W46: Chips | X46: Chips | Y46: Chips | Z46: Chips | AA46: Chips | AB46: Chips | AC46: Pellets | AD46: Pellets | AE46: Pellets | AF46: Pellets | AG46: Pellets | AH46: Pellets | AI46: Pellets | AN46: Pellets | AO46: Pellets | AP46: Pellets | AQ46: Pellets | AR46: Pellets | AT46: Pellets | AU46: Pellets | AV46: N/A | AW46: Pellets | AX46: Pellets | AY46: Pellets | AZ46: Pellets | BA46: Pellets
C47: Gasifier Type | D47: TRIG | E47: TRIG | F47: TRIG | G47: TRIG | H47: TRIG | I47: TRIG | J47: TRIG | K47: TRIG | P47: TRIG | Q47: TRIG | R47: TRIG | S47: TRIG | T47: TRIG | U47: TRIG | V47: TRIG | W47: TRIG | X47: TRIG | Y47: TRIG | Z47: TRIG | AA47: TRIG | AB47: TRIG | AC47: TRIG | AD47: TRIG | AE47: TRIG | AF47: TRIG | AG47: TRIG | AH47: TRIG | AI47: TRIG | AN47: TRIG | AO47: TRIG | AP47: TRIG | AQ47: TRIG | AR47: EFG | AT47: EFG | AU47: EFG | AV47: EFG | AW47: EFG | AX47: EFG | AY47: EFG | AZ47: EFG | BA47: EFG
C48: Chipped As Received Moisture Content | D48: =Constants!$K$4/100 -> 0.433
C49: Chipped As Harvested Moisture Content | D49: =Constants!$J$4/100 -> 0.5
C50: Chipped Harvested Mass Scaler | D50: =(1-D48)/(1-D49) -> 1.134
B52: TRIG | C52: Pelleted As Received Moisture Content | D52: =Constants!$N$4/100 -> 0.0626
B53: TRIG | C53: Pelleted As Harvested Moisture Content | D53: =Constants!$M$4/100 -> 0.5
B54: TRIG | C54: Pelleted Harvested Mass Scaler | D54: =(1-D52)/(1-D53) -> 1.8748
C56: Torrefied As Received Moisture Content | D56: =Constants!S4/100 -> 0.0572
C57: Torrefied As Harvested Moisture Content | D57: 0.5
C58: Torrefied Harvested Mass Scaler | D58: =(1-D56)/(1-D57) -> 1.8856
B60: EFG | C60: Pelleted As Received Moisture Content | D60: =Constants!$O$4/100 -> 0.0517
B61: EFG | C61: Pelleted As Harvested Moisture Content | D61: =Constants!$M$4/100 -> 0.5
B62: EFG | C62: Pelleted Harvested Mass Scaler | D62: =(1-D60)/(1-D61) -> 1.8966
D65: 1 - TRIG-M-100% Coal | E65: 2 - TRIG-M-10% Bio, Chipped | F65: 3 - TRIG-M-20% Bio, Chipped | G65: 4 - TRIG-M-10% Bio, Torrefied | H65: 5 - TRIG-M-20% Bio, Torrefied | I65: 6 - TRIG-M-10% Bio, Microchipped, Sep. Gasifiers | J65: 7 - TRIG-M-30% Bio, Chipped | K65: 8 - TRIG-M-30% Bio, Torrefied | P65: 9 - TRIG-M-11.7% Bio, Chipped | Q65: 10 - TRIG-M-19.2% Bio, Chipped | R65: 11 - TRIG-M-28.3% Bio, Chipped | S65: 12 - TRIG-M-16.5% Bio, Torrefied | T65: 13 - TRIG-M-19.6% Bio, Torrefied | U65: 14 - TRIG-M-28.3% Bio, Torrefied | V65: 15 - TRIG-V-100% Coal | W65: 16 - TRIG-V-11.7% Bio, Chipped | X65: 17 - TRIG-V-19.2% Bio, Chipped | Y65: 18 - TRIG-V-28.3% Bio, Chipped | Z65: 19 - TRIG-V-16.5% Bio, Torrefied | AA65: 20 - TRIG-V-19.6% Bio, Torrefied | AB65: 21 - TRIG-V-28.3% Bio, Torrefied | AC65: 22 - TRIG-M-11.7% Bio, Pellets | AD65: 23 - TRIG-M-19.2% Bio, Pellets | AE65: 24 - TRIG-M-28.3% Bio, Pellets | AF65: 25 - TRIG-M-16.5% Bio, Torrefied Pellets | AG65: 26 - TRIG-M-19.6% Bio, Torrefied Pellets | AH65: 27 - TRIG-M-28.3% Bio, Torrefied Pellets | AI65: 28 - TRIG-V-11.7% Bio, Pellets | AN65: 29 - TRIG-V-19.2% Bio, Pellets | AO65: 30 - TRIG-V-28.3% Bio, Pellets | AP65: 31 - TRIG-V-16.5% Bio, Torrefied Pellets | AQ65: 32 - TRIG-V-19.6% Bio, Torrefied Pellets | AR65: 41 - EFG-M-10% Bio, Torrefied Pellets | AT65: 42 - EFG-M-30% Bio, Torrefied Pellets | AU65: 43 - EFG-M-10% Bio, Torrefied Pellets, Sep. Gasifiers | AV65: 44 - EFG-V-100% Coal | AW65: 45 - EFG-V-10% Bio, Pellets | AX65: 46 - EFG-V-30% Bio, Pellets | AY65: 47 - EFG-V-10% Bio, Torrefied Pellets | AZ65: 48 - EFG-V-30% Bio, Torrefied Pellets | BA65: 49 - EFG-V-10% Bio, Torrefied Pellets, Sep. Gasifiers
D66: TRIG | E66: TRIG | F66: TRIG | G66: TRIG | H66: TRIG | I66: TRIG | J66: TRIG | K66: TRIG | P66: TRIG | Q66: TRIG | R66: TRIG | S66: TRIG | T66: TRIG | U66: TRIG | V66: TRIG | W66: TRIG | X66: TRIG | Y66: TRIG | Z66: TRIG | AA66: TRIG | AB66: TRIG | AC66: TRIG | AD66: TRIG | AE66: TRIG | AF66: TRIG | AG66: TRIG | AH66: TRIG | AI66: TRIG | AN66: TRIG | AO66: TRIG | AP66: TRIG | AQ66: TRIG | AR66: EFG | AT66: EFG | AU66: EFG | AV66: EFG | AW66: EFG | AX66: EFG | AY66: EFG | AZ66: EFG | BA66: EFG
D67: 100% | E67: 10% | F67: 20% | G67: 10% | H67: 20% | I67: 10% | J67: 30% | K67: 30% | P67: 11.7% | Q67: 19.2% | R67: 28.3% | S67: 16.5% | T67: 19.6% | U67: 28.3% | V67: 100% | W67: 11.7% | X67: 19.2% | Y67: 28.3% | Z67: 16.5% | AA67: 19.6% | AB67: 28.3% | AC67: 11.7% | AD67: 19.2% | AE67: 28.3% | AF67: 16.5% | AG67: 19.6% | AH67: 28.3% | AI67: 11.7% | AN67: 19.2% | AO67: 28.3% | AP67: 16.5% | AQ67: 19.6% | AR67: 10% | AT67: 30% | AU67: 10% | AV67: 100% | AW67: 10% | AX67: 30% | AY67: 10% | AZ67: 30% | BA67: 10%
D68: M | E68: M | F68: M | G68: M | H68: M | I68: M | J68: M | K68: M | P68: M | Q68: M | R68: M | S68: M | T68: M | U68: M | V68: V | W68: V | X68: V | Y68: V | Z68: V | AA68: V | AB68: V | AC68: M | AD68: M | AE68: M | AF68: M | AG68: M | AH68: M | AI68: V | AN68: V | AO68: V | AP68: V | AQ68: V | AR68: M | AT68: M | AU68: M | AV68: V | AW68: V | AX68: V | AY68: V | AZ68: V | BA68: V
E69: Chipped | F69: Chipped | G69: Torrefied | H69: Torrefied | I69: Microchipped, Sep. Gasifiers | J69: Chipped | K69: Torrefied | P69: Chipped | Q69: Chipped | R69: Chipped | S69: Torrefied | T69: Torrefied | U69: Torrefied | W69: Chipped | X69: Chipped | Y69: Chipped | Z69: Torrefied | AA69: Torrefied | AB69: Torrefied | AC69: Pellets | AD69: Pellets | AE69: Pellets | AF69: Torrefied Pellets | AG69: Torrefied Pellets | AH69: Torrefied Pellets | AI69: Pellets | AN69: Pellets | AO69: Pellets | AP69: Torrefied Pellets | AQ69: Torrefied Pellets | AR69: Torrefied Pellets | AT69: Torrefied Pellets | AU69: Torrefied Pellets, Sep. Gasifiers | AW69: Pellets | AX69: Pellets | AY69: Torrefied Pellets | AZ69: Torrefied Pellets | BA69: Torrefied Pellets, Sep. Gasifiers

Sheet 3.0 Cases (hidden)
A1: Coal Type | B1: Biomass Type | C1: Gasifier Type | D1: Recycled Syngas | E1: Report | F1: Scenario(s) | G1: biomass min and max scenarios
A2: PRB | B2: - | C2: TRIG | D2: X | E2: CCAT | F2: 15-V | G2: 15-V | H2: Min | I2: x | J2: x
A3: PRB | B3: SYP-chipped | C3: TRIG | D3: X | E3: CCAT | F3: 16-V; 17-V; 18-V | G3: 18-V | H3: Max | I3: x | J3: x
A4: PRB | B4: - | C4: TRIG | D4: X | E4: CCAT | F4: 15-V | G4: 15-V | H4: Min | I4: x | J4: x
A5: PRB | B5: SYP-torrefied | C5: TRIG | D5: X | E5: CCAT | F5: 19-V; 20-V; 21-V | G5: 21-V | H5: Max | I5: x | J5: x
A6: PRB | B6: - | C6: TRIG | D6: X | E6: CCAT | F6: 15-V | G6: 15-V | H6: Min | I6: x | J6: x
A7: PRB | B7: SYP-pellets | C7: TRIG | D7: X | E7: CCAT | F7: 28-V; 29-V; 30-V | G7: 30-V | H7: Max | I7: x | J7: x
A8: PRB | B8: - | C8: TRIG | D8: X | E8: CCAT | F8: 15-V | G8: 15-V | I8: x | J8: x
A9: PRB | B9: SYP-torrefied pellets | C9: TRIG | D9: X | E9: CCAT | F9: 31-V; 32-V; 33-V | G9: 33-V | I9: x | J9: x
A10: PRB | B10: - | C10: EFG | D10: X | E10: CCAT | F10: 44-V | G10: 44-V | I10: x | J10: x
A11: PRB | B11: SYP-pellets | C11: EFG | D11: X | E11: CCAT | F11: 45-V; 46-V | G11: 46-V | I11: x | J11: x
A12: PRB | B12: - | C12: EFG | D12: X | E12: CCAT | F12: 44-V | G12: 44-V | I12: x | J12: x
A13: PRB | B13: SYP-torrefied pellets | C13: EFG | D13: X | E13: CCAT | F13: 47-V; 48-V | G13: 48-V | I13: x | J13: x
A14: PRB | B14: - | C14: Siemens full water quench | D14: - | E14: Zero S Diesel | F14: SOW00 | G14: SOW00 | I14: x | J14: x
A15: PRB | B15: Switchgrass | C15: Siemens full water quench | D15: - | E15: Zero S Diesel | F15: SOW15 | G15: SOW15 | I15: x | J15: x
A16: PRB | B16: - | C16: Siemens full water quench | D16: X | E16: Zero S Diesel | F16: SRW00 | G16: SRW00 | I16: x | J16: x
A17: PRB | B17: Switchgrass | C17: Siemens full water quench | D17: X | E17: Zero S Diesel | F17: SRW15 | G17: SRW15 | I17: x | J17: x
A18: PRB | B18: - | C18: Siemens full water quench | D18: - | E18: Zero S Diesel | F18: SOW00-MSW | G18: SOW00 | I18: x | J18: x
A19: PRB | B19: MSW | C19: Siemens full water quench | D19: - | E19: Zero S Diesel | F19: SOW15-MSW | G19: SOW15-MSW | I19: x | J19: x
A20: PRB | B20: - | C20: Siemens full water quench | D20: X | E20: Zero S Diesel | F20: SRW00-MSW | G20: SRW00 | I20: x | J20: x
A21: PRB | B21: MSW | C21: Siemens full water quench | D21: X | E21: Zero S Diesel | F21: SRW15-MSW | G21: SRW15-MSW | I21: x | J21: x
A22: ND Lignite | B22: - | C22: TRIG | D22: X | E22: CCAT | F22: 15-VL | G22: 15-VL | I22: x | J22: x
A23: ND Lignite | B23: SYP-chipped | C23: TRIG | D23: X | E23: CCAT | F23: 16-VL; 17-VL; 18-VL | G23: 18-VL | I23: x | J23: x
A24: ND Lignite | B24: - | C24: TRIG | D24: X | E24: CCAT | F24: 15-VL | G24: 15-VL | I24: x | J24: x
A25: ND Lignite | B25: SYP-torrefied | C25: TRIG | D25: X | E25: CCAT | F25: 19-VL; 20-VL; 21-VL | G25: 21-VL | I25: x | J25: x
A26: ND Lignite | B26: - | C26: TRIG | D26: X | E26: CCAT | F26: 15-VL | G26: 15-VL | I26: x | J26: x
A27: ND Lignite | B27: SYP-pellets | C27: TRIG | D27: X | E27: CCAT | F27: 28-VL; 29-VL; 30-VL | G27: 30-VL | I27: x | J27: x
A28: ND Lignite | B28: - | C28: TRIG | D28: X | E28: CCAT | F28: 15-VL | G28: 15-VL | I28: x | J28: x
A29: ND Lignite | B29: SYP-torrefied pellets | C29: TRIG | D29: X | E29: CCAT | F29: 31-VL; 32-VL; 33-VL | G29: 33-VL | I29: x | J29: x
A30: ND Lignite | B30: - | C30: EFG | D30: X | E30: CCAT | F30: 44-VL | G30: 44-VL | I30: x | J30: x
A31: ND Lignite | B31: SYP-pellets | C31: EFG | D31: X | E31: CCAT | F31: 45-VL; 46-VL | G31: 46-VL | I31: x | J31: x
A32: ND Lignite | B32: - | C32: EFG | D32: X | E32: CCAT | F32: 44-VL | G32: 44-VL | I32: x | J32: x
A33: ND Lignite | B33: SYP-torrefied pellets | C33: EFG | D33: X | E33: CCAT | F33: 47-VL; 48-VL | G33: 48-VL | I33: x | J33: x
A34: I6 | B34: - | C34: Shell entrained flow | D34: X | E34: CTL Baseline | F34: Sequestration | G34: Sequestration | I34: x | J34: x
A35: I6 | B35: - | C35: Siemens full water quench | D35: - | E35: Zero S Diesel | F35: BOW00 | G35: BOW00 | I35: x | J35: x
A36: I6 | B36: Switchgrass | C36: Siemens full water quench | D36: - | E36: Zero S Diesel | F36: BOW15 | G36: BOW15 | I36: x | J36: x
A37: I6 | B37: - | C37: Siemens full water quench | D37: X | E37: Zero S Diesel | F37: BRW00 | G37: BRW00 | I37: x | J37: x
A38: I6 | B38: Switchgrass | C38: Siemens full water quench | D38: X | E38: Zero S Diesel | F38: BRW15 | G38: BRW15 | I38: x | J38: x
A39: I6 | B39: - | C39: Siemens full water quench | D39: - | E39: Zero S Diesel | F39: BOW00-MSW | G39: BOW00 | I39: x | J39: x
A40: I6 | B40: MSW | C40: Siemens full water quench | D40: - | E40: Zero S Diesel | F40: BOW15-MSW | G40: BOW15-MSW | I40: x | J40: x
A41: I6 | B41: - | C41: Siemens full water quench | D41: X | E41: Zero S Diesel | F41: BRW00-MSW | G41: BRW00 | I41: x | J41: x
A42: I6 | B42: MSW | C42: Siemens full water quench | D42: X | E42: Zero S Diesel | F42: BRW15-MSW | G42: BRW15-MSW | I42: x | J42: x

Sheet 2.1 Plant I-O All (Eff.) (hidden)
A1: Type | B1: Name | C1: Unit | D1: 1 - TRIG-M-100% Coal | E1: 2 - TRIG-M-10% Bio, Chipped | F1: 3 - TRIG-M-20% Bio, Chipped | G1: 4 - TRIG-M-10% Bio, Torrefied | H1: 5 - TRIG-M-20% Bio, Torrefied | I1: 6 - TRIG-M-10% Bio, Microchipped, Sep. Gasifiers | J1: 7 - TRIG-M-30% Bio, Chipped | K1: 8 - TRIG-M-30% Bio, Torrefied | L1: 9 - TRIG-M-11.7% Bio, Chipped | M1: 10 - TRIG-M-19.2% Bio, Chipped | N1: 11 - TRIG-M-28.3% Bio, Chipped | O1: 12 - TRIG-M-16.5% Bio, Torrefied | P1: 13 - TRIG-M-19.6% Bio, Torrefied | Q1: 14 - TRIG-M-28.3% Bio, Torrefied | R1: 15 - TRIG-V-100% Coal | S1: 16 - TRIG-V-11.7% Bio, Chipped | T1: 17 - TRIG-V-19.2% Bio, Chipped | U1: 18 - TRIG-V-28.3% Bio, Chipped | V1: 19 - TRIG-V-16.5% Bio, Torrefied | W1: 20 - TRIG-V-19.6% Bio, Torrefied | X1: 21 - TRIG-V-28.3% Bio, Torrefied | Y1: 22 - TRIG-M-11.7% Bio, Pellets | Z1: 23 - TRIG-M-19.2% Bio, Pellets | AA1: 24 - TRIG-M-28.3% Bio, Pellets | AB1: 25 - TRIG-M-16.5% Bio, Torrefied Pellets | AC1: 26 - TRIG-M-19.6% Bio, Torrefied Pellets | AD1: 27 - TRIG-M-28.3% Bio, Torrefied Pellets | AE1: 28 - TRIG-V-11.7% Bio, Pellets | AF1: 29 - TRIG-V-19.2% Bio, Pellets | AG1: 30 - TRIG-V-28.3% Bio, Pellets | AH1: 31 - TRIG-V-16.5% Bio, Torrefied Pellets | AI1: 32 - TRIG-V-19.6% Bio, Torrefied Pellets | AJ1: 33 - TRIG-V-28.3% Bio, Torrefied Pellets | AK1: 34 - EFG-M-100% Coal | AL1: 35 - EFG-M-10% Bio, Chipped | AM1: 36 - EFG-M-30% Bio, Chipped | AN1: 37 - EFG-M-10% Bio, Torrefied | AO1: 38 - EFG-M-30% Bio, Torrefied | AP1: 39 - EFG-M-10% Bio, Pellets | AQ1: 40 - EFG-M-30% Bio, Pellets | AR1: 41 - EFG-M-10% Bio, Torrefied Pellets | AS1: 42 - EFG-M-30% Bio, Torrefied Pellets | AT1: 43 - EFG-M-10% Bio, Torrefied Pellets, Sep. Gasifiers | AU1: 44 - EFG-V-100% Coal | AV1: 45 - EFG-V-10% Bio, Pellets | AW1: 46 - EFG-V-30% Bio, Pellets | AX1: 47 - EFG-V-10% Bio, Torrefied Pellets | AY1: 48 - EFG-V-30% Bio, Torrefied Pellets | AZ1: 49 - EFG-V-10% Bio, Torrefied Pellets, Sep. Gasifiers | BA1: CTL Baseline: Sequestration | BB1: CTL Baseline: Vented | BC1: Zero S Diesel: BRW00 | BD1: Zero S Diesel: BRW00V | BE1: Zero S Diesel: BOW00 | BF1: Zero S Diesel: BOW00V | BG1: Zero S Diesel: BRW15 | BH1: Zero S Diesel: BOW15 | BI1: Zero S Diesel: BRW15MSW | BJ1: Zero S Diesel: BOW15MSW | BK1: Zero S Diesel: SRW00 | BL1: Zero S Diesel: SRW00V | BM1: Zero S Diesel: SRA00 | BN1: Zero S Diesel: SRH00 | BO1: Zero S Diesel: SOW00 | BP1: Zero S Diesel: SOW00V | BQ1: Zero S Diesel: SOA00 | BR1: Zero S Diesel: SOH00 | BS1: Zero S Diesel: SRW15 | BT1: Zero S Diesel: SRA15 | BU1: Zero S Diesel: SRH15 | BV1: Zero S Diesel: SOW15 | BW1: Zero S Diesel: SOA15 | BX1: Zero S Diesel: SOH15 | BY1: Zero S Diesel: SRW15MSW | BZ1: Zero S Diesel: SRA15MSW | CA1: Zero S Diesel: SRH15MSW | CB1: Zero S Diesel: SOW15MSW | CC1: Zero S Diesel: SOA15MSW | CD1: Zero S Diesel: SOH15MSW | CE1: Zero S Diesel: LRW00 | CF1: Zero S Diesel: LRW00V | CG1: Zero S Diesel: LRA00 | CH1: Zero S Diesel: LRH00 | CI1: Zero S Diesel: LOW00 | CJ1: Zero S Diesel: LOW00V | CK1: Zero S Diesel: LOA00 | CL1: Zero S Diesel: LOH00 | CM1: Zero S Diesel: LRW15 | CN1: Zero S Diesel: LRA15 | CO1: Zero S Diesel: LRH15 | CP1: Zero S Diesel: LOW15 | CQ1: Zero S Diesel: LOA15 | CR1: Zero S Diesel: LOH15 | CS1: Zero S Diesel: LRW15MSW | CT1: Zero S Diesel: LRA15MSW | CU1: Zero S Diesel: LRH15MSW | CV1: Zero S Diesel: LOW15MSW | CW1: Zero S Diesel: LOA15MSW | CX1: Zero S Diesel: LOH15MSW | CY1: 15 - TRIG-V-100% Coal (L) | CZ1: 16 - TRIG-V-11.7% Bio, Chipped (L) | DA1: 17 - TRIG-V-19.2% Bio, Chipped (L) | DB1: 18 - TRIG-V-28.3% Bio, Chipped (L) | DC1: 19 - TRIG-V-16.5% Bio, Torrefied (L) | DD1: 20 - TRIG-V-19.6% Bio, Torrefied (L) | DE1: 21 - TRIG-V-28.3% Bio, Torrefied (L) | DF1: 30 - TRIG-V-28.3% Bio, Pellets (L) | DG1: 33 - TRIG-V-28.3% Bio, Torrefied Pellets (L) | DH1: 44 - EFG-V-100% Coal (L) | DI1: 45 - EFG-V-10% Bio, Pellets (L) | DJ1: 46 - EFG-V-30% Bio, Pellets (L) | DK1: 47 - EFG-V-10% Bio, Torrefied Pellets (L) | DL1: 48 - EFG-V-30% Bio, Torrefied Pellets (L) | DM1: 49 - EFG-V-10% Bio, Torrefied Pellets, Sep. Gasifiers (L)
B2: Biomass Percentage | C2: % | D2: 0 | E2: 0.1 | F2: 0.2 | G2: 0.1 | H2: 0.2 | I2: 0.1 | J2: 0.3 | K2: 0.3 | L2: 0.117 | M2: 0.192 | N2: 0.283 | O2: 0.165 | P2: 0.196 | Q2: 0.283 | R2: 0 | S2: 0.117 | T2: 0.192 | U2: 0.283 | V2: 0.165 | W2: 0.196 | X2: 0.283 | Y2: 0.117 | Z2: 0.192 | AA2: 0.283 | AB2: 0.165 | AC2: 0.196 | AD2: 0.283 | AE2: 0.117 | AF2: 0.192 | AG2: 0.283 | AH2: 0.165 | AI2: 0.196 | AJ2: 0.283 | AK2: 0 | AL2: 0.1 | AM2: 0.3 | AN2: 0.1 | AO2: 0.3 | AP2: 0.1 | AQ2: 0.3 | AR2: 0.1 | AS2: 0.3 | AT2: 0.1 | AU2: 0 | AV2: 0.1 | AW2: 0.3 | AX2: 0.1 | AY2: 0.3 | AZ2: 0.1 | BA2: 0 | BB2: 0 | BC2: 0 | BD2: 0 | BE2: 0 | BF2: 0 | BG2: 0.15 | BH2: 0.15 | BI2: =BG2 -> 0.15 | BJ2: 0.15 | BK2: 0 | BL2: 0 | BM2: 0 | BN2: 0 | BO2: 0 | BP2: 0 | BQ2: 0 | BR2: 0 | BS2: 0.15 | BT2: 0.15 | BU2: 0.15 | BV2: 0.15 | BW2: 0.15 | BX2: 0.15 | BY2: =BS2 -> 0.15 | BZ2: =BT2 -> 0.15 | CA2: 0.15 | CB2: 0.15 | CC2: 0.15 | CD2: 0.15 | CE2: 0 | CF2: 0 | CG2: 0 | CH2: 0 | CI2: 0 | CJ2: 0 | CK2: 0 | CL2: 0 | CM2: 0.15 | CN2: 0.15 | CO2: 0.15 | CP2: 0.15 | CQ2: 0.15 | CR2: 0.15 | CS2: =CR2 -> 0.15 | CT2: =CS2 -> 0.15 | CU2: 0.15 | CV2: 0.15 | CW2: 0.15 | CX2: 0.15 | CY2: 0 | CZ2: 0.117 | DA2: 0.192 | DB2: 0.283 | DC2: 0.165 | DD2: 0.196 | DE2: 0.283 | DF2: 0.283 | DG2: 0.283 | DH2: 0 | DI2: 0.1 | DJ2: 0.3 | DK2: 0.1 | DL2: 0.3 | DM2: 0.1
A3: INPUTS | B3: Coal - PRB | C3: lb/hr (As Received) | D3: 2540388.9 | E3: 2343441.07 | F3: 2136386.34 | G3: 2264439.19 | H3: 1993933.42 | I3: 2387662.73 | J3: 1918501.64 | K3: 1728617.43 | L3: 2308954.09 | M3: 2153345.16 | N3: 1956346.05 | O3: 2087995.54 | P3: 2004637.6 | Q3: 1773356.98 | R3: 2545221.24 | S3: 2313288.05 | T3: 2157372.81 | U3: 1959978.68 | V3: 2091870.91 | W3: 2008344.68 | X3: 1776619.35 | Y3: 2274828.7 | Z3: 2100652.22 | AA3: 1884970.49 | AB3: 2091515 | AC3: 2008658.45 | AD3: 1778546.82 | AE3: 2279091.03 | AF3: 2104572.55 | AG3: 1888644.11 | AH3: 2095431.45 | AI3: 2012397.87 | AJ3: 1781858.25 | AK3: ='2.0 Efficiency Adjustment'!AI21 -> 2488627.41 | AL3: ='2.0 Efficiency Adjustment'!AJ21 -> 2352253.34 | AM3: ='2.0 Efficiency Adjustment'!AK21 -> 2041217.95 | AN3: ='2.0 Efficiency Adjustment'!AL21 -> 2270658.37 | AO3: ='2.0 Efficiency Adjustment'!AM21 -> 1800621.89 | AP3: ='2.0 Efficiency Adjustment'!AN21 -> 2312866.96 | AQ3: ='2.0 Efficiency Adjustment'!AO21 -> 1907978.52 | AR3: ='2.0 Efficiency Adjustment'!AP21 -> 2234360.42 | AS3: 1725543.75 | AT3: ='2.0 Efficiency Adjustment'!AR21 -> 2247740.44 | AU3: ='2.0 Efficiency Adjustment'!AS21 -> 2525477.32 | AV3: ='2.0 Efficiency Adjustment'!AT21 -> 2354068.91 | AW3: ='2.0 Efficiency Adjustment'!AU21 -> 1941167 | AX3: ='2.0 Efficiency Adjustment'!AV21 -> 2266434.1 | AY3: ='2.0 Efficiency Adjustment'!AW21 -> 1743833.92 | AZ3: ='2.0 Efficiency Adjustment'!AX21 -> 2281241.15 | BA3: 0 | BB3: 0 | BC3: 0 | BD3: 0 | BE3: 0 | BF3: 0 | BG3: 0 | BH3: 0 | BI3: 0 | BJ3: 0 | BK3: ='2.0 Efficiency Adjustment'!BI21 -> 2662541.112 | BL3: ='ZSD Raw Data'!I4*Conversions!$D$4/(Conversions!$D$3*Conversions!$D$5) -> 2658407.445 | BM3: ='2.0 Efficiency Adjustment'!BK21 -> 2748705.113 | BN3: ='2.0 Efficiency Adjustment'!BL21 -> 2701856.882 | BO3: ='ZSD Raw Data'!L4*Conversions!$D$4/(Conversions!$D$3*Conversions!$D$5) -> 2982578.83 | BP3: ='ZSD Raw Data'!M4*Conversions!$D$4/(Conversions!$D$3*Conversions!$D$5) -> 3046512.886 | BQ3: ='ZSD Raw Data'!N4*Conversions!$D$4/(Conversions!$D$3*Conversions!$D$5) -> 2981017.222 | BR3: ='ZSD Raw Data'!O4*Conversions!$D$4/(Conversions!$D$3*Conversions!$D$5) -> 2981017.222 | BS3: ='2.0 Efficiency Adjustment'!BQ21 -> 2469452.914 | BT3: ='2.0 Efficiency Adjustment'!BR21 -> 2563608.672 | BU3: ='2.0 Efficiency Adjustment'!BS21 -> 2497010.697 | BV3: ='ZSD Raw Data'!S4*Conversions!$D$4/(Conversions!$D$3*Conversions!$D$5) -> 2674850.255 | BW3: ='ZSD Raw Data'!T4*Conversions!$D$4/(Conversions!$D$3*Conversions!$D$5) -> 2673472.366 | BX3: ='ZSD Raw Data'!U4*Conversions!$D$4/(Conversions!$D$3*Conversions!$D$5) -> 2673472.366 | BY3: ='2.0 Efficiency Adjustment'!BW21 -> 2469452.914 | BZ3: ='2.0 Efficiency Adjustment'!BX21 -> 2563608.672 | CA3: ='2.0 Efficiency Adjustment'!BY21 -> 2497010.697 | CB3: 2674850.255 | CC3: 2673472.366 | CD3: 2673472.366 | CE3: 0 | CF3: 0 | CG3: 0 | CH3: 0 | CI3: 0 | CJ3: 0 | CK3: 0 | CL3: 0 | CM3: 0 | CN3: 0 | CO3: 0 | CP3: 0 | CQ3: 0 | CR3: 0 | CS3: =CM3 -> 0 | CT3: =CN3 -> 0 | CU3: 0 | CV3: 0 | CW3: 0 | CX3: 0
B4: Coal - I6 | C4: lb/hr (As Received) | BA4: ='CTL Raw Data'!$B$36/(Conversions!$D$3*Conversions!$D$5) -> 1750470.362 | BB4: ='CTL Raw Data'!$B$36/(Conversions!$D$3*Conversions!$D$5) -> 1750470.362 | BC4: ='ZSD Raw Data'!B4*Conversions!$D$4/(Conversions!$D$3*Conversions!$D$5) -> 2066833.708 | BD4: ='ZSD Raw Data'!C4*Conversions!$D$4/(Conversions!$D$3*Conversions!$D$5) -> 2077213.806 | BE4: ='ZSD Raw Data'!D4*Conversions!$D$4/(Conversions!$D$3*Conversions!$D$5) -> 2328540.785 | BF4: ='ZSD Raw Data'!E4*Conversions!$D$4/(Conversions!$D$3*Conversions!$D$5) -> 2363722.888 | BG4: ='ZSD Raw Data'!F4*Conversions!$D$4/(Conversions!$D$3*Conversions!$D$5) -> 1869979.28 | BH4: ='ZSD Raw Data'!G4*Conversions!$D$4/(Conversions!$D$3*Conversions!$D$5) -> 2118458.621 | BI4: =BG4 -> 1869979.28 | BJ4: 2118458.621 | BK4: 0 | BL4: 0 | BM4: 0 | BN4: 0 | BO4: 0 | BP4: 0 | BQ4: 0 | BR4: 0 | BS4: 0 | BT4: 0 | BU4: 0 | BV4: 0 | BW4: 0 | BX4: 0 | BY4: =BS4 -> 0 | BZ4: 0 | CA4: 0 | CB4: 0 | CC4: 0 | CD4: 0 | CE4: 0 | CF4: 0 | CG4: 0 | CH4: 0 | CI4: 0 | CJ4: 0 | CK4: 0 | CL4: 0 | CM4: 0 | CN4: 0 | CO4: 0 | CP4: 0 | CQ4: 0 | CR4: 0 | CS4: =CM4 -> 0 | CT4: 0 | CU4: 0 | CV4: 0 | CW4: 0 | CX4: 0
B5: Coal - Lignite | C5: lb/hr (As Received) | BA5: 0 | BB5: 0 | BC5: 0 | BD5: 0 | BE5: 0 | BF5: 0 | BG5: 0 | BH5: 0 | BI5: 0 | BJ5: 0 | BK5: 0 | BL5: 0 | BM5: 0 | BN5: 0 | BO5: 0 | BP5: 0 | BQ5: 0 | BR5: 0 | BS5: 0 | BT5: 0 | BU5: 0 | BV5: 0 | BW5: 0 | BX5: 0 | BY5: =BS5 -> 0 | BZ5: 0 | CA5: 0 | CB5: 0 | CC5: 0 | CD5: 0 | CE5: ='2.0 Efficiency Adjustment'!CC21 -> 3451442.183 | CF5: =BL3*'Coal Analysis '!$B$6 -> 3446083.725 | CG5: ='2.0 Efficiency Adjustment'!CE21 -> 3563136.258 | CH5: ='2.0 Efficiency Adjustment'!CF21 -> 3502407.07 | CI5: =BO3*'Coal Analysis '!$B$6 -> 3866305.89 | CJ5: =BP3*'Coal Analysis '!$B$6 -> 3949183.37 | CK5: =BQ3*'Coal Analysis '!$B$6 -> 3864281.584 | CL5: =BR3*'Coal Analysis '!$B$6 -> 3864281.584 | CM5: ='2.0 Efficiency Adjustment'!CK21 -> 3201142.667 | CN5: ='2.0 Efficiency Adjustment'!CL21 -> 3323196.427 | CO5: ='2.0 Efficiency Adjustment'!CM21 -> 3236865.718 | CP5: =BV3*'Coal Analysis '!$B$6 -> 3467398.479 | CQ5: =BW3*'Coal Analysis '!$B$6 -> 3465612.326 | CR5: =BX3*'Coal Analysis '!$B$6 -> 3465612.326 | CS5: ='2.0 Efficiency Adjustment'!CQ21 -> 3201142.667 | CT5: ='2.0 Efficiency Adjustment'!CR21 -> 3323196.427 | CU5: ='2.0 Efficiency Adjustment'!CS21 -> 3236865.718 | CY5: =R3*'Coal Analysis '!$B$6 -> 3299360.867 | CZ5: =S3*'Coal Analysis '!$B$6 -> 2998706.731 | DA5: =T3*'Coal Analysis '!$B$6 -> 2796594.383 | DB5: =U3*'Coal Analysis '!$B$6 -> 2540713.104 | DC5: =V3*'Coal Analysis '!$B$6 -> 2711684.513 | DD5: =W3*'Coal Analysis '!$B$6 -> 2603409.77 | DE5: =X3*'Coal Analysis '!$B$6 -> 2303025.083 | DF5: =AG3*'Coal Analysis '!$B$6 -> 2448242.365 | DG5: =AJ3*'Coal Analysis '!$B$6 -> 2309816.25 | DH5: ='2.0 Efficiency Adjustment'!DF21 -> 3273766.896 | DI5: ='2.0 Efficiency Adjustment'!DG21 -> 3051570.809 | DJ5: ='2.0 Efficiency Adjustment'!DH21 -> 2516327.593 | DK5: ='2.0 Efficiency Adjustment'!DI21 -> 2937970.13 | DL5: ='2.0 Efficiency Adjustment'!DJ21 -> 2260525.452 | DM5: =AZ3*'Coal Analysis '!$B$6 -> 2957164.454
B6: Biomass - Southern Pine | C6: lb/hr (As Received) | D6: 0 | E6: 340885.03 | F6: 699223.801 | G6: 0 | H6: 0 | I6: 360024.412 | J6: 1076420.08 | K6: 0 | L6: 400531.667 | M6: 669884.482 | N6: 1010902.71 | O6: 0 | P6: 0 | Q6: 0 | R6: 0 | S6: 401283.474 | T6: 671137.447 | U6: 1012779.8 | V6: 0 | W6: 0 | X6: 0 | Y6: 272859.742 | Z6: 451865.967 | AA6: 673499.757 | AB6: 0 | AC6: 0 | AD6: 0 | AE6: 273370.998 | AF6: 452709.26 | AG6: 674812.341 | AH6: 0 | AI6: 0 | AJ6: 0 | AK6: ='2.0 Efficiency Adjustment'!AI22 -> 0 | AL6: ='2.0 Efficiency Adjustment'!AJ22 -> 342166.892 | AM6: ='2.0 Efficiency Adjustment'!AK22 -> 1145272.93 | AN6: 0 | AO6: 0 | AP6: ='2.0 Efficiency Adjustment'!AN22 -> 202936.305 | AQ6: ='2.0 Efficiency Adjustment'!AO22 -> 645726.045 | AR6: 0 | AS6: 0 | AT6: 0 | AU6: ='2.0 Efficiency Adjustment'!AS22 -> 1.024464328e-08 | AV6: ='2.0 Efficiency Adjustment'!AT22 -> 206551.46 | AW6: ='2.0 Efficiency Adjustment'!AU22 -> 656958.175 | AX6: 0 | AY6: 0 | AZ6: 0 | BA6: 0 | BB6: 0 | BC6: 0 | BD6: 0 | BE6: 0 | BF6: 0 | BG6: 0 | BH6: 0 | BI6: 0 | BJ6: 0 | BK6: ='2.0 Efficiency Adjustment'!BI22 -> 0 | BL6: 0 | BM6: ='2.0 Efficiency Adjustment'!BK22 -> 0 | BN6: ='2.0 Efficiency Adjustment'!BL22 -> 0 | BO6: 0 | BP6: 0 | BQ6: 0 | BR6: 0 | BS6: 0 | BT6: 0 | BU6: 0 | BV6: 0 | BW6: 0 | BX6: 0 | BY6: 0 | BZ6: 0 | CA6: 0 | CB6: 0 | CC6: 0 | CD6: 0 | CY6: 0 | CZ6: 401283.474 | DA6: 671137.447 | DB6: 1012779.8 | DC6: 0 | DD6: 0 | DE6: 0 | DF6: 674812.341 | DG6: 0 | DH6: ='2.0 Efficiency Adjustment'!DF22 -> 1.026090335e-08 | DI6: ='2.0 Efficiency Adjustment'!DG22 -> 206551.46 | DJ6: ='2.0 Efficiency Adjustment'!DH22 -> 656958.175 | DK6: 0 | DL6: 0 | DM6: 0
B7: Biomass - Switchgrass | C7: lb/hr (As Received) | E7: =E6/(E6+E3) -> 0.1269909159 | BA7: 0 | BB7: 0 | BC7: ='ZSD Raw Data'!B5*Conversions!$D$4/(Conversions!$D$3*Conversions!$D$5) -> 0 | BD7: ='ZSD Raw Data'!C5*Conversions!$D$4/(Conversions!$D$3*Conversions!$D$5) -> 0 | BE7: ='ZSD Raw Data'!D5*Conversions!$D$4/(Conversions!$D$3*Conversions!$D$5) -> 0 | BF7: ='ZSD Raw Data'!E5*Conversions!$D$4/(Conversions!$D$3*Conversions!$D$5) -> 0 | BG7: ='ZSD Raw Data'!F5*Conversions!$D$4/(Conversions!$D$3*Conversions!$D$5) -> 329958.5191 | BH7: ='ZSD Raw Data'!G5*Conversions!$D$4/(Conversions!$D$3*Conversions!$D$5) -> 373867.253 | BI7: =BG8 -> 0 | BJ7: =BH8 -> 0 | BK7: ='ZSD Raw Data'!H5*Conversions!$D$4/(Conversions!$D$3*Conversions!$D$5) -> 0 | BL7: ='ZSD Raw Data'!I5*Conversions!$D$4/(Conversions!$D$3*Conversions!$D$5) -> 0 | BM7: ='ZSD Raw Data'!J5*Conversions!$D$4/(Conversions!$D$3*Conversions!$D$5) -> 0 | BN7: ='ZSD Raw Data'!K5*Conversions!$D$4/(Conversions!$D$3*Conversions!$D$5) -> 0 | BO7: ='ZSD Raw Data'!L5*Conversions!$D$4/(Conversions!$D$3*Conversions!$D$5) -> 0 | BP7: ='ZSD Raw Data'!M5*Conversions!$D$4/(Conversions!$D$3*Conversions!$D$5) -> 0 | BQ7: ='ZSD Raw Data'!N5*Conversions!$D$4/(Conversions!$D$3*Conversions!$D$5) -> 0 | BR7: ='ZSD Raw Data'!O5*Conversions!$D$4/(Conversions!$D$3*Conversions!$D$5) -> 0 | BS7: ='2.0 Efficiency Adjustment'!BQ22 -> 435780.4049 | BT7: ='2.0 Efficiency Adjustment'!BR22 -> 452406.9339 | BU7: ='2.0 Efficiency Adjustment'!BS22 -> 440648.9465 | BV7: ='ZSD Raw Data'!S5*Conversions!$D$4/(Conversions!$D$3*Conversions!$D$5) -> 472064.8189 | BW7: ='ZSD Raw Data'!T5*Conversions!$D$4/(Conversions!$D$3*Conversions!$D$5) -> 471789.2411 | BX7: ='ZSD Raw Data'!U5*Conversions!$D$4/(Conversions!$D$3*Conversions!$D$5) -> 471789.2411 | BY7: =BS8 -> 0 | BZ7: =BT8 -> 0 | CA7: 0 | CB7: 0 | CC7: 0 | CD7: 0 | CE7: =BK7*'Coal Analysis '!$B$6 -> 0 | CF7: =BL7*'Coal Analysis '!$B$6 -> 0 | CG7: =BM7*'Coal Analysis '!$B$6 -> 0 | CH7: =BN7*'Coal Analysis '!$B$6 -> 0 | CI7: =BO7*'Coal Analysis '!$B$6 -> 0 | CJ7: =BP7*'Coal Analysis '!$B$6 -> 0 | CK7: =BQ7*'Coal Analysis '!$B$6 -> 0 | CL7: =BR7*'Coal Analysis '!$B$6 -> 0 | CM7: ='2.0 Efficiency Adjustment'!CK22 -> 435780.4049 | CN7: ='2.0 Efficiency Adjustment'!CL22 -> 452406.9339 | CO7: ='2.0 Efficiency Adjustment'!CM22 -> 440648.9465 | CP7: =BV7 -> 472064.8189 | CQ7: =BW7 -> 471789.2411 | CR7: =BX7 -> 471789.2411 | CS7: =CM7 -> 435780.4049 | CT7: =CN7 -> 452406.9339 | CU7: 440648.9465
B8: Biomass - Municipal Solid Waste | C8: lb/hr (As Received) | BA8: 0 | BB8: 0 | BC8: 0 | BD8: 0 | BE8: 0 | BF8: 0 | BG8: 0 | BH8: 0 | BI8: =BG7 -> 329958.5191 | BJ8: =BH7 -> 373867.253 | BK8: 0 | BL8: 0 | BM8: 0 | BN8: 0 | BO8: 0 | BP8: 0 | BQ8: 0 | BR8: 0 | BS8: 0 | BT8: 0 | BU8: 0 | BV8: 0 | BW8: 0 | BX8: 0 | BY8: ='2.0 Efficiency Adjustment'!BW22 -> 435780.4049 | BZ8: ='2.0 Efficiency Adjustment'!BX22 -> 452406.9339 | CA8: ='2.0 Efficiency Adjustment'!BY22 -> 440648.9465 | CB8: =BV7 -> 472064.8189 | CC8: 471789.2411 | CD8: 471789.2411 | CE8: 0 | CF8: 0 | CG8: 0 | CH8: 0 | CI8: 0 | CJ8: 0 | CK8: 0 | CL8: 0 | CM8: 0 | CN8: 0 | CO8: 0 | CP8: 0 | CQ8: 0 | CR8: 0 | CS8: ='2.0 Efficiency Adjustment'!CQ22 -> 435780.4049 | CT8: ='2.0 Efficiency Adjustment'!CR22 -> 452406.9339 | CU8: ='2.0 Efficiency Adjustment'!CS22 -> 440648.9465 | CV8: =CP7 -> 472064.8189 | CW8: =CQ7 -> 471789.2411 | CX8: 471789.2411
B9: Coal - PRB | C9: lb/hr (Dried) | D9: 2299671.56 | E9: 2121385.74 | F9: 1933950.71 | G9: 2049869.77 | H9: 1804996.07 | I9: 2161417.12 | J9: 1736711.91 | K9: 1564820.38 | L9: 2090166.61 | M9: 1949302.57 | N9: 1770970.34 | O9: 1890145.23 | P9: 1814685.97 | Q9: 1605320.59 | R9: 2304046.01 | S9: 2094089.9 | T9: 1952948.59 | U9: 1774258.75 | V9: 1893653.39 | W9: 1818041.77 | X9: 1608273.84 | Y9: 2059274.81 | Z9: 1901602.61 | AA9: 1706358.04 | AB9: 1893331.2 | AC9: 1818325.81 | AD9: 1610018.67 | AE9: 2063133.26 | AF9: 1905151.47 | AG9: 1709683.56 | AH9: 1896876.54 | AI9: 1821710.9 | AJ9: 1613016.32 | AK9: 1965221.41 | AL9: 1857529.42 | AM9: 1611910.73 | AN9: 1793095.43 | AO9: 1421916.63 | AP9: 1826426.75 | AQ9: 1506694.1 | AR9: 1764431.64 | AS9: 1362628.86 | AT9: 1774997.58 | AU9: 1994321.08 | AV9: 1858963.14 | AW9: 1532902.41 | AX9: 1789759.61 | AY9: 1377072.25 | AZ9: 1801452.46 | BA9: 0 | BB9: 0 | BC9: 0 | BD9: 0 | BE9: 0 | BF9: 0 | BG9: 0 | BH9: 0 | BI9: =BG9 -> 0 | BJ9: =BH9 -> 0 | CE9: 0 | CF9: 0 | CG9: 0 | CH9: 0 | CI9: 0 | CJ9: 0 | CK9: 0 | CL9: 0 | CM9: 0 | CN9: 0 | CO9: 0 | CP9: 0 | CQ9: 0 | CR9: 0 | CS9: =CM9 -> 0 | CT9: =CN9 -> 0 | CU9: 0 | CV9: 0 | CW9: 0 | CX9: =CR9 -> 0 | CY9: 2304046.01 | CZ9: 2094089.9 | DA9: 1952948.59 | DB9: 1774258.75 | DC9: 1893653.39 | DD9: 1818041.77 | DE9: 1608273.84 | DF9: 1709683.56 | DG9: 1613016.32 | DH9: 1994321.08 | DI9: 1858963.14 | DJ9: 1532902.41 | DK9: 1789759.61 | DL9: 1377072.25 | DM9: 1801452.46
B10: Coal - I6 | C10: lb/hr (Dried) | BK10: 0 | BL10: 0 | BM10: 0 | BN10: 0 | BO10: 0 | BP10: 0 | BQ10: 0 | BR10: 0 | BS10: 0 | BT10: 0 | BU10: 0 | BV10: 0 | BW10: 0 | BX10: 0 | BY10: =BS10 -> 0 | BZ10: =BT10 -> 0 | CA10: 0 | CB10: 0 | CC10: 0 | CD10: 0 | CE10: 0 | CF10: 0 | CG10: 0 | CH10: 0 | CI10: 0 | CJ10: 0 | CK10: 0 | CL10: 0 | CM10: 0 | CN10: 0 | CO10: 0 | CP10: 0 | CQ10: 0 | CR10: 0 | CS10: =CM10 -> 0 | CT10: 0 | CU10: 0 | CV10: 0 | CW10: 0 | CX10: =CR10 -> 0
B11: Coal - Lignite | C11: lb/hr (Dried) | BA11: 0 | BB11: 0 | BC11: 0 | BD11: 0 | BE11: 0 | BF11: 0 | BG11: 0 | BH11: 0 | BI11: =BG11 -> 0 | BJ11: =BH11 -> 0 | BK11: 0 | BL11: 0 | BM11: 0 | BN11: 0 | BO11: 0 | BP11: 0 | BQ11: 0 | BR11: 0 | BS11: 0 | BT11: 0 | BU11: 0 | BV11: 0 | BW11: 0 | BX11: 0 | BY11: =BS11 -> 0 | BZ11: 0 | CA11: 0 | CB11: 0 | CC11: 0 | CD11: 0
B12: Biomass - Southern Pine | C12: lb/hr (Dried) | D12: 0 | E12: 235709.527 | F12: 483487.677 | G12: 0 | H12: 0 | I12: 240157.462 | J12: 744305.104 | K12: 0 | L12: 276952.994 | M12: 463200.611 | N12: 699002.239 | O12: 0 | P12: 0 | Q12: 0 | R12: 0 | S12: 277472.841 | T12: 464066.991 | U12: 700300.176 | V12: 0 | W12: 0 | X12: 0 | Y12: 272859.742 | Z12: 451865.967 | AA12: 673499.757 | AB12: 0 | AC12: 0 | AD12: 0 | AE12: 273370.998 | AF12: 452709.26 | AG12: 674812.341 | AH12: 0 | AI12: 0 | AJ12: 0 | AK12: 0 | AL12: 206392.157 | AM12: 690818.885 | AN12: 0 | AO12: 0 | AP12: 202936.305 | AQ12: 645726.045 | AR12: 0 | AS12: 0 | AT12: 0 | AU12: 6.91463415e-09 | AV12: 206551.46 | AW12: 656958.175 | AX12: 0 | AY12: 0 | AZ12: 0 | BA12: 0 | BB12: 0 | BC12: 0 | BD12: 0 | BE12: 0 | BF12: 0 | BG12: 0 | BH12: 0 | BI12: =BG12 -> 0 | BJ12: =BH12 -> 0 | BK12: 0 | BL12: 0 | BM12: 0 | BN12: 0 | BO12: 0 | BP12: 0 | BQ12: 0 | BR12: 0 | BS12: 0 | BT12: 0 | BU12: 0 | BV12: 0 | BW12: 0 | BX12: 0 | BY12: 0 | BZ12: 0 | CA12: 0 | CB12: 0 | CC12: 0 | CD12: 0 | CE12: 0 | CF12: 0 | CG12: 0 | CH12: 0 | CI12: 0 | CJ12: 0 | CK12: 0 | CL12: 0 | CM12: 0 | CN12: 0 | CO12: 0 | CP12: 0 | CQ12: 0 | CR12: 0 | CS12: =CM12 -> 0 | CT12: =CN12 -> 0 | CU12: 0 | CV12: 0 | CW12: 0 | CX12: 0 | CY12: 0 | CZ12: 277472.841 | DA12: 464066.991 | DB12: 700300.176 | DC12: 0 | DD12: 0 | DE12: 0 | DF12: 674812.341 | DG12: 0 | DH12: 6.91463415e-09 | DI12: 206551.46 | DJ12: 656958.175 | DK12: 0 | DL12: 0 | DM12: 0
B13: Biomass - Switchgrass | C13: lb/hr (Dried) | BA13: 0 | BB13: 0 | BC13: 0 | BD13: 0 | BE13: 0 | BF13: 0 | BK13: 0 | BL13: 0 | BM13: 0 | BN13: 0 | BO13: 0 | BP13: 0 | BQ13: 0 | BR13: 0
B14: Biomass - Municipal Solid Waste | C14: lb/hr (Dried) | BA14: 0 | BB14: 0 | BC14: 0 | BD14: 0 | BE14: 0 | BF14: 0 | BG14: 0 | BH14: 0 | BI14: =BG14 -> 0 | BJ14: =BH14 -> 0 | BK14: 0 | BL14: 0 | BM14: 0 | BN14: 0 | BO14: 0 | BP14: 0 | BQ14: 0 | BR14: 0 | BS14: 0 | BT14: 0 | BU14: 0 | BV14: 0 | BW14: 0 | BX14: 0 | BY14: =BS14 -> 0 | BZ14: =BT14 -> 0 | CA14: 0 | CB14: 0 | CC14: 0 | CD14: 0 | CE14: 0 | CF14: 0 | CG14: 0 | CH14: 0 | CI14: 0 | CJ14: 0 | CK14: 0 | CL14: 0 | CM14: 0 | CN14: 0 | CO14: 0 | CP14: 0 | CQ14: 0 | CR14: 0 | CS14: =CM14 -> 0 | CT14: =CN14 -> 0 | CU14: 0 | CV14: 0 | CW14: 0 | CX14: 0
B15: Torrefied biomass | C15: lb/hr (Dried) | D15: 0 | E15: 0 | F15: 0 | G15: 227763.308 | H15: 451249.019 | I15: 0 | J15: 0 | K15: 670637.308 | L15: 0 | M15: 0 | N15: 0 | O15: 373501.752 | P15: 442386.131 | Q15: 633620.262 | R15: 0 | S15: 0 | T15: 0 | U15: 0 | V15: 374194.981 | W15: 443204.214 | X15: 634785.908 | Y15: 0 | Z15: 0 | AA15: 0 | AB15: 374131.315 | AC15: 443273.457 | AD15: 635474.592 | AE15: 0 | AF15: 0 | AG15: 0 | AH15: 374831.891 | AI15: 444098.678 | AJ15: 636657.766 | AK15: 0 | AL15: 0 | AM15: 0 | AN15: ='2.0 Efficiency Adjustment'!AL22 -> 199232.826 | AO15: ='2.0 Efficiency Adjustment'!AM22 -> 609392.839 | AP15: 0 | AQ15: 0 | AR15: ='2.0 Efficiency Adjustment'!AP22 -> 196047.96 | AS15: 583983.795 | AT15: ='2.0 Efficiency Adjustment'!AR22 -> 197221.954 | AU15: 0 | AV15: 0 | AW15: 0 | AX15: ='2.0 Efficiency Adjustment'!AV22 -> 198862.178 | AY15: ='2.0 Efficiency Adjustment'!AW22 -> 590173.822 | AZ15: ='2.0 Efficiency Adjustment'!AX22 -> 200161.384 | BA15: 0 | BB15: 0 | BC15: 0 | BD15: 0 | BE15: 0 | BF15: 0 | BG15: 0 | BH15: 0 | BI15: =BG15 -> 0 | BJ15: =BH15 -> 0 | BK15: 0 | BL15: 0 | BM15: 0 | BN15: 0 | BO15: 0 | BP15: 0 | BQ15: 0 | BR15: 0 | BS15: 0 | BT15: 0 | BU15: 0 | BV15: 0 | BW15: 0 | BX15: 0 | BY15: =BS15 -> 0 | BZ15: 0 | CA15: 0 | CB15: 0 | CC15: 0 | CD15: 0 | CE15: 0 | CF15: 0 | CG15: 0 | CH15: 0 | CI15: 0 | CJ15: 0 | CK15: 0 | CL15: 0 | CM15: 0 | CN15: 0 | CO15: 0 | CP15: 0 | CQ15: 0 | CR15: 0 | CS15: =CM15 -> 0 | CT15: 0 | CU15: 0 | CV15: 0 | CW15: 0 | CX15: 0 | CY15: 0 | CZ15: 0 | DA15: 0 | DB15: 0 | DC15: 374194.981 | DD15: 443204.214 | DE15: 634785.908 | DF15: 0 | DG15: 636657.766 | DH15: 0 | DI15: 0 | DJ15: 0 | DK15: ='2.0 Efficiency Adjustment'!DI22 -> 198862.178 | DL15: ='2.0 Efficiency Adjustment'!DJ22 -> 590173.822 | DM15: 200161.384
B16: Cooling water | C16: lb/hr | D16: 5218264.326 | E16: 5104616.651 | F16: 4985057.924 | G16: 5124803.931 | H16: 5025527.335 | I16: 5226987.218 | J16: 4859407.453 | K16: 4929328.154 | L16: 5084660.458 | M16: 4994850.982 | N16: 4881246.313 | O16: 5059905.094 | P16: 5029394.077 | Q16: 4945476.992 | R16: 5247189.716 | S16: 5113051.095 | T16: 5023134.562 | U16: 4909296.683 | V16: 5087369.727 | W16: 5056632.439 | X16: 4972087.675 | Y16: 5171415.166 | Z16: 5139149.209 | AA16: 5095859.957 | AB16: 5010049.833 | AC16: 4970490.63 | AD16: 4861710.65 | AE16: 5199832.592 | AF16: 5167347.17 | AG16: 5124329.843 | AH16: 5037554.414 | AI16: 4997737.179 | AJ16: 4888333.775 | AK16: 4349173.061 | AL16: 4439063.708 | AM16: 4652411.083 | AN16: 4517697.103 | AO16: 4756446.284 | AP16: 4535613.045 | AQ16: 4829419.412 | AR16: 4415942.124 | AS16: 4501480.095 | AT16: 4486639.241 | AU16: 4474217.29 | AV16: 4683681.28 | AW16: 4980722.346 | AX16: 4530475.071 | AY16: 4585445.167 | AZ16: 4606595.168 | CY16: 5247189.716 | CZ16: 5113051.095 | DA16: 5023134.562 | DB16: 4909296.683 | DC16: 5087369.727 | DD16: 5056632.439 | DE16: 4972087.675 | DF16: 5124329.843 | DG16: 4888333.775 | DH16: 4474217.29 | DI16: 4683681.28 | DJ16: 4980722.346 | DK16: 4530475.071 | DL16: 4585445.167 | DM16: 4606595.168
A17: OUTPUTS | B17: FT Jet | C17: lb/hr | D17: 273561.586 | E17: 273563.897 | F17: 273561.929 | G17: 273556.461 | H17: 273558.274 | I17: 273609.467 | J17: 273563.067 | K17: 273553.183 | L17: 273560.905 | M17: 273561.842 | N17: 273562.28 | O17: 273557.822 | P17: 273556.94 | Q17: 273554.271 | R17: 273557.976 | S17: 273557.249 | T17: 273557.053 | U17: 273559.271 | V17: 273552.258 | W17: 273551.743 | X17: 273551.034 | Y17: 273561.684 | Z17: 273558.972 | AA17: 273558.277 | AB17: 273556.946 | AC17: 273557.145 | AD17: 273555.637 | AE17: 273555.057 | AF17: 273555.498 | AG17: 273554.917 | AH17: 273553.982 | AI17: 273551.728 | AJ17: 273549.12 | AK17: 272467.778 | AL17: 272523.894 | AM17: 272628.918 | AN17: 272485.251 | AO17: 272525.328 | AP17: 272508.525 | AQ17: 272628.251 | AR17: 272484.064 | AS17: 272527.787 | AT17: 272482.499 | AU17: 272449.758 | AV17: 272491.871 | AW17: 272614.589 | AX17: 272468.789 | AY17: 272509.68 | AZ17: 272467.895 | CY17: 273557.976 | CZ17: 273557.249 | DA17: 273557.053 | DB17: 273559.271 | DC17: 273552.258 | DD17: 273551.743 | DE17: 273551.034 | DF17: 273554.917 | DG17: 273549.12 | DH17: 272449.758 | DI17: 272491.871 | DJ17: 272614.589 | DK17: 272468.789 | DL17: 272509.68 | DM17: 272467.895
B18: FT Naphtha | C18: lb/hr | D18: 175107.032 | E18: 175108.412 | F18: 175106.961 | G18: 175103.829 | H18: 175105.069 | I18: 175137.052 | J18: 175107.518 | K18: 175101.836 | L18: 175106.469 | M18: 175106.925 | N18: 175107.045 | O18: 175104.755 | P18: 175104.21 | Q18: 175102.531 | R18: 175104.946 | S18: 175104.352 | T18: 175104.08 | U18: 175105.358 | V18: 175101.413 | W18: 175101.106 | X18: 175100.684 | Y18: 175107.028 | Z18: 175105.179 | AA18: 175104.646 | AB18: 175104.221 | AC18: 175104.381 | AD18: 175103.479 | AE18: 175103.004 | AF18: 175103.189 | AG18: 175102.95 | AH18: 175102.557 | AI18: 175101.141 | AJ18: 175099.527 | AK18: 174976.33 | AL18: 174994.909 | AM18: 175000.863 | AN18: 174979.093 | AO18: 174980.824 | AP18: 174985.063 | AQ18: 175002.795 | AR18: 174977.303 | AS18: 174978.351 | AT18: 174976.572 | AU18: 174965.386 | AV18: 174975.329 | AW18: 174994.064 | AX18: 174968.189 | AY18: 174967.968 | AZ18: 174967.906 | BA18: ='CTL Raw Data'!B38/(Conversions!$D$3*Conversions!$D$5) -> 165930.6248 | BB18: ='CTL Raw Data'!C38/(Conversions!$D$3*Conversions!$D$5) -> 165930.6248 | BC18: ='ZSD Raw Data'!B7*(Conversions!$D$6/Conversions!$D$5) -> 161965.2175 | BD18: ='ZSD Raw Data'!C7*(Conversions!$D$6/Conversions!$D$5) -> 161965.2175 | BE18: ='ZSD Raw Data'!D7*(Conversions!$D$6/Conversions!$D$5) -> 161965.2175 | BF18: ='ZSD Raw Data'!E7*(Conversions!$D$6/Conversions!$D$5) -> 161965.2175 | BG18: ='ZSD Raw Data'!F7*(Conversions!$D$6/Conversions!$D$5) -> 161965.2175 | BH18: ='ZSD Raw Data'!G7*(Conversions!$D$6/Conversions!$D$5) -> 161965.2175 | BI18: =BG18 -> 161965.2175 | BJ18: 161965.2175 | BK18: ='ZSD Raw Data'!H7*(Conversions!$D$6/Conversions!$D$5) -> 161965.2175 | BL18: ='ZSD Raw Data'!I7*(Conversions!$D$6/Conversions!$D$5) -> 161965.2175 | BM18: ='ZSD Raw Data'!J7*(Conversions!$D$6/Conversions!$D$5) -> 161965.2175 | BN18: ='ZSD Raw Data'!K7*(Conversions!$D$6/Conversions!$D$5) -> 161965.2175 | BO18: ='ZSD Raw Data'!L7*(Conversions!$D$6/Conversions!$D$5) -> 161965.2175 | BP18: ='ZSD Raw Data'!M7*(Conversions!$D$6/Conversions!$D$5) -> 161965.2175 | BQ18: ='ZSD Raw Data'!N7*(Conversions!$D$6/Conversions!$D$5) -> 161965.2175 | BR18: ='ZSD Raw Data'!O7*(Conversions!$D$6/Conversions!$D$5) -> 161965.2175 | BS18: ='ZSD Raw Data'!P7*(Conversions!$D$6/Conversions!$D$5) -> 161965.2175 | BT18: ='ZSD Raw Data'!Q7*(Conversions!$D$6/Conversions!$D$5) -> 161965.2175 | BU18: ='ZSD Raw Data'!R7*(Conversions!$D$6/Conversions!$D$5) -> 161965.2175 | BV18: ='ZSD Raw Data'!S7*(Conversions!$D$6/Conversions!$D$5) -> 161965.2175 | BW18: ='ZSD Raw Data'!T7*(Conversions!$D$6/Conversions!$D$5) -> 161965.2175 | BX18: ='ZSD Raw Data'!U7*(Conversions!$D$6/Conversions!$D$5) -> 161965.2175 | BY18: =BS18 -> 161965.2175 | BZ18: =BT18 -> 161965.2175 | CA18: 161965.2175 | CB18: 161965.2175 | CC18: 161965.2175 | CD18: 161965.2175 | CE18: =BK18 -> 161965.2175 | CF18: 161965.2175 | CG18: 161965.2175 | CH18: 161965.2175 | CI18: 161965.2175 | CJ18: 161965.2175 | CK18: 161965.2175 | CL18: 161965.2175 | CM18: 161965.2175 | CN18: 161965.2175 | CO18: 161965.2175 | CP18: 161965.2175 | CQ18: 161965.2175 | CR18: 161965.2175 | CS18: =CM18 -> 161965.2175 | CT18: =CN18 -> 161965.2175 | CU18: 161965.2175 | CV18: 161965.2175 | CW18: 161965.2175 | CX18: 161965.2175 | CY18: 175104.946 | CZ18: 175104.352 | DA18: 175104.08 | DB18: 175105.358 | DC18: 175101.413 | DD18: 175101.106 | DE18: 175100.684 | DF18: 175102.95 | DG18: 175099.527 | DH18: 174965.386 | DI18: 174975.329 | DJ18: 174994.064 | DK18: 174968.189 | DL18: 174967.968 | DM18: 174967.906
B19: FT Diesel | C19: lb/hr | D19: 53580.545 | E19: 53580.7456 | F19: 53579.8957 | G19: 53579.5503 | H19: 53579.901 | I19: 53587.5292 | J19: 53579.6927 | K19: 53578.7775 | L19: 53580.1009 | M19: 53579.9259 | N19: 53579.6172 | O19: 53579.821 | P19: 53579.638 | Q19: 53579.0209 | R19: 53580.1994 | S19: 53579.7422 | T19: 53579.3431 | U19: 53579.4197 | V19: 53579.0862 | W19: 53578.9831 | X19: 53578.7502 | Y19: 53580.2545 | Z19: 53579.3549 | AA19: 53578.883 | AB19: 53579.5428 | AC19: 53579.5645 | AD19: 53579.1481 | AE19: 53579.3069 | AF19: 53579.0569 | AG19: 53579.1484 | AH19: 53579.3397 | AI19: 53578.8714 | AJ19: 53578.2268 | AK19: 54683.9606 | AL19: 54652.9972 | AM19: 54524.0777 | AN19: 54666.8292 | AO19: 54615.891 | AP19: 54649.607 | AQ19: 54528.6525 | AR19: 54664.0843 | AS19: 54606.7421 | AT19: 54664.516 | AU19: 54682.1085 | AV19: 54648.8532 | AW19: 54526.2353 | AX19: 54662.9313 | AY19: 54606.1512 | AZ19: 54663.5462 | BA19: ='CTL Raw Data'!B37/(Conversions!$D$3*Conversions!$D$5) -> 391020.9018 | BB19: ='CTL Raw Data'!C37/(Conversions!$D$3*Conversions!$D$5) -> 391020.9018 | BC19: ='ZSD Raw Data'!B6*(Conversions!$D$7/Conversions!$D$5) -> 385568.1084 | BD19: ='ZSD Raw Data'!C6*(Conversions!$D$7/Conversions!$D$5) -> 385568.1084 | BE19: ='ZSD Raw Data'!D6*(Conversions!$D$7/Conversions!$D$5) -> 385568.1084 | BF19: ='ZSD Raw Data'!E6*(Conversions!$D$7/Conversions!$D$5) -> 385568.1084 | BG19: ='ZSD Raw Data'!F6*(Conversions!$D$7/Conversions!$D$5) -> 385568.1084 | BH19: ='ZSD Raw Data'!G6*(Conversions!$D$7/Conversions!$D$5) -> 385568.1084 | BI19: 385568.1084 | BJ19: 385568.1084 | BK19: ='ZSD Raw Data'!H6*(Conversions!$D$7/Conversions!$D$5) -> 385568.1084 | BL19: ='ZSD Raw Data'!I6*(Conversions!$D$7/Conversions!$D$5) -> 385568.1084 | BM19: ='ZSD Raw Data'!J6*(Conversions!$D$7/Conversions!$D$5) -> 385568.1084 | BN19: ='ZSD Raw Data'!K6*(Conversions!$D$7/Conversions!$D$5) -> 385568.1084 | BO19: ='ZSD Raw Data'!L6*(Conversions!$D$7/Conversions!$D$5) -> 385568.1084 | BP19: ='ZSD Raw Data'!M6*(Conversions!$D$7/Conversions!$D$5) -> 385568.1084 | BQ19: ='ZSD Raw Data'!N6*(Conversions!$D$7/Conversions!$D$5) -> 385568.1084 | BR19: ='ZSD Raw Data'!O6*(Conversions!$D$7/Conversions!$D$5) -> 385568.1084 | BS19: ='ZSD Raw Data'!P6*(Conversions!$D$7/Conversions!$D$5) -> 385556.868 | BT19: ='ZSD Raw Data'!Q6*(Conversions!$D$7/Conversions!$D$5) -> 385568.1084 | BU19: ='ZSD Raw Data'!R6*(Conversions!$D$7/Conversions!$D$5) -> 385568.1084 | BV19: ='ZSD Raw Data'!S6*(Conversions!$D$7/Conversions!$D$5) -> 385568.1084 | BW19: ='ZSD Raw Data'!T6*(Conversions!$D$7/Conversions!$D$5) -> 385568.1084 | BX19: ='ZSD Raw Data'!U6*(Conversions!$D$7/Conversions!$D$5) -> 385556.868 | BY19: =BS19 -> 385556.868 | BZ19: 385568.1084 | CA19: 385568.1084 | CB19: 385568.1084 | CC19: 385568.1084 | CD19: 385556.868 | CE19: 385568.1084 | CF19: 385568.1084 | CG19: 385568.1084 | CH19: 385568.1084 | CI19: 385568.1084 | CJ19: 385568.1084 | CK19: 385568.1084 | CL19: 385568.1084 | CM19: 385556.868 | CN19: 385568.1084 | CO19: 385568.1084 | CP19: 385568.1084 | CQ19: 385568.1084 | CR19: 385556.868 | CS19: =CM19 -> 385556.868 | CT19: 385568.1084 | CU19: 385568.1084 | CV19: 385568.1084 | CW19: 385568.1084 | CX19: 385556.868 | CY19: 53580.1994 | CZ19: 53579.7422 | DA19: 53579.3431 | DB19: 53579.4197 | DC19: 53579.0862 | DD19: 53578.9831 | DE19: 53578.7502 | DF19: 53579.1484 | DG19: 53578.2268 | DH19: 54682.1085 | DI19: 54648.8532 | DJ19: 54526.2353 | DK19: 54662.9313 | DL19: 54606.1512 | DM19: 54663.5462
B20: CO₂ to sequestration | C20: lb/hr | D20: 2573042.4 | E20: 2591637.61 | F20: 2611158.55 | G20: 2570521.36 | H20: 2568610.11 | I20: 2450099.58 | J20: 2631789.75 | K20: 2567310.33 | L20: 2594863.64 | M20: 2609529.67 | N20: 2628189.73 | O20: 2569195.52 | P20: 2568681.39 | Q20: 2567474.58 | R20: 2587866.44 | S20: 2609583.94 | T20: 2624328.34 | U20: 2642931.12 | V20: 2583687.66 | W20: 2583088.9 | X20: 2581790.88 | Y20: 2571453.87 | Z20: 2570383.71 | AA20: 2569113.95 | AB20: 2525489.69 | AC20: 2516962.72 | AD20: 2493778.59 | AE20: 2586123.02 | AF20: 2585065 | AG20: 2584086.27 | AH20: 2539984.91 | AI20: 2531410.43 | AJ20: 2508008.59 | AK20: 2519538.34 | AL20: 2565398.42 | AM20: 2754989.71 | AN20: 2551657.89 | AO20: 2617088.02 | AP20: 2542011.91 | AQ20: 2589018.67 | AR20: 2513248.15 | AS20: 2500682.43 | AT20: 2527908.8 | AU20: 2557337.06 | AV20: 2589731.8 | AW20: 2635098.16 | AX20: 2550239.55 | AY20: 2545545.24 | AZ20: 2566240.73 | BA20: ='CTL Raw Data'!B40/(Conversions!$D$3*Conversions!$D$5) -> 2200397.095 | BB20: ='CTL Raw Data'!C40/(Conversions!$D$3*Conversions!$D$5) -> 0 | BC20: ='ZSD Raw Data'!B53*CONVERT(1,"kg","lbm")/24 -> 2379238.209 | BD20: ='ZSD Raw Data'!C53*CONVERT(1,"kg","lbm")/24 -> 0 | BE20: ='ZSD Raw Data'!D53*CONVERT(1,"kg","lbm")/24 -> 2657100.988 | BF20: ='ZSD Raw Data'!E53*CONVERT(1,"kg","lbm")/24 -> 0 | BG20: ='ZSD Raw Data'!F53*CONVERT(1,"kg","lbm")/24 -> 2410688.612 | BH20: ='ZSD Raw Data'!G53*CONVERT(1,"kg","lbm")/24 -> 2704429.263 | BI20: 2410688.612 | BJ20: 2704429.263 | BK20: ='ZSD Raw Data'!H53*CONVERT(1,"kg","lbm")/24 -> 2478780.26 | BL20: ='ZSD Raw Data'!I53*CONVERT(1,"kg","lbm")/24 -> 0 | BM20: ='ZSD Raw Data'!J53*CONVERT(1,"kg","lbm")/24 -> 2551146.72 | BN20: ='ZSD Raw Data'!K53*CONVERT(1,"kg","lbm")/24 -> 2511757.381 | BO20: ='ZSD Raw Data'!L53*CONVERT(1,"kg","lbm")/24 -> 2754810.976 | BP20: ='ZSD Raw Data'!M53*CONVERT(1,"kg","lbm")/24 -> 0 | BQ20: ='ZSD Raw Data'!N53*CONVERT(1,"kg","lbm")/24 -> 2753589.601 | BR20: ='ZSD Raw Data'!O53*CONVERT(1,"kg","lbm")/24 -> 2753589.601 | BS20: ='ZSD Raw Data'!P53*CONVERT(1,"kg","lbm")/24 -> 2627787.992 | BT20: ='ZSD Raw Data'!Q53*CONVERT(1,"kg","lbm")/24 -> 2721223.168 | BU20: ='ZSD Raw Data'!R53*CONVERT(1,"kg","lbm")/24 -> 2655879.613 | BV20: ='ZSD Raw Data'!S53*CONVERT(1,"kg","lbm")/24 -> 2771299.537 | BW20: ='ZSD Raw Data'!T53*CONVERT(1,"kg","lbm")/24 -> 2831146.904 | BX20: ='ZSD Raw Data'!U53*CONVERT(1,"kg","lbm")/24 -> 2830841.561 | BY20: 2627787.992 | BZ20: 2721223.168 | CA20: 2655879.613 | CB20: 2771299.537 | CC20: 2831146.904 | CD20: 2830841.561 | CE20: 2478780.26 | CF20: 0 | CG20: 2551146.72 | CH20: 2511757.381 | CI20: 2754810.976 | CJ20: 0 | CK20: 2753589.601 | CL20: 2753589.601 | CM20: 2627787.992 | CN20: 2721223.168 | CO20: 2655879.613 | CP20: 2771299.537 | CQ20: 2831146.904 | CR20: 2830841.561 | CS20: 2627787.992 | CT20: 2721223.168 | CU20: 2655879.613 | CV20: 2771299.537 | CW20: 2831146.904 | CX20: 2830841.561 | CY20: 2587866.44 | CZ20: 2609583.94 | DA20: 2624328.34 | DB20: 2642931.12 | DC20: 2583687.66 | DD20: 2583088.9 | DE20: 2581790.88 | DF20: 2584086.27 | DG20: 2508008.59 | DH20: 2557337.06 | DI20: 2589731.8 | DJ20: 2635098.16 | DK20: 2550239.55 | DL20: 2545545.24 | DM20: 2566240.73
B21: LPG | C21: lb/hr | D21: 31235.866 | E21: 31235.4323 | F21: 31234.5335 | G21: 31238.8271 | H21: 31243.0672 | I21: 31163.7897 | J21: 31233.9621 | K21: 31246.6377 | L21: 31234.9797 | M21: 31234.6755 | N21: 31234.0201 | O21: 31241.6169 | P21: 31242.6744 | Q21: 31246.0793 | R21: 31242.8463 | S21: 31242.1022 | T21: 31241.2526 | U21: 31240.9022 | V21: 31248.753 | W21: 31250.0157 | X21: 31253.5395 | Y21: 31236.2538 | Z21: 31236.2445 | AA21: 31236.5062 | AB21: 31241.4349 | AC21: 31242.818 | AD21: 31246.5491 | AE21: 31243.0922 | AF21: 31243.3543 | AG21: 31243.807 | AH21: 31249.0732 | AI21: 31250.1156 | AJ21: 31254.0168 | AK21: 31347.8898 | AL21: 31311.1928 | AM21: 31325.656 | AN21: 31344.1413 | AO21: 31350.6645 | AP21: 31336.5615 | AQ21: 31320.7439 | AR21: 31350.8536 | AS21: 31358.3788 | AT21: 31348.8883 | AU21: 31371.6847 | AV21: 31357.8982 | AW21: 31336.8938 | AX21: 31372.1088 | AY21: 31385.0529 | AZ21: 31369.7671 | BA21: 0 | BB21: 0 | BC21: 0 | BD21: 0 | BE21: 0 | BF21: 0 | BG21: 0 | BH21: 0 | BI21: 0 | BJ21: 0 | BK21: 0 | BL21: 0 | BM21: 0 | BN21: 0 | BO21: 0 | BP21: 0 | BQ21: 0 | BR21: 0 | BS21: 0 | BT21: 0 | BU21: 0 | BV21: 0 | BW21: 0 | BX21: 0 | BY21: 0 | BZ21: 0 | CA21: 0 | CB21: 0 | CC21: 0 | CD21: 0 | CE21: 0 | CF21: 0 | CG21: 0 | CH21: 0 | CI21: 0 | CJ21: 0 | CK21: 0 | CL21: 0 | CM21: 0 | CN21: 0 | CO21: 0 | CP21: 0 | CQ21: 0 | CR21: 0 | CS21: =CM21 -> 0 | CT21: 0 | CU21: 0 | CV21: 0 | CW21: 0 | CX21: 0 | CY21: 31242.8463 | CZ21: 31242.1022 | DA21: 31241.2526 | DB21: 31240.9022 | DC21: 31248.753 | DD21: 31250.0157 | DE21: 31253.5395 | DF21: 31243.807 | DG21: 31254.0168 | DH21: 31371.6847 | DI21: 31357.8982 | DJ21: 31336.8938 | DK21: 31372.1088 | DL21: 31385.0529 | DM21: 31369.7671
B22: Sulfur | C22: lb/hr | D22: 9222.671 | E22: 8546.23343 | F22: 7835.11507 | G22: 8220.81382 | H22: 7238.73871 | I22: 8749.79665 | J22: 7086.7961 | K22: 6275.50829 | L22: 8427.79985 | M22: 7893.36102 | N22: 7216.77012 | O22: 7580.24106 | P22: 7277.60241 | Q22: 6437.93869 | R22: 9240.30955 | S22: 8443.70152 | T22: 7908.20166 | U22: 7230.24063 | V22: 7594.38453 | W22: 7291.14526 | X22: 6449.86011 | Y22: 8335.15583 | Z22: 7753.06238 | AA22: 7032.25255 | AB22: 7628.977 | AC22: 7334.83493 | AD22: 6517.89306 | AE22: 8350.85571 | AF22: 7767.60878 | AG22: 7045.65461 | AH22: 7643.33823 | AI22: 7348.56219 | AJ22: 6530.09602 | AK22: 9039.01887 | AL22: 8582.46606 | AM22: 7543.74579 | AN22: 8247.35202 | AO22: 6540.1614 | AP22: 8419.97396 | AQ22: 6991.4833 | AR22: 8134.94106 | AS22: 6325.29921 | AT22: 8183.46773 | AU22: 15397.3395 | AV22: 14384.963 | AW22: 11938.8334 | AX22: 13850.8473 | AY22: 10729.3865 | AZ22: 13941.3138 | BA22: ='CTL Raw Data'!B42/(Conversions!$D$3*Conversions!$D$5) -> 43874.1948 | BB22: ='CTL Raw Data'!C42/(Conversions!$D$3*Conversions!$D$5) -> 43874.1948 | CY22: 9240.30955 | CZ22: 8443.70152 | DA22: 7908.20166 | DB22: 7230.24063 | DC22: 7594.38453 | DD22: 7291.14526 | DE22: 6449.86011 | DF22: 7045.65461 | DG22: 6530.09602 | DH22: 15397.3395 | DI22: 14384.963 | DJ22: 11938.8334 | DK22: 13850.8473 | DL22: 10729.3865 | DM22: 13941.3138
B23: Export power | C23: MWh/hr | D23: ='2.0 Efficiency Adjustment'!B23 -> 222.2787414 | E23: ='2.0 Efficiency Adjustment'!C23 -> 203.3149192 | F23: ='2.0 Efficiency Adjustment'!D23 -> 183.3602543 | G23: ='2.0 Efficiency Adjustment'!E23 -> 222.7101109 | H23: ='2.0 Efficiency Adjustment'!F23 -> 226.6471168 | I23: ='2.0 Efficiency Adjustment'!G23 -> 196.7587126 | J23: ='2.0 Efficiency Adjustment'!H23 -> 162.359441 | K23: ='2.0 Efficiency Adjustment'!I23 -> 230.517229 | L23: ='2.0 Efficiency Adjustment'!J23 -> 199.9990142 | M23: ='2.0 Efficiency Adjustment'!K23 -> 185.00338 | N23: ='2.0 Efficiency Adjustment'!L23 -> 166.0184165 | O23: ='2.0 Efficiency Adjustment'!M23 -> 225.2665587 | P23: ='2.0 Efficiency Adjustment'!N23 -> 226.4824506 | Q23: ='2.0 Efficiency Adjustment'!O23 -> 229.8665395 | R23: ='2.0 Efficiency Adjustment'!P23 -> 221.6999754 | S23: ='2.0 Efficiency Adjustment'!Q23 -> 199.3287381 | T23: ='2.0 Efficiency Adjustment'!R23 -> 184.3324858 | U23: ='2.0 Efficiency Adjustment'!S23 -> 165.341837 | V23: ='2.0 Efficiency Adjustment'!T23 -> 224.5969471 | W23: ='2.0 Efficiency Adjustment'!U23 -> 225.8063328 | X23: ='2.0 Efficiency Adjustment'!V23 -> 229.1838155 | Y23: ='2.0 Efficiency Adjustment'!W23 -> 228.2303047 | Z23: ='2.0 Efficiency Adjustment'!X23 -> 232.5534639 | AA23: ='2.0 Efficiency Adjustment'!Y23 -> 238.5389304 | AB23: ='2.0 Efficiency Adjustment'!Z23 -> 234.6200346 | AC23: ='2.0 Efficiency Adjustment'!AA23 -> 237.5490646 | AD23: ='2.0 Efficiency Adjustment'!AB23 -> 245.6997005 | AE23: ='2.0 Efficiency Adjustment'!AC23 -> 227.6287158 | AF23: ='2.0 Efficiency Adjustment'!AD23 -> 231.916197 | AG23: ='2.0 Efficiency Adjustment'!AE23 -> 237.9115217 | AH23: ='2.0 Efficiency Adjustment'!AF23 -> 233.9562722 | AI23: ='2.0 Efficiency Adjustment'!AG23 -> 236.8822896 | AJ23: ='2.0 Efficiency Adjustment'!AH23 -> 245.0564269 | AK23: 0 | AL23: 0 | AM23: 0 | AN23: 0 | AO23: 0 | AP23: 0 | AQ23: 0 | AR23: 0 | AS23: ='2.0 Efficiency Adjustment'!AQ23 -> 11.01187321 | AT23: 0 | AU23: 0 | AV23: 0 | AW23: 0 | AX23: 0 | AY23: 0 | AZ23: 0 | BA23: ='2.0 Efficiency Adjustment'!AY23 -> 4.7 | BB23: ='2.0 Efficiency Adjustment'!AZ23 -> 97.1 | BC23: ='2.0 Efficiency Adjustment'!BA23 -> 104.5 | BD23: ='2.0 Efficiency Adjustment'!BB23 -> 207.7 | BE23: ='2.0 Efficiency Adjustment'!BC23 -> 397.3 | BF23: ='2.0 Efficiency Adjustment'!BD23 -> 541.6 | BG23: ='2.0 Efficiency Adjustment'!BE23 -> 48.9 | BH23: ='2.0 Efficiency Adjustment'!BF23 -> 319.4 | BI23: ='2.0 Efficiency Adjustment'!BG23 -> 48.9 | BJ23: ='2.0 Efficiency Adjustment'!BH23 -> 319.4 | BK23: ='ZSD Raw Data'!H8/Conversions!$D$5 -> 0 | BL23: ='2.0 Efficiency Adjustment'!BJ23 -> 92 | BM23: ='ZSD Raw Data'!J8/Conversions!$D$5 -> 0 | BN23: ='ZSD Raw Data'!K8/Conversions!$D$5 -> 0 | BO23: ='2.0 Efficiency Adjustment'!BM23 -> 227.1 | BP23: ='2.0 Efficiency Adjustment'!BN23 -> 428.1 | BQ23: ='2.0 Efficiency Adjustment'!BO23 -> 190.9 | BR23: ='2.0 Efficiency Adjustment'!BP23 -> 213.9 | BS23: ='ZSD Raw Data'!P8/Conversions!$D$5 -> 0 | BT23: ='ZSD Raw Data'!Q8/Conversions!$D$5 -> 0 | BU23: ='ZSD Raw Data'!R8/Conversions!$D$5 -> 0 | BV23: ='2.0 Efficiency Adjustment'!BT23 -> 190.3 | BW23: ='2.0 Efficiency Adjustment'!BU23 -> 150.5 | BX23: ='2.0 Efficiency Adjustment'!BV23 -> 177.2 | BY23: =BS23 -> 0 | BZ23: =BT23 -> 0 | CA23: 0 | CB23: ='2.0 Efficiency Adjustment'!BZ23 -> 190.3 | CC23: ='2.0 Efficiency Adjustment'!CA23 -> 150.5 | CD23: ='2.0 Efficiency Adjustment'!CB23 -> 177.2 | CE23: =BK23 -> 0 | CF23: ='2.0 Efficiency Adjustment'!CD23 -> 92 | CG23: =BM23 -> 0 | CH23: =BN23 -> 0 | CI23: ='2.0 Efficiency Adjustment'!CG23 -> 227.1 | CJ23: ='2.0 Efficiency Adjustment'!CH23 -> 428.1 | CK23: ='2.0 Efficiency Adjustment'!CI23 -> 190.9 | CL23: ='2.0 Efficiency Adjustment'!CJ23 -> 213.9 | CM23: =BS23 -> 0 | CN23: 0 | CO23: 0 | CP23: ='2.0 Efficiency Adjustment'!CN23 -> 190.3 | CQ23: ='2.0 Efficiency Adjustment'!CO23 -> 150.5 | CR23: ='2.0 Efficiency Adjustment'!CP23 -> 177.2 | CS23: =CM23 -> 0 | CT23: =CN23 -> 0 | CU23: 0 | CV23: ='2.0 Efficiency Adjustment'!CT23 -> 190.3 | CW23: ='2.0 Efficiency Adjustment'!CU23 -> 150.5 | CX23: ='2.0 Efficiency Adjustment'!CV23 -> 177.2 | CY23: ='2.0 Efficiency Adjustment'!CW23 -> 221.6999754 | CZ23: ='2.0 Efficiency Adjustment'!CX23 -> 199.3287381 | DA23: ='2.0 Efficiency Adjustment'!CY23 -> 184.3324858 | DB23: ='2.0 Efficiency Adjustment'!CZ23 -> 165.341837 | DC23: ='2.0 Efficiency Adjustment'!DA23 -> 224.5969471 | DD23: ='2.0 Efficiency Adjustment'!DB23 -> 225.8063328 | DE23: ='2.0 Efficiency Adjustment'!DC23 -> 229.1838155 | DF23: ='2.0 Efficiency Adjustment'!DD23 -> 237.9115217 | DG23: ='2.0 Efficiency Adjustment'!DE23 -> 245.0564269 | DH23: 0 | DI23: 0 | DJ23: 0 | DK23: 0 | DL23: 0 | DM23: 0
